Workbook

Sheet PREDICTIONS (hidden)
B2: FINAL TIME | O2: CORRECT SCORE | AA2: =J20 -> 4.4
B3: 1 | E3: X | H3: 2 | O3: =D16 -> Roma | S3: =H16 -> Hellas Verona
B4: =#REF! ->  | E4: =#REF! ->  | H4: =#REF! ->  | O4: =P4/0.36-1 ->  | P4: =#REF! ->  | Q4: 0 | S4: 0 | U4: =#REF! ->  | V4: =U4/0.44-1 -> 
O5: =P5/0.32-1 ->  | P5: =#REF! ->  | Q5: 1 | S5: 1 | U5: =#REF! ->  | V5: =U5/0.33-1 -> 
O6: =P6/0.24-1 ->  | P6: =#REF! ->  | Q6: 2 | S6: 2 | U6: =#REF! ->  | V6: =U6/0.2-1 -> 
O7: =P7/0.18-1 ->  | P7: =#REF! ->  | Q7: 3 | S7: 3 | U7: =#REF! ->  | V7: =U7/0.15-1 -> 
O8: =P8/0.2-1 ->  | P8: =#REF! ->  | Q8: 4 | S8: 4 | U8: =#REF! ->  | V8: =U8/0.1-1 -> 
B9: UNDER 2,5 - OVER 2,5 | O9: =P9/0.1-1 ->  | P9: =#REF! ->  | Q9: 5 | S9: 5 | U9: =#REF! ->  | V9: =U9/0.1-1 -> 
B10: UNDER 2,5 | G10: =#REF! ->  | O10: =P10/0.1-1 ->  | P10: =#REF! ->  | Q10: 6 | S10: 6 | U10: =#REF! ->  | V10: =U10/0.1-1 -> 
O11: =P11/0.1-1 ->  | P11: =#REF! ->  | Q11: 7 | S11: 7 | U11: =#REF! ->  | V11: =U11/0.1-1 -> 
B12: OVER 2,5 | G12: =#REF! ->  | O12: ® KILLER BET Vers. 2.0 ®
B16: DATA | D16: ='DATA (2)'!J1 -> Roma | G16: - | H16: ='DATA (2)'!J10 -> Hellas Verona | O16: ESTIMATED TOTAL 1 | S16: =MOTOR!AB8 -> 2-3 GOALS
O17: GA/GS : Gol Attığı/Goal Scored GY/GC: Gol Yediği/Goal Concided A/W:Aldığı Maç/Win Match B/D: Beraberlik/Draw K/L: Kaybettiği/Lose Seçilecek Form: Selection Form Average
D18: GF | E18: GG | F18: W | G18: D | H18: L | I18: FORM | J18: M. F. | O18: ESTIMATED TOTAL 2 | S18: =MOTOR!AB9 -> 2-3 GOALS
B19: HOME | D19: =H!Z8 -> 7 | E19: =H!AA8 -> 2 | F19: =H!W8 -> 4 | G19: =H!X8 -> 0 | H19: =H!Y8 -> 1 | I19: =J19 -> 5.6 | J19: =(F19*1.2)+(G19*1)+(H19*0.8) -> 5.6 | O19: ESTIMATED TOTAL 3 | S19: =MOTOR!AB10 -> 2-3 GOALS
B20: AWAY | D20: =A!Z8 -> 3 | E20: =A!AA8 -> 7 | F20: =A!W8 -> 0 | G20: =A!X8 -> 2 | H20: =A!Y8 -> 3 | I20: =AA2 -> 4.4 | J20: =(F20*1.2)+(G20*1)+(H20*0.8) -> 4.4 | O20: ESTIMATED SCORE 1 | S20: =MOTOR!AD11 -> 2 : 0
O21: ESTIMATED SCORE 2 | S21: =MOTOR!AD12 -> 1 : 1
O22: MADE BY FR@NCE'
S23: =AVERAGE(S20:S21
C142: 4
C143: 4.2
C144: 4.4
C145: 4.6
C146: 4.8
C147: 5
C148: 5.2
C149: 5.4
C150: 5.6
C151: 5.8
C152: 6

Sheet DATA (2) (hidden)
A1: HOME | J1: =IF(COUNTIF(C4:E8,C4)>COUNTIF(C4:E8,E4),C4,E4) -> Roma
A3: League | B3: Time | C3: Home | D3: FT | E3: Away | F3: HT | G3: 1x2 | H3: AH | I3: O/U
A4: ICE U19L | B4: 44335 | C4: =PAST!C53 -> Roma | D4: =PAST!D53 -> 2 - 0 | E4: =PAST!E53 -> Empoli | F4: =PAST!F53 -> 2-0 | G4: W | H4: L1/1.5 | I4: U4.5 | J4: =VALUE(LEFT(D4)) -> 2 | K4: =VALUE(RIGHT(D4)) -> 0 | L4: =J4&" : "&K4 -> 2 : 0
A5: ICE U19L | B5: 43341 | C5: =PAST!C54 -> Roma | D5: =PAST!D54 -> 1 - 2 | E5: =PAST!E54 -> Cremonese | F5: =PAST!F54 -> 0-1 | G5: W | H5: W0.5 | I5: O3.5/4 | J5: =VALUE(LEFT(D5)) -> 1 | K5: =VALUE(RIGHT(D5)) -> 2 | L5: =J5&" : "&K5 -> 1 : 2
A6: ICE CU19 | B6: 43223 | C6: =PAST!C55 -> Roma | D6: =PAST!D55 -> 2 - 0 | E6: =PAST!E55 -> Fiorentina | F6: =PAST!F55 -> 1-0 | G6: W | H6: W0/0.5 | I6: U4/4.5 | J6: =VALUE(LEFT(D6)) -> 2 | K6: =VALUE(RIGHT(D6)) -> 0 | L6: =J6&" : "&K6 -> 2 : 0
A7: ICE U19L | B7: 42938 | C7: =PAST!C56 -> Roma | D7: =PAST!D56 -> 1 - 0 | E7: =PAST!E56 -> Genoa | F7: =PAST!F56 -> 0-0 | G7: D | H7: L1.5/2 | I7: O3.5/4 | J7: =VALUE(LEFT(D7)) -> 1 | K7: =VALUE(RIGHT(D7)) -> 0 | L7: =J7&" : "&K7 -> 1 : 0
A8: ICE U19L | B8: 42845 | C8: =PAST!C57 -> Roma | D8: =PAST!D57 -> 1 - 0 | E8: =PAST!E57 -> Bologna | F8: =PAST!F57 -> 1-0 | G8: W | H8: L2.5 | I8: U4.5 | J8: =VALUE(LEFT(D8)) -> 1 | K8: =VALUE(RIGHT(D8)) -> 0 | L8: =J8&" : "&K8 -> 1 : 0
A10: AWAY | J10: =IF(COUNTIF(C13:E17,C13)>COUNTIF(C13:E17,E13),C13,E13) -> Hellas Verona
A12: League | B12: Time | C12: Home | D12: FT | E12: Away | F12: HT | G12: 1x2 | H12: AH | I12: O/U
A13: CE CU19 | B13: 44240 | C13: =PAST!J53 -> Udinese | D13: =PAST!K53 -> 1 - 1 | E13: =PAST!L53 -> Hellas Verona | F13: =PAST!M53 -> 1-1 | G13: L | H13: D0/-0.5 | I13: U4 | J13: =VALUE(LEFT(D13)) -> 1 | K13: =VALUE(RIGHT(D13)) -> 1 | L13: =J13&" : "&K13 -> 1 : 1
A14: ICE U19L | B14: 44110 | C14: =PAST!J54 -> Inter | D14: =PAST!K54 -> 1 - 0 | E14: =PAST!L54 -> Hellas Verona | F14: =PAST!M54 -> 1-0 | G14: W | H14: W-1/1.5 | I14: U3.5/4 | J14: =VALUE(LEFT(D14)) -> 1 | K14: =VALUE(RIGHT(D14)) -> 0 | L14: =J14&" : "&K14 -> 1 : 0
A15: ICE U19L | B15: 44107 | C15: =PAST!J55 -> Torino | D15: =PAST!K55 -> 1 - 1 | E15: =PAST!L55 -> Hellas Verona | F15: =PAST!M55 -> 0-1 | G15: W | H15: W0 | I15: O3.5/4 | J15: =VALUE(LEFT(D15)) -> 1 | K15: =VALUE(RIGHT(D15)) -> 1 | L15: =J15&" : "&K15 -> 1 : 1
A16: ICE U19L | B16: 44104 | C16: =PAST!J56 -> Monza | D16: =PAST!K56 -> 2 - 0 | E16: =PAST!L56 -> Hellas Verona | F16: =PAST!M56 -> 0-0 | G16: D | H16: D0/0.5 | I16: O3.5 | J16: =VALUE(LEFT(D16)) -> 2 | K16: =VALUE(RIGHT(D16)) -> 0 | L16: =J16&" : "&K16 -> 2 : 0
A17: ICE U19L | B17: 44086 | C17: =PAST!J57 -> Sassuolo | D17: =PAST!K57 -> 2 - 1 | E17: =PAST!L57 -> Hellas Verona | F17: =PAST!M57 -> 1-1 | G17: W | H17: W1 | I17: O4/4.5 | J17: =VALUE(LEFT(D17)) -> 2 | K17: =VALUE(RIGHT(D17)) -> 1 | L17: =J17&" : "&K17 -> 2 : 1

Sheet MOTOR (hidden)
AE1: =AB11&" : "&AC11 -> 2 : 0 | BJ1: =E5 -> Roma | BK1: =F19 -> Hellas Verona
B2: HOME | E2: =IF(COUNTIF(E5:F14,E5)>COUNTIF(E5:F14,F5),E5,F5) -> Roma | G2: FT Res | S2: Under-Over | Y2: Scoring Averages | AE2: =AB12&" : "&AC12 -> 1 : 1
V3: Under | W3: Over | AB3: HOME | AC3: AWAY | AE3: =AB12+AC12 -> 2
C5: =MID('DATA (2)'!A4,1,20) -> ICE U19L | E5: =MID('DATA (2)'!C4,1,20) -> Roma | F5: =MID('DATA (2)'!E4,1,20) -> Empoli | G5: =MID('DATA (2)'!L4,1,20) -> 2 : 0 | I5: =IFERROR(VALUE(LEFT(G5,FIND(" : ",G5,1)-1)),"") -> 2 | J5: =IFERROR(VALUE(RIGHT(G5,FIND(" : ",G5,1)-1)),"") -> 0 | K5: 0 | L5: =IF(I5>J5,"W",IF(I5=J5,"D",IF(I5<J5,"L"))) -> W | M5: =IF(I5>0,1,0) -> 1 | N5: =I5+J5 -> 2 | O5: =IF(N5>1.5,1,0) -> 1 | P5: =IF(N5>2.5,1,0) -> 0 | Q5: =IF(N5>3.5,1,0) -> 0 | R5: =IF(N5>4.5,1,0) -> 0 | S5: 1.5 | V5: =1-W5 -> 0.35 | W5: =(O29+O15)/2 -> 0.65 | Y5: Scored (average) | AB5: =AVERAGE(I5:I14) -> 1.4 | AC5: =AVERAGE(J19:J28) -> 0.6
C6: =MID('DATA (2)'!A5,1,20) -> ICE U19L | E6: =MID('DATA (2)'!C5,1,20) -> Roma | F6: =MID('DATA (2)'!E5,1,20) -> Cremonese | G6: =MID('DATA (2)'!L5,1,20) -> 1 : 2 | I6: 1 | J6: 2 | K6: 1 | L6: L | M6: 1 | N6: =I6+J6 -> 3 | O6: 1 | P6: 1 | Q6: 0 | R6: 0 | S6: 2.5 | V6: =1-W6 -> 0.8166666667 | W6: =(P15+P29)/2 -> 0.1833333333 | Y6: Missed (average) | AB6: =AVERAGE(J5:J14) -> 0.4 | AC6: =AVERAGE(I19:I28) -> 1.4
C7: =MID('DATA (2)'!A6,1,20) -> ICE CU19 | E7: =MID('DATA (2)'!C6,1,20) -> Roma | F7: =MID('DATA (2)'!E6,1,20) -> Fiorentina | G7: =MID('DATA (2)'!L6,1,20) -> 2 : 0 | I7: 2 | J7: 0 | K7: 2 | L7: W | M7: 1 | N7: =I7+J7 -> 2 | O7: 1 | P7: 0 | Q7: 0 | R7: 0 | S7: 3.5 | V7: =1-W7 -> 1 | W7: =(Q15+Q29)/2 -> 0 | Y7: Average Per Game | AB7: =AVERAGE(N5:N9) -> 1.8 | AC7: =AVERAGE(N19:N23) -> 2
C8: =MID('DATA (2)'!A7,1,20) -> ICE U19L | E8: =MID('DATA (2)'!C7,1,20) -> Roma | F8: =MID('DATA (2)'!E7,1,20) -> Genoa | G8: =MID('DATA (2)'!L7,1,20) -> 1 : 0 | I8: 1 | J8: 0 | K8: 3 | L8: W | M8: 1 | N8: =I8+J8 -> 1 | O8: 0 | P8: 0 | Q8: 0 | R8: 0 | S8: 4.5 | V8: =1-W8 -> 1 | W8: =(R15+R29)/2 -> 0 | Y8: Estimated Total #1 | AB8: =IFERROR(IF(AA20+AB20<1.5,"0-1 GOALS",IF(AA20+AB20<3.5,"2-3 GOALS",IF(AA20+AB20<6.5,"4-6 GOALS","+7 GOALS"))),"") -> 2-3 GOALS
C9: =MID('DATA (2)'!A8,1,20) -> ICE U19L | E9: =MID('DATA (2)'!C8,1,20) -> Roma | F9: =MID('DATA (2)'!E8,1,20) -> Bologna | G9: =MID('DATA (2)'!L8,1,20) -> 1 : 0 | I9: 1 | J9: 0 | K9: 4 | L9: W | M9: 1 | N9: =I9+J9 -> 1 | O9: 0 | P9: 0 | Q9: 0 | R9: 0 | Y9: Estimated Total #2 | AB9: =IFERROR(IF(AB5+AC5<1.5,"0-1 GOALS",IF(AB5+AC5<3.5,"2-3 GOALS",IF(AB5+AC5<6.5,"4-6 GOALS","+7 GOALS"))),"") -> 2-3 GOALS
K10: 5 | L10: D | M10: 1 | N10: =I15+J15 -> 0.6 | O10: 0 | P10: 0 | Q10: 0 | R10: 0 | Y10: Estimated Total #3 | AB10: =IFERROR(IF(V24+V25<1.5,"0-1 GOALS",IF(V24+V25<3.5,"2-3 GOALS",IF(V24+V25<6.5,"4-6 GOALS","+7 GOALS"))),"") -> 2-3 GOALS
K11: 6 | L11: D | M11: 1 | N11: =I11+J11 ->  | Y11: Estimated Score 1 | AB11: =V24 -> 2 | AC11: =V25 -> 0 | AD11: =AB11&" : "&AC11 -> 2 : 0 | AE11: =AVERAGE(AB11:AB12) -> 1.5 | AF11: =AVERAGE(AC11:AC12) -> 0.5
K12: 7 | L12: D | M12: 1 | N12: =I12+J12 ->  | Y12: Estimated Score 2 | AB12: =ROUND(AB5,-0.1) -> 1 | AC12: =ROUND(AC5,-0.1) -> 1 | AD12: =AB12&" : "&AC12 -> 1 : 1
K13: 8 | L13: D | M13: 1 | N13: =I13+J13 ->  | Y13: FT Forecast #1 | AB13: =IF(V26>1,"HOME WIN",IF(V26>0.5,"HOME/DNB",IF(V26<-1,"AWAY WIN",IF(V26<-0.5,"AWAY/DNB","NOBET")))) -> HOME WIN
K14: 9 | L14: D | M14: 1 | N14: =I14+J14 ->  | Y14: FT Forecast #2 | AB14: =IF(AB12>AC12,"WIN 1",IF(AB12=AC12,"DRAW",IF(AB12<AC12,"WIN 2"))) -> DRAW
I15: =TREND(I5:I9,K5:K9,K10) -> 0.8 | J15: =TREND(J5:J9,K5:K9,K10) -> -0.2 | K15: 10 | L15: =IF(I15<J15,"G",IF(I15=J15,"B",IF(I15>J15,"M"))) -> M | M15: 1 | O15: =AVERAGE(O5:O10) -> 0.5 | P15: =AVERAGE(P5:P10) -> 0.1666666667 | Q15: =AVERAGE(Q5:Q10) -> 0 | R15: =AVERAGE(R5:R10) -> 0
B16: AWAY | E16: =IF(COUNTIF(E19:F28,E19)>COUNTIF(E19:F28,F19),E19,F19) -> Hellas Verona | G16: FT Res
AA18: =AB5*10 -> 14 | AB18: =AC5*10 -> 6
C19: =MID('DATA (2)'!A13,1,20) -> CE CU19 | E19: =MID('DATA (2)'!C13,1,20) -> Udinese | F19: =MID('DATA (2)'!E13,1,20) -> Hellas Verona | G19: =MID('DATA (2)'!L13,1,20) -> 1 : 1 | I19: =IFERROR(VALUE(LEFT(G19,FIND(" : ",G19,1)-1)),"") -> 1 | J19: =IFERROR(VALUE(RIGHT(G19,FIND(" : ",G19,1)-1)),"") -> 1 | K19: 0 | L19: =IF(I19>J19,"L",IF(I19=J19,"D",IF(I19<J19,"W"))) -> D | M19: =IF(J19>0,1,0) -> 1 | N19: =I19+J19 -> 2 | O19: =IF(N19>1.5,1,0) -> 1 | P19: =IF(N19>2.5,1,0) -> 0 | Q19: =IF(N19>3.5,1,0) -> 0 | R19: =IF(N19>4.5,1,0) -> 0 | V19: =MAX(V5:W5) -> 0.65 | W19: =IF(V19=V5,"Under 1,5 Goals","Over 1,5 Goals") -> Over 1,5 Goals | AA19: =AB6*10 -> 4 | AB19: =AC6*10 -> 14
C20: =MID('DATA (2)'!A14,1,20) -> ICE U19L | E20: =MID('DATA (2)'!C14,1,20) -> Inter | F20: =MID('DATA (2)'!E14,1,20) -> Hellas Verona | G20: =MID('DATA (2)'!L14,1,20) -> 1 : 0 | I20: 1 | J20: 0 | K20: 1 | L20: L | M20: 0 | N20: =I20+J20 -> 1 | O20: 0 | P20: 0 | Q20: 0 | R20: 0 | AA20: =(AA18+AB19)/20 -> 1.4 | AB20: =(AA19+AB18)/20 -> 0.5
C21: =MID('DATA (2)'!A15,1,20) -> ICE U19L | E21: =MID('DATA (2)'!C15,1,20) -> Torino | F21: =MID('DATA (2)'!E15,1,20) -> Hellas Verona | G21: =MID('DATA (2)'!L15,1,20) -> 1 : 1 | I21: 1 | J21: 1 | K21: 2 | L21: D | M21: 1 | N21: =I21+J21 -> 2 | O21: 1 | P21: 0 | Q21: 0 | R21: 0 | V21: =MAX(V6:W6) -> 0.8166666667 | W21: =IF(V21=V6,"Under 2,5 Goals","Over 2,5 Goals") -> Under 2,5 Goals
C22: =MID('DATA (2)'!A16,1,20) -> ICE U19L | E22: =MID('DATA (2)'!C16,1,20) -> Monza | F22: =MID('DATA (2)'!E16,1,20) -> Hellas Verona | G22: =MID('DATA (2)'!L16,1,20) -> 2 : 0 | I22: 2 | J22: 0 | K22: 3 | L22: L | M22: 0 | N22: =I22+J22 -> 2 | O22: 1 | P22: 0 | Q22: 0 | R22: 0 | V22: =MAX(V7:W7) -> 1 | W22: =IF(V22=V7,"Under 3,5 Goals","Over 3,5 Goals") -> Under 3,5 Goals
C23: =MID('DATA (2)'!A17,1,20) -> ICE U19L | E23: =MID('DATA (2)'!C17,1,20) -> Sassuolo | F23: =MID('DATA (2)'!E17,1,20) -> Hellas Verona | G23: =MID('DATA (2)'!L17,1,20) -> 2 : 1 | I23: 2 | J23: 1 | K23: 4 | L23: L | M23: 1 | N23: =I23+J23 -> 3 | O23: 1 | P23: 1 | Q23: 0 | R23: 0
K24: 5 | L24: D | M24: 1 | N24: =I29+J29 -> 2.9 | O24: 1 | P24: 1 | Q24: 0 | R24: 0 | V24: =ROUND(AVERAGE(I15,I29),0) -> 2
K25: 6 | L25: D | M25: 1 | N25: =I25+J25 ->  | V25: =ROUND(AVERAGE(J29,J15),0) -> 0
K26: 7 | L26: D | M26: 1 | N26: =I26+J26 ->  | V26: =V24-V25 -> 2
K27: 8 | L27: D | M27: 1 | N27: =I27+J27 -> 
K28: 9 | L28: D | M28: 1 | N28: =I28+J28 -> 
I29: =TREND(I19:I23,K19:K23,K24) -> 2.3 | J29: =TREND(J19:J23,K19:K23,K24) -> 0.6 | K29: 10 | L29: =IF(I29<J29,"G",IF(I29=J29,"B",IF(I29>J29,"M"))) -> M | M29: 1 | N29: =I29+J29 -> 2.9 | O29: =AVERAGE(O19:O23) -> 0.8 | P29: =AVERAGE(P19:P23) -> 0.2 | Q29: =AVERAGE(Q19:Q23) -> 0 | R29: =AVERAGE(R19:R23) -> 0

Sheet H (hidden)
A1: TAKIM 1
V2: Всего | AC2: Дома | AJ2: В гостях | AQ2: Забивают дома | AU2: Забивают в гостях
A3: =F3 -> Roma | E3: SKOR | F3: =IF(COUNTIF(C4:D13,C4)>COUNTIF(C4:D13,D4),C4,D4) -> Roma | G3: Заб | H3: Проп | I3: Рез | J3: Турнир | K3: Дом | L3: Гость | M3: Счёт | N3: Команда1 | O3: Команда2 | P3: Голы1 | Q3: Голы2 | R3: Где играла | S3: Результат | T3: AG | U3: YG | V3: O | W3: G | X3: B | Y3: M | Z3: AG | AA3: YG | AB3: P | AC3: O | AD3: G | AE3: B | AF3: M | AG3: AG | AH3: YG | AI3: P | AJ3: O | AK3: G | AL3: B | AM3: M | AN3: AG | AO3: YG | AP3: P | AQ3: 0 | AR3: 1 | AS3: 2 | AT3: 3+ | AU3: 0 | AV3: 1 | AW3: 2 | AX3: 3+ | AY3: Забивают | AZ3: Пропускают | BA3: Рейтинг | BB3: тотал
A4: 44336 | C4: =MID('DATA (2)'!C4,1,20) -> Roma | D4: =MID('DATA (2)'!E4,1,20) -> Empoli | E4: =MID('DATA (2)'!L4,1,20) -> 2 : 0 | G4: =IF(R4="Дома",K4,L4) -> 2 | H4: =IF(R4="Дома",L4,K4) -> 0 | I4: =IF(R4="Дома",IF(K4>L4,"В",IF(K4=L4,"Н","П")),IF(L4>K4,"В",IF(K4=L4,"Н","П"))) -> В | J4: =B4 -> 0 | K4: =VALUE(LEFT(M4,FIND(":",M4,1)-1)) -> 2 | L4: =VALUE(LEFT(RIGHT(M4,LEN(M4)-FIND(":",M4,1)),1)) -> 0 | M4: =SUBSTITUTE(E4," : ",":") -> 2:0 | N4: =C4 -> Roma | O4: =D4 -> Empoli | P4: =VALUE(LEFT(M4,FIND(":",M4,1)-1)) -> 2 | Q4: =VALUE(LEFT(RIGHT(M4,LEN(M4)-FIND(":",M4,1)),1)) -> 0 | R4: =IF(C4=A$3,"Дома","В гостях") -> Дома | S4: =I4 -> В | T4: =G4 -> 2 | U4: =H4 -> 0 | V4: 1 | W4: =IF(S4="В",1,0) -> 1 | X4: =IF(S4="Н",1,0) -> 0 | Y4: =IF(S4="П",1,0) -> 0 | Z4: =T4 -> 2 | AA4: =U4 -> 0 | AB4: =W4*3+X4 -> 3 | AC4: =IF(R4="Дома",1,0) -> 1 | AD4: =IF(R4="Дома",IF(S4="В",1,0),0) -> 1 | AE4: =IF(R4="Дома",IF(S4="Н",1,0),0) -> 0 | AF4: =IF(R4="Дома",IF(S4="П",1,0),0) -> 0 | AG4: =IF(R4="Дома",T4,0) -> 2 | AH4: =IF(R4="Дома",U4,0) -> 0 | AI4: =AD4*3+AE4 -> 3 | AJ4: =IF(R4<>"Дома",1,0) -> 0 | AK4: =IF(R4<>"Дома",IF(S4="В",1,0),0) -> 0 | AL4: =IF(R4<>"Дома",IF(S4="Н",1,0),0) -> 0 | AM4: =IF(R4<>"Дома",IF(S4="П",1,0),0) -> 0 | AN4: =IF(R4<>"Дома",T4,0) -> 0 | AO4: =IF(R4<>"Дома",U4,0) -> 0 | AP4: =AK4*3+AL4 -> 0 | AQ4: =IF(R4="Дома",IF(T4=0,1,0),0) -> 0 | AR4: =IF(R4="Дома",IF(T4=1,1,0),0) -> 0 | AS4: =IF(R4="Дома",IF(T4=2,1,0),0) -> 1 | AT4: =IF(R4="Дома",IF(T4>=3,1,0),0) -> 0 | AU4: =IF(R4<>"Дома",IF(X4=0,1,0),0) -> 0 | AV4: =IF(R4<>"Дома",IF(X4=1,1,0),0) -> 0 | AW4: =IF(R4<>"Дома",IF(X4=2,1,0),0) -> 0 | AX4: =IF(R4<>"Дома",IF(X4>=3,1,0),0) -> 0 | AY4: =V4/Z4 -> 0.5 | AZ4: =V4/AA4 ->  | BA4: =(AI4/IF(AC4<1,1,AC4)+AP4/IF(AJ4<1,1,AJ4)*1.5+AG4/IF(AC4<1,1,AC4)+AN4/IF(AJ4<1,1,AJ4)*1.5-AH4/IF(AC4<1,1,AC4)*1.5-AO4/IF(AJ4<1,1,AJ4))/15 -> 0.3333333333 | BB4: =IF(R4="Дома",T4+U4,"") -> 2
A5: 44332 | C5: =MID('DATA (2)'!C5,1,20) -> Roma | D5: =MID('DATA (2)'!E5,1,20) -> Cremonese | E5: =MID('DATA (2)'!L5,1,20) -> 1 : 2 | G5: 1 | H5: 2 | I5: П | J5: 0 | K5: 1 | L5: 2 | M5: 1:2 | N5: Roma | O5: Cremonese | P5: 1 | Q5: 2 | R5: Дома | S5: П | T5: 1 | U5: 2 | V5: =V4+1 -> 2 | W5: =IF(S5="В",W4+1,W4+0) -> 1 | X5: =IF(S5="Н",X4+1,X4+0) -> 0 | Y5: =IF(S5="П",Y4+1,Y4+0) -> 1 | Z5: =T5+Z4 -> 3 | AA5: =U5+AA4 -> 2 | AB5: 3 | AC5: =IF(R5="Дома",AC4+1,AC4+0) -> 2 | AD5: =IF(R5="Дома",IF(S5="В",AD4+1,AD4+0),AD4+0) -> 1 | AE5: =IF(R5="Дома",IF(S5="Н",AE4+1,AE4+0),AE4+0) -> 0 | AF5: =IF(R5="Дома",IF(S5="П",AF4+1,AF4+0),AF4+0) -> 1 | AG5: =IF(R5="Дома",AG4+T5,AG4+0) -> 3 | AH5: =IF(R5="Дома",AH4+U5,AH4+0) -> 2 | AI5: 3 | AJ5: =IF(R5<>"Дома",AJ4+1,AJ4+0) -> 0 | AK5: =IF(R5<>"Дома",IF(S5="В",AK4+1,AK4+0),AK4+0) -> 0 | AL5: =IF(R5<>"Дома",IF(S5="Н",AL4+1,AL4+0),AL4+0) -> 0 | AM5: =IF(R5<>"Дома",IF(S5="П",AM4+1,AM4+0),AM4+0) -> 0 | AN5: =IF(R5<>"Дома",AN4+T5,AN4+0) -> 0 | AO5: =IF(R5<>"Дома",AO4+U5,AO4+0) -> 0 | AP5: 0 | AQ5: =IF(R5="Дома",IF(T5=0,AQ4+1,AQ4),AQ4) -> 0 | AR5: =IF(R5="Дома",IF(T5=1,AR4+1,AR4),AR4) -> 1 | AS5: =IF(R5="Дома",IF(T5=2,AS4+1,AS4),AS4) -> 1 | AT5: =IF(R5="Дома",IF(T5>=3,AT4+1,AT4),AT4) -> 0 | AU5: =IF(R5<>"Дома",IF(T5=0,AU4+1,AU4),AU4) -> 0 | AV5: =IF(R5<>"Дома",IF(T5=1,AV4+1,AV4),AV4) -> 0 | AW5: =IF(R5<>"Дома",IF(T5=2,AW4+1,AW4),AW4) -> 0 | AX5: =IF(R5<>"Дома",IF(T5>=3,AX4+1,AX4),AX4) -> 0 | AY5: 0.6666666667 | AZ5: 1 | BA5: 0.1 | BB5: 3
A6: 44329 | C6: =MID('DATA (2)'!C6,1,20) -> Roma | D6: =MID('DATA (2)'!E6,1,20) -> Fiorentina | E6: =MID('DATA (2)'!L6,1,20) -> 2 : 0 | G6: 2 | H6: 0 | I6: В | J6: 0 | K6: 2 | L6: 0 | M6: 2:0 | N6: Roma | O6: Fiorentina | P6: 2 | Q6: 0 | R6: Дома | S6: В | T6: 2 | U6: 0 | V6: 3 | W6: 2 | X6: 0 | Y6: 1 | Z6: 5 | AA6: 2 | AB6: 6 | AC6: 3 | AD6: 2 | AE6: 0 | AF6: 1 | AG6: 5 | AH6: 2 | AI6: 6 | AJ6: 0 | AK6: 0 | AL6: 0 | AM6: 0 | AN6: 0 | AO6: 0 | AP6: 0 | AQ6: 0 | AR6: 1 | AS6: 2 | AT6: 0 | AU6: 0 | AV6: 0 | AW6: 0 | AX6: 0 | AY6: 0.6 | AZ6: 1.5 | BA6: 0.1777777778 | BB6: 2
A7: 44325 | C7: =MID('DATA (2)'!C7,1,20) -> Roma | D7: =MID('DATA (2)'!E7,1,20) -> Genoa | E7: =MID('DATA (2)'!L7,1,20) -> 1 : 0 | G7: 1 | H7: 0 | I7: В | J7: 0 | K7: 1 | L7: 0 | M7: 1:0 | N7: Roma | O7: Genoa | P7: 1 | Q7: 0 | R7: Дома | S7: В | T7: 1 | U7: 0 | V7: 4 | W7: 3 | X7: 0 | Y7: 1 | Z7: 6 | AA7: 2 | AB7: 9 | AC7: 4 | AD7: 3 | AE7: 0 | AF7: 1 | AG7: 6 | AH7: 2 | AI7: 9 | AJ7: 0 | AK7: 0 | AL7: 0 | AM7: 0 | AN7: 0 | AO7: 0 | AP7: 0 | AQ7: 0 | AR7: 2 | AS7: 2 | AT7: 0 | AU7: 0 | AV7: 0 | AW7: 0 | AX7: 0 | AY7: 0.6666666667 | AZ7: 2 | BA7: 0.2 | BB7: 1
A8: 44318 | C8: =MID('DATA (2)'!C8,1,20) -> Roma | D8: =MID('DATA (2)'!E8,1,20) -> Bologna | E8: =MID('DATA (2)'!L8,1,20) -> 1 : 0 | G8: 1 | H8: 0 | I8: В | J8: 0 | K8: 1 | L8: 0 | M8: 1:0 | N8: Roma | O8: Bologna | P8: 1 | Q8: 0 | R8: Дома | S8: В | T8: 1 | U8: 0 | V8: 5 | W8: 4 | X8: 0 | Y8: 1 | Z8: 7 | AA8: 2 | AB8: 12 | AC8: 5 | AD8: 4 | AE8: 0 | AF8: 1 | AG8: 7 | AH8: 2 | AI8: 12 | AJ8: 0 | AK8: 0 | AL8: 0 | AM8: 0 | AN8: 0 | AO8: 0 | AP8: 0 | AQ8: 0 | AR8: 3 | AS8: 2 | AT8: 0 | AU8: 0 | AV8: 0 | AW8: 0 | AX8: 0 | AY8: 0.7142857143 | AZ8: 2.5 | BA8: 0.2133333333 | BB8: 1
J9: 0 | N9: 0 | O9: 0 | R9: В гостях | V9: 6 | AC9: 5 | AD9: 4 | AE9: 0 | AF9: 1 | AG9: 7 | AH9: 2 | AI9: 12 | AJ9: 1 | AQ9: 0 | AR9: 3 | AS9: 2 | AT9: 0
J10: 0 | N10: 0 | O10: 0 | R10: В гостях | V10: 7 | AC10: 5 | AD10: 4 | AE10: 0 | AF10: 1 | AG10: 7 | AH10: 2 | AI10: 12 | AJ10: 2 | AQ10: 0 | AR10: 3 | AS10: 2 | AT10: 0
J11: 0 | N11: 0 | O11: 0 | R11: В гостях | V11: 8 | AC11: 5 | AD11: 4 | AE11: 0 | AF11: 1 | AG11: 7 | AH11: 2 | AI11: 12 | AJ11: 3 | AQ11: 0 | AR11: 3 | AS11: 2 | AT11: 0
J12: 0 | N12: 0 | O12: 0 | R12: В гостях | V12: 9 | AC12: 5 | AD12: 4 | AE12: 0 | AF12: 1 | AG12: 7 | AH12: 2 | AI12: 12 | AJ12: 4 | AQ12: 0 | AR12: 3 | AS12: 2 | AT12: 0
J13: 0 | N13: 0 | O13: 0 | R13: В гостях | V13: 10 | AC13: 5 | AD13: 4 | AE13: 0 | AF13: 1 | AG13: 7 | AH13: 2 | AI13: 12 | AJ13: 5 | AQ13: 0 | AR13: 3 | AS13: 2 | AT13: 0
A14: 42065 | B14: SUP | C14: Эсбьерг | D14: Ольборг | E14: 1 : 3 | G14: 1 | H14: =IF(S4="В",IF(T4-U4>1.5,"EW","W"),"ЛОЛ") -> EW | I14: =IF(H14="ЛОЛ",J14,H14) -> EW | J14: =IF(S4="П",IF(((T4-U4)*(-1))<1.5,"L","HL"),"D") -> D
A15: 42064 | B15: PRI | C15: Эйбар | D15: Атлетик | E15: 0 : 1 | G15: 2 | H15: =IF(S5="В",IF(T5-U5>1.5,"EW","W"),"ЛОЛ") -> ЛОЛ | I15: =IF(H15="ЛОЛ",J15,H15) -> L | J15: =IF(S5="П",IF(((T5-U5)*(-1))<1.5,"L","HL"),"D") -> L
A16: 42002 | B16: PRE | C16: Алааб Даманхур | D16: Замалек | E16: 1 : 2 | G16: 3 | H16: =IF(S6="В",IF(T6-U6>1.5,"EW","W"),"ЛОЛ") -> EW | I16: =IF(H16="ЛОЛ",J16,H16) -> EW | J16: =IF(S6="П",IF(((T6-U6)*(-1))<1.5,"L","HL"),"D") -> D
A17: 41991 | B17: PRE | C17: Алааб Даманхур | D17: Аласьоти | E17: 2 : 1 | G17: 4 | H17: =IF(S7="В",IF(T7-U7>1.5,"EW","W"),"ЛОЛ") -> W | I17: =IF(H17="ЛОЛ",J17,H17) -> W | J17: =IF(S7="П",IF(((T7-U7)*(-1))<1.5,"L","HL"),"D") -> D
A18: 41958 | B18: PRI | C18: Унион Санта-Фе | D18: Темперлей | E18: 2 : 0 | G18: 5 | H18: =IF(S8="В",IF(T8-U8>1.5,"EW","W"),"ЛОЛ") -> W | I18: =IF(H18="ЛОЛ",J18,H18) -> W | J18: =IF(S8="П",IF(((T8-U8)*(-1))<1.5,"L","HL"),"D") -> D
T24: =SUM(T4:T13) ->  | V24: 0 | Z24: =TREND(Z4:Z13,V24:V33/V13) ->  | AA24: =TREND(AA4:AA13,V24:V33/V13) -> 
A25: К1 | B25: К2 | C25: Г1 | D25: Г2 | E25: 2.5 | F25: 3.5 | G25: ГДЕ | H25: ЗБ | I25: ПР | K25: ev | L25: dep | V25: 1
A26: =C4 -> Roma | B26: =D4 -> Empoli | C26: =VALUE(LEFT(E4,FIND(":",E4,1)-1)) -> 2 | D26: =VALUE(LEFT(RIGHT(E4,LEN(E4)-FIND(":",E4,1)),2)) -> 0 | E26: =IF((C26+D26)>2.5,"UST","ALT") -> ALT | F26: =IF((C26+D26)>3.5,"ТБ","ТМ") -> ТМ | G26: =IF(A26=$A$3,"Дома","В гостях") -> Дома | H26: =IF(G26="Дома",C26,D26) -> 2 | I26: =IF(G26="Дома",D26,C26) -> 0 | K26: =IF(A26=$A$3,IF((C26+D26)>2.5,"UST","ALT")) -> ALT | L26: =IF(B26=$A$3,IF((C26+D26)>2.5,"UST","ALT")) -> FALSE | V26: 2 | Z26: =AVERAGE(Z24,AA24) -> 
A27: Roma | B27: Cremonese | C27: 1 | D27: 2 | E27: UST | F27: ТМ | G27: Дома | H27: 1 | I27: 2 | K27: UST | L27: FALSE | V27: 3
A28: Roma | B28: Fiorentina | C28: 2 | D28: 0 | E28: ALT | F28: ТМ | G28: Дома | H28: 2 | I28: 0 | K28: ALT | L28: FALSE | V28: 4
A29: Roma | B29: Genoa | C29: 1 | D29: 0 | E29: ALT | F29: ТМ | G29: Дома | H29: 1 | I29: 0 | K29: ALT | L29: FALSE | V29: 5
A30: Roma | B30: Bologna | C30: 1 | D30: 0 | E30: ALT | F30: ТМ | G30: Дома | H30: 1 | I30: 0 | K30: ALT | L30: FALSE | V30: 6
A31: 0 | B31: 0 | G31: В гостях | K31: FALSE | L31: FALSE | V31: 7
A32: 0 | B32: 0 | G32: В гостях | K32: FALSE | L32: FALSE | V32: 8
A33: 0 | B33: 0 | G33: В гостях | K33: FALSE | L33: FALSE | V33: 9
A34: 0 | B34: 0 | G34: В гостях | K34: FALSE | L34: FALSE
A35: 0 | B35: 0 | G35: В гостях | K35: FALSE | L35: FALSE

Sheet A (hidden)
A1: TAKIM 2 (DEPLASMAN)
V2: GENEL | AC2: EVDE | AJ2: DIŞARDA | AQ2: Забивают дома | AU2: Забивают в гостях
A3: =F3 -> Hellas Verona | E3: SKOR | F3: =IF(COUNTIF(C4:D13,C4)>COUNTIF(C4:D13,D4),C4,D4) -> Hellas Verona | G3: Заб | H3: Проп | I3: Рез | J3: Турнир | K3: Дом | L3: Гость | M3: Счёт | N3: Команда1 | O3: Команда2 | P3: Голы1 | Q3: Голы2 | R3: Где играла | S3: Результат | T3: Забито | U3: Пропущено | V3: O | W3: G | X3: B | Y3: M | Z3: AG | AA3: YG | AB3: P | AC3: O | AD3: G | AE3: B | AF3: M | AG3: AG | AH3: YG | AI3: P | AJ3: O | AK3: G | AL3: B | AM3: M | AN3: AG | AO3: YG | AP3: P | AQ3: 0 | AR3: 1 | AS3: 2 | AT3: 3+ | AU3: 0 | AV3: 1 | AW3: 2 | AX3: 3+ | AY3: Забивают | AZ3: Пропускают | BA3: Рейтинг | BB3: тотал
A4: 44336 | C4: =MID('DATA (2)'!C13,1,20) -> Udinese | D4: =MID('DATA (2)'!E13,1,20) -> Hellas Verona | E4: =MID('DATA (2)'!L13,1,20) -> 1 : 1 | G4: =IF(R4="Дома",K4,L4) -> 1 | H4: =IF(R4="Дома",L4,K4) -> 1 | I4: =IF(R4="Дома",IF(K4>L4,"В",IF(K4=L4,"Н","П")),IF(L4>K4,"В",IF(K4=L4,"Н","П"))) -> Н | J4: =B4 -> 0 | K4: =VALUE(LEFT(M4,FIND(":",M4,1)-1)) -> 1 | L4: =VALUE(LEFT(RIGHT(M4,LEN(M4)-FIND(":",M4,1)),1)) -> 1 | M4: =SUBSTITUTE(E4," : ",":") -> 1:1 | N4: =C4 -> Udinese | O4: =D4 -> Hellas Verona | P4: =VALUE(LEFT(M4,FIND(":",M4,1)-1)) -> 1 | Q4: =VALUE(LEFT(RIGHT(M4,LEN(M4)-FIND(":",M4,1)),1)) -> 1 | R4: =IF(C4=A$3,"Дома","В гостях") -> В гостях | S4: =I4 -> Н | T4: =G4 -> 1 | U4: =H4 -> 1 | V4: 1 | W4: =IF(S4="В",1,0) -> 0 | X4: =IF(S4="Н",1,0) -> 1 | Y4: =IF(S4="П",1,0) -> 0 | Z4: =T4 -> 1 | AA4: =U4 -> 1 | AB4: =W4*3+X4 -> 1 | AC4: =IF(R4="Дома",1,0) -> 0 | AD4: =IF(R4="Дома",IF(S4="В",1,0),0) -> 0 | AE4: =IF(R4="Дома",IF(S4="Н",1,0),0) -> 0 | AF4: =IF(R4="Дома",IF(S4="П",1,0),0) -> 0 | AG4: =IF(R4="Дома",T4,0) -> 0 | AH4: =IF(R4="Дома",U4,0) -> 0 | AI4: =AD4*3+AE4 -> 0 | AJ4: =IF(R4<>"Дома",1,0) -> 1 | AK4: =IF(R4<>"Дома",IF(S4="В",1,0),0) -> 0 | AL4: =IF(R4<>"Дома",IF(S4="Н",1,0),0) -> 1 | AM4: =IF(R4<>"Дома",IF(S4="П",1,0),0) -> 0 | AN4: =IF(R4<>"Дома",T4,0) -> 1 | AO4: =IF(R4<>"Дома",U4,0) -> 1 | AP4: =AK4*3+AL4 -> 1 | AQ4: =IF(R4="Дома",IF(T4=0,1,0),0) -> 0 | AR4: =IF(R4="Дома",IF(T4=1,1,0),0) -> 0 | AS4: =IF(R4="Дома",IF(T4=2,1,0),0) -> 0 | AT4: =IF(R4="Дома",IF(T4>=3,1,0),0) -> 0 | AU4: =IF(R4<>"Дома",IF(X4=0,1,0),0) -> 0 | AV4: =IF(R4<>"Дома",IF(X4=1,1,0),0) -> 1 | AW4: =IF(R4<>"Дома",IF(X4=2,1,0),0) -> 0 | AX4: =IF(R4<>"Дома",IF(X4>=3,1,0),0) -> 0 | AY4: =V4/Z4 -> 1 | AZ4: =V4/AA4 -> 1 | BA4: =(AI4/IF(AC4<1,1,AC4)+AP4/IF(AJ4<1,1,AJ4)*1.5+AG4/IF(AC4<1,1,AC4)+AN4/IF(AJ4<1,1,AJ4)*1.5-AH4/IF(AC4<1,1,AC4)*1.5-AO4/IF(AJ4<1,1,AJ4))/15 -> 0.1333333333 | BB4: =IF(R4="В гостях",T4+U4,"") -> 2
A5: 44332 | C5: =MID('DATA (2)'!C14,1,20) -> Inter | D5: =MID('DATA (2)'!E14,1,20) -> Hellas Verona | E5: =MID('DATA (2)'!L14,1,20) -> 1 : 0 | G5: 0 | H5: 1 | I5: П | J5: 0 | K5: 1 | L5: 0 | M5: 1:0 | N5: Inter | O5: Hellas Verona | P5: 1 | Q5: 0 | R5: В гостях | S5: П | T5: 0 | U5: 1 | V5: =V4+1 -> 2 | W5: =IF(S5="В",W4+1,W4+0) -> 0 | X5: =IF(S5="Н",X4+1,X4+0) -> 1 | Y5: =IF(S5="П",Y4+1,Y4+0) -> 1 | Z5: =T5+Z4 -> 1 | AA5: =U5+AA4 -> 2 | AB5: 1 | AC5: =IF(R5="Дома",AC4+1,AC4+0) -> 0 | AD5: =IF(R5="Дома",IF(S5="В",AD4+1,AD4+0),AD4+0) -> 0 | AE5: =IF(R5="Дома",IF(S5="Н",AE4+1,AE4+0),AE4+0) -> 0 | AF5: =IF(R5="Дома",IF(S5="П",AF4+1,AF4+0),AF4+0) -> 0 | AG5: =IF(R5="Дома",AG4+T5,AG4+0) -> 0 | AH5: =IF(R5="Дома",AH4+U5,AH4+0) -> 0 | AI5: 0 | AJ5: =IF(R5<>"Дома",AJ4+1,AJ4+0) -> 2 | AK5: =IF(R5<>"Дома",IF(S5="В",AK4+1,AK4+0),AK4+0) -> 0 | AL5: =IF(R5<>"Дома",IF(S5="Н",AL4+1,AL4+0),AL4+0) -> 1 | AM5: =IF(R5<>"Дома",IF(S5="П",AM4+1,AM4+0),AM4+0) -> 1 | AN5: =IF(R5<>"Дома",AN4+T5,AN4+0) -> 1 | AO5: =IF(R5<>"Дома",AO4+U5,AO4+0) -> 2 | AP5: 1 | AQ5: =IF(R5="Дома",IF(T5=0,AQ4+1,AQ4),AQ4) -> 0 | AR5: =IF(R5="Дома",IF(T5=1,AR4+1,AR4),AR4) -> 0 | AS5: =IF(R5="Дома",IF(T5=2,AS4+1,AS4),AS4) -> 0 | AT5: =IF(R5="Дома",IF(T5>=3,AT4+1,AT4),AT4) -> 0 | AU5: =IF(R5<>"Дома",IF(T5=0,AU4+1,AU4),AU4) -> 1 | AV5: =IF(R5<>"Дома",IF(T5=1,AV4+1,AV4),AV4) -> 1 | AW5: =IF(R5<>"Дома",IF(T5=2,AW4+1,AW4),AW4) -> 0 | AX5: =IF(R5<>"Дома",IF(T5>=3,AX4+1,AX4),AX4) -> 0 | AY5: 2 | AZ5: 1 | BA5: 0.03333333333 | BB5: 1
A6: 44329 | C6: =MID('DATA (2)'!C15,1,20) -> Torino | D6: =MID('DATA (2)'!E15,1,20) -> Hellas Verona | E6: =MID('DATA (2)'!L15,1,20) -> 1 : 1 | G6: 1 | H6: 1 | I6: Н | J6: 0 | K6: 1 | L6: 1 | M6: 1:1 | N6: Torino | O6: Hellas Verona | P6: 1 | Q6: 1 | R6: В гостях | S6: Н | T6: 1 | U6: 1 | V6: 3 | W6: 0 | X6: 2 | Y6: 1 | Z6: 2 | AA6: 3 | AB6: 2 | AC6: 0 | AD6: 0 | AE6: 0 | AF6: 0 | AG6: 0 | AH6: 0 | AI6: 0 | AJ6: 3 | AK6: 0 | AL6: 2 | AM6: 1 | AN6: 2 | AO6: 3 | AP6: 2 | AQ6: 0 | AR6: 0 | AS6: 0 | AT6: 0 | AU6: 1 | AV6: 2 | AW6: 0 | AX6: 0 | AY6: 1.5 | AZ6: 1 | BA6: 0.06666666667 | BB6: 2
A7: 44325 | C7: =MID('DATA (2)'!C16,1,20) -> Monza | D7: =MID('DATA (2)'!E16,1,20) -> Hellas Verona | E7: =MID('DATA (2)'!L16,1,20) -> 2 : 0 | G7: 0 | H7: 2 | I7: П | J7: 0 | K7: 2 | L7: 0 | M7: 2:0 | N7: Monza | O7: Hellas Verona | P7: 2 | Q7: 0 | R7: В гостях | S7: П | T7: 0 | U7: 2 | V7: 4 | W7: 0 | X7: 2 | Y7: 2 | Z7: 2 | AA7: 5 | AB7: 2 | AC7: 0 | AD7: 0 | AE7: 0 | AF7: 0 | AG7: 0 | AH7: 0 | AI7: 0 | AJ7: 4 | AK7: 0 | AL7: 2 | AM7: 2 | AN7: 2 | AO7: 5 | AP7: 2 | AQ7: 0 | AR7: 0 | AS7: 0 | AT7: 0 | AU7: 2 | AV7: 2 | AW7: 0 | AX7: 0 | AY7: 2 | AZ7: 0.8 | BA7: 0.01666666667 | BB7: 2
A8: 44318 | C8: =MID('DATA (2)'!C17,1,20) -> Sassuolo | D8: =MID('DATA (2)'!E17,1,20) -> Hellas Verona | E8: =MID('DATA (2)'!L17,1,20) -> 2 : 1 | G8: 1 | H8: 2 | I8: П | J8: 0 | K8: 2 | L8: 1 | M8: 2:1 | N8: Sassuolo | O8: Hellas Verona | P8: 2 | Q8: 1 | R8: В гостях | S8: П | T8: 1 | U8: 2 | V8: 5 | W8: 0 | X8: 2 | Y8: 3 | Z8: 3 | AA8: 7 | AB8: 2 | AC8: 0 | AD8: 0 | AE8: 0 | AF8: 0 | AG8: 0 | AH8: 0 | AI8: 0 | AJ8: 5 | AK8: 0 | AL8: 2 | AM8: 3 | AN8: 3 | AO8: 7 | AP8: 2 | AQ8: 0 | AR8: 0 | AS8: 0 | AT8: 0 | AU8: 2 | AV8: 3 | AW8: 0 | AX8: 0 | AY8: 1.666666667 | AZ8: 0.7142857143 | BA8: 0.006666666667 | BB8: 3
J9: 0 | N9: 0 | O9: 0 | R9: В гостях | V9: 6 | AC9: 0 | AD9: 0 | AE9: 0 | AF9: 0 | AG9: 0 | AH9: 0 | AI9: 0 | AJ9: 6 | AQ9: 0 | AR9: 0 | AS9: 0 | AT9: 0
J10: 0 | N10: 0 | O10: 0 | R10: В гостях | V10: 7 | AC10: 0 | AD10: 0 | AE10: 0 | AF10: 0 | AG10: 0 | AH10: 0 | AI10: 0 | AJ10: 7 | AQ10: 0 | AR10: 0 | AS10: 0 | AT10: 0
J11: 0 | N11: 0 | O11: 0 | R11: В гостях | V11: 8 | AC11: 0 | AD11: 0 | AE11: 0 | AF11: 0 | AG11: 0 | AH11: 0 | AI11: 0 | AJ11: 8 | AQ11: 0 | AR11: 0 | AS11: 0 | AT11: 0
J12: 0 | N12: 0 | O12: 0 | R12: В гостях | V12: 9 | AC12: 0 | AD12: 0 | AE12: 0 | AF12: 0 | AG12: 0 | AH12: 0 | AI12: 0 | AJ12: 9 | AQ12: 0 | AR12: 0 | AS12: 0 | AT12: 0
J13: 0 | N13: 0 | O13: 0 | R13: В гостях | V13: 10 | AC13: 0 | AD13: 0 | AE13: 0 | AF13: 0 | AG13: 0 | AH13: 0 | AI13: 0 | AJ13: 10 | AQ13: 0 | AR13: 0 | AS13: 0 | AT13: 0
A14: 42058 | B14: SUP | C14: Мидтьюлланн | D14: Оденсе | E14: 3 : 0 | G14: 1 | H14: =IF(S4="В",IF(T4-U4>1.5,"EW","W"),"ЛОЛ") -> ЛОЛ | I14: =IF(H14="ЛОЛ",J14,H14) -> D | J14: =IF(S4="П",IF(((T4-U4)*(-1))<1.5,"L","HL"),"D") -> D | AB14: =W14*1+X14 -> 0
A15: 42049 | B15: CLU | C15: Оденсе | D15: Широки Бриег | E15: 1 : 1 | G15: 2 | H15: =IF(S5="В",IF(T5-U5>1.5,"EW","W"),"ЛОЛ") -> ЛОЛ | I15: =IF(H15="ЛОЛ",J15,H15) -> L | J15: =IF(S5="П",IF(((T5-U5)*(-1))<1.5,"L","HL"),"D") -> L | AB15: 0
A16: 42049 | B16: CLU | C16: Оденсе | D16: Сёнан | E16: 2 : 1 | G16: 3 | H16: =IF(S6="В",IF(T6-U6>1.5,"EW","W"),"ЛОЛ") -> ЛОЛ | I16: =IF(H16="ЛОЛ",J16,H16) -> D | J16: =IF(S6="П",IF(((T6-U6)*(-1))<1.5,"L","HL"),"D") -> D | AB16: 0
A17: 42043 | B17: CLU | C17: Оденсе | D17: Войводина | E17: 0 : 1 | G17: 4 | H17: =IF(S7="В",IF(T7-U7>1.5,"EW","W"),"ЛОЛ") -> ЛОЛ | I17: =IF(H17="ЛОЛ",J17,H17) -> HL | J17: =IF(S7="П",IF(((T7-U7)*(-1))<1.5,"L","HL"),"D") -> HL | AB17: 0
G18: 5 | H18: =IF(S8="В",IF(T8-U8>1.5,"EW","W"),"ЛОЛ") -> ЛОЛ | I18: =IF(H18="ЛОЛ",J18,H18) -> L | J18: =IF(S8="П",IF(((T8-U8)*(-1))<1.5,"L","HL"),"D") -> L | AB18: 0
AB19: 0
AB20: 0
AB21: 0
AB22: 0
AB23: 0
V24: 0
A25: К1 | B25: К2 | C25: Г1 | D25: Г2 | E25: 2.5 | F25: 3.5 | G25: ГДЕ | H25: ЗБ | I25: ПР | K25: ev | L25: dep | V25: 1 | Z25: =TREND(Z4:Z13,V24:V33*V13) ->  | AA25: =TREND(AA4:AA13,V24:V33*V13) -> 
A26: =C4 -> Udinese | B26: =D4 -> Hellas Verona | C26: =VALUE(LEFT(E4,FIND(":",E4,1)-1)) -> 1 | D26: =VALUE(LEFT(RIGHT(E4,LEN(E4)-FIND(":",E4,1)),2)) -> 1 | E26: =IF((C26+D26)>2.5,"UST","ALT") -> ALT | F26: =IF((C26+D26)>3.5,"ТБ","ТМ") -> ТМ | G26: =IF(A26=$A$3,"Дома","В гостях") -> В гостях | H26: =IF(G26="Дома",C26,D26) -> 1 | I26: =IF(G26="Дома",D26,C26) -> 1 | K26: =IF(A26=$A$3,IF((C26+D26)>2.5,"UST","ALT")) -> FALSE | L26: =IF(B26=$A$3,IF((C26+D26)>2.5,"UST","ALT")) -> ALT | V26: 2
A27: Inter | B27: Hellas Verona | C27: 1 | D27: 0 | E27: ALT | F27: ТМ | G27: В гостях | H27: 0 | I27: 1 | K27: FALSE | L27: ALT | V27: 3 | Z27: =AVERAGE(Z25,AA25) -> 
A28: Torino | B28: Hellas Verona | C28: 1 | D28: 1 | E28: ALT | F28: ТМ | G28: В гостях | H28: 1 | I28: 1 | K28: FALSE | L28: ALT | V28: 4
A29: Monza | B29: Hellas Verona | C29: 2 | D29: 0 | E29: ALT | F29: ТМ | G29: В гостях | H29: 0 | I29: 2 | K29: FALSE | L29: ALT | V29: 5
A30: Sassuolo | B30: Hellas Verona | C30: 2 | D30: 1 | E30: UST | F30: ТМ | G30: В гостях | H30: 1 | I30: 2 | K30: FALSE | L30: UST | V30: 6
A31: 0 | B31: 0 | G31: В гостях | K31: FALSE | L31: FALSE | V31: 7
A32: 0 | B32: 0 | G32: В гостях | K32: FALSE | L32: FALSE | V32: 8
A33: 0 | B33: 0 | G33: В гостях | K33: FALSE | L33: FALSE | V33: 9
A34: 0 | B34: 0 | G34: В гостях | K34: FALSE | L34: FALSE
A35: 0 | B35: 0 | G35: В гостях | K35: FALSE | L35: FALSE

Sheet ELABORA (hidden)
B4: SUADRA IN CASA | E4: SUADRA IN TRASFERTA | I4: FINALE | L4: UNDER/OVER | O4: u | P4: o | S4: SOMMA GOAL
B5: N° PARTITE IN CASA | C5: =D8 -> 10 | D5: =PRONOSTICI!C11 -> 5 | E5: N° PARTITE IN TRASFERTA | F5: =G8 -> 10 | G5: =PRONOSTICI!I11 -> 3 | I5: 1 | J5: =SUM(C35,C42,C43,C49,C50,C51,C56,C57,C58,C59,C63,C64,C65,C66,C67,C70,C71,C72,C73,C74,C75) -> 0.379358534 | K5: =RANK(J5,$J$5:$J$7,0) -> 1 | L5: 1.5 | M5: =C28+C35+C29 -> 0.448125924 | N5: =SUM(C30:C34,C36:C41,C42:C48,C49:C55,C56:C62,C63:C69,C70:C76) -> 0.5517604645 | O5: =RANK(M5,$M$5:$M$7,0) -> 3 | P5: =RANK(N5,$N$5:$N$7,0) -> 1 | S5: 0 | T5: =C28 -> 0.1572371663 | U5: =RANK(T5,$T$5:$T$10,0) -> 4
B6: GOAL FATTI IN CASA | C6: =PRONOSTICI!F11 -> 13 | D6: =PRONOSTICI!D11 -> 0 | E6: GOAL SUBITI IN TRASFERTA | F6: =PRONOSTICI!M11 -> 7 | G6: =PRONOSTICI!J11 -> 0 | I6: X | J6: =SUM(C28,C36,C44,C52,C60,C68,C76) -> 0.3221194912 | K6: =RANK(J6,$J$5:$J$7,0) -> 2 | L6: 2.5 | M6: =SUM(C28:C30,C35:C36,C42) -> 0.7171980248 | N6: =SUM(C31:C34,C37:C41,C43:C48,C49:C55,C56:C62,C63:C69,C70:C76) -> 0.2826883637 | O6: =RANK(M6,$M$5:$M$7,0) -> 2 | P6: =RANK(N6,$N$5:$N$7,0) -> 2 | S6: 1 | T6: =C29+C35 -> 0.2908887577 | U6: 1
B7: GOAL SUBITI IN CASA | C7: =PRONOSTICI!G11 -> 8 | D7: =PRONOSTICI!E11 -> 5 | E7: GOAL FATTI IN TRASFERTA | F7: =PRONOSTICI!L11 -> 9 | G7: =PRONOSTICI!K11 -> 7 | I7: 2 | J7: =SUM(C29,C30,C31,C32,C33,C34,C37,C38,C39,C40,C41,C48,C47,C46,C45,C55,C54,C53,C62,C61,C69) -> 0.2984083633 | K7: =RANK(J7,$J$5:$J$7,0) -> 3 | L7: 3.5 | M7: =SUM(C28:C31,C35:C37,C42:C43,C49) -> 0.8831258204 | N7: =SUM(C32:C34,C38:C41,C44:C48,C50:C55,C56:C62,C63:C69,C70:C76) -> 0.1167605681 | O7: =RANK(M7,$M$5:$M$7,0) -> 1 | P7: =RANK(N7,$N$5:$N$7,0) -> 3 | S7: 2 | T7: =C30+C36+C42 -> 0.2690721009 | U7: 2
B8: MEDIA GOAL FATTI | C8: =C6/C5 -> 1.3 | D8: =D5+D6+D7 -> 10 | E8: MEDIA GOAL SUBITI | F8: =F6/F5 -> 0.7 | G8: =G5+G6+G7 -> 10 | S8: 3 | T8: =C31+C37+C43+C49 -> 0.1659277955 | U8: 3
B9: MEDIA GOAL SUBITI | C9: =C7/C5 -> 0.8 | E9: MEDIA GOAL FATTI | F9: =F7/F5 -> 0.9 | I9: =IF(J5=MAX(J5:J7),I5,IF(J6=MAX(J5:J7),I6,IF(J7=MAX(J5:J7),I7,0))) -> 1 | J9: =IF(I9=I5,J5,IF(I9=I6,J6,IF(I9=I7,J7,0))) -> 0.379358534 | N9: =IF(O5=1,L5,IF(O6=1,L6,IF(O7=1,L7,0))) -> 3.5 | O9: =IF(O5=1,M5,IF(O6=1,M6,IF(O7=1,M7,0))) -> 0.8831258204 | P9: =IF(P5=1,L5,IF(P6=1,L6,IF(P7=1,L7,0))) -> 1.5 | Q9: =IF(P5=1,N5,IF(P6=1,N6,IF(P7=1,N7,0))) -> 0.5517604645 | S9: 4 | T9: =C32+C38+C44+C50+C56 -> 0.07674160543 | U9: 5
B10: VARIABILE 1 | C10: =(C8+F8)/2 -> 1 | E10: VARIABILE 2 | F10: =(C9+F9)/2 -> 0.85 | I10: =IF(K5=2,I5,IF(K6=2,I6,IF(K7=2,I7,0))) -> X | J10: =IF(I10=I5,J5,IF(I10=I6,J6,IF(I10=I7,J7,0))) -> 0.3221194912 | N10: =IF(O5=2,L5,IF(O6=2,L6,IF(O7=2,L7,0))) -> 2.5 | O10: =IF(O5=2,M5,IF(O6=2,M6,IF(O7=2,M7,0))) -> 0.7171980248 | P10: =IF(P5=2,L5,IF(P6=2,L6,IF(P7=2,L7,0))) -> 2.5 | Q10: =IF(P5=2,N5,IF(P6=2,N6,IF(P7=2,N7,0))) -> 0.2826883637 | S10: >4 | T10: =C34+C33+C41+C40+C39+C48+C47+C46+C45+C55+C54+C53+C52+C51+C62+C61+C60+C59+C58+C57+C69+C68+C67+C66+C65+C64+C63+C76+C75+C74+C73+C72+C71+C70 -> 0.0400189627 | U10: 6
I11: =IF(K5=3,I5,IF(K6=3,I6,IF(K7=3,I7,0))) -> 2 | J11: =IF(I11=I5,J5,IF(I11=I6,J6,IF(I11=I7,J7,0))) -> 0.2984083633 | N11: =IF(O5=3,L5,IF(O6=3,L6,IF(O7=3,L7,0))) -> 1.5 | O11: =IF(O5=3,M5,IF(O6=3,M6,IF(O7=3,M7,0))) -> 0.448125924 | P11: =IF(P5=3,L5,IF(P6=3,L6,IF(P7=3,L7,0))) -> 3.5 | Q11: =IF(P5=3,N5,IF(P6=3,N6,IF(P7=3,N7,0))) -> 0.1167605681
S12: =IF(U5=1,S5,IF(U6=1,S6,IF(U7=1,S7,IF(U8=1,S8,IF(U9=1,S9,IF(U10=1,S10,0)))))) -> 1 | T12: =IF(U5=1,T5,IF(U6=1,T6,IF(U7=1,T7,IF(U8=1,T8,IF(U9=1,T9,IF(U10=1,T10,0)))))) -> 0.2908887577
S13: =IF(U5=2,S5,IF(U6=2,S6,IF(U7=2,S7,IF(U8=2,S8,IF(U9=2,S9,IF(U10=2,S10,0)))))) -> 2 | T13: =IF(U5=2,T5,IF(U6=2,T6,IF(U7=2,T7,IF(U8=2,T8,IF(U9=2,T9,IF(U10=2,T10,0)))))) -> 0.2690721009
I14: DOPPIE | L14: GOAL | M14: =C36+C43+C50+C57+C64+C71+C72+C73+C74+C75+C76+C69+C68+C67+C66+C65+C58+C59+C60+C61+C62+C55+C54+C53+C52+C51+C44+C45+C46+C47+C48+C41+C40+C39+C38+C37 -> 0.3618759338 | N14: =RANK(M14,$M$14:$M$15,0) -> 2 | S14: =IF(U5=3,S5,IF(U6=3,S6,IF(U7=3,S7,IF(U8=3,S8,IF(U9=3,S9,IF(U10=3,S10,0)))))) -> 3 | T14: =IF(U5=3,T5,IF(U6=3,T6,IF(U7=3,T7,IF(U8=3,T8,IF(U9=3,T9,IF(U10=3,T10,0)))))) -> 0.1659277955
B15: DISTRIBUZIONE DI POISSON | C15: CASA | E15: DISTRIBUZIONE POISSON | F15: TRASFERTA | I15: 1X | J15: =J5+J6 -> 0.7014780252 | K15: =RANK(J15,$J$15:$J$17,0) -> 1 | L15: NO GOAL | M15: =C28+C35+C42+C49+C56+C63+C70+C29+C30+C31+C32+C33+C34 -> 0.6380104547 | N15: =RANK(M15,$M$14:$M$15,0) -> 1
C16: 0 GOAL | D16: =EXP(-$C$10) * ($C$10^0) / FACT(0) -> 0.3678794412 | F16: 0 GOAL | G16: =EXP(-$F$10) * ($F$10^0) / FACT(0) -> 0.4274149319 | I16: 12 | J16: =J5+J7 -> 0.6777668973 | K16: =RANK(J16,$J$15:$J$17,0) -> 2
C17: 1 GOAL | D17: =EXP(-$C$10) * ($C$10^1) / FACT(1) -> 0.3678794412 | F17: 1 GOAL | G17: =EXP(-$F$10) * ($F$10^1) / FACT(1) -> 0.3633026922 | I17: X2 | J17: =J6+J7 -> 0.6205278545 | K17: =RANK(J17,$J$15:$J$17,0) -> 3 | L17: =IF(N14=1,L14,IF(N15=1,L15,0)) -> NO GOAL | M17: =IF(N14=1,M14,IF(N15=1,M15,0)) -> 0.6380104547
C18: 2 GOAL | D18: =EXP(-$C$10) * ($C$10^2) / FACT(2) -> 0.1839397206 | F18: 2 GOAL | G18: =EXP(-$F$10) * ($F$10^2) / FACT(2) -> 0.1544036442 | L18: =IF(N14=2,L14,IF(N15=2,L15,0)) -> GOAL | M18: =IF(N14=2,M14,IF(N15=2,M15,0)) -> 0.3618759338 | S18: SEGNA GOAL CASA
C19: 3 GOAL | D19: =EXP(-$C$10) * ($C$10^3) / FACT(3) -> 0.0613132402 | F19: 3 GOAL | G19: =EXP(-$F$10) * ($F$10^3) / FACT(3) -> 0.04374769918 | I19: =IF(K15=1,I15,IF(K16=1,I16,IF(K17=1,I17,0))) -> 1X | J19: =IF(K15=1,J15,IF(K16=1,J16,IF(K17=1,J17,0))) -> 0.7014780252 | S19: SI | T19: =D17+D18+D19+D20+D21+D22 -> 0.6320373177 | U19: NO | V19: =D16 -> 0.3678794412
C20: 4 GOAL | D20: =EXP(-$C$10) * ($C$10^4) / FACT(4) -> 0.01532831005 | F20: 4 GOAL | G20: =EXP(-$F$10) * ($F$10^4) / FACT(4) -> 0.009296386076 | I20: =IF(K15=2,I15,IF(K16=2,I16,IF(K17=2,I17,0))) -> 12 | J20: =IF(K15=2,J15,IF(K16=2,J16,IF(K17=2,J17,0))) -> 0.6777668973 | L20: PARI | M20: =C28+C30+C32+C34+C40+C38+C36+C42+C44+C46+C48+C54+C52+C50+C56+C58+C60+C62+C68+C66+C64+C70+C72+C74+C76 -> 0.5123125374 | N20: =RANK(M20,$M$20:$M$21,0) -> 1 | S20: SEGNA GOAL TRASFERTA
C21: 5 GOAL | D21: =EXP(-$C$10) * ($C$10^5) / FACT(5) -> 0.00306566201 | F21: 5 GOAL | G21: =EXP(-$F$10) * ($F$10^5) / FACT(5) -> 0.001580385633 | I21: =IF(K15=3,I15,IF(K16=3,I16,IF(K17=3,I17,0))) -> X2 | J21: =IF(K15=3,J15,IF(K16=3,J16,IF(K17=3,J17,0))) -> 0.6205278545 | L21: DISPARI | M21: =C29+C31+C33+C41+C39+C37+C35+C43+C45+C47+C55+C53+C51+C49+C57+C59+C61+C69+C67+C65+C63+C71+C73+C75 -> 0.4875738511 | N21: =RANK(M21,$M$20:$M$21,0) -> 2 | S21: SI | T21: =G17+G18+G19+G20+G21+G22 -> 0.5725546952 | U21: NO | V21: =G16 -> 0.4274149319
C22: 6 GOAL | D22: =EXP(-$C$10) * ($C$10^6) / FACT(6) -> 0.0005109436683 | F22: 6 GOAL | G22: =EXP(-$F$10) * ($F$10^6) / FACT(6) -> 0.0002238879647
L23: =IF(N20=1,L20,IF(N21=1,L21,0)) -> PARI | M23: =IF(N20=1,M20,IF(N21=1,M21,0)) -> 0.5123125374
L24: =IF(N20=2,L20,IF(N21=2,L21,0)) -> DISPARI | M24: =IF(N20=2,M20,IF(N21=2,M21,0)) -> 0.4875738511
B28: 0 - 0 | C28: =$D$16*G16 -> 0.1572371663 | D28: =RANK(C28,$C$28:$C$76,0) -> 1 | E28: =IF(D28=1,B28,IF(D29=1,B29,IF(D30=1,B30,IF(D31=1,B31,IF(D32=1,B32,IF(D33=1,B33,IF(D34=1,B34,IF(D35=1,B35,IF(D36=1,B36,IF(D37=1,B37,IF(D38=1,B38,IF(D39=1,B39,IF(D40=1,B40,IF(D41=1,B41,IF(D42=1,B42,IF(D43=1,B43,IF(D44=1,B44,IF(D45=1,B45,IF(D46=1,B46,IF(D47=1,B47,IF(D48=1,B48,IF(D49=1,B49,IF(D50=1,B50,IF(D51=1,B51,IF(D52=1,B52,IF(D53=1,B53,IF(D54=1,B54,IF(D55=1,B55,IF(D56=1,B56,IF(D57=1,B57,IF(D58=1,B58,IF(D59=1,B59,IF(D60=1,B60,IF(D61=1,B61,IF(D62=1,B62,IF(D63=1,B63,IF(D64=1,B64,IF(D65=1,B65,IF(D66=1,B66,IF(D67=1,B67,IF(D68=1,B68,IF(D69=1,B69,IF(D70=1,B70,IF(D71=1,B71,IF(D72=1,B72,IF(D73=1,B73,IF(D74=1,B74,IF(D75=1,B75,IF(D76=1,B76,0))))))))))))))))))))))))))))))))))))))))))))))))) -> 0 - 0 | G28: =MID(E28,1,SEARCH("-",E28)-1) -> 0 | H28: =MID(E28,FIND("-",E28,1)+1,LEN(E28)) -> 0
B29: 0 - 1 | C29: 0.1336515914 | D29: 3 | E29: =IF(D28=2,B28,IF(D29=2,B29,IF(D30=2,B30,IF(D31=2,B31,IF(D32=2,B32,IF(D33=2,B33,IF(D34=2,B34,IF(D35=2,B35,IF(D36=2,B36,IF(D37=2,B37,IF(D38=2,B38,IF(D39=2,B39,IF(D40=2,B40,IF(D41=2,B41,IF(D42=2,B42,IF(D43=2,B43,IF(D44=2,B44,IF(D45=2,B45,IF(D46=2,B46,IF(D47=2,B47,IF(D48=2,B48,IF(D49=2,B49,IF(D50=2,B50,IF(D51=2,B51,IF(D52=2,B52,IF(D53=2,B53,IF(D54=2,B54,IF(D55=2,B55,IF(D56=2,B56,IF(D57=2,B57,IF(D58=2,B58,IF(D59=2,B59,IF(D60=2,B60,IF(D61=2,B61,IF(D62=2,B62,IF(D63=2,B63,IF(D64=2,B64,IF(D65=2,B65,IF(D66=2,B66,IF(D67=2,B67,IF(D68=2,B68,IF(D69=2,B69,IF(D70=2,B70,IF(D71=2,B71,IF(D72=2,B72,IF(D73=2,B73,IF(D74=2,B74,IF(D75=2,B75,IF(D76=2,B76,0))))))))))))))))))))))))))))))))))))))))))))))))) -> 0 | G29: =MID(E29,1,SEARCH("-",E29)-1) ->  | H29: =MID(E29,FIND("-",E29,1)+1,LEN(E29)) -> 
B30: 0 - 2 | C30: 0.05680192633 | D30: 7 | E30: =IF(D28=3,B28,IF(D29=3,B29,IF(D30=3,B30,IF(D31=3,B31,IF(D32=3,B32,IF(D33=3,B33,IF(D34=3,B34,IF(D35=3,B35,IF(D36=3,B36,IF(D37=3,B37,IF(D38=3,B38,IF(D39=3,B39,IF(D40=3,B40,IF(D41=3,B41,IF(D42=3,B42,IF(D43=3,B43,IF(D44=3,B44,IF(D45=3,B45,IF(D46=3,B46,IF(D47=3,B47,IF(D48=3,B48,IF(D49=3,B49,IF(D50=3,B50,IF(D51=3,B51,IF(D52=3,B52,IF(D53=3,B53,IF(D54=3,B54,IF(D55=3,B55,IF(D56=3,B56,IF(D57=3,B57,IF(D58=3,B58,IF(D59=3,B59,IF(D60=3,B60,IF(D61=3,B61,IF(D62=3,B62,IF(D63=3,B63,IF(D64=3,B64,IF(D65=3,B65,IF(D66=3,B66,IF(D67=3,B67,IF(D68=3,B68,IF(D69=3,B69,IF(D70=3,B70,IF(D71=3,B71,IF(D72=3,B72,IF(D73=3,B73,IF(D74=3,B74,IF(D75=3,B75,IF(D76=3,B76,0))))))))))))))))))))))))))))))))))))))))))))))))) -> 0 - 1
B31: 0 - 3 | C31: 0.01609387913 | D31: 12 | E31: =IF(D28=4,B28,IF(D29=4,B29,IF(D30=4,B30,IF(D31=4,B31,IF(D32=4,B32,IF(D33=4,B33,IF(D34=4,B34,IF(D35=4,B35,IF(D36=4,B36,IF(D37=4,B37,IF(D38=4,B38,IF(D39=4,B39,IF(D40=4,B40,IF(D41=4,B41,IF(D42=4,B42,IF(D43=4,B43,IF(D44=4,B44,IF(D45=4,B45,IF(D46=4,B46,IF(D47=4,B47,IF(D48=4,B48,IF(D49=4,B49,IF(D50=4,B50,IF(D51=4,B51,IF(D52=4,B52,IF(D53=4,B53,IF(D54=4,B54,IF(D55=4,B55,IF(D56=4,B56,IF(D57=4,B57,IF(D58=4,B58,IF(D59=4,B59,IF(D60=4,B60,IF(D61=4,B61,IF(D62=4,B62,IF(D63=4,B63,IF(D64=4,B64,IF(D65=4,B65,IF(D66=4,B66,IF(D67=4,B67,IF(D68=4,B68,IF(D69=4,B69,IF(D70=4,B70,IF(D71=4,B71,IF(D72=4,B72,IF(D73=4,B73,IF(D74=4,B74,IF(D75=4,B75,IF(D76=4,B76,0))))))))))))))))))))))))))))))))))))))))))))))))) -> 0
B32: 0 - 4 | C32: 0.003419949315 | D32: 18 | E32: =IF(D28=5,B28,IF(D29=5,B29,IF(D30=5,B30,IF(D31=5,B31,IF(D32=5,B32,IF(D33=5,B33,IF(D34=5,B34,IF(D35=5,B35,IF(D36=5,B36,IF(D37=5,B37,IF(D38=5,B38,IF(D39=5,B39,IF(D40=5,B40,IF(D41=5,B41,IF(D42=5,B42,IF(D43=5,B43,IF(D44=5,B44,IF(D45=5,B45,IF(D46=5,B46,IF(D47=5,B47,IF(D48=5,B48,IF(D49=5,B49,IF(D50=5,B50,IF(D51=5,B51,IF(D52=5,B52,IF(D53=5,B53,IF(D54=5,B54,IF(D55=5,B55,IF(D56=5,B56,IF(D57=5,B57,IF(D58=5,B58,IF(D59=5,B59,IF(D60=5,B60,IF(D61=5,B61,IF(D62=5,B62,IF(D63=5,B63,IF(D64=5,B64,IF(D65=5,B65,IF(D66=5,B66,IF(D67=5,B67,IF(D68=5,B68,IF(D69=5,B69,IF(D70=5,B70,IF(D71=5,B71,IF(D72=5,B72,IF(D73=5,B73,IF(D74=5,B74,IF(D75=5,B75,IF(D76=5,B76,0))))))))))))))))))))))))))))))))))))))))))))))))) -> 2 - 0
B33: 0 - 5 | C33: 0.0005813913835 | D33: 26 | E33: =IF(D28=6,B28,IF(D29=6,B29,IF(D30=6,B30,IF(D31=6,B31,IF(D32=6,B32,IF(D33=6,B33,IF(D34=6,B34,IF(D35=6,B35,IF(D36=6,B36,IF(D37=6,B37,IF(D38=6,B38,IF(D39=6,B39,IF(D40=6,B40,IF(D41=6,B41,IF(D42=6,B42,IF(D43=6,B43,IF(D44=6,B44,IF(D45=6,B45,IF(D46=6,B46,IF(D47=6,B47,IF(D48=6,B48,IF(D49=6,B49,IF(D50=6,B50,IF(D51=6,B51,IF(D52=6,B52,IF(D53=6,B53,IF(D54=6,B54,IF(D55=6,B55,IF(D56=6,B56,IF(D57=6,B57,IF(D58=6,B58,IF(D59=6,B59,IF(D60=6,B60,IF(D61=6,B61,IF(D62=6,B62,IF(D63=6,B63,IF(D64=6,B64,IF(D65=6,B65,IF(D66=6,B66,IF(D67=6,B67,IF(D68=6,B68,IF(D69=6,B69,IF(D70=6,B70,IF(D71=6,B71,IF(D72=6,B72,IF(D73=6,B73,IF(D74=6,B74,IF(D75=6,B75,IF(D76=6,B76,0))))))))))))))))))))))))))))))))))))))))))))))))) -> 2 - 1
B34: 0 - 6 | C34: 8.236377932e-05 | D34: 36 | E34: =IF(D28=7,B28,IF(D29=7,B29,IF(D30=7,B30,IF(D31=7,B31,IF(D32=7,B32,IF(D33=7,B33,IF(D34=7,B34,IF(D35=7,B35,IF(D36=7,B36,IF(D37=7,B37,IF(D38=7,B38,IF(D39=7,B39,IF(D40=7,B40,IF(D41=7,B41,IF(D42=7,B42,IF(D43=7,B43,IF(D44=7,B44,IF(D45=7,B45,IF(D46=7,B46,IF(D47=7,B47,IF(D48=7,B48,IF(D49=7,B49,IF(D50=7,B50,IF(D51=7,B51,IF(D52=7,B52,IF(D53=7,B53,IF(D54=7,B54,IF(D55=7,B55,IF(D56=7,B56,IF(D57=7,B57,IF(D58=7,B58,IF(D59=7,B59,IF(D60=7,B60,IF(D61=7,B61,IF(D62=7,B62,IF(D63=7,B63,IF(D64=7,B64,IF(D65=7,B65,IF(D66=7,B66,IF(D67=7,B67,IF(D68=7,B68,IF(D69=7,B69,IF(D70=7,B70,IF(D71=7,B71,IF(D72=7,B72,IF(D73=7,B73,IF(D74=7,B74,IF(D75=7,B75,IF(D76=7,B76,0))))))))))))))))))))))))))))))))))))))))))))))))) -> 0 - 2
B35: 1 - 0 | C35: =$D$17*G16 -> 0.1572371663 | D35: 1 | E35: =IF(D28=8,B28,IF(D29=8,B29,IF(D30=8,B30,IF(D31=8,B31,IF(D32=8,B32,IF(D33=8,B33,IF(D34=8,B34,IF(D35=8,B35,IF(D36=8,B36,IF(D37=8,B37,IF(D38=8,B38,IF(D39=8,B39,IF(D40=8,B40,IF(D41=8,B41,IF(D42=8,B42,IF(D43=8,B43,IF(D44=8,B44,IF(D45=8,B45,IF(D46=8,B46,IF(D47=8,B47,IF(D48=8,B48,IF(D49=8,B49,IF(D50=8,B50,IF(D51=8,B51,IF(D52=8,B52,IF(D53=8,B53,IF(D54=8,B54,IF(D55=8,B55,IF(D56=8,B56,IF(D57=8,B57,IF(D58=8,B58,IF(D59=8,B59,IF(D60=8,B60,IF(D61=8,B61,IF(D62=8,B62,IF(D63=8,B63,IF(D64=8,B64,IF(D65=8,B65,IF(D66=8,B66,IF(D67=8,B67,IF(D68=8,B68,IF(D69=8,B69,IF(D70=8,B70,IF(D71=8,B71,IF(D72=8,B72,IF(D73=8,B73,IF(D74=8,B74,IF(D75=8,B75,IF(D76=8,B76,0))))))))))))))))))))))))))))))))))))))))))))))))) -> 0
B36: 1 - 1 | C36: 0.1336515914 | D36: 3
B37: 1 - 2 | C37: 0.05680192633 | D37: 7
B38: 1 - 3 | C38: 0.01609387913 | D38: 12
B39: 1 - 4 | C39: 0.003419949315 | D39: 18
B40: 1 - 5 | C40: 0.0005813913835 | D40: 26
B41: 1 - 6 | C41: 8.236377932e-05 | D41: 36
B42: 2 - 0 | C42: =$D$18*G16 -> 0.07861858316 | D42: 5
B43: 2 - 1 | C43: 0.06682579568 | D43: 6
B44: 2 - 2 | C44: 0.02840096317 | D44: 9
B45: 2 - 3 | C45: 0.008046939564 | D45: 15
B46: 2 - 4 | C46: 0.001709974657 | D46: 22
B47: 2 - 5 | C47: 0.0002906956917 | D47: 30
B48: 2 - 6 | C48: 4.118188966e-05 | D48: 39
B49: 3 - 0 | C49: =$D$19*G16 -> 0.02620619439 | D49: 10
B50: 3 - 1 | C50: 0.02227526523 | D50: 11
B51: 3 - 2 | C51: 0.009466987722 | D51: 14
B52: 3 - 3 | C52: 0.002682313188 | D52: 20
B53: 3 - 4 | C53: 0.0005699915524 | D53: 28
B54: 3 - 5 | C54: 9.689856391e-05 | D54: 35
B55: 3 - 6 | C55: 1.372729655e-05 | D55: 43
B56: 4 - 0 | C56: =$D$20*G16 -> 0.006551548596 | D56: 16
B57: 4 - 1 | C57: 0.005568816307 | D57: 17
B58: 4 - 2 | C58: 0.00236674693 | D58: 21
B59: 4 - 3 | C59: 0.000670578297 | D59: 25
B60: 4 - 4 | C60: 0.0001424978881 | D60: =RANK(C60,$C$28:$C$76,0) -> 33
B61: 4 - 5 | C61: 2.422464098e-05 | D61: 41
B62: 4 - 6 | C62: 3.431824139e-06 | D62: 46
B63: 5 - 0 | C63: =$D$21*G16 -> 0.001310309719 | D63: 23
B64: 5 - 1 | C64: 0.001113763261 | D64: 24
B65: 5 - 2 | C65: 0.0004733493861 | D65: 29
B66: 5 - 3 | C66: 0.0001341156594 | D66: 34
B67: 5 - 4 | C67: 2.849957762e-05 | D67: 40
B68: 5 - 5 | C68: 4.844928196e-06 | D68: 44
B69: 5 - 6 | C69: 6.863648277e-07 | D69: 48
B70: 6 - 0 | C70: =$D$22*G16 -> 0.0002183849532 | D70: 31
B71: 6 - 1 | C71: 0.0001856272102 | D71: 32
B72: 6 - 2 | C72: 7.889156435e-05 | D72: 38
B73: 6 - 3 | C73: 2.23526099e-05 | D73: 42
B74: 6 - 4 | C74: 4.749929603e-06 | D74: 45
B75: 6 - 5 | C75: 8.074880326e-07 | D75: 47
B76: 6 - 6 | C76: 1.14394138e-07 | D76: 49

Sheet PRONOSTICI (hidden)
C2: ® ANALIZZATORE ®
C5: Team Casa | I5: Team Ospite
C8: =DATI!J1 -> Roma | I8: =DATI!J15 -> Hellas Verona
C10: Vittorie | D10: Pareggi | E10: Sconfitte | F10: GoalsFatti | G10: GoalsSubiti | I10: Vittorie | J10: Pareggi | K10: Sconfitte | L10: GoalsFatti | M10: GoalsSubiti
C11: ='H (2)'!W13 -> 5 | D11: ='H (2)'!X13 -> 0 | E11: ='H (2)'!Y13 -> 5 | F11: ='H (2)'!Z13 -> 13 | G11: ='H (2)'!AA13 -> 8 | I11: ='A (2)'!W13 -> 3 | J11: ='A (2)'!X13 -> 0 | K11: ='A (2)'!Y13 -> 7 | L11: ='A (2)'!Z13 -> 9 | M11: ='A (2)'!AA13 -> 7
C13: P R O N O S T I C I 1
C16: SEGNO FISSO 1X2 | E16: DOPPIA CHANCE | G16: OVER | J16: UNDER | L16: SOMMA GOALS
C18: =ELABORA!I9 -> 1 | D18: =ELABORA!J9 -> 0.379358534 | E18: =ELABORA!I19 -> 1X | F18: =ELABORA!J19 -> 0.7014780252 | G18: =ELABORA!P9 -> 1.5 | I18: =ELABORA!Q9 -> 0.5517604645 | J18: =ELABORA!N9 -> 3.5 | K18: =ELABORA!O9 -> 0.8831258204 | L18: =ELABORA!S12 -> 1 | M18: =ELABORA!T12 -> 0.2908887577
C20: =ELABORA!I10 -> X | D20: =ELABORA!J10 -> 0.3221194912 | E20: =ELABORA!I20 -> 12 | F20: =ELABORA!J20 -> 0.6777668973 | G20: =ELABORA!P10 -> 2.5 | I20: =ELABORA!Q10 -> 0.2826883637 | J20: =ELABORA!N10 -> 2.5 | K20: =ELABORA!O10 -> 0.7171980248 | L20: =ELABORA!S13 -> 2 | M20: =ELABORA!T13 -> 0.2690721009
C21: =ELABORA!I11 -> 2 | D21: =ELABORA!J11 -> 0.2984083633 | E21: =ELABORA!I21 -> X2 | F21: =ELABORA!J21 -> 0.6205278545 | G21: =ELABORA!P11 -> 3.5 | I21: =ELABORA!Q11 -> 0.1167605681 | J21: =ELABORA!N11 -> 1.5 | K21: =ELABORA!O11 -> 0.448125924 | L21: =ELABORA!S14 -> 3 | M21: =ELABORA!T14 -> 0.1659277955
C23: P R O N O S T I C I 2
C26: GOAL/NO GOAL | E26: PARI/DISPARI | G26: BY FR@NCE' | I26: RISULTATO ESATTO | M26: BY FR@NCE'
C27: =ELABORA!L17 -> NO GOAL | D27: =ELABORA!M17 -> 0.6380104547 | E27: =ELABORA!L23 -> PARI | F27: =ELABORA!M23 -> 0.5123125374 | I27: =ELABORA!E28 -> 0 - 0 | J27: =ELABORA!E29 -> 0 | K27: =ELABORA!E30 -> 0 - 1 | L27: =ELABORA!E31 -> 0
C28: =ELABORA!L18 -> GOAL | D28: =ELABORA!M18 -> 0.3618759338 | E28: =ELABORA!L24 -> DISPARI | F28: =ELABORA!M24 -> 0.4875738511 | I28: =ELABORA!E32 -> 2 - 0 | J28: =ELABORA!E33 -> 2 - 1 | K28: =ELABORA!E34 -> 0 - 2 | L28: =ELABORA!E35 -> 0
C29: ® ANALIZZATORE ®

Sheet H (2) (hidden)
A1: TAKIM 1
V2: Всего | AC2: Дома | AJ2: В гостях | AQ2: Забивают дома | AU2: Забивают в гостях
A3: =F3 -> Roma | E3: SKOR | F3: =IF(COUNTIF(C4:D13,C4)>COUNTIF(C4:D13,D4),C4,D4) -> Roma | G3: Заб | H3: Проп | I3: Рез | J3: Турнир | K3: Дом | L3: Гость | M3: Счёт | N3: Команда1 | O3: Команда2 | P3: Голы1 | Q3: Голы2 | R3: Где играла | S3: Результат | T3: AG | U3: YG | V3: O | W3: G | X3: B | Y3: M | Z3: AG | AA3: YG | AB3: P | AC3: O | AD3: G | AE3: B | AF3: M | AG3: AG | AH3: YG | AI3: P | AJ3: O | AK3: G | AL3: B | AM3: M | AN3: AG | AO3: YG | AP3: P | AQ3: 0 | AR3: 1 | AS3: 2 | AT3: 3+ | AU3: 0 | AV3: 1 | AW3: 2 | AX3: 3+ | AY3: Забивают | AZ3: Пропускают | BA3: Рейтинг | BB3: тотал
A4: 44336 | C4: =MID(DATI!C4,1,20) -> Salzburg | D4: =MID(DATI!E4,1,20) -> Roma | E4: =MID(DATI!L4,1,20) -> 1 : 0 | G4: =IF(R4="Дома",K4,L4) -> 0 | H4: =IF(R4="Дома",L4,K4) -> 1 | I4: =IF(R4="Дома",IF(K4>L4,"В",IF(K4=L4,"Н","П")),IF(L4>K4,"В",IF(K4=L4,"Н","П"))) -> В | J4: =B4 -> 0 | K4: =VALUE(LEFT(M4,FIND(":",M4,1)-1)) -> 1 | L4: =DATI!K4 -> 0 | M4: =SUBSTITUTE(E4," : ",":") -> 1 : 0 | N4: =C4 -> Salzburg | O4: =D4 -> Roma | P4: =VALUE(LEFT(M4,FIND(":",M4,1)-1)) -> 1 | Q4: =L4 -> 0 | R4: =IF(C4=A$3,"Дома","В гостях") -> В гостях | S4: =I4 -> В | T4: =G4 -> 0 | U4: =H4 -> 1 | V4: 1 | W4: =IF(S4="В",1,0) -> 1 | X4: =IF(S4="Н",1,0) -> 0 | Y4: =IF(S4="П",1,0) -> 0 | Z4: =T4 -> 0 | AA4: =U4 -> 1 | AB4: =W4*3+X4 -> 3 | AC4: =IF(R4="Дома",1,0) -> 0 | AD4: =IF(R4="Дома",IF(S4="В",1,0),0) -> 0 | AE4: =IF(R4="Дома",IF(S4="Н",1,0),0) -> 0 | AF4: =IF(R4="Дома",IF(S4="П",1,0),0) -> 0 | AG4: =IF(R4="Дома",T4,0) -> 0 | AH4: =IF(R4="Дома",U4,0) -> 0 | AI4: =AD4*3+AE4 -> 0 | AJ4: =IF(R4<>"Дома",1,0) -> 1 | AK4: =IF(R4<>"Дома",IF(S4="В",1,0),0) -> 1 | AL4: =IF(R4<>"Дома",IF(S4="Н",1,0),0) -> 0 | AM4: =IF(R4<>"Дома",IF(S4="П",1,0),0) -> 0 | AN4: =IF(R4<>"Дома",T4,0) -> 0 | AO4: =IF(R4<>"Дома",U4,0) -> 1 | AP4: =AK4*3+AL4 -> 3 | AQ4: =IF(R4="Дома",IF(T4=0,1,0),0) -> 0 | AR4: =IF(R4="Дома",IF(T4=1,1,0),0) -> 0 | AS4: =IF(R4="Дома",IF(T4=2,1,0),0) -> 0 | AT4: =IF(R4="Дома",IF(T4>=3,1,0),0) -> 0 | AU4: =IF(R4<>"Дома",IF(X4=0,1,0),0) -> 1 | AV4: =IF(R4<>"Дома",IF(X4=1,1,0),0) -> 0 | AW4: =IF(R4<>"Дома",IF(X4=2,1,0),0) -> 0 | AX4: =IF(R4<>"Дома",IF(X4>=3,1,0),0) -> 0 | AY4: =V4/Z4 ->  | AZ4: =V4/AA4 -> 1 | BA4: =(AI4/IF(AC4<1,1,AC4)+AP4/IF(AJ4<1,1,AJ4)*1.5+AG4/IF(AC4<1,1,AC4)+AN4/IF(AJ4<1,1,AJ4)*1.5-AH4/IF(AC4<1,1,AC4)*1.5-AO4/IF(AJ4<1,1,AJ4))/15 -> 0.2333333333 | BB4: =IF(R4="Дома",T4+U4,"") -> 
A5: 44332 | C5: =MID(DATI!C5,1,20) -> Lecce | D5: =MID(DATI!E5,1,20) -> Roma | E5: =MID(DATI!L5,1,20) -> 1 : 1 | G5: 1 | H5: 1 | I5: В | J5: 0 | K5: 1 | L5: =DATI!K5 -> 1 | M5: 1 : 1 | N5: Lecce | O5: Roma | P5: 1 | Q5: =L5 -> 1 | R5: В гостях | S5: В | T5: 1 | U5: 1 | V5: =V4+1 -> 2 | W5: =IF(S5="В",W4+1,W4+0) -> 2 | X5: =IF(S5="Н",X4+1,X4+0) -> 0 | Y5: =IF(S5="П",Y4+1,Y4+0) -> 0 | Z5: =T5+Z4 -> 1 | AA5: =U5+AA4 -> 2 | AB5: 6 | AC5: =IF(R5="Дома",AC4+1,AC4+0) -> 0 | AD5: =IF(R5="Дома",IF(S5="В",AD4+1,AD4+0),AD4+0) -> 0 | AE5: =IF(R5="Дома",IF(S5="Н",AE4+1,AE4+0),AE4+0) -> 0 | AF5: =IF(R5="Дома",IF(S5="П",AF4+1,AF4+0),AF4+0) -> 0 | AG5: =IF(R5="Дома",AG4+T5,AG4+0) -> 0 | AH5: =IF(R5="Дома",AH4+U5,AH4+0) -> 0 | AI5: 0 | AJ5: =IF(R5<>"Дома",AJ4+1,AJ4+0) -> 2 | AK5: =IF(R5<>"Дома",IF(S5="В",AK4+1,AK4+0),AK4+0) -> 2 | AL5: =IF(R5<>"Дома",IF(S5="Н",AL4+1,AL4+0),AL4+0) -> 0 | AM5: =IF(R5<>"Дома",IF(S5="П",AM4+1,AM4+0),AM4+0) -> 0 | AN5: =IF(R5<>"Дома",AN4+T5,AN4+0) -> 1 | AO5: =IF(R5<>"Дома",AO4+U5,AO4+0) -> 2 | AP5: 6 | AQ5: =IF(R5="Дома",IF(T5=0,AQ4+1,AQ4),AQ4) -> 0 | AR5: =IF(R5="Дома",IF(T5=1,AR4+1,AR4),AR4) -> 0 | AS5: =IF(R5="Дома",IF(T5=2,AS4+1,AS4),AS4) -> 0 | AT5: =IF(R5="Дома",IF(T5>=3,AT4+1,AT4),AT4) -> 0 | AU5: =IF(R5<>"Дома",IF(T5=0,AU4+1,AU4),AU4) -> 1 | AV5: =IF(R5<>"Дома",IF(T5=1,AV4+1,AV4),AV4) -> 0 | AW5: =IF(R5<>"Дома",IF(T5=2,AW4+1,AW4),AW4) -> 0 | AX5: =IF(R5<>"Дома",IF(T5>=3,AX4+1,AX4),AX4) -> 1 | AY5: 2 | AZ5: 1 | BA5: 0.2833333333
A6: 44329 | C6: =MID(DATI!C6,1,20) -> Roma | D6: =MID(DATI!E6,1,20) -> Empoli | E6: =MID(DATI!L6,1,20) -> 2 : 0 | G6: 2 | H6: 0 | I6: П | J6: 0 | K6: 2 | L6: =DATI!K6 -> 0 | M6: 2 : 0 | N6: Roma | O6: Empoli | P6: 2 | Q6: 0 | R6: Дома | S6: П | T6: 2 | U6: 0 | V6: 3 | W6: 2 | X6: 0 | Y6: 1 | Z6: 3 | AA6: 2 | AB6: 6 | AC6: 1 | AD6: 0 | AE6: 0 | AF6: 1 | AG6: 2 | AH6: 0 | AI6: 0 | AJ6: 2 | AK6: 2 | AL6: 0 | AM6: 0 | AN6: 1 | AO6: 2 | AP6: 6 | AQ6: 0 | AR6: 0 | AS6: 1 | AT6: 0 | AU6: 1 | AV6: 0 | AW6: 0 | AX6: 1 | AY6: 1 | AZ6: 1.5 | BA6: 0.4166666667 | BB6: 2
A7: 44325 | C7: =MID(DATI!C7,1,20) -> Roma | D7: =MID(DATI!E7,1,20) -> Cremonese | E7: =MID(DATI!L7,1,20) -> 1 : 2 | G7: 1 | H7: 2 | I7: П | J7: 0 | K7: 1 | L7: =DATI!K7 -> 2 | M7: 1 : 2 | N7: Roma | O7: Cremonese | P7: 1 | Q7: 2 | R7: Дома | S7: П | T7: 1 | U7: 2 | V7: 4 | W7: 2 | X7: 0 | Y7: 2 | Z7: 4 | AA7: 4 | AB7: 6 | AC7: 2 | AD7: 0 | AE7: 0 | AF7: 2 | AG7: 3 | AH7: 2 | AI7: 0 | AJ7: 2 | AK7: 2 | AL7: 0 | AM7: 0 | AN7: 1 | AO7: 2 | AP7: 6 | AQ7: 0 | AR7: 1 | AS7: 1 | AT7: 0 | AU7: 1 | AV7: 0 | AW7: 0 | AX7: 1 | AY7: 1 | AZ7: 1 | BA7: 0.2833333333 | BB7: 3
A8: 44318 | C8: =MID(DATI!C8,1,20) -> Napoli | D8: =MID(DATI!E8,1,20) -> Roma | E8: =MID(DATI!L8,1,20) -> 2 : 1 | G8: 1 | H8: 2 | I8: В | J8: 0 | K8: 2 | L8: =DATI!K8 -> 1 | M8: 2 : 1 | N8: Napoli | O8: Roma | P8: 2 | Q8: 1 | R8: В гостях | S8: В | T8: 1 | U8: 2 | V8: 5 | W8: 3 | X8: 0 | Y8: 2 | Z8: 5 | AA8: 6 | AB8: 9 | AC8: 2 | AD8: 0 | AE8: 0 | AF8: 2 | AG8: 3 | AH8: 2 | AI8: 0 | AJ8: 3 | AK8: 3 | AL8: 0 | AM8: 0 | AN8: 2 | AO8: 4 | AP8: 9 | AQ8: 0 | AR8: 1 | AS8: 1 | AT8: 0 | AU8: 1 | AV8: 0 | AW8: 0 | AX8: 2 | AY8: 1 | AZ8: 0.8333333333 | BA8: 0.2777777778
A9: 44304 | C9: =MID(DATI!C9,1,20) -> Spezia | D9: =MID(DATI!E9,1,20) -> Roma | E9: =MID(DATI!L9,1,20) -> 0 : 2 | G9: 2 | H9: 0 | I9: В | J9: 0 | K9: 0 | L9: =DATI!K9 -> 2 | M9: 0 : 2 | N9: Spezia | O9: Roma | P9: 0 | Q9: 2 | R9: В гостях | S9: В | T9: 2 | U9: 0 | V9: 6 | W9: 4 | X9: 0 | Y9: 2 | Z9: 7 | AA9: 6 | AB9: 12 | AC9: 2 | AD9: 0 | AE9: 0 | AF9: 2 | AG9: 3 | AH9: 2 | AI9: 0 | AJ9: 4 | AK9: 4 | AL9: 0 | AM9: 0 | AN9: 4 | AO9: 4 | AP9: 12 | AQ9: 0 | AR9: 1 | AS9: 1 | AT9: 0 | AU9: 1 | AV9: 0 | AW9: 0 | AX9: 3 | AY9: 0.8571428571 | AZ9: 1 | BA9: 0.3333333333
A10: 44297 | C10: =MID(DATI!C10,1,20) -> Roma | D10: =MID(DATI!E10,1,20) -> Fiorentina | E10: =MID(DATI!L10,1,20) -> 2 : 0 | G10: 2 | H10: 0 | I10: П | J10: 0 | K10: 2 | L10: =DATI!K10 -> 0 | M10: 2 : 0 | N10: Roma | O10: Fiorentina | P10: 2 | Q10: 0 | R10: Дома | S10: П | T10: 2 | U10: 0 | V10: 7 | W10: 4 | X10: 0 | Y10: 3 | Z10: 9 | AA10: 6 | AB10: 12 | AC10: 3 | AD10: 0 | AE10: 0 | AF10: 3 | AG10: 5 | AH10: 2 | AI10: 0 | AJ10: 4 | AK10: 4 | AL10: 0 | AM10: 0 | AN10: 4 | AO10: 4 | AP10: 12 | AQ10: 0 | AR10: 1 | AS10: 2 | AT10: 0 | AU10: 1 | AV10: 0 | AW10: 0 | AX10: 3 | AY10: 0.7777777778 | AZ10: 1.166666667 | BA10: 0.3777777778 | BB10: 2
A11: 44290 | C11: =MID(DATI!C11,1,20) -> Roma | D11: =MID(DATI!E11,1,20) -> Genoa | E11: =MID(DATI!L11,1,20) -> 1 : 0 | G11: 1 | H11: 0 | I11: П | J11: 0 | K11: 1 | L11: =DATI!K11 -> 0 | M11: 1 : 0 | N11: Roma | O11: Genoa | P11: 1 | Q11: 0 | R11: Дома | S11: П | T11: 1 | U11: 0 | V11: 8 | W11: 4 | X11: 0 | Y11: 4 | Z11: 10 | AA11: 6 | AB11: 12 | AC11: 4 | AD11: 0 | AE11: 0 | AF11: 4 | AG11: 6 | AH11: 2 | AI11: 0 | AJ11: 4 | AK11: 4 | AL11: 0 | AM11: 0 | AN11: 4 | AO11: 4 | AP11: 12 | AQ11: 0 | AR11: 2 | AS11: 2 | AT11: 0 | AU11: 1 | AV11: 0 | AW11: 0 | AX11: 3 | AY11: 0.8 | AZ11: 1.333333333 | BA11: 0.3833333333 | BB11: 1
A12: 44276 | C12: =MID(DATI!C12,1,20) -> Milan | D12: =MID(DATI!E12,1,20) -> Roma | E12: =MID(DATI!L12,1,20) -> 2 : 2 | G12: 2 | H12: 2 | I12: В | J12: 0 | K12: 2 | L12: =DATI!K12 -> 2 | M12: 2 : 2 | N12: Milan | O12: Roma | P12: 2 | Q12: 2 | R12: В гостях | S12: В | T12: 2 | U12: 2 | V12: 9 | W12: 5 | X12: 0 | Y12: 4 | Z12: 12 | AA12: 8 | AB12: 15 | AC12: 4 | AD12: 0 | AE12: 0 | AF12: 4 | AG12: 6 | AH12: 2 | AI12: 0 | AJ12: 5 | AK12: 5 | AL12: 0 | AM12: 0 | AN12: 6 | AO12: 6 | AP12: 15 | AQ12: 0 | AR12: 2 | AS12: 2 | AT12: 0 | AU12: 1 | AV12: 0 | AW12: 0 | AX12: 4 | AY12: 0.75 | AZ12: 1.125 | BA12: 0.39
A13: 44263 | C13: =MID(DATI!C13,1,20) -> Roma | D13: =MID(DATI!E13,1,20) -> Bologna | E13: =MID(DATI!L13,1,20) -> 1 : 0 | G13: 1 | H13: 0 | I13: П | J13: 0 | K13: 1 | L13: =DATI!K13 -> 0 | M13: 1 : 0 | N13: Roma | O13: Bologna | P13: 1 | Q13: 0 | R13: Дома | S13: П | T13: 1 | U13: 0 | V13: 10 | W13: 5 | X13: 0 | Y13: 5 | Z13: 13 | AA13: 8 | AB13: 15 | AC13: 5 | AD13: 0 | AE13: 0 | AF13: 5 | AG13: 7 | AH13: 2 | AI13: 0 | AJ13: 5 | AK13: 5 | AL13: 0 | AM13: 0 | AN13: 6 | AO13: 6 | AP13: 15 | AQ13: 0 | AR13: 3 | AS13: 2 | AT13: 0 | AU13: 1 | AV13: 0 | AW13: 0 | AX13: 4 | AY13: 0.7692307692 | AZ13: 1.25 | BA13: 0.3933333333 | BB13: 1
A14: 42065 | B14: SUP | C14: Эсбьерг | D14: Ольборг | E14: 1 : 3 | G14: 1 | H14: =IF(S4="В",IF(T4-U4>1.5,"EW","W"),"ЛОЛ") -> W | I14: =IF(H14="ЛОЛ",J14,H14) -> W | J14: =IF(S4="П",IF(((T4-U4)*(-1))<1.5,"L","HL"),"D") -> D
A15: 42064 | B15: PRI | C15: Эйбар | D15: Атлетик | E15: 0 : 1 | G15: 2 | H15: =IF(S5="В",IF(T5-U5>1.5,"EW","W"),"ЛОЛ") -> W | I15: =IF(H15="ЛОЛ",J15,H15) -> W | J15: =IF(S5="П",IF(((T5-U5)*(-1))<1.5,"L","HL"),"D") -> D
A16: 42002 | B16: PRE | C16: Алааб Даманхур | D16: Замалек | E16: 1 : 2 | G16: 3 | H16: =IF(S6="В",IF(T6-U6>1.5,"EW","W"),"ЛОЛ") -> ЛОЛ | I16: =IF(H16="ЛОЛ",J16,H16) -> L | J16: =IF(S6="П",IF(((T6-U6)*(-1))<1.5,"L","HL"),"D") -> L
A17: 41991 | B17: PRE | C17: Алааб Даманхур | D17: Аласьоти | E17: 2 : 1 | G17: 4 | H17: =IF(S7="В",IF(T7-U7>1.5,"EW","W"),"ЛОЛ") -> ЛОЛ | I17: =IF(H17="ЛОЛ",J17,H17) -> L | J17: =IF(S7="П",IF(((T7-U7)*(-1))<1.5,"L","HL"),"D") -> L
A18: 41958 | B18: PRI | C18: Унион Санта-Фе | D18: Темперлей | E18: 2 : 0 | G18: 5 | H18: =IF(S8="В",IF(T8-U8>1.5,"EW","W"),"ЛОЛ") -> W | I18: =IF(H18="ЛОЛ",J18,H18) -> W | J18: =IF(S8="П",IF(((T8-U8)*(-1))<1.5,"L","HL"),"D") -> D
T24: =SUM(T4:T13) -> 7 | V24: 0 | Z24: =TREND(Z4:Z13,V24:V33/V13) ->  | AA24: =TREND(AA4:AA13,V24:V33/V13) -> 1.327272727
A25: К1 | B25: К2 | C25: Г1 | D25: Г2 | E25: 2.5 | F25: 3.5 | G25: ГДЕ | H25: ЗБ | I25: ПР | K25: ev | L25: dep | V25: 1
A26: =C4 -> Salzburg | B26: =D4 -> Roma | C26: =VALUE(LEFT(E4,FIND(":",E4,1)-1)) -> 1 | D26: =G4 -> 0 | E26: =IF((C26+D26)>2.5,"UST","ALT") -> ALT | F26: =IF((C26+D26)>3.5,"ТБ","ТМ") -> ТМ | G26: =IF(A26=$A$3,"Дома","В гостях") -> В гостях | H26: =IF(G26="Дома",C26,D26) -> 0 | I26: =IF(G26="Дома",D26,C26) -> 1 | K26: =IF(A26=$A$3,IF((C26+D26)>2.5,"UST","ALT")) -> FALSE | L26: =IF(B26=$A$3,IF((C26+D26)>2.5,"UST","ALT")) -> ALT | V26: 2 | Z26: =AVERAGE(Z24,AA24) -> 
A27: Lecce | B27: Roma | C27: 1 | D27: =G5 -> 1 | E27: ALT | F27: ТМ | G27: В гостях | H27: 1 | I27: 1 | K27: FALSE | L27: ALT | V27: 3
A28: Roma | B28: Empoli | C28: 2 | D28: 2 | E28: UST | F28: ТБ | G28: Дома | H28: 2 | I28: 2 | K28: UST | L28: FALSE | O28: C | V28: 4
A29: Roma | B29: Cremonese | C29: 1 | D29: 1 | E29: ALT | F29: ТМ | G29: Дома | H29: 1 | I29: 1 | K29: ALT | L29: FALSE | V29: 5
A30: Napoli | B30: Roma | C30: 2 | D30: 1 | E30: UST | F30: ТМ | G30: В гостях | H30: 1 | I30: 2 | K30: FALSE | L30: UST | V30: 6
A31: Spezia | B31: Roma | C31: 0 | D31: 2 | E31: ALT | F31: ТМ | G31: В гостях | H31: 2 | I31: 0 | K31: FALSE | L31: ALT | V31: 7
A32: Roma | B32: Fiorentina | C32: 2 | D32: 2 | E32: UST | F32: ТБ | G32: Дома | H32: 2 | I32: 2 | K32: UST | L32: FALSE | V32: 8
A33: Roma | B33: Genoa | C33: 1 | D33: 1 | E33: ALT | F33: ТМ | G33: Дома | H33: 1 | I33: 1 | K33: ALT | L33: FALSE | V33: 9
A34: Milan | B34: Roma | C34: 2 | D34: 2 | E34: UST | F34: ТБ | G34: В гостях | H34: 2 | I34: 2 | K34: FALSE | L34: UST
A35: Roma | B35: Bologna | C35: 1 | D35: 1 | E35: ALT | F35: ТМ | G35: Дома | H35: 1 | I35: 1 | K35: ALT | L35: FALSE

Sheet A (2) (hidden)
A1: TAKIM 2 (DEPLASMAN)
V2: GENEL | AC2: EVDE | AJ2: DIŞARDA | AQ2: Забивают дома | AU2: Забивают в гостях
A3: =F3 -> Hellas Verona | E3: SKOR | F3: =IF(COUNTIF(C4:D13,C4)>COUNTIF(C4:D13,D4),C4,D4) -> Hellas Verona | G3: Заб | H3: Проп | I3: Рез | J3: Турнир | K3: Дом | L3: Гость | M3: Счёт | N3: Команда1 | O3: Команда2 | P3: Голы1 | Q3: Голы2 | R3: Где играла | S3: Результат | T3: Забито | U3: Пропущено | V3: O | W3: G | X3: B | Y3: M | Z3: AG | AA3: YG | AB3: P | AC3: O | AD3: G | AE3: B | AF3: M | AG3: AG | AH3: YG | AI3: P | AJ3: O | AK3: G | AL3: B | AM3: M | AN3: AG | AO3: YG | AP3: P | AQ3: 0 | AR3: 1 | AS3: 2 | AT3: 3+ | AU3: 0 | AV3: 1 | AW3: 2 | AX3: 3+ | AY3: Забивают | AZ3: Пропускают | BA3: Рейтинг | BB3: тотал
A4: 44336 | C4: =MID(DATI!C18,1,20) -> Hellas Verona | D4: =MID(DATI!E18,1,20) -> Salernitana | E4: =MID(DATI!L18,1,20) -> 1 : 0 | G4: =IF(R4="Дома",K4,L4) -> 1 | H4: =IF(R4="Дома",L4,K4) -> 0 | I4: =IF(R4="Дома",IF(K4>L4,"В",IF(K4=L4,"Н","П")),IF(L4>K4,"В",IF(K4=L4,"Н","П"))) -> П | J4: =B4 -> 0 | K4: =VALUE(LEFT(M4,FIND(":",M4,1)-1)) -> 1 | L4: =DATI!K18 -> 0 | M4: =SUBSTITUTE(E4," : ",":") -> 1 : 0 | N4: =C4 -> Hellas Verona | O4: =D4 -> Salernitana | P4: =VALUE(LEFT(M4,FIND(":",M4,1)-1)) -> 1 | Q4: =L4 -> 0 | R4: =IF(C4=A$3,"Дома","В гостях") -> Дома | S4: =I4 -> П | T4: =G4 -> 1 | U4: =H4 -> 0 | V4: 1 | W4: =IF(S4="В",1,0) -> 0 | X4: =IF(S4="Н",1,0) -> 0 | Y4: =IF(S4="П",1,0) -> 1 | Z4: =T4 -> 1 | AA4: =U4 -> 0 | AB4: =W4*3+X4 -> 0 | AC4: =IF(R4="Дома",1,0) -> 1 | AD4: =IF(R4="Дома",IF(S4="В",1,0),0) -> 0 | AE4: =IF(R4="Дома",IF(S4="Н",1,0),0) -> 0 | AF4: =IF(R4="Дома",IF(S4="П",1,0),0) -> 1 | AG4: =IF(R4="Дома",T4,0) -> 1 | AH4: =IF(R4="Дома",U4,0) -> 0 | AI4: =AD4*3+AE4 -> 0 | AJ4: =IF(R4<>"Дома",1,0) -> 0 | AK4: =IF(R4<>"Дома",IF(S4="В",1,0),0) -> 0 | AL4: =IF(R4<>"Дома",IF(S4="Н",1,0),0) -> 0 | AM4: =IF(R4<>"Дома",IF(S4="П",1,0),0) -> 0 | AN4: =IF(R4<>"Дома",T4,0) -> 0 | AO4: =IF(R4<>"Дома",U4,0) -> 0 | AP4: =AK4*3+AL4 -> 0 | AQ4: =IF(R4="Дома",IF(T4=0,1,0),0) -> 0 | AR4: =IF(R4="Дома",IF(T4=1,1,0),0) -> 1 | AS4: =IF(R4="Дома",IF(T4=2,1,0),0) -> 0 | AT4: =IF(R4="Дома",IF(T4>=3,1,0),0) -> 0 | AU4: =IF(R4<>"Дома",IF(X4=0,1,0),0) -> 0 | AV4: =IF(R4<>"Дома",IF(X4=1,1,0),0) -> 0 | AW4: =IF(R4<>"Дома",IF(X4=2,1,0),0) -> 0 | AX4: =IF(R4<>"Дома",IF(X4>=3,1,0),0) -> 0 | AY4: =V4/Z4 -> 1 | AZ4: =V4/AA4 ->  | BA4: =(AI4/IF(AC4<1,1,AC4)+AP4/IF(AJ4<1,1,AJ4)*1.5+AG4/IF(AC4<1,1,AC4)+AN4/IF(AJ4<1,1,AJ4)*1.5-AH4/IF(AC4<1,1,AC4)*1.5-AO4/IF(AJ4<1,1,AJ4))/15 -> 0.06666666667 | BB4: =IF(R4="В гостях",T4+U4,"") -> 
A5: 44332 | C5: =MID(DATI!C19,1,20) -> Hellas Verona | D5: =MID(DATI!E19,1,20) -> Lazio | E5: =MID(DATI!L19,1,20) -> 1 : 1 | G5: 1 | H5: 1 | I5: П | J5: 0 | K5: 1 | L5: =DATI!K19 -> 1 | M5: 1 : 1 | N5: Hellas Verona | O5: Lazio | P5: 1 | Q5: =L5 -> 1 | R5: Дома | S5: П | T5: 1 | U5: 1 | V5: =V4+1 -> 2 | W5: =IF(S5="В",W4+1,W4+0) -> 0 | X5: =IF(S5="Н",X4+1,X4+0) -> 0 | Y5: =IF(S5="П",Y4+1,Y4+0) -> 2 | Z5: =T5+Z4 -> 2 | AA5: =U5+AA4 -> 1 | AB5: 0 | AC5: =IF(R5="Дома",AC4+1,AC4+0) -> 2 | AD5: =IF(R5="Дома",IF(S5="В",AD4+1,AD4+0),AD4+0) -> 0 | AE5: =IF(R5="Дома",IF(S5="Н",AE4+1,AE4+0),AE4+0) -> 0 | AF5: =IF(R5="Дома",IF(S5="П",AF4+1,AF4+0),AF4+0) -> 2 | AG5: =IF(R5="Дома",AG4+T5,AG4+0) -> 2 | AH5: =IF(R5="Дома",AH4+U5,AH4+0) -> 1 | AI5: 0 | AJ5: =IF(R5<>"Дома",AJ4+1,AJ4+0) -> 0 | AK5: =IF(R5<>"Дома",IF(S5="В",AK4+1,AK4+0),AK4+0) -> 0 | AL5: =IF(R5<>"Дома",IF(S5="Н",AL4+1,AL4+0),AL4+0) -> 0 | AM5: =IF(R5<>"Дома",IF(S5="П",AM4+1,AM4+0),AM4+0) -> 0 | AN5: =IF(R5<>"Дома",AN4+T5,AN4+0) -> 0 | AO5: =IF(R5<>"Дома",AO4+U5,AO4+0) -> 0 | AP5: 0 | AQ5: =IF(R5="Дома",IF(T5=0,AQ4+1,AQ4),AQ4) -> 0 | AR5: =IF(R5="Дома",IF(T5=1,AR4+1,AR4),AR4) -> 2 | AS5: =IF(R5="Дома",IF(T5=2,AS4+1,AS4),AS4) -> 0 | AT5: =IF(R5="Дома",IF(T5>=3,AT4+1,AT4),AT4) -> 0 | AU5: =IF(R5<>"Дома",IF(T5=0,AU4+1,AU4),AU4) -> 0 | AV5: =IF(R5<>"Дома",IF(T5=1,AV4+1,AV4),AV4) -> 0 | AW5: =IF(R5<>"Дома",IF(T5=2,AW4+1,AW4),AW4) -> 0 | AX5: =IF(R5<>"Дома",IF(T5>=3,AX4+1,AX4),AX4) -> 0 | AY5: 1 | AZ5: 2 | BA5: 0.01666666667
A6: 44329 | C6: =MID(DATI!C20,1,20) -> Udinese | D6: =MID(DATI!E20,1,20) -> Hellas Verona | E6: =MID(DATI!L20,1,20) -> 1 : 1 | G6: 1 | H6: 1 | I6: В | J6: 0 | K6: 1 | L6: =DATI!K20 -> 1 | M6: 1 : 1 | N6: Udinese | O6: Hellas Verona | P6: 1 | Q6: 1 | R6: В гостях | S6: В | T6: 1 | U6: 1 | V6: 3 | W6: 1 | X6: 0 | Y6: 2 | Z6: 3 | AA6: 2 | AB6: 3 | AC6: 2 | AD6: 0 | AE6: 0 | AF6: 2 | AG6: 2 | AH6: 1 | AI6: 0 | AJ6: 1 | AK6: 1 | AL6: 0 | AM6: 0 | AN6: 1 | AO6: 1 | AP6: 3 | AQ6: 0 | AR6: 2 | AS6: 0 | AT6: 0 | AU6: 0 | AV6: 0 | AW6: 0 | AX6: 1 | AY6: 1 | AZ6: 1.5 | BA6: 0.35 | BB6: 2
A7: 44325 | C7: =MID(DATI!C21,1,20) -> Hellas Verona | D7: =MID(DATI!E21,1,20) -> Lecce | E7: =MID(DATI!L21,1,20) -> 2 : 0 | G7: 2 | H7: 0 | I7: П | J7: 0 | K7: 2 | L7: =DATI!K21 -> 0 | M7: 2 : 0 | N7: Hellas Verona | O7: Lecce | P7: 2 | Q7: 0 | R7: Дома | S7: П | T7: 2 | U7: 0 | V7: 4 | W7: 1 | X7: 0 | Y7: 3 | Z7: 5 | AA7: 2 | AB7: 3 | AC7: 3 | AD7: 0 | AE7: 0 | AF7: 3 | AG7: 4 | AH7: 1 | AI7: 0 | AJ7: 1 | AK7: 1 | AL7: 0 | AM7: 0 | AN7: 1 | AO7: 1 | AP7: 3 | AQ7: 0 | AR7: 2 | AS7: 1 | AT7: 0 | AU7: 0 | AV7: 0 | AW7: 0 | AX7: 1 | AY7: 0.8 | AZ7: 2 | BA7: 0.3888888889
A8: 44318 | C8: =MID(DATI!C22,1,20) -> Inter | D8: =MID(DATI!E22,1,20) -> Hellas Verona | E8: =MID(DATI!L22,1,20) -> 1 : 0 | G8: 0 | H8: 1 | I8: В | J8: 0 | K8: 1 | L8: =DATI!K22 -> 0 | M8: 1 : 0 | N8: Inter | O8: Hellas Verona | P8: 1 | Q8: 0 | R8: В гостях | S8: В | T8: 0 | U8: 1 | V8: 5 | W8: 2 | X8: 0 | Y8: 3 | Z8: 5 | AA8: 3 | AB8: 6 | AC8: 3 | AD8: 0 | AE8: 0 | AF8: 3 | AG8: 4 | AH8: 1 | AI8: 0 | AJ8: 2 | AK8: 2 | AL8: 0 | AM8: 0 | AN8: 1 | AO8: 2 | AP8: 6 | AQ8: 0 | AR8: 2 | AS8: 1 | AT8: 0 | AU8: 0 | AV8: 0 | AW8: 0 | AX8: 2 | AY8: 1 | AZ8: 1.666666667 | BA8: 0.3388888889 | BB8: 1
A9: 44304 | C9: =MID(DATI!C23,1,20) -> Hellas Verona | D9: =MID(DATI!E23,1,20) -> Cremonese | E9: =MID(DATI!L23,1,20) -> 2 : 0 | G9: 2 | H9: 0 | I9: П | J9: 0 | K9: 2 | L9: =DATI!K23 -> 0 | M9: 2 : 0 | N9: Hellas Verona | O9: Cremonese | P9: 2 | Q9: 0 | R9: Дома | S9: П | T9: 2 | U9: 0 | V9: 6 | W9: 2 | X9: 0 | Y9: 4 | Z9: 7 | AA9: 3 | AB9: 6 | AC9: 4 | AD9: 0 | AE9: 0 | AF9: 4 | AG9: 6 | AH9: 1 | AI9: 0 | AJ9: 2 | AK9: 2 | AL9: 0 | AM9: 0 | AN9: 1 | AO9: 2 | AP9: 6 | AQ9: 0 | AR9: 2 | AS9: 2 | AT9: 0 | AU9: 0 | AV9: 0 | AW9: 0 | AX9: 2 | AY9: 0.8571428571 | AZ9: 2 | BA9: 0.3583333333
A10: 44297 | C10: =MID(DATI!C24,1,20) -> Torino | D10: =MID(DATI!E24,1,20) -> Hellas Verona | E10: =MID(DATI!L24,1,20) -> 1 : 1 | G10: 1 | H10: 1 | I10: В | J10: 0 | K10: 1 | L10: =DATI!K24 -> 1 | M10: 1 : 1 | N10: Torino | O10: Hellas Verona | P10: 1 | Q10: 1 | R10: В гостях | S10: В | T10: 1 | U10: 1 | V10: 7 | W10: 3 | X10: 0 | Y10: 4 | Z10: 8 | AA10: 4 | AB10: 9 | AC10: 4 | AD10: 0 | AE10: 0 | AF10: 4 | AG10: 6 | AH10: 1 | AI10: 0 | AJ10: 3 | AK10: 3 | AL10: 0 | AM10: 0 | AN10: 2 | AO10: 3 | AP10: 9 | AQ10: 0 | AR10: 2 | AS10: 2 | AT10: 0 | AU10: 0 | AV10: 0 | AW10: 0 | AX10: 3 | AY10: 0.875 | AZ10: 1.75 | BA10: 0.375 | BB10: 2
A11: 44291 | C11: =MID(DATI!C25,1,20) -> Hellas Verona | D11: =MID(DATI!E25,1,20) -> Bologna | E11: =MID(DATI!L25,1,20) -> 0 : 1 | G11: 0 | H11: 1 | I11: П | J11: 0 | K11: 0 | L11: =DATI!K25 -> 1 | M11: 0 : 1 | N11: Hellas Verona | O11: Bologna | P11: 0 | Q11: 1 | R11: Дома | S11: П | T11: 0 | U11: 1 | V11: 8 | W11: 3 | X11: 0 | Y11: 5 | Z11: 8 | AA11: 5 | AB11: 9 | AC11: 5 | AD11: 0 | AE11: 0 | AF11: 5 | AG11: 6 | AH11: 2 | AI11: 0 | AJ11: 3 | AK11: 3 | AL11: 0 | AM11: 0 | AN11: 2 | AO11: 3 | AP11: 9 | AQ11: 1 | AR11: 2 | AS11: 2 | AT11: 0 | AU11: 0 | AV11: 0 | AW11: 0 | AX11: 3 | AY11: 1 | AZ11: 1.6 | BA11: 0.34
A12: 44281 | C12: =MID(DATI!C26,1,20) -> Hellas Verona | D12: =MID(DATI!E26,1,20) -> Istra 1961 | E12: =MID(DATI!L26,1,20) -> 0 : 0 | G12: 0 | H12: 0 | I12: П | J12: 0 | K12: 0 | L12: =DATI!K26 -> 0 | M12: 0 : 0 | N12: Hellas Verona | O12: Istra 1961 | P12: 0 | Q12: 0 | R12: Дома | S12: П | T12: 0 | U12: 0 | V12: 9 | W12: 3 | X12: 0 | Y12: 6 | Z12: 8 | AA12: 5 | AB12: 9 | AC12: 6 | AD12: 0 | AE12: 0 | AF12: 6 | AG12: 6 | AH12: 2 | AI12: 0 | AJ12: 3 | AK12: 3 | AL12: 0 | AM12: 0 | AN12: 2 | AO12: 3 | AP12: 9 | AQ12: 2 | AR12: 2 | AS12: 2 | AT12: 0 | AU12: 0 | AV12: 0 | AW12: 0 | AX12: 3 | AY12: 1.125 | AZ12: 1.8 | BA12: 0.3333333333
A13: 44277 | C13: =MID(DATI!C27,1,20) -> Hellas Verona | D13: =MID(DATI!E27,1,20) -> Spezia | E13: =MID(DATI!L27,1,20) -> 1 : 2 | G13: 1 | H13: 2 | I13: П | J13: 0 | K13: 1 | L13: =DATI!K27 -> 2 | M13: 1 : 2 | N13: Hellas Verona | O13: Spezia | P13: 1 | Q13: 2 | R13: Дома | S13: П | T13: 1 | U13: 2 | V13: 10 | W13: 3 | X13: 0 | Y13: 7 | Z13: 9 | AA13: 7 | AB13: 9 | AC13: 7 | AD13: 0 | AE13: 0 | AF13: 7 | AG13: 7 | AH13: 4 | AI13: 0 | AJ13: 3 | AK13: 3 | AL13: 0 | AM13: 0 | AN13: 2 | AO13: 3 | AP13: 9 | AQ13: 2 | AR13: 3 | AS13: 2 | AT13: 0 | AU13: 0 | AV13: 0 | AW13: 0 | AX13: 3 | AY13: 1.111111111 | AZ13: 1.428571429 | BA13: 0.3095238095
A14: 42058 | B14: SUP | C14: Мидтьюлланн | D14: Оденсе | E14: 3 : 0 | G14: 1 | H14: =IF(S4="В",IF(T4-U4>1.5,"EW","W"),"ЛОЛ") -> ЛОЛ | I14: =IF(H14="ЛОЛ",J14,H14) -> L | J14: =IF(S4="П",IF(((T4-U4)*(-1))<1.5,"L","HL"),"D") -> L | AB14: =W14*1+X14 -> 0
A15: 42049 | B15: CLU | C15: Оденсе | D15: Широки Бриег | E15: 1 : 1 | G15: 2 | H15: =IF(S5="В",IF(T5-U5>1.5,"EW","W"),"ЛОЛ") -> ЛОЛ | I15: =IF(H15="ЛОЛ",J15,H15) -> L | J15: =IF(S5="П",IF(((T5-U5)*(-1))<1.5,"L","HL"),"D") -> L | AB15: 0
A16: 42049 | B16: CLU | C16: Оденсе | D16: Сёнан | E16: 2 : 1 | G16: 3 | H16: =IF(S6="В",IF(T6-U6>1.5,"EW","W"),"ЛОЛ") -> W | I16: =IF(H16="ЛОЛ",J16,H16) -> W | J16: =IF(S6="П",IF(((T6-U6)*(-1))<1.5,"L","HL"),"D") -> D | AB16: 0
A17: 42043 | B17: CLU | C17: Оденсе | D17: Войводина | E17: 0 : 1 | G17: 4 | H17: =IF(S7="В",IF(T7-U7>1.5,"EW","W"),"ЛОЛ") -> ЛОЛ | I17: =IF(H17="ЛОЛ",J17,H17) -> L | J17: =IF(S7="П",IF(((T7-U7)*(-1))<1.5,"L","HL"),"D") -> L | AB17: 0
G18: 5 | H18: =IF(S8="В",IF(T8-U8>1.5,"EW","W"),"ЛОЛ") -> W | I18: =IF(H18="ЛОЛ",J18,H18) -> W | J18: =IF(S8="П",IF(((T8-U8)*(-1))<1.5,"L","HL"),"D") -> D | AB18: 0
AB19: 0
AB20: 0
AB21: 0
AB22: 0
AB23: 0
V24: 0
A25: К1 | B25: К2 | C25: Г1 | D25: Г2 | E25: 2.5 | F25: 3.5 | G25: ГДЕ | H25: ЗБ | I25: ПР | K25: ev | L25: dep | V25: 1 | Z25: =TREND(Z4:Z13,V24:V33*V13) -> 1.509090909 | AA25: =TREND(AA4:AA13,V24:V33*V13) -> 
A26: =C4 -> Hellas Verona | B26: =D4 -> Salernitana | C26: =VALUE(LEFT(E4,FIND(":",E4,1)-1)) -> 1 | D26: =L4 -> 0 | E26: =IF((C26+D26)>2.5,"UST","ALT") -> ALT | F26: =IF((C26+D26)>3.5,"ТБ","ТМ") -> ТМ | G26: =IF(A26=$A$3,"Дома","В гостях") -> Дома | H26: =IF(G26="Дома",C26,D26) -> 1 | I26: =IF(G26="Дома",D26,C26) -> 0 | K26: =IF(A26=$A$3,IF((C26+D26)>2.5,"UST","ALT")) -> ALT | L26: =IF(B26=$A$3,IF((C26+D26)>2.5,"UST","ALT")) -> FALSE | V26: 2
A27: Hellas Verona | B27: Lazio | C27: 1 | D27: =L5 -> 1 | E27: ALT | F27: ТМ | G27: Дома | H27: 1 | I27: 1 | K27: ALT | L27: FALSE | V27: 3 | Z27: =AVERAGE(Z25,AA25) -> 
A28: Udinese | B28: Hellas Verona | C28: 1 | D28: 1 | E28: ALT | F28: ТМ | G28: В гостях | H28: 1 | I28: 1 | K28: FALSE | L28: ALT | V28: 4
A29: Hellas Verona | B29: Lecce | C29: 2 | D29: 0 | E29: ALT | F29: ТМ | G29: Дома | H29: 2 | I29: 0 | K29: ALT | L29: FALSE | V29: 5
A30: Inter | B30: Hellas Verona | C30: 1 | D30: 0 | E30: ALT | F30: ТМ | G30: В гостях | H30: 0 | I30: 1 | K30: FALSE | L30: ALT | V30: 6
A31: Hellas Verona | B31: Cremonese | C31: 2 | D31: 0 | E31: ALT | F31: ТМ | G31: Дома | H31: 2 | I31: 0 | K31: ALT | L31: FALSE | V31: 7
A32: Torino | B32: Hellas Verona | C32: 1 | D32: 1 | E32: ALT | F32: ТМ | G32: В гостях | H32: 1 | I32: 1 | K32: FALSE | L32: ALT | V32: 8
A33: Hellas Verona | B33: Bologna | C33: 0 | D33: 1 | E33: ALT | F33: ТМ | G33: Дома | H33: 0 | I33: 1 | K33: ALT | L33: FALSE | V33: 9
A34: Hellas Verona | B34: Istra 1961 | C34: 0 | D34: 0 | E34: ALT | F34: ТМ | G34: Дома | H34: 0 | I34: 0 | K34: ALT | L34: FALSE
A35: Hellas Verona | B35: Spezia | C35: 1 | D35: 2 | E35: UST | F35: ТМ | G35: Дома | H35: 1 | I35: 2 | K35: UST | L35: FALSE

Sheet A15 (2) (hidden)
B1: Всего | I1: Дома | P1: На выезде
B2: Игр | C2: В | D2: Н | E2: П | F2: Забито | G2: Пропущено | H2: Очки | I2: Игр | J2: В | K2: Н | L2: П | M2: Забито | N2: Пропущено | O2: Очки | P2: Игр | Q2: В | R2: Н | S2: П | T2: Забито | U2: Пропущено | V2: Очки
A3: Хозяева | B3: ='Team 1'!V13 -> 10 | C3: ='Team 1'!W13 -> 1 | D3: ='Team 1'!X13 -> 6 | E3: ='Team 1'!Y13 -> 3 | F3: ='Team 1'!Z13 -> 5 | G3: ='Team 1'!AA13 -> 6 | H3: ='Team 1'!AB13 -> 9 | I3: ='Team 1'!AC13 -> 2 | J3: ='Team 1'!AD13 -> 1 | K3: ='Team 1'!AE13 -> 0 | L3: ='Team 1'!AF13 -> 1 | M3: ='Team 1'!AG13 -> 3 | N3: ='Team 1'!AH13 -> 2 | O3: ='Team 1'!AI13 -> 3 | P3: ='Team 1'!AJ13 -> 8 | Q3: ='Team 1'!AK13 -> 0 | R3: ='Team 1'!AL13 -> 6 | S3: ='Team 1'!AM13 -> 2 | T3: ='Team 1'!AN13 -> 2 | U3: ='Team 1'!AO13 -> 4 | V3: ='Team 1'!AP13 -> 6
A4: Гости | B4: ='Team 2'!V13 -> 10 | C4: ='Team 2'!W13 -> 2 | D4: ='Team 2'!X13 -> 7 | E4: ='Team 2'!Y13 -> 1 | F4: ='Team 2'!Z13 -> 5 | G4: ='Team 2'!AA13 -> 3 | H4: ='Team 2'!AB13 -> 13 | I4: ='Team 2'!AC13 -> 3 | J4: ='Team 2'!AD13 -> 2 | K4: ='Team 2'!AE13 -> 1 | L4: ='Team 2'!AF13 -> 0 | M4: ='Team 2'!AG13 -> 4 | N4: ='Team 2'!AH13 -> 1 | O4: ='Team 2'!AI13 -> 7 | P4: ='Team 2'!AJ13 -> 7 | Q4: ='Team 2'!AK13 -> 0 | R4: ='Team 2'!AL13 -> 6 | S4: ='Team 2'!AM13 -> 1 | T4: ='Team 2'!AN13 -> 1 | U4: ='Team 2'!AO13 -> 2 | V4: ='Team 2'!AP13 -> 6
B5: Забивают | E5: Пропускают | I5: Забивают | L5: Пропускают | O5: Забивают | R5: Пропускают | U5: 1 | V5: =J3/I3/(J3/I3+K3/I3+Q4/P4+R4/P4) -> 0.3684210526 | W5: =C3/B3/(C3/B3+D3/B3+D4/B4+C4/B4) -> 0.0625 | X5: =AVERAGE(V5,W5) -> 0.2154605263 | Y5: =X5-W5 -> 0.1529605263
A6: Хозяева | B6: =F3/B3 -> 0.5 | E6: =G3/B3 -> 0.6 | I6: =M3/I3 -> 1.5 | L6: =N3/I3 -> 1 | O6: =T3/P3 -> 0.25 | R6: =U3/P3 -> 0.5 | U6: X | V6: =(K3/I3+R4/P4)/(J3/I3+K3/I3+Q4/P4+R4/P4) -> 0.6315789474 | W6: =(D3/B3+D4/B4)/(C3/B3+D3/B3+D4/B4+C4/B4) -> 0.8125 | X6: =AVERAGE(V6,W6) -> 0.7220394737 | Y6: =X6-W6 -> -0.09046052632
A7: Гости | B7: =F4/B4 -> 0.5 | E7: =G4/B4 -> 0.3 | I7: =M4/I4 -> 1.333333333 | L7: =N4/I4 -> 0.3333333333 | O7: =T4/P4 -> 0.1428571429 | R7: =U4/P4 -> 0.2857142857 | U7: 2 | V7: =Q4/P4/(J3/I3+K3/I3+Q4/P4+R4/P4) -> 0 | W7: =C4/B4/(C3/B3+D3/B3+D4/B4+C4/B4) -> 0.125 | X7: =AVERAGE(V7,W7) -> 0.0625 | Y7: =X7-W7 -> -0.0625
A8: Тоталы | B8: Ср. тотал | D8: Мощь | F8: Рейтинг | H8: Счет | I8: Забит | J8: Проп | K8: Набр | L8: Потер
A9: Хозяева | B9: =AVERAGE(I6,B6)+AVERAGE(R7,E7)-AVERAGE(1.25,O9) -> 0.4303571429 | D9: =(I6-L6+B6-E6)/2 -> 0.2 | F9: =(O3/I3+V3/P3*1.1+I6-L6*1.1+O6*1.1-R6)/12.6 -> 0.1984126984 | H9: =B9 -> 0.4303571429 | I9: ='Team 1'!AG8*1.5+'Team 1'!AN8*2 -> 8.5 | J9: ='Team 1'!AH8*1.5+'Team 1'!AO8 -> 7 | K9: =I9/5 -> 1.7 | L9: =J9/5 -> 1.4 | M9: Ср. заб. | O9: =AVERAGE('Team 1'!T4:U13,'Team 2'!T4:U13) -> 0.475 | V9: =X5 -> 0.2154605263 | W9: =X6 -> 0.7220394737 | X9: =X7 -> 0.0625 | Y9: =Y5 -> 0.1529605263 | Z9: =Y6 -> -0.09046052632 | AA9: =Y7 -> -0.0625
A10: Гости | B10: =AVERAGE(O7,B7)+AVERAGE(L6,E6)-AVERAGE(1.25,O9) -> 0.2589285714 | D10: =(O7-R7+B7-E7)/2 -> 0.02857142857 | F10: =(O4/I4+V4/P4*1.1+I7-L7*1.1+O7*1.1-R7)/12.6 -> 0.3265306122 | H10: =B10 -> 0.2589285714 | I10: ='Team 2'!AG8*1.5+'Team 2'!AN8*2 -> 8 | J10: ='Team 2'!AH8*1.5+'Team 2'!AO8 -> 3.5 | K10: =I10/5 -> 1.6 | L10: =J10/5 -> 0.7 | V10: 1 | W10: X | X10: 2 | Y10: 1 | Z10: X | AA10: 2
A11: Общий | B11: =B9+B10 -> 0.6892857143 | I11: =((K9+L10)/2+(K10+L9)/2)/2 -> 1.35 | W11: =MAX(V9:X9) -> 0.7220394737 | Z11: =MAX(Y9:AA9) -> 0.1529605263
A12: Т(2.5) | B12: Т1 | C12: Т2 | D12: Мощь | F12: 1-Х-2 | I12: Рейтинг | W12: =HLOOKUP(W11,V9:X10,2,0) -> X | Z12: =HLOOKUP(Z11,Y9:AA10,2,0) -> 1
A13: =B11 -> 0.6892857143 | B13: =B9 -> 0.4303571429 | C13: =B10 -> 0.2589285714 | D13: =D9 -> 0.2 | E13: =D10 -> 0.02857142857 | F13: =AVERAGE(V5,W5) -> 0.2154605263 | G13: =AVERAGE(V6,W6) -> 0.7220394737 | H13: =AVERAGE(V7,W7) -> 0.0625 | I13: =F9 -> 0.1984126984 | J13: =F10 -> 0.3265306122 | P13: Прогноз "Точный счёт 1" | T13: Прогноз "Вероятность забитого гола" | X13: =CONCATENATE('A15 (2)'!Z12,"/",'A15 (2)'!W12) -> 1/X
A14: Прогноз "Могут забить"
A15: Итоги | B15: Т(2.5) | C15: Т1 | D15: Т2 | E15: Серия | G15: 1-Х-2 | J15: Рейтинг | L15: Фора | M15: 1Х | N15: Заб1 | O15: Заб2 | Q15: Счет | U15: Забьет гол
A16: 10 игр | B16: =A13 -> 0.6892857143 | C16: =B13 -> 0.4303571429 | D16: =C13 -> 0.2589285714 | G16: =F13 -> 0.2154605263 | H16: =G13 -> 0.7220394737 | I16: =H13 -> 0.0625 | J16: =I13 -> 0.1984126984 | K16: =J13 -> 0.3265306122 | L16: =C16-D16 -> 0.1714285714 | M16: =IF(G16-I16>0.23,"П1",IF(G16>I16,"1X",IF(I16-G16>0.24,"П2",IF(I16>G16,"Х2","")))) -> 1X | N16: =AVERAGE(I6,B6) -> 1 | O16: =AVERAGE(O7,B7) -> 0.3214285714 | Q16: =ROUND(AVERAGE('A15 (2)'!F21,'A15 (2)'!N16),0) -> 1 | R16: =ROUND(AVERAGE('A15 (2)'!G21,'A15 (2)'!O16),0) -> 0 | U16: =IF(N16>0.6,"Yes","No") -> Yes | V16: =IF(O16>0.6,"Yes","No") -> No
AC17: ВСЕГО | AE17: ДОМА | AG17: ВЫЕЗД
AC18: WDL | AD18: Заб/Проп | AE18: WDL | AF18: Заб/Проп | AG18: WDL | AH18: Заб/Проп
A19: Среднее | AC19: =CONCATENATE(C3,"/",D3,"/",E3) -> 1/6/3 | AD19: =CONCATENATE(F3,"/",G3) -> 5/6 | AE19: =CONCATENATE(J3,"/",K3,"/",L3) -> 1/0/1 | AF19: =CONCATENATE(M3,"/",N3) -> 3/2 | AG19: =CONCATENATE(Q3,"/",R3,"/",S3) -> 0/6/2 | AH19: =CONCATENATE(T3,"/",U3) -> 2/4
A20: Команда 1 | C20: Команда 2 | E20: Т | F20: Т1 | G20: Т2 | H20: Серия | J20: 1-Х-2 | M20: 1Х | N20: Х2 | O20: Фора | P20: 1Х2 | Q20: Заб 1 | R20: Заб 2 | S20: Тотал | T20: Счет | U20: ТБ(2.5) | AC20: =CONCATENATE(C4,"/",D4,"/",E4) -> 2/7/1 | AD20: =CONCATENATE(F4,"/",G4) -> 5/3 | AE20: =CONCATENATE(J4,"/",K4,"/",L4) -> 2/1/0 | AF20: =CONCATENATE(M4,"/",N4) -> 4/1 | AG20: =CONCATENATE(Q4,"/",R4,"/",S4) -> 0/6/1 | AH20: =CONCATENATE(T4,"/",U4) -> 1/2
A21: ='Team 1'!A3 -> Roma | C21: ='Team 2'!A3 -> Hellas Verona | E21: =B16 -> 0.6892857143 | F21: =C16 -> 0.4303571429 | G21: =D16 -> 0.2589285714 | H21: =CONCATENATE('Team 1'!S4," ",'Team 1'!S5," ",'Team 1'!S6," ",'Team 1'!S7," ",'Team 1'!S8) -> П Н В П П | I21: =CONCATENATE('Team 2'!S4," ",'Team 2'!S5," ",'Team 2'!S6," ",'Team 2'!S7," ",'Team 2'!S8) -> В Н Н В П | J21: =G16 -> 0.2154605263 | K21: =H16 -> 0.7220394737 | L21: =I16 -> 0.0625 | M21: =V5+V6/2 -> 0.6842105263 | N21: =V7+V6/2 -> 0.3157894737 | O21: =F21-G21 -> 0.1714285714 | P21: =IF(AND(J21-L21>0.27,'A15 (2)'!Q16>'A15 (2)'!R16),"П1",IF(AND(J21>L21,'A15 (2)'!Q16>='A15 (2)'!R16),"1X",IF(AND(L21-J21>0.12,'A15 (2)'!R16>0),"П2",IF(AND(L21>J21,'A15 (2)'!R16>='A15 (2)'!Q16),"Х2","")))) -> 1X | Q21: ='Team 1'!AQ13*1000+'Team 1'!AR13*100+'Team 1'!AS13*10+'Team 1'!AT13 -> 110 | R21: ='Team 2'!AQ13*1000+'Team 1'!AR13*100+'Team 1'!AS13*10+'Team 1'!AT13 -> 110 | S21: =IF(E21>2.6,IF('A15 (2)'!Q16+'A15 (2)'!R16>2,"ТБ(2)"," "),IF(E21<2.45,IF('A15 (2)'!Q16+'A15 (2)'!R16<3,"ТМ(3)"," ")," ")) -> ТМ(3) | T21: =CONCATENATE('A15 (2)'!Q16,":",'A15 (2)'!R16) -> 1:0 | U21: =(COUNTIF('Team 2'!BB4:BB13,">2,5")+COUNTIF('Team 1'!BB4:BB13,">2,5"))/COUNT('Team 1'!BB4:BB13,'Team 2'!BB4:BB13) -> 0.2
A24: Прогноз Тоталов ИТБ / ТБ / ТМ
A25: Анализ Целиком
A29: ТБ | C29: ТМ
A30: =A34+A38-0.5 -> 0.1 | C30: =C34+C38-1.5 -> 2.1
A33: ТБ1 | C33: ТМ1
A34: =ROUNDDOWN(F21,1) -> 0.4 | C34: =ROUNDUP((A34+1.5),1) -> 1.9
A37: ТБ2 | C37: ТМ2
A38: =ROUNDDOWN(G21,1) -> 0.2 | C38: =ROUNDUP((A38+1.5),1) -> 1.7

Sheet Foglio1 (hidden)
A1: D | B1: 24.04.2021 | C1: =DATI!C4 -> Salzburg | D1: =DATI!D4 -> 1 - 0 | E1: =DATI!E4 -> Roma | F1: =DATI!F4 -> 0-0 | G1: =CONCATENATE(LEFT(D1,2),":",RIGHT(D1,2)) -> 1 : 0 | H1: HOME | J1: D | K1: 29.04.2021 | L1: =DATI!C18 -> Hellas Verona | M1: =DATI!D18 -> 1 - 0 | N1: =DATI!E18 -> Salernitana | O1: =DATI!F18 -> 1-0 | P1: =CONCATENATE(LEFT(M1,2),":",RIGHT(M1,2)) -> 1 : 0 | Q1: AWAY
A2: D | B2: 21.04.2021 | C2: =DATI!C5 -> Lecce | D2: =DATI!D5 -> 1 - 1 | E2: =DATI!E5 -> Roma | F2: =DATI!F5 -> 1-1 | G2: =CONCATENATE(LEFT(D2,2),":",RIGHT(D2,2)) -> 1 : 1 | J2: D | K2: 25.04.2021 | L2: =DATI!C19 -> Hellas Verona | M2: =DATI!D19 -> 1 - 1 | N2: =DATI!E19 -> Lazio | O2: =DATI!F19 -> 0-1 | P2: 1 : 1
A3: D | B3: 17.04.2021 | C3: =DATI!C6 -> Roma | D3: =DATI!D6 -> 2 - 0 | E3: =DATI!E6 -> Empoli | F3: =DATI!F6 -> 2-0 | G3: 2 : 0 | J3: D | K3: 22.04.2021 | L3: =DATI!C20 -> Udinese | M3: =DATI!D20 -> 1 - 1 | N3: =DATI!E20 -> Hellas Verona | O3: =DATI!F20 -> 1-1 | P3: 1 : 1
A4: D | B4: 11.04.2021 | C4: =DATI!C7 -> Roma | D4: =DATI!D7 -> 1 - 2 | E4: =DATI!E7 -> Cremonese | F4: =DATI!F7 -> 0-1 | G4: 1 : 2 | J4: D | K4: 18.04.2021 | L4: =DATI!C21 -> Hellas Verona | M4: =DATI!D21 -> 2 - 0 | N4: =DATI!E21 -> Lecce | O4: =DATI!F21 -> 1-0 | P4: 2 : 0
A5: D | B5: 03.04.2021 | C5: =DATI!C8 -> Napoli | D5: =DATI!D8 -> 2 - 1 | E5: =DATI!E8 -> Roma | F5: =DATI!F8 -> 1-0 | G5: 2 : 1 | J5: D | K5: 15.04.2021 | L5: =DATI!C22 -> Inter | M5: =DATI!D22 -> 1 - 0 | N5: =DATI!E22 -> Hellas Verona | O5: =DATI!F22 -> 1-0 | P5: 1 : 0
A6: D | B6: 21.03.2021 | C6: =DATI!C9 -> Spezia | D6: =DATI!D9 -> 0 - 2 | E6: =DATI!E9 -> Roma | F6: =DATI!F9 -> 0-1 | G6: 0 : 2 | J6: D | K6: 11.04.2021 | L6: =DATI!C23 -> Hellas Verona | M6: =DATI!D23 -> 2 - 0 | N6: =DATI!E23 -> Cremonese | O6: =DATI!F23 -> 2-0 | P6: 2 : 0
A7: D | B7: 14.03.2021 | C7: =DATI!C10 -> Roma | D7: =DATI!D10 -> 2 - 0 | E7: =DATI!E10 -> Fiorentina | F7: =DATI!F10 -> 1-0 | G7: 2 : 0 | J7: D | K7: 08.04.2021 | L7: =DATI!C24 -> Torino | M7: =DATI!D24 -> 1 - 1 | N7: =DATI!E24 -> Hellas Verona | O7: =DATI!F24 -> 0-1 | P7: 1 : 1
A8: D | B8: 07.03.2021 | C8: =DATI!C11 -> Roma | D8: =DATI!D11 -> 1 - 0 | E8: =DATI!E11 -> Genoa | F8: =DATI!F11 -> 0-0 | G8: 1 : 0 | J8: D | K8: 03.04.2021 | L8: =DATI!C25 -> Hellas Verona | M8: =DATI!D25 -> 0 - 1 | N8: =DATI!E25 -> Bologna | O8: =DATI!F25 -> 0-1 | P8: 0 : 1
A9: D | B9: 03.03.2021 | C9: =DATI!C12 -> Milan | D9: =DATI!D12 -> 2 - 2 | E9: =DATI!E12 -> Roma | F9: =DATI!F12 -> 1-0 | G9: 2 : 2 | J9: D | K9: 21.03.2021 | L9: =DATI!C26 -> Hellas Verona | M9: =DATI!D26 -> 0 - 0 | N9: =DATI!E26 -> Istra 1961 | O9: =DATI!F26 -> 0-0 | P9: 0 : 0
A10: D | B10: 28.02.2021 | C10: =DATI!C13 -> Roma | D10: =DATI!D13 -> 1 - 0 | E10: =DATI!E13 -> Bologna | F10: =DATI!F13 -> 1-0 | G10: 1 : 0 | J10: D | K10: 18.03.2021 | L10: =DATI!C27 -> Hellas Verona | M10: =DATI!D27 -> 1 - 2 | N10: =DATI!E27 -> Spezia | O10: =DATI!F27 -> 1-0 | P10: 1 : 2

Sheet Analysis (2) (hidden)
G1: =IF(COUNTIF(C2:D11,C3)>COUNTIF(C2:D11,D3),C3,D3) -> Roma | K1: =IF(COUNTIF(C14:D23,C14)>COUNTIF(C14:D23,D14),C14,D14) -> Hellas Verona
A2: =MID(Foglio1!B1,1,20) -> 24.04.2021 | B2: DIV | C2: =MID(Foglio1!C1,1,20) -> Salzburg | D2: =MID(Foglio1!E1,1,20) -> Roma | E2: =MID(Foglio1!G1,1,20) -> 1 : 0
A3: =MID(Foglio1!B2,1,20) -> 21.04.2021 | B3: DIV | C3: =MID(Foglio1!C2,1,20) -> Lecce | D3: =MID(Foglio1!E2,1,20) -> Roma | E3: =MID(Foglio1!G2,1,20) -> 1 : 1 | G3: =IFERROR(система!BI159,"п") -> 0.8620689655 | H3: =IFERROR(система!AA137,"") -> - | K3: =IFERROR(система!AB137,"") -> Gol Atar | N3: =IFERROR(система!BI160,"п") -> 0.1379310345
A4: =MID(Foglio1!B3,1,20) -> 17.04.2021 | B4: DIV | C4: =MID(Foglio1!C3,1,20) -> Roma | D4: =MID(Foglio1!E3,1,20) -> Empoli | E4: =MID(Foglio1!G3,1,20) -> 2 : 0 | G4: 1 | J4: X | L4: 2
A5: =MID(Foglio1!B4,1,20) -> 11.04.2021 | B5: DIV | C5: =MID(Foglio1!C4,1,20) -> Roma | D5: =MID(Foglio1!E4,1,20) -> Cremonese | E5: =MID(Foglio1!G4,1,20) -> 1 : 2 | G5: =система!AX55 -> 0.1911323509 | J5: =система!AX56 -> 0.3626046232 | L5: =система!AX57 -> 0.4462630259 | O5: Alt-Üst Seçimi | S5: 1.5
A6: =MID(Foglio1!B5,1,20) -> 03.04.2021 | B6: DIV | C6: =MID(Foglio1!C5,1,20) -> Napoli | D6: =MID(Foglio1!E5,1,20) -> Roma | E6: =MID(Foglio1!G5,1,20) -> 2 : 1
A7: =MID(Foglio1!B6,1,20) -> 21.03.2021 | B7: DIV | C7: =MID(Foglio1!C6,1,20) -> Spezia | D7: =MID(Foglio1!E6,1,20) -> Roma | E7: =MID(Foglio1!G6,1,20) -> 0 : 2 | I7: KARŞILIKLI GOL | N7: TAKIMLAR VE SKOR TAHMİNİ
A8: =MID(Foglio1!B7,1,20) -> 14.03.2021 | B8: DIV | C8: =MID(Foglio1!C7,1,20) -> Roma | D8: =MID(Foglio1!E7,1,20) -> Fiorentina | E8: =MID(Foglio1!G7,1,20) -> 2 : 0 | I8: =IFERROR(IF(система!AF74>12,"KG-VAR",IF(система!AF74<5,"KG-YOK","-")),"") -> - | N8: =G1 -> Roma | Q8: =K1 -> Hellas Verona | T8: Finale | V8: =система!AR63 -> 0-0 | W8: =система!AS63 -> 0.1790980849
A9: =MID(Foglio1!B8,1,20) -> 07.03.2021 | B9: DIV | C9: =MID(Foglio1!C8,1,20) -> Roma | D9: =MID(Foglio1!E8,1,20) -> Genoa | E9: =MID(Foglio1!G8,1,20) -> 1 : 0 | N9: =система!BK52 -> 0.5621760185 | O9: =система!DY49/0.36-1 -> 0.5616000515 | P9: 0 | Q9: 0 | R9: =система!EA49/0.44-1 -> -0.2759543478 | S9: =система!BM52 -> 0.3185800869 | T9: Finale | V9: =система!AR68 -> 1-0 | W9: =система!AS68 -> 0.1031604969
A10: =MID(Foglio1!B9,1,20) -> 03.03.2021 | B10: DIV | C10: =MID(Foglio1!C9,1,20) -> Milan | D10: =MID(Foglio1!E9,1,20) -> Roma | E10: =MID(Foglio1!G9,1,20) -> 2 : 2 | N10: =система!BK53 -> 0.3238133867 | O10: =система!DY50/0.32-1 -> 0.01191683339 | P10: 1 | Q10: 1 | R10: =система!EA50/0.33-1 -> 0.1044109681 | S10: =система!BM53 -> 0.3644556195 | T10: Finale | V10: =система!AR73 -> 2-0 | W10: =система!AS73 -> 0.0297102231
A11: =MID(Foglio1!B10,1,20) -> 28.02.2021 | B11: DIV | C11: =MID(Foglio1!C10,1,20) -> Roma | D11: =MID(Foglio1!E10,1,20) -> Bologna | E11: =MID(Foglio1!G10,1,20) -> 1 : 0 | I11: TOPLAM ALT/ÜST | N11: =система!BK54 -> 0.09325825537 | O11: =система!DY51/0.24-1 -> -0.611423936 | P11: 2 | Q11: 2 | R11: =система!EA51/0.2-1 -> 0.04234307168 | S11: =система!BM54 -> 0.2084686143 | T11: Finale | V11: =система!AR78 -> 0-1 | W11: =система!AS78 -> 0.2048882091
I12: =IFERROR(система!L95,"") -> Alt 44682 | K12: =IFERROR(система!K94,"п") -> 99% | N12: =система!BK55 -> 0.01790558503 | O12: =система!DY52/0.18-1 -> -0.9005245276 | P12: 3 | Q12: 3 | R12: =система!EA52/0.15-1 -> -0.470026456 | S12: =система!BM55 -> 0.0794960316 | T12: Finale | V12: =система!AR83 -> 0-2 | W12: =система!AS83 -> 0.1171960556
N13: =система!BK56 -> 0.002578404244 | O13: =система!DY53/0.2-1 -> -0.9871079788 | P13: 4 | Q13: 4 | R13: =система!EA53/0.1-1 -> -0.7726413496 | S13: =система!BM56 -> 0.02273586504 | T13: Finale | V13: =система!AR88 -> 1-1 | W13: =система!AS88 -> 0.1180156084
A14: =MID(Foglio1!K1,1,20) -> 29.04.2021 | B14: DIV | C14: =MID(Foglio1!L1,1,20) -> Hellas Verona | D14: =MID(Foglio1!N1,1,20) -> Salernitana | E14: =MID(Foglio1!P1,1,20) -> 1 : 0 | N14: =система!BK57 -> 0.0002970321689 | O14: =система!DY54/0.1-1 -> -0.9970296783 | P14: 5 | Q14: 5 | R14: =система!EA54/0.1-1 -> -0.9479803408 | S14: =система!BM57 -> 0.005201965921 | T14: Finale | V14: =система!AR94 -> 2-1 | W14: =система!AS94 -> 0.03398849523
A15: =MID(Foglio1!K2,1,20) -> 25.04.2021 | B15: DIV | C15: =MID(Foglio1!L2,1,20) -> Hellas Verona | D15: =MID(Foglio1!N2,1,20) -> Lazio | E15: =MID(Foglio1!P2,1,20) -> 1 : 1 | I15: TOPLAM GOL | N15: =система!BK58 -> 2.851508822e-05 | O15: =система!DY55/0.1-1 -> -0.9997148491 | P15: 6 | Q15: 6 | R15: =система!EA55/0.1-1 -> -0.990081585 | S15: =система!BM58 -> 0.0009918415022 | T15: Finale | V15: =система!AR99 -> 1-2 | W15: =система!AS99 -> 0.06750492803
A16: =MID(Foglio1!K3,1,20) -> 22.04.2021 | B16: DIV | C16: =MID(Foglio1!L3,1,20) -> Udinese | D16: =MID(Foglio1!N3,1,20) -> Hellas Verona | E16: =MID(Foglio1!P3,1,20) -> 1 : 1 | I16: =IFERROR(система!AL129,"") -> TG 2 Gol | N16: =система!BK59 -> 2.346384402e-06 | O16: =система!DY56/0.1-1 -> -0.9999765362 | P16: 7 | Q16: 7 | R16: =система!EA56/0.1-1 -> -0.9983790476 | S16: =система!BM59 -> 0.0001620952398 | T16: Finale | V16: =система!AR104 -> 2-2 | W16: =система!AS104 -> 0.01944141927
A17: =MID(Foglio1!K4,1,20) -> 18.04.2021 | B17: DIV | C17: =MID(Foglio1!L4,1,20) -> Hellas Verona | D17: =MID(Foglio1!N4,1,20) -> Lecce | E17: =MID(Foglio1!P4,1,20) -> 2 : 0 | N17: Muhtemel Skor
A18: =MID(Foglio1!K5,1,20) -> 15.04.2021 | B18: DIV | C18: =MID(Foglio1!L5,1,20) -> Inter | D18: =MID(Foglio1!N5,1,20) -> Hellas Verona | E18: =MID(Foglio1!P5,1,20) -> 1 : 0 | N18: =IFERROR(система!BI159,"п") -> 0.8620689655 | O18: Poisson Olasılığı | S18: =IFERROR(система!BI160,"п") -> 0.1379310345
A19: =MID(Foglio1!K6,1,20) -> 11.04.2021 | B19: DIV | C19: =MID(Foglio1!L6,1,20) -> Hellas Verona | D19: =MID(Foglio1!N6,1,20) -> Cremonese | E19: =MID(Foglio1!P6,1,20) -> 2 : 0 | O19: =IFERROR(J21,"") -> 0 - 1
A20: =MID(Foglio1!K7,1,20) -> 08.04.2021 | B20: DIV | C20: =MID(Foglio1!L7,1,20) -> Torino | D20: =MID(Foglio1!N7,1,20) -> Hellas Verona | E20: =MID(Foglio1!P7,1,20) -> 1 : 1
A21: =MID(Foglio1!K8,1,20) -> 03.04.2021 | B21: DIV | C21: =MID(Foglio1!L8,1,20) -> Hellas Verona | D21: =MID(Foglio1!N8,1,20) -> Bologna | E21: =MID(Foglio1!P8,1,20) -> 0 : 1 | J21: =CONCATENATE(O30," - ",Q30) -> 0 - 1 | O21: < Ev - Kazanma İhtimali - Dep >
A22: =MID(Foglio1!K9,1,20) -> 21.03.2021 | B22: DIV | C22: =MID(Foglio1!L9,1,20) -> Hellas Verona | D22: =MID(Foglio1!N9,1,20) -> Istra 1961 | E22: =MID(Foglio1!P9,1,20) -> 0 : 0 | O22: =тс!N6 -> Under 3.5
A23: =MID(Foglio1!K10,1,20) -> 18.03.2021 | B23: DIV | C23: =MID(Foglio1!L10,1,20) -> Hellas Verona | D23: =MID(Foglio1!N10,1,20) -> Spezia | E23: =MID(Foglio1!P10,1,20) -> 1 : 2
O30: =IF(O9=(MAX(O9:O16)),"0",IF(O10=(MAX(O9:O16)),"1",IF(O11=(MAX(O9:O16)),"2",IF(O12=(MAX(O9:O16)),"3",IF(O13=(MAX(O9:O16)),"4",IF(O14=(MAX(O9:O16)),"5",IF(O15=(MAX(O9:O16)),"6",IF(O16=(MAX(O9:O16)),"7")))))))) -> 0 | Q30: =IF(R9=(MAX(R9:R16)),"0",IF(R10=(MAX(R9:R16)),"1",IF(R11=(MAX(R9:R16)),"2",IF(R12=(MAX(R9:R16)),"3",IF(R13=(MAX(R9:R16)),"4",IF(R14=(MAX(R9:R16)),"5",IF(R15=(MAX(R9:R16)),"6",IF(R16=(MAX(R9:R16)),"7")))))))) -> 1

Sheet тс (hidden)
K2: Home | L2: Away | N2: Total
B3: 1 | C3: =система!L440 -> 1 | D3: =система!M440 -> 0 | F3: 1 | G3: =система!L457 -> 1 | H3: =система!M457 -> 2
B4: 2 | C4: =система!L439 -> 2 | D4: =система!M439 -> 2 | F4: 2 | G4: =система!L456 -> 0 | H4: =система!M456 -> 0 | K4: =IF(K16>=7,"7",IF(K16>=6,"6",IF(K16>=5,"5",IF(K16>=4,"4",IF(K16>=3,"3",IF(K16>=2,"2",IF(K16>=1,"1","0"))))))) -> 0 | L4: =IF(L16>=7,"7",IF(L16>=6,"6",IF(L16>=5,"5",IF(L16>=4,"4",IF(L16>=3,"3",IF(L16>=2,"2",IF(L16>=1,"1","0"))))))) -> 1
B5: 3 | C5: =система!L438 -> 1 | D5: =система!M438 -> 0 | F5: 3 | G5: =система!L455 -> 0 | H5: =система!M455 -> 1 | S5: =Sheet6!D2 -> 0.3 | T5: =Sheet6!E2 -> 0.15
B6: 4 | C6: =система!L437 -> 2 | D6: =система!M437 -> 0 | F6: 4 | G6: =система!L454 -> 1 | H6: =система!M454 -> 1 | N6: =IF(N16>=3.5,"Over 2.5",IF(N16>=2.5,"Over 1.5",IF(N16<=0.5,"Under 2.5",IF(N16<2,"Under 3.5","NB")))) -> Under 3.5
B7: 5 | C7: =система!L436 -> 2 | D7: =система!M436 -> 0 | F7: 5 | G7: =система!L453 -> 2 | H7: =система!M453 -> 0 | S7: =K13-S5 -> 0.9692307692 | T7: =L13-T5 -> 0.2730769231
B8: 6 | C8: =система!L435 -> 1 | D8: =система!M435 -> 2 | F8: 6 | G8: =система!L452 -> 0 | H8: =система!M452 -> 1 | S8: =K13-T5 -> 1.119230769 | T8: =L13-S5 -> 0.1230769231
B9: 7 | C9: =система!L434 -> 1 | D9: =система!M434 -> 2 | F9: 7 | G9: =система!L451 -> 2 | H9: =система!M451 -> 0 | S9: =K13+T5 -> 1.419230769 | T9: =L13+S5 -> 0.7230769231
B10: 8 | C10: =система!L433 -> 2 | D10: =система!M433 -> 0 | F10: 8 | G10: =система!L450 -> 1 | H10: =система!M450 -> 1 | M10: =AVERAGE(M12,K13) -> 1.118047009 | N10: =AVERAGE(N12,L13) -> 0.6626314103 | S10: =K13+S5 -> 1.569230769 | T10: =L13+T5 -> 0.5730769231
B11: 9 | C11: =система!L432 -> 1 | D11: =система!M432 -> 1 | F11: 9 | G11: =система!L449 -> 1 | H11: =система!M449 -> 1
B12: 10 | C12: =система!L431 -> 0 | D12: =система!M431 -> 1 | F12: 10 | G12: =система!L448 -> 1 | H12: =система!M448 -> 0 | M12: =AVERAGE(K16,K13,K14,K15) -> 0.9668632479 | N12: =AVERAGE(L16,L13,L14,L15) -> 0.9021858974 | O12: =AVERAGE(N13:N16) -> 1.869049145 | P12: =SUM(M12:N12) -> 1.869049145
B13: 11 | C13: =FORECAST(B13,C3:C12,B3:B12) -> 0.8 | D13: =FORECAST(B13,D3:D12,B3:B12) -> 1.133333333 | F13: 11 | G13: =FORECAST(F13,G3:G12,F3:F12) -> 1.333333333 | H13: =FORECAST(F13,H3:H12,F3:F12) -> 0.2666666667 | K13: =INFO!D21 -> 1.269230769 | L13: =INFO!D22 -> 0.4230769231 | N13: =SUM(K13:L13) -> 1.692307692 | O13: =AVERAGE(N1:N13) -> 1.085708333 | P13: 5
K14: =система!CZ53 -> 0.576 | L14: =система!CZ54 -> 1.144 | N14: =SUM(K14:L14) -> 1.72
K15: =система!AZ430 -> 1.488888889 | L15: =система!BF430 -> 0.8083333333 | N15: 2.297222222
K16: =AVERAGE(C13,H13) -> 0.5333333333 | L16: =AVERAGE(D13,G13) -> 1.233333333 | N16: =SUM(K16:L16) -> 1.766666667
K17: =OODDSS!CO3 -> 0.4 | L17: =OODDSS!CP3 -> 0.75 | N17: =SUM(K17:L17) -> 1.15
I18: =система!A11 -> 2.147219129 | J18: =система!B11 -> 2.14805339 | K18: =AVERAGE(S10,S7,S8,S9) -> 1.269230769 | L18: =AVERAGE(T10,T7,T8,T9) -> 0.4230769231 | N18: =SUM(K18:L18) -> 1.692307692 | P18: =AVERAGE(K13:K18) -> 0.9227806268 | Q18: =AVERAGE(L13:L18) -> 0.7969700855 | S18: =SUM(P18:Q18) -> 1.719750712

Sheet система (hidden)
A2: Jogos | B2: Venceu | C2: Empatou | D2: Perdeu | E2: Marcou | F2: Sofreu
A3: 15 | B3: =PAST!S50 -> 7 | C3: =PAST!W50 -> 4 | D3: =PAST!X50 -> 4 | E3: =PAST!Y50 -> 20 | F3: =PAST!Z50 -> 14
A4: ORTALAMA | B4: =B3/$A$3 -> 0.4666666667 | C4: =C3/$A$3 -> 0.2666666667 | D4: =D3/$A$3 -> 0.2666666667 | E4: =E3/$A$3 -> 1.333333333 | F4: =F3/$A$3 -> 0.9333333333
A5: VARYANS | B5: =B3-B4 -> 6.533333333 | C5: =C3-C4 -> 3.733333333 | D5: =D3-D4 -> 3.733333333 | E5: =E3-E4 -> 18.66666667 | F5: =F3-F4 -> 13.06666667
B6: =POWER(B5,2) -> 42.68444444 | C6: =POWER(C5,2) -> 13.93777778 | D6: 13.93777778 | E6: =POWER(E5,2) -> 348.4444444 | F6: 170.7377778
B7: =(B6/($A$3-1)) -> 3.048888889 | C7: =(C6/($A$3-1)) -> 0.9955555556 | D7: 0.9955555556 | E7: =(E6/($A$3-1)) -> 24.88888889 | F7: 12.19555556
B8: =SQRT(B7) -> 1.74610678 | C8: =SQRT(C7) -> 0.9977753031 | D8: 0.9977753031 | E8: =SQRT(E7) -> 4.988876516 | F8: =SQRT(F7) -> 3.492213561
A10: =IF(A11>=7,"7",IF(A11>=6,"6",IF(A11>=5,"5",IF(A11>=4,"4",IF(A11>=3,"3",IF(A11>=2,"2",IF(A11>=1,"1","0"))))))) -> 2 | B10: =IF(B11>=7,"7",IF(B11>=6,"6",IF(B11>=5,"5",IF(B11>=4,"4",IF(B11>=3,"3",IF(B11>=2,"2",IF(B11>=1,"1","0"))))))) -> 2 | C10: =IF(A11>1,"1","0") -> 1 | D10: =IF(B11>1,"1","0") -> 1 | E10: =IF(C11>1,"KG VAR","KG YOK") -> KG VAR
A11: =(E8+E20)/4 -> 2.147219129 | B11: =(F8+F20)/4 -> 2.14805339 | C11: =C10+D10 -> 2
A13: Junior
A14: Jogos | B14: Venceu | C14: Empatou | D14: Perdeu | E14: Marcou | F14: Sofreu
A15: 10 | B15: =PAST!AD50 -> 3 | C15: =PAST!AE50 -> 4 | D15: =PAST!AF50 -> 8 | E15: =PAST!AG50 -> 12 | F15: =PAST!AH50 -> 17
A16: ORTALAMA | B16: =B15/$A$15 -> 0.3 | C16: =C15/$A$15 -> 0.4 | D16: =D15/$A$15 -> 0.8 | E16: =E15/$A$15 -> 1.2 | F16: =F15/$A$15 -> 1.7
A17: VARYANS | B17: =B15-B16 -> 2.7 | C17: =C15-C16 -> 3.6 | D17: =D15-D16 -> 7.2 | E17: =E15-E16 -> 10.8 | F17: =F15-F16 -> 15.3
B18: =POWER(B17,2) -> 7.29 | C18: =POWER(C17,2) -> 12.96 | D18: 51.84 | E18: 116.64 | F18: 234.09
B19: =(B18/($A$15-1)) -> 0.81 | C19: =(C18/($A$15-1)) -> 1.44 | D19: =(D18/($A$15-1)) -> 5.76 | E19: =(E18/($A$15-1)) -> 12.96 | F19: =(F18/($A$15-1)) -> 26.01
B20: =SQRT(B19) -> 0.9 | C20: =SQRT(C19) -> 1.2 | D20: 2.4 | E20: 3.6 | F20: 5.1
DY49: =BK52 -> 0.5621760185 | EA49: =BM52 -> 0.3185800869
P50: Команда1 | Q50: Команда2 | R50: Голы1 | S50: Голы2 | T50: Где играла | U50: Результат | V50: Забито | W50: Проп | X50: В | Y50: П | Z50: ТБ 2,5 | AP50: MONDO | BP50: MONDO | CW50: RISULTATO ESATTO CAMPIONATO | DY50: 0.3238133867 | EA50: 0.3644556195
L51: =VALUE('Analysis (2)'!S5) -> 44682 | N51: =IF(SUM(R51:S51)>L51,1,0) -> 0 | P51: ='Analysis (2)'!C2 -> Salzburg | Q51: ='Analysis (2)'!D2 -> Roma | R51: =VALUE(LEFT('Analysis (2)'!E2,FIND(":",'Analysis (2)'!E2,1)-1)) -> 1 | S51: =VALUE(LEFT(RIGHT('Analysis (2)'!E2,LEN('Analysis (2)'!E2)-FIND(":",'Analysis (2)'!E2,1)),4)) -> 0 | T51: =IF(P51='Analysis (2)'!$G$1,"Дома","В гостях") -> В гостях | U51: =IF(T51="Дома",IF(R51>S51,"В",IF(R51=S51,"Н","П")),IF(R51<S51,"В",IF(R51=S51,"Н","П"))) -> П | V51: =IFERROR(IF(T51="Дома",R51,S51),"") -> 0 | W51: =IFERROR(IF(T51="Дома",S51,R51),"") -> 1 | X51: =IF(U51="В",1,0) -> 0 | Y51: =IF(U51="П",1,0) -> 1 | Z51: =IF(SUM(R51:S51)>2.5,1,"") ->  | AA51: =IF(R51>0,1,0) -> 1 | AB51: 0 | AC51: =IF(AA51+AB51=2,1,IF(AA51+AB51=1,0)) -> 0 | AD51: =IF(T51="Дома",AC51,0) -> 0 | AE51: =IF(V51>2,0.5,0) -> 0 | AF51: 0 | AG51: =IF(R51+S51=0,-2,0) -> 0 | AH51: =IF(SUM(V51:W53)>7.5,1,0) -> 0 | BC51: 1 | BE51: X | BG51: 2 | BJ51: =AP52 -> Roma | BL51: =AP53 -> Hellas Verona | BP51: CAMPIONATO | BS51: TOTALE | BY51: CASA | CE51: FUORI | CM51: CASA | CO51: FUORI | CQ51: COEFFICIENTE FORMA | DY51: 0.09325825537 | EA51: 0.2084686143
N52: =IF(SUM(R52:S52)>L51,1,0) -> 0 | P52: ='Analysis (2)'!C3 -> Lecce | Q52: ='Analysis (2)'!D3 -> Roma | R52: =VALUE(LEFT('Analysis (2)'!E3,FIND(":",'Analysis (2)'!E3,1)-1)) -> 1 | S52: =VALUE(LEFT(RIGHT('Analysis (2)'!E3,LEN('Analysis (2)'!E3)-FIND(":",'Analysis (2)'!E3,1)),4)) -> 1 | T52: =IF(P52='Analysis (2)'!$G$1,"Дома","В гостях") -> В гостях | U52: Н | V52: 1 | W52: 1 | X52: 0 | Y52: 0 | AA52: 1 | AB52: 1 | AC52: 1 | AD52: 0 | AE52: 0 | AF52: 0 | AG52: 0 | AH52: =IF(SUM(Z51:Z53)>1.5,"1","0") -> 0 | AO52: Media gol fatti da squadra in casa | AP52: =DP66 -> Roma | AR52: =CM53 -> 1 | AT52: =DT66 -> 3.6 | AW52: PROBABILITA' UNDER | AX52: =AS63+AS68+AS73+AS78+AS83+AS88 -> 0.752068678 | BC52: =AX55 -> 0.1911323509 | BE52: =AX56 -> 0.3626046232 | BG52: =AX57 -> 0.4462630259 | BJ52: 0 | BK52: =DG59 -> 0.5621760185 | BL52: 0 | BM52: =DI59 -> 0.3185800869 | BS52: PA | BT52: V | BU52: N | BV52: P | BW52: GF | BX52: GS | BY52: PA | BZ52: V | CA52: N | CB52: P | CC52: GF | CD52: GS | CE52: PA | CF52: V | CG52: N | CH52: P | CI52: GF | CJ52: GS | CK52: DR | CL52: Pti | CN52: µ GS | CO52: µ GF | CP52: µ GS | DB52: UNDER | DC52: =(DB84+DB86+DB118+DB116+DB123+DB124)*100%/(DB59+DB60+DB61+DB63+DB62+DB64+DB65+DB66+DB67+DB68+DB69+DB70+DB71+DB72+DB73+DB74+DB75+DB76+DB77+DB78+DB79+DB80+DB81++DB82+DB83+DB84+DB85+DB86+DB91+DB92+DB93+DB94+DB95+DB96+DB97+DB98+DB99+DB100+DB101+DB102+DB103+DB104+DB105+DB106+DB107+DB108+DB109+DB110+DB111+DB112+DB113+DB114+DB115+DB116+DB117+DB118+DB123+DB124+DB125+DB126+DB127+DB128+DB129) -> 0.75195463 | DY52: 0.01790558503 | EA52: 0.0794960316
N53: =IF(SUM(R53:S53)>L51,1,0) -> 0 | P53: ='Analysis (2)'!C4 -> Roma | Q53: ='Analysis (2)'!D4 -> Empoli | R53: =VALUE(LEFT('Analysis (2)'!E4,FIND(":",'Analysis (2)'!E4,1)-1)) -> 2 | S53: =VALUE(LEFT(RIGHT('Analysis (2)'!E4,LEN('Analysis (2)'!E4)-FIND(":",'Analysis (2)'!E4,1)),4)) -> 0 | T53: =IF(P53='Analysis (2)'!$G$1,"Дома","В гостях") -> Дома | U53: В | V53: 2 | W53: 0 | X53: 1 | Y53: 0 | AA53: 1 | AB53: 0 | AC53: 0 | AD53: 0 | AE53: 0 | AF53: 0 | AG53: 0 | AO53: Media gol subiti da squadra in trasferta | AP53: =DP67 -> Hellas Verona | AR53: =CP54 -> 0.6 | AT53: =DT67 -> 5.2 | AW53: PROBABILITA' OVER | AX53: =100%-AX52 -> 0.247931322 | BJ53: 1 | BK53: 0.3238133867 | BL53: 1 | BM53: 0.3644556195 | BP53: 1 | BR53: =DP66 -> Roma | BY53: 5 | CC53: =DR66 -> 5 | CD53: =DS66 -> 6 | CE53: 5 | CM53: =CC53/BY53 -> 1 | CN53: =CD53/BY53 -> 1.2 | CO53: =CI53/CE53 -> 0 | CP53: =CJ53/CE53 -> 0 | CQ53: 5.8 | CW53: =DP66 -> Roma | CZ53: =((DH53+DI53)/2)*DK53 -> 0.576 | DH53: =AR52 -> 1 | DI53: =AR53 -> 0.6 | DJ53: =AT52 -> 3.6 | DK53: =DJ53/5 -> 0.72 | DY53: 0.002578404244 | EA53: 0.02273586504
N54: =IF(SUM(R54:S54)>L51,1,0) -> 0 | P54: ='Analysis (2)'!C5 -> Roma | Q54: ='Analysis (2)'!D5 -> Cremonese | R54: =VALUE(LEFT('Analysis (2)'!E5,FIND(":",'Analysis (2)'!E5,1)-1)) -> 1 | S54: =VALUE(LEFT(RIGHT('Analysis (2)'!E5,LEN('Analysis (2)'!E5)-FIND(":",'Analysis (2)'!E5,1)),4)) -> 2 | T54: =IF(P54='Analysis (2)'!$G$1,"Дома","В гостях") -> Дома | U54: П | V54: 1 | W54: 2 | X54: 0 | Y54: 1 | Z54: 1 | AA54: 1 | AB54: 1 | AC54: 1 | AD54: 1 | AE54: 0 | AF54: 0 | AG54: 0 | AO54: Media gol fatti da squadra in trasferta | AP54: =AP53 -> Hellas Verona | AR54: =CO54 -> 1 | BJ54: 2 | BK54: 0.09325825537 | BL54: 2 | BM54: 0.2084686143 | BP54: 2 | BR54: =DP67 -> Hellas Verona | BY54: 5 | CE54: 5 | CI54: =DR67 -> 5 | CJ54: =DS67 -> 3 | CM54: 0 | CN54: 0 | CO54: 1 | CP54: 0.6 | CQ54: 5 | CW54: =DP67 -> Hellas Verona | CZ54: =((DH54+DI54)/2)*DK54 -> 1.144 | DB54: OVER | DC54: =100%-DC52 -> 0.24804537 | DH54: =AR54 -> 1 | DI54: =AR55 -> 1.2 | DJ54: =AT53 -> 5.2 | DK54: =DJ54/5 -> 1.04 | DY54: 0.0002970321689 | EA54: 0.005201965921
N55: =IF(SUM(R55:S55)>L51,1,0) -> 0 | P55: ='Analysis (2)'!C6 -> Napoli | Q55: ='Analysis (2)'!D6 -> Roma | R55: =VALUE(LEFT('Analysis (2)'!E6,FIND(":",'Analysis (2)'!E6,1)-1)) -> 2 | S55: =VALUE(LEFT(RIGHT('Analysis (2)'!E6,LEN('Analysis (2)'!E6)-FIND(":",'Analysis (2)'!E6,1)),4)) -> 1 | T55: =IF(P55='Analysis (2)'!$G$1,"Дома","В гостях") -> В гостях | U55: П | V55: 1 | W55: 2 | X55: 0 | Y55: 1 | Z55: 1 | AA55: 1 | AB55: 1 | AC55: 1 | AD55: 0 | AE55: 0 | AF55: 0 | AG55: 0 | AO55: Media gol subiti da squadra in casa | AP55: =AP52 -> Roma | AR55: =CN53 -> 1.2 | AW55: PROBABILITA' 1 | AX55: =(AS68+AS73+AS94)*100%/(AS63+AS68+AS73+AS78+AS83+AS88+AS94+AS99+AS104) -> 0.1911323509 | BJ55: 3 | BK55: 0.01790558503 | BL55: 3 | BM55: 0.0794960316 | BP55: 3 | BY55: 5 | CE55: 5 | CM55: 0 | CN55: 0 | CO55: 0 | CP55: 0 | DY55: 2.851508822e-05 | EA55: 0.0009918415022
N56: =IF(SUM(R56:S56)>L51,1,0) -> 0 | P56: ='Analysis (2)'!C7 -> Spezia | Q56: ='Analysis (2)'!D7 -> Roma | R56: =VALUE(LEFT('Analysis (2)'!E7,FIND(":",'Analysis (2)'!E7,1)-1)) -> 0 | S56: =VALUE(LEFT(RIGHT('Analysis (2)'!E7,LEN('Analysis (2)'!E7)-FIND(":",'Analysis (2)'!E7,1)),4)) -> 2 | T56: =IF(P56='Analysis (2)'!$G$1,"Дома","В гостях") -> В гостях | U56: В | V56: 2 | W56: 0 | X56: 1 | Y56: 0 | AA56: 0 | AB56: 1 | AC56: 0 | AD56: 0 | AE56: 0 | AF56: 0 | AG56: 0 | AW56: PROBABILITA' X | AX56: =(AS63+AS88+AS104)*100%/(AS63+AS68+AS73+AS78+AS83+AS88+AS94+AS99+AS104) -> 0.3626046232 | BC56: =IF(BC52>=48%,"SCOMMETTI!","") ->  | BE56: =IF(BE52>=34%,"SCOMMETTI!","") -> SCOMMETTI! | BG56: =IF(BG52>=34%,"SCOMMETTI!","") -> SCOMMETTI! | BJ56: 4 | BK56: 0.002578404244 | BL56: 4 | BM56: 0.02273586504 | BP56: 4 | BY56: 5 | CE56: 5 | CM56: 0 | CN56: 0 | CO56: 0 | CP56: 0 | DP56: UNDER/OVER 2,5 | DY56: 2.346384402e-06 | EA56: 0.0001620952398
N57: =IF(SUM(R57:S57)>L51,1,0) -> 0 | P57: ='Analysis (2)'!C8 -> Roma | Q57: ='Analysis (2)'!D8 -> Fiorentina | R57: =VALUE(LEFT('Analysis (2)'!E8,FIND(":",'Analysis (2)'!E8,1)-1)) -> 2 | S57: =VALUE(LEFT(RIGHT('Analysis (2)'!E8,LEN('Analysis (2)'!E8)-FIND(":",'Analysis (2)'!E8,1)),4)) -> 0 | T57: =IF(P57='Analysis (2)'!$G$1,"Дома","В гостях") -> Дома | U57: В | V57: 2 | W57: 0 | X57: 1 | Y57: 0 | AC57: =SUM(AC51:AC56) -> 3 | AD57: =SUM(AD51:AD56) -> 1 | AE57: =SUM(AE51:AE56) -> 0 | AF57: =SUM(AF51:AF56) -> 0 | AG57: =SUM(AG51:AG56) -> 0 | AP57: Media Gol squadra in casa | AR57: =AY60*BA60 -> 0.576 | AW57: PROBABILITA' 2 | AX57: =100%-AX55-AX56 -> 0.4462630259 | BJ57: 5 | BK57: 0.0002970321689 | BL57: 5 | BM57: 0.005201965921 | BP57: 5 | BY57: 5 | CE57: 5 | CM57: 0 | CN57: 0 | CO57: 0 | CP57: 0 | CW57: VITTORIA SQUADRA IN CASA | DF57: 0 | DH57: 0 | DP57: ТМ 2,5
N58: =IF(SUM(R58:S58)>L51,1,0) -> 0 | P58: ='Analysis (2)'!C9 -> Roma | Q58: ='Analysis (2)'!D9 -> Genoa | R58: =VALUE(LEFT('Analysis (2)'!E9,FIND(":",'Analysis (2)'!E9,1)-1)) -> 1 | S58: =VALUE(LEFT(RIGHT('Analysis (2)'!E9,LEN('Analysis (2)'!E9)-FIND(":",'Analysis (2)'!E9,1)),4)) -> 0 | T58: =IF(P58='Analysis (2)'!$G$1,"Дома","В гостях") -> Дома | U58: В | V58: 1 | W58: 0 | X58: 1 | Y58: 0 | AC58: R1 | AD58: R2 | AE58: R3 | AF58: R4 | AG58: R5 | AP58: Media Gol squadra in trasferta | AR58: =AY67*BA67 -> 1.144 | BJ58: 6 | BK58: 2.851508822e-05 | BL58: 6 | BM58: 0.0009918415022 | BP58: 6 | BY58: 5 | CE58: 5 | CM58: 0 | CN58: 0 | CO58: 0 | CP58: 0 | CW58: Casa | CX58: Trasferta | CZ58: P(H) | DA58: P(A) | DB58: P(e)
N59: =IF(SUM(R59:S59)>L51,1,0) -> 0 | P59: ='Analysis (2)'!C10 -> Milan | Q59: ='Analysis (2)'!D10 -> Roma | R59: =VALUE(LEFT('Analysis (2)'!E10,FIND(":",'Analysis (2)'!E10,1)-1)) -> 2 | S59: =VALUE(LEFT(RIGHT('Analysis (2)'!E10,LEN('Analysis (2)'!E10)-FIND(":",'Analysis (2)'!E10,1)),4)) -> 2 | T59: =IF(P59='Analysis (2)'!$G$1,"Дома","В гостях") -> В гостях | U59: Н | V59: 2 | W59: 2 | X59: 0 | Y59: 0 | Z59: 1 | AB59: =SUM(AC57:AG57) -> 4 | AY59: MEDIA CASA | BJ59: 7 | BK59: 2.346384402e-06 | BL59: 7 | BM59: 0.0001620952398 | BP59: 7 | BY59: 5 | CE59: 5 | CM59: 0 | CN59: 0 | CO59: 0 | CP59: 0 | CW59: 7 | CX59: 0 | CZ59: =(((POWER(CZ53,CW59))*POWER(2.718,-CZ53))/FACT(CW59)) -> 2.346384402e-06 | DA59: =(((POWER(CZ54,CX59))*POWER(2.718,-CZ54))/FACT(CX59)) -> 0.3185800869 | DB59: =CZ59*DA59 -> 7.475113468e-07 | DC59: =IF(DB59=MAX($DB$59:$DB$86),"<-- PRONO","") ->  | DF59: 0 | DG59: =CZ91 -> 0.5621760185 | DH59: 0 | DI59: =DA59 -> 0.3185800869 | DP59: ТБ 2,5
M60: =SUM(N51:N60) -> 0 | N60: =IF(SUM(R60:S60)>L51,1,0) -> 0 | P60: ='Analysis (2)'!C11 -> Roma | Q60: ='Analysis (2)'!D11 -> Bologna | R60: =VALUE(LEFT('Analysis (2)'!E11,FIND(":",'Analysis (2)'!E11,1)-1)) -> 1 | S60: =VALUE(LEFT(RIGHT('Analysis (2)'!E11,LEN('Analysis (2)'!E11)-FIND(":",'Analysis (2)'!E11,1)),4)) -> 0 | T60: =IF(P60='Analysis (2)'!$G$1,"Дома","В гостях") -> Дома | U60: В | V60: 1 | W60: 0 | X60: 1 | Y60: 0 | AH60: =IF(AH51+AH52+AH63+AH64+AH65+AH66=6,"ТБ 2,5","-") -> - | AS60: % | AY60: =(AR52+AR53)/2 -> 0.8 | AZ60: =AT52 -> 3.6 | BA60: =AZ60/5 -> 0.72 | BP60: 8 | BY60: 5 | CE60: 5 | CM60: 0 | CN60: 0 | CO60: 0 | CP60: 0 | CW60: 7 | CX60: 1 | CZ60: =(((POWER(CZ53,CW60))*POWER(2.718,-CZ53))/FACT(CW60)) -> 2.346384402e-06 | DA60: =(((POWER(CZ54,CX60))*POWER(2.718,-CZ54))/FACT(CX60)) -> 0.3644556195 | DB60: 8.551529807e-07 | DF60: 1 | DG60: =CZ86 -> 0.3238133867 | DH60: 1 | DI60: 0.3644556195
V61: =SUM(V51:V60) -> 13 | AP61: Punteggio squadra in casa | AR61: 0 | AS61: =(((POWER(AR57,AR61))*POWER(2.718,-AR57))/FACT(AR61)) -> 0.5621760185 | BP61: 9 | BY61: 5 | CE61: 5 | CM61: 0 | CN61: 0 | CO61: 0 | CP61: 0 | CW61: 7 | CX61: 2 | CZ61: =(((POWER(CZ53,CW61))*POWER(2.718,-CZ53))/FACT(CW61)) -> 2.346384402e-06 | DA61: =(((POWER(CZ54,CX61))*POWER(2.718,-CZ54))/FACT(CX61)) -> 0.2084686143 | DB61: 4.89147505e-07 | DF61: 2 | DG61: =CZ85 -> 0.09325825537 | DH61: 2 | DI61: 0.2084686143
L62: =L51 -> 44682 | N62: =IF(SUM(R63:S63)>L62,1,0) -> 0 | Z62: ТБ 2,5 | AP62: Punteggio squadra in trasferta | AR62: 0 | AS62: =(((POWER(AR58,AR62))*POWER(2.718,-AR58))/FACT(AR62)) -> 0.3185800869 | BP62: 10 | BY62: 5 | CE62: 5 | CM62: 0 | CN62: 0 | CO62: 0 | CP62: 0 | CW62: 7 | CX62: 3 | CZ62: =(((POWER(CZ53,CW62))*POWER(2.718,-CZ53))/FACT(CW62)) -> 2.346384402e-06 | DA62: =(((POWER(CZ54,CX62))*POWER(2.718,-CZ54))/FACT(CX62)) -> 0.0794960316 | DB62: 1.865282486e-07 | DF62: 3 | DG62: =CZ83 -> 0.01790558503 | DH62: 3 | DI62: 0.0794960316
N63: =IF(SUM(R64:S64)>L62,1,0) -> 0 | P63: ='Analysis (2)'!C14 -> Hellas Verona | Q63: ='Analysis (2)'!D14 -> Salernitana | R63: =VALUE(LEFT('Analysis (2)'!E14,FIND(":",'Analysis (2)'!E14,1)-1)) -> 1 | S63: =VALUE(LEFT(RIGHT('Analysis (2)'!E14,LEN('Analysis (2)'!E14)-FIND(":",'Analysis (2)'!E14,1)),4)) -> 0 | T63: =IF(P63='Analysis (2)'!$K$1,"Дома","В гостях") -> Дома | U63: =IF(T63="Дома",IF(R63>S63,"В",IF(R63=S63,"Н","П")),IF(R63<S63,"В",IF(R63=S63,"Н","П"))) -> В | V63: =IFERROR(IF(T63="Дома",R63,S63),"") -> 1 | W63: =IFERROR(IF(T63="Дома",S63,R63),"") -> 0 | X63: =IF(U63="В",1,0) -> 1 | Y63: =IF(U63="П",1,0) -> 0 | Z63: =IF(SUM(R63:S63)>2.5,1,"") ->  | AA63: =IF(R63>0,1,0) -> 1 | AB63: 0 | AC63: =IF(AA63+AB63=2,1,IF(AA63+AB63=1,0)) -> 0 | AD63: =IF(T63="В гостях",AC63,0) -> 0 | AE63: =IF(V63>2,0.5,0) -> 0 | AF63: 0 | AG63: =IF(R63+S63=0,-2,0) -> 0 | AH63: =IF(SUM(V63:W65)>7.5,1,0) -> 0 | AP63: Probabilità punteggio finale | AR63: =CONCATENATE(AR61,"-",AR62) -> 0-0 | AS63: =AS61*AS62 -> 0.1790980849 | AW63: =CONCATENATE("la quota è circa ",ROUNDUP(1/AS63,0)," a 1") -> la quota è circa 6 a 1 | BP63: 11 | BY63: 5 | CE63: 5 | CM63: 0 | CN63: 0 | CO63: 0 | CP63: 0 | CW63: 7 | CX63: 4 | CZ63: =(((POWER(CZ53,CW63))*POWER(2.718,-CZ53))/FACT(CW63)) -> 2.346384402e-06 | DA63: =(((POWER(CZ54,CX63))*POWER(2.718,-CZ54))/FACT(CX63)) -> 0.02273586504 | DB63: 5.334707909e-08 | DF63: 4 | DG63: =CZ77 -> 0.002578404244 | DH63: 4 | DI63: 0.02273586504 | DO63: INSERISCI QUI I VALORI/INSERT VALUES
N64: =IF(SUM(R65:S65)>L62,1,0) -> 0 | P64: ='Analysis (2)'!C15 -> Hellas Verona | Q64: ='Analysis (2)'!D15 -> Lazio | R64: =VALUE(LEFT('Analysis (2)'!E15,FIND(":",'Analysis (2)'!E15,1)-1)) -> 1 | S64: =VALUE(LEFT(RIGHT('Analysis (2)'!E15,LEN('Analysis (2)'!E15)-FIND(":",'Analysis (2)'!E15,1)),4)) -> 1 | T64: =IF(P64='Analysis (2)'!$K$1,"Дома","В гостях") -> Дома | U64: Н | V64: 1 | W64: 1 | X64: 0 | Y64: 0 | AA64: 1 | AB64: 1 | AC64: 1 | AD64: 0 | AE64: 0 | AF64: 0 | AG64: 0 | AH64: =IF(SUM(Z63:Z65)>1.5,"1","0") -> 0 | BP64: 12 | BY64: 5 | CE64: 5 | CM64: 0 | CN64: 0 | CO64: 0 | CP64: 0 | CW64: 7 | CX64: 5 | CZ64: =(((POWER(CZ53,CW64))*POWER(2.718,-CZ53))/FACT(CW64)) -> 2.346384402e-06 | DA64: =(((POWER(CZ54,CX64))*POWER(2.718,-CZ54))/FACT(CX64)) -> 0.005201965921 | DB64: 1.22058117e-08 | DF64: 5 | DG64: =CZ72 -> 0.0002970321689 | DH64: 5 | DI64: 0.005201965921
N65: =IF(SUM(R66:S66)>L62,1,0) -> 0 | P65: ='Analysis (2)'!C16 -> Udinese | Q65: ='Analysis (2)'!D16 -> Hellas Verona | R65: =VALUE(LEFT('Analysis (2)'!E16,FIND(":",'Analysis (2)'!E16,1)-1)) -> 1 | S65: =VALUE(LEFT(RIGHT('Analysis (2)'!E16,LEN('Analysis (2)'!E16)-FIND(":",'Analysis (2)'!E16,1)),4)) -> 1 | T65: =IF(P65='Analysis (2)'!$K$1,"Дома","В гостях") -> В гостях | U65: Н | V65: 1 | W65: 1 | X65: 0 | Y65: 0 | AA65: 1 | AB65: 1 | AC65: 1 | AD65: 1 | AE65: 0 | AF65: 0 | AG65: 0 | AH65: =IF(SUM(V63:W63)>1.5,1,0) -> 0 | AS65: % | AY65: MEDIA TRASFERTA | BP65: 13 | BY65: 5 | CE65: 5 | CM65: 0 | CN65: 0 | CO65: 0 | CP65: 0 | CW65: 7 | CX65: 6 | CZ65: =(((POWER(CZ53,CW65))*POWER(2.718,-CZ53))/FACT(CW65)) -> 2.346384402e-06 | DA65: =(((POWER(CZ54,CX65))*POWER(2.718,-CZ54))/FACT(CX65)) -> 0.0009918415022 | DB65: 2.32724143e-09 | DF65: 6 | DG65: =CZ68 -> 2.851508822e-05 | DH65: 6 | DI65: 0.0009918415022 | DR65: Gol Fatti | DS65: Gol Subiti | DT65: Forma | DU65: Nazione
N66: =IF(SUM(R67:S67)>L62,1,0) -> 0 | P66: ='Analysis (2)'!C17 -> Hellas Verona | Q66: ='Analysis (2)'!D17 -> Lecce | R66: =VALUE(LEFT('Analysis (2)'!E17,FIND(":",'Analysis (2)'!E17,1)-1)) -> 2 | S66: =VALUE(LEFT(RIGHT('Analysis (2)'!E17,LEN('Analysis (2)'!E17)-FIND(":",'Analysis (2)'!E17,1)),4)) -> 0 | T66: =IF(P66='Analysis (2)'!$K$1,"Дома","В гостях") -> Дома | U66: В | V66: 2 | W66: 0 | X66: 1 | Y66: 0 | AA66: 1 | AB66: 0 | AC66: 0 | AD66: 0 | AE66: 0 | AF66: 0 | AG66: 0 | AH66: =IF(SUM(V74:V76)>1.5,1,0) -> 1 | AP66: Punteggio squadra in casa | AR66: 1 | AS66: =(((POWER(AR57,AR66))*POWER(2.718,-AR57))/FACT(AR66)) -> 0.3238133867 | BP66: 14 | BY66: 5 | CE66: 5 | CM66: 0 | CN66: 0 | CO66: 0 | CP66: 0 | CW66: 6 | CX66: 0 | CZ66: =(((POWER(CZ53,CW66))*POWER(2.718,-CZ53))/FACT(CW66)) -> 2.851508822e-05 | DA66: =(((POWER(CZ54,CX66))*POWER(2.718,-CZ54))/FACT(CX66)) -> 0.3185800869 | DB66: 9.084339284e-06 | DF66: 7 | DG66: =CZ65 -> 2.346384402e-06 | DH66: 7 | DI66: =DA91 -> 0.0001620952398 | DP66: =DQ75 -> Roma | DR66: =DU97 -> 5 | DS66: =DV97 -> 6 | DT66: =DZ91 -> 3.6 | DZ66: количество забитых мячей в последних 5 домашних матчах (стрелка 3)
N67: =IF(SUM(R68:S68)>L62,1,0) -> 0 | P67: ='Analysis (2)'!C18 -> Inter | Q67: ='Analysis (2)'!D18 -> Hellas Verona | R67: =VALUE(LEFT('Analysis (2)'!E18,FIND(":",'Analysis (2)'!E18,1)-1)) -> 1 | S67: =VALUE(LEFT(RIGHT('Analysis (2)'!E18,LEN('Analysis (2)'!E18)-FIND(":",'Analysis (2)'!E18,1)),4)) -> 0 | T67: =IF(P67='Analysis (2)'!$K$1,"Дома","В гостях") -> В гостях | U67: П | V67: 0 | W67: 1 | X67: 0 | Y67: 1 | AA67: 1 | AB67: 0 | AC67: 0 | AD67: 0 | AE67: 0 | AF67: 0 | AG67: 0 | AP67: Punteggio squadra in trasferta | AR67: 0 | AS67: =(((POWER(AR58,AR67))*POWER(2.718,-AR58))/FACT(AR67)) -> 0.3185800869 | AY67: =(AR54+AR55)/2 -> 1.1 | AZ67: =AT53 -> 5.2 | BA67: =AZ67/5 -> 1.04 | BP67: 15 | BY67: 5 | CE67: 5 | CM67: 0 | CN67: 0 | CO67: 0 | CP67: 0 | CW67: 6 | CX67: 1 | CZ67: =(((POWER(CZ53,CW67))*POWER(2.718,-CZ53))/FACT(CW67)) -> 2.851508822e-05 | DA67: =(((POWER(CZ54,CX67))*POWER(2.718,-CZ54))/FACT(CX67)) -> 0.3644556195 | DB67: 1.039248414e-05 | DP67: =DX75 -> Hellas Verona | DR67: =DU104 -> 5 | DS67: =DV104 -> 3 | DT67: =DZ104 -> 5.2 | DZ67: количество пропущенных мячей в последних 5 домашних матчах (стрелка 4)
N68: =IF(SUM(R69:S69)>L62,1,0) -> 0 | P68: ='Analysis (2)'!C19 -> Hellas Verona | Q68: ='Analysis (2)'!D19 -> Cremonese | R68: =VALUE(LEFT('Analysis (2)'!E19,FIND(":",'Analysis (2)'!E19,1)-1)) -> 2 | S68: =VALUE(LEFT(RIGHT('Analysis (2)'!E19,LEN('Analysis (2)'!E19)-FIND(":",'Analysis (2)'!E19,1)),4)) -> 0 | T68: =IF(P68='Analysis (2)'!$K$1,"Дома","В гостях") -> Дома | U68: В | V68: 2 | W68: 0 | X68: 1 | Y68: 0 | AA68: 1 | AB68: 0 | AC68: 0 | AD68: 0 | AE68: 0 | AF68: 0 | AG68: 0 | AP68: Probabilità punteggio finale | AR68: =CONCATENATE(AR66,"-",AR67) -> 1-0 | AS68: =AS66*AS67 -> 0.1031604969 | AW68: =CONCATENATE("la quota è circa ",ROUNDUP(1/AS68,0)," a 1") -> la quota è circa 10 a 1 | BP68: 16 | BY68: 5 | CE68: 5 | CM68: 0 | CN68: 0 | CO68: 0 | CP68: 0 | CW68: 6 | CX68: 2 | CZ68: =(((POWER(CZ53,CW68))*POWER(2.718,-CZ53))/FACT(CW68)) -> 2.851508822e-05 | DA68: =(((POWER(CZ54,CX68))*POWER(2.718,-CZ54))/FACT(CX68)) -> 0.2084686143 | DB68: 5.944500929e-06 | DZ68: коэффициент формы (стрелка 5).
N69: =IF(SUM(R70:S70)>L62,1,0) -> 0 | P69: ='Analysis (2)'!C20 -> Torino | Q69: ='Analysis (2)'!D20 -> Hellas Verona | R69: =VALUE(LEFT('Analysis (2)'!E20,FIND(":",'Analysis (2)'!E20,1)-1)) -> 1 | S69: =VALUE(LEFT(RIGHT('Analysis (2)'!E20,LEN('Analysis (2)'!E20)-FIND(":",'Analysis (2)'!E20,1)),4)) -> 1 | T69: =IF(P69='Analysis (2)'!$K$1,"Дома","В гостях") -> В гостях | U69: Н | V69: 1 | W69: 1 | X69: 0 | Y69: 0 | AC69: =SUM(AC63:AC68) -> 2 | AD69: =SUM(AD63:AD68) -> 1 | AE69: =SUM(AE63:AE68) -> 0 | AF69: =SUM(AF63:AF68) -> 0 | AG69: =SUM(AG63:AG68) -> 0 | BP69: 17 | BY69: 5 | CE69: 5 | CM69: 0 | CN69: 0 | CO69: 0 | CP69: 0 | CW69: 6 | CX69: 3 | CZ69: =(((POWER(CZ53,CW69))*POWER(2.718,-CZ53))/FACT(CW69)) -> 2.851508822e-05 | DA69: =(((POWER(CZ54,CX69))*POWER(2.718,-CZ54))/FACT(CX69)) -> 0.0794960316 | DB69: 2.266836354e-06
N70: =IF(SUM(R71:S71)>L62,1,0) -> 0 | P70: ='Analysis (2)'!C21 -> Hellas Verona | Q70: ='Analysis (2)'!D21 -> Bologna | R70: =VALUE(LEFT('Analysis (2)'!E21,FIND(":",'Analysis (2)'!E21,1)-1)) -> 0 | S70: =VALUE(LEFT(RIGHT('Analysis (2)'!E21,LEN('Analysis (2)'!E21)-FIND(":",'Analysis (2)'!E21,1)),4)) -> 1 | T70: =IF(P70='Analysis (2)'!$K$1,"Дома","В гостях") -> Дома | U70: П | V70: 0 | W70: 1 | X70: 0 | Y70: 1 | AC70: R6 | AD70: R7 | AE70: R8 | AF70: R9 | AG70: R10 | AS70: % | BP70: 18 | BY70: 5 | CE70: 5 | CM70: 0 | CN70: 0 | CO70: 0 | CP70: 0 | CW70: 6 | CX70: 4 | CZ70: =(((POWER(CZ53,CW70))*POWER(2.718,-CZ53))/FACT(CW70)) -> 2.851508822e-05 | DA70: =(((POWER(CZ54,CX70))*POWER(2.718,-CZ54))/FACT(CX70)) -> 0.02273586504 | DB70: 6.483151973e-07
M71: =SUM(N62:N71) -> 0 | N71: =IF(SUM(R72:S72)>L62,1,0) -> 0 | P71: ='Analysis (2)'!C22 -> Hellas Verona | Q71: ='Analysis (2)'!D22 -> Istra 1961 | R71: =VALUE(LEFT('Analysis (2)'!E22,FIND(":",'Analysis (2)'!E22,1)-1)) -> 0 | S71: =VALUE(LEFT(RIGHT('Analysis (2)'!E22,LEN('Analysis (2)'!E22)-FIND(":",'Analysis (2)'!E22,1)),4)) -> 0 | T71: =IF(P71='Analysis (2)'!$K$1,"Дома","В гостях") -> Дома | U71: Н | V71: 0 | W71: 0 | X71: 0 | Y71: 0 | AB71: =SUM(AC69:AG69) -> 3 | AP71: Punteggio squadra in casa | AR71: 2 | AS71: =(((POWER(AR57,AR71))*POWER(2.718,-AR57))/FACT(AR71)) -> 0.09325825537 | BP71: 19 | BY71: 5 | CE71: 5 | CM71: 0 | CN71: 0 | CO71: 0 | CP71: 0 | CW71: 6 | CX71: 5 | CZ71: =(((POWER(CZ53,CW71))*POWER(2.718,-CZ53))/FACT(CW71)) -> 2.851508822e-05 | DA71: =(((POWER(CZ54,CX71))*POWER(2.718,-CZ54))/FACT(CX71)) -> 0.005201965921 | DB71: 1.483345171e-07
P72: ='Analysis (2)'!C23 -> Hellas Verona | Q72: ='Analysis (2)'!D23 -> Spezia | R72: =VALUE(LEFT('Analysis (2)'!E23,FIND(":",'Analysis (2)'!E23,1)-1)) -> 1 | S72: =VALUE(LEFT(RIGHT('Analysis (2)'!E23,LEN('Analysis (2)'!E23)-FIND(":",'Analysis (2)'!E23,1)),4)) -> 2 | T72: =IF(P72='Analysis (2)'!$K$1,"Дома","В гостях") -> Дома | U72: П | V72: 1 | W72: 2 | X72: 0 | Y72: 1 | Z72: 1 | AP72: Punteggio squadra in trasferta | AR72: 0 | AS72: =(((POWER(AR58,AR72))*POWER(2.718,-AR58))/FACT(AR72)) -> 0.3185800869 | BP72: 20 | BY72: 5 | CE72: 5 | CM72: 0 | CN72: 0 | CO72: 0 | CP72: 0 | CW72: 5 | CX72: 0 | CZ72: =(((POWER(CZ53,CW72))*POWER(2.718,-CZ53))/FACT(CW72)) -> 0.0002970321689 | DA72: =(((POWER(CZ54,CX72))*POWER(2.718,-CZ54))/FACT(CX72)) -> 0.3185800869 | DB72: 9.462853421e-05 | DV72: 1.2 | DW72: победа
AB73: =VALUE(REPLACE(AJ74,FIND(".",AJ74,1),1,",")) -> 2.5 | AC73: =VALUE(REPLACE(AJ75,FIND(".",AJ75,1),1,",")) -> 3.5 | AD73: =VALUE(REPLACE(AJ76,FIND(".",AJ76,1),1,",")) -> 2.5 | AP73: Probabilità punteggio finale | AR73: =CONCATENATE(AR71,"-",AR72) -> 2-0 | AS73: =AS71*AS72 -> 0.0297102231 | AW73: =CONCATENATE("la quota è circa ",ROUNDUP(1/AS73,0)," a 1") -> la quota è circa 34 a 1 | CW73: 5 | CX73: 1 | CZ73: =(((POWER(CZ53,CW73))*POWER(2.718,-CZ53))/FACT(CW73)) -> 0.0002970321689 | DA73: =(((POWER(CZ54,CX73))*POWER(2.718,-CZ54))/FACT(CX73)) -> 0.3644556195 | DB73: 0.0001082550431 | DV73: 1 | DW73: ничья
V74: =IF(V63>0.5,1,0) -> 1 | AF74: =SUM(AB59,AB71,AE75:AE78) -> 7 | AI74: П1 | AJ74: 2.50 | CW74: 5 | CX74: 2 | CZ74: =(((POWER(CZ53,CW74))*POWER(2.718,-CZ53))/FACT(CW74)) -> 0.0002970321689 | DA74: =(((POWER(CZ54,CX74))*POWER(2.718,-CZ54))/FACT(CX74)) -> 0.2084686143 | DB74: 6.192188467e-05 | DV74: 0.8 | DW74: поражение
V75: =IF(V64>0.5,1,0) -> 1 | AA75: R11 | AC75: =AB73-AD73 -> 0 | AD75: =IF(AC75>0,AC75,"") ->  | AE75: =IF(AD75<=1.8,2,0) -> 0 | AI75: Х | AJ75: 3.50 | AS75: % | CW75: 5 | CX75: 3 | CZ75: =(((POWER(CZ53,CW75))*POWER(2.718,-CZ53))/FACT(CW75)) -> 0.0002970321689 | DA75: =(((POWER(CZ54,CX75))*POWER(2.718,-CZ54))/FACT(CX75)) -> 0.0794960316 | DB75: 2.361287869e-05 | DQ75: =IF(DQ78=DQ79,DQ78,IF(DQ78=DR79,DQ78,DR78)) -> Roma | DX75: =IF(DY78=DY79,DY78,IF(DY78=DZ79,DY78,DZ78)) -> Hellas Verona
V76: =IF(V65>0.5,1,0) -> 1 | AA76: R12 | AC76: =AD73-AB73 -> 0 | AD76: =IF(AC76>0,AC76,"") ->  | AE76: =IF(AD76<=1.8,1,0) -> 0 | AG76: 1 | AI76: П2 | AJ76: 2.50 | AP76: Punteggio squadra in casa | AR76: 0 | AS76: =(((POWER(AR57,AR76))*POWER(2.718,-AR57))/FACT(AR76)) -> 0.5621760185 | CW76: 5 | CX76: 4 | CZ76: =(((POWER(CZ53,CW76))*POWER(2.718,-CZ53))/FACT(CW76)) -> 0.0002970321689 | DA76: =(((POWER(CZ54,CX76))*POWER(2.718,-CZ54))/FACT(CX76)) -> 0.02273586504 | DB76: 6.753283305e-06 | DO76: Последние игры: САЙПА | DW76: Последние игры: ФУЛАД
AA77: R13 | AC77: =IF(AC76>0,AC76,0) -> 0 | AD77: =IF(AC77<2.5,"-1",0) -> -1 | AE77: =IF(AC77>=2.5,-2,0) -> 0 | AP77: Punteggio squadra in trasferta | AR77: 1 | AS77: =(((POWER(AR58,AR77))*POWER(2.718,-AR58))/FACT(AR77)) -> 0.3644556195 | CW77: 4 | CX77: 0 | CZ77: =(((POWER(CZ53,CW77))*POWER(2.718,-CZ53))/FACT(CW77)) -> 0.002578404244 | DA77: =(((POWER(CZ54,CX77))*POWER(2.718,-CZ54))/FACT(CX77)) -> 0.3185800869 | DB77: 0.0008214282483 | DO77: 2017-02-02 | DP77: ПЛ | DQ77: Сайпа | DR77: Фулад | DS77: 1 : 0 | DW77: 2017-02-02 | DX77: ПЛ | DY77: Сайпа | DZ77: Фулад | EA77: 1 : 0
AA78: R14 | AC78: =IF(AC75>0,AC75,0) -> 0 | AD78: =IF(AC78<2.5,"-1","0") -> -1 | AE78: =IF(AC78>=2.5,-1,0) -> 0 | AP78: Probabilità punteggio finale | AR78: =CONCATENATE(AR76,"-",AR77) -> 0-1 | AS78: =AS76*AS77 -> 0.2048882091 | AW78: =CONCATENATE("la quota è circa ",ROUNDUP(1/AS78,0)," a 1") -> la quota è circa 5 a 1 | CW78: 4 | CX78: 1 | CZ78: =(((POWER(CZ53,CW78))*POWER(2.718,-CZ53))/FACT(CW78)) -> 0.002578404244 | DA78: =(((POWER(CZ54,CX78))*POWER(2.718,-CZ54))/FACT(CX78)) -> 0.3644556195 | DB78: 0.0009397139161 | DO78: ='Analysis (2)'!A2 -> 24.04.2021 | DP78: ='Analysis (2)'!B2 -> DIV | DQ78: ='Analysis (2)'!C2 -> Salzburg | DR78: ='Analysis (2)'!D2 -> Roma | DS78: ='Analysis (2)'!E2 -> 1 : 0 | DW78: ='Analysis (2)'!A14 -> 29.04.2021 | DX78: ='Analysis (2)'!B14 -> DIV | DY78: ='Analysis (2)'!C14 -> Hellas Verona | DZ78: ='Analysis (2)'!D14 -> Salernitana | EA78: ='Analysis (2)'!E14 -> 1 : 0
CW79: 4 | CX79: 2 | CZ79: =(((POWER(CZ53,CW79))*POWER(2.718,-CZ53))/FACT(CW79)) -> 0.002578404244 | DA79: =(((POWER(CZ54,CX79))*POWER(2.718,-CZ54))/FACT(CX79)) -> 0.2084686143 | DB79: 0.00053751636 | DO79: ='Analysis (2)'!A3 -> 21.04.2021 | DP79: ='Analysis (2)'!B3 -> DIV | DQ79: ='Analysis (2)'!C3 -> Lecce | DR79: ='Analysis (2)'!D3 -> Roma | DS79: ='Analysis (2)'!E3 -> 1 : 1 | DW79: ='Analysis (2)'!A15 -> 25.04.2021 | DX79: ='Analysis (2)'!B15 -> DIV | DY79: ='Analysis (2)'!C15 -> Hellas Verona | DZ79: ='Analysis (2)'!D15 -> Lazio | EA79: ='Analysis (2)'!E15 -> 1 : 1
AS80: % | CW80: 4 | CX80: 3 | CZ80: =(((POWER(CZ53,CW80))*POWER(2.718,-CZ53))/FACT(CW80)) -> 0.002578404244 | DA80: =(((POWER(CZ54,CX80))*POWER(2.718,-CZ54))/FACT(CX80)) -> 0.0794960316 | DB80: 0.0002049729053 | DO80: ='Analysis (2)'!A4 -> 17.04.2021 | DP80: ='Analysis (2)'!B4 -> DIV | DQ80: ='Analysis (2)'!C4 -> Roma | DR80: ='Analysis (2)'!D4 -> Empoli | DS80: ='Analysis (2)'!E4 -> 2 : 0 | DW80: ='Analysis (2)'!A16 -> 22.04.2021 | DX80: ='Analysis (2)'!B16 -> DIV | DY80: ='Analysis (2)'!C16 -> Udinese | DZ80: ='Analysis (2)'!D16 -> Hellas Verona | EA80: ='Analysis (2)'!E16 -> 1 : 1
AP81: Punteggio squadra in casa | AR81: 0 | AS81: =(((POWER(AR57,AR81))*POWER(2.718,-AR57))/FACT(AR81)) -> 0.5621760185 | CW81: 3 | CX81: 0 | CZ81: =(((POWER(CZ53,CW81))*POWER(2.718,-CZ53))/FACT(CW81)) -> 0.01790558503 | DA81: =(((POWER(CZ54,CX81))*POWER(2.718,-CZ54))/FACT(CX81)) -> 0.3185800869 | DB81: 0.005704362836 | DO81: ='Analysis (2)'!A5 -> 11.04.2021 | DP81: ='Analysis (2)'!B5 -> DIV | DQ81: ='Analysis (2)'!C5 -> Roma | DR81: ='Analysis (2)'!D5 -> Cremonese | DS81: ='Analysis (2)'!E5 -> 1 : 2 | DW81: ='Analysis (2)'!A17 -> 18.04.2021 | DX81: ='Analysis (2)'!B17 -> DIV | DY81: ='Analysis (2)'!C17 -> Hellas Verona | DZ81: ='Analysis (2)'!D17 -> Lecce | EA81: ='Analysis (2)'!E17 -> 2 : 0
AP82: Punteggio squadra in trasferta | AR82: 2 | AS82: =(((POWER(AR58,AR82))*POWER(2.718,-AR58))/FACT(AR82)) -> 0.2084686143 | CW82: 3 | CX82: 1 | CZ82: =(((POWER(CZ53,CW82))*POWER(2.718,-CZ53))/FACT(CW82)) -> 0.01790558503 | DA82: =(((POWER(CZ54,CX82))*POWER(2.718,-CZ54))/FACT(CX82)) -> 0.3644556195 | DB82: 0.006525791084 | DO82: ='Analysis (2)'!A6 -> 03.04.2021 | DP82: ='Analysis (2)'!B6 -> DIV | DQ82: ='Analysis (2)'!C6 -> Napoli | DR82: ='Analysis (2)'!D6 -> Roma | DS82: ='Analysis (2)'!E6 -> 2 : 1 | DW82: ='Analysis (2)'!A18 -> 15.04.2021 | DX82: ='Analysis (2)'!B18 -> DIV | DY82: ='Analysis (2)'!C18 -> Inter | DZ82: ='Analysis (2)'!D18 -> Hellas Verona | EA82: ='Analysis (2)'!E18 -> 1 : 0
W83: =U51 -> П | Z83: =IF(W83="В",1,IF(W83="П",-1,IF(W83="Н",0,""))) -> -1 | AB83: =SUM(Z83:Z87) -> -2 | AC83: =SUM(Z90:Z94) -> 1 | AE83: Мастерская | AP83: Probabilità punteggio finale | AR83: =CONCATENATE(AR81,"-",AR82) -> 0-2 | AS83: =AS81*AS82 -> 0.1171960556 | AW83: =CONCATENATE("la quota è circa ",ROUNDUP(1/AS83,0)," a 1") -> la quota è circa 9 a 1 | CW83: 3 | CX83: 2 | CZ83: =(((POWER(CZ53,CW83))*POWER(2.718,-CZ53))/FACT(CW83)) -> 0.01790558503 | DA83: =(((POWER(CZ54,CX83))*POWER(2.718,-CZ54))/FACT(CX83)) -> 0.2084686143 | DB83: 0.0037327525 | DO83: 2016-10-27 | DP83: ПЛ | DQ83: Сайпа | DR83: Сепахан | DS83: 1 : 1 | DW83: 2016-11-03 | DX83: HC | DY83: Фулад Язд | DZ83: Фулад | EA83: 1 : 2
F84: 2.5 | G84: 1.9 | H84: 1.9 | W84: =U52 -> Н | Z84: 0 | AE84: П2 | AF84: Х | AG84: П1 | CW84: 2 | CX84: 0 | CZ84: =(((POWER(CZ53,CW84))*POWER(2.718,-CZ53))/FACT(CW84)) -> 0.09325825537 | DA84: =(((POWER(CZ54,CX84))*POWER(2.718,-CZ54))/FACT(CX84)) -> 0.3185800869 | DB84: 0.0297102231 | DO84: 2016-10-15 | DP84: ПЛ | DQ84: Сайпа | DR84: Трактор-Сази | DS84: 0 : 0 | DW84: 2016-10-20 | DX84: ПЛ | DY84: Трактор-Сази | DZ84: Фулад | EA84: 2 : 2
W85: =U53 -> В | Z85: 1 | AE85: =AH96+AH97+AH98+AH99+AH100 -> 5 | AF85: =(AF96+AF97+AF98+AF99+AF100+AG96+AG97+AG98+AG99+AG100)/1.5 -> 6 | AG85: =AE96+AE97+AE98+AE99+AE100 -> 5 | AS85: % | CW85: 2 | CX85: 1 | CZ85: =(((POWER(CZ53,CW85))*POWER(2.718,-CZ53))/FACT(CW85)) -> 0.09325825537 | DA85: =(((POWER(CZ54,CX85))*POWER(2.718,-CZ54))/FACT(CX85)) -> 0.3644556195 | DB85: 0.03398849523 | DO85: 2016-09-15 | DP85: ПЛ | DQ85: Сайпа | DR85: Гостареш | DS85: 1 : 1 | DW85: 2016-09-21 | DX85: ПЛ | DY85: Гостареш | DZ85: Фулад | EA85: 0 : 0
W86: =U54 -> П | Z86: -1 | AE86: 1к | AP86: Punteggio squadra in casa | AR86: 1 | AS86: =(((POWER(AR57,AR86))*POWER(2.718,-AR57))/FACT(AR86)) -> 0.3238133867 | CW86: 1 | CX86: 0 | CZ86: =(((POWER(CZ53,CW86))*POWER(2.718,-CZ53)/FACT(CW86))) -> 0.3238133867 | DA86: =(((POWER(CZ54,CX86))*POWER(2.718,-CZ54))/FACT(CX86)) -> 0.3185800869 | DB86: 0.1031604969 | DC86: <-- PRONO | DO86: 2016-08-11 | DP86: ПЛ | DQ86: Сайпа | DR86: Падидех Хорасан | DS86: 1 : 1 | DW86: 2016-08-12 | DX86: ПЛ | DY86: Машад ФК | DZ86: Фулад | EA86: 1 : 1
H87: 2,5 ТБ | I87: 2,5 ТМ | K87: 2,5 ТБ | L87: 2,5 ТМ | M87: 2,5 ТБ | N87: 2,5 ТМ | W87: =U55 -> П | Z87: -1 | AE87: =AE102-AG102 -> 0 | AF87: =AF102-AG102 -> 1 | AG87: =AG102-AE102 -> 0 | AH87: =AH102-AE102 -> -2 | AP87: Punteggio squadra in trasferta | AR87: 1 | AS87: =(((POWER(AR58,AR87))*POWER(2.718,-AR58))/FACT(AR87)) -> 0.3644556195
H88: =VALUE(REPLACE(G84,FIND(".",G84,1),1,",")) -> 1.9 | I88: =VALUE(REPLACE(H84,FIND(".",H84,1),1,",")) -> 1.9 | J88: =H88+I88 -> 3.8 | K88: =100/H88 -> 52.63157895 | L88: =100/I88 -> 52.63157895 | M88: =(J88/100)*H88 -> 0.0722 | N88: =100-M88 -> 99.9278 | AE88: 2к | AP88: Probabilità punteggio finale | AR88: =CONCATENATE(AR86,"-",AR87) -> 1-1 | AS88: =AS86*AS87 -> 0.1180156084 | AW88: =CONCATENATE("la quota è circa ",ROUNDUP(1/AS88,0)," a 1") -> la quota è circa 9 a 1
AE89: =AE104-AG104 -> 0 | AF89: =AF104-AG104 -> 0 | AG89: =AG104-AE104 -> 0 | AH89: =AH104-AE104 -> 0 | CW89: VITTORIA SQUADRA IN TRASFERTA
W90: =U63 -> В | Z90: 1 | AE90: ТС №1 | AG90: ТС №2 | CW90: Casa | CX90: Trasferta | CZ90: P(H) | DA90: P(A) | DB90: P(e) | DW90: =DW97*1.2 -> 1.2 | DX90: =DX97*0.8 -> 2.4 | DY90: =DY97 -> 0
K91: ТБ | L91: ТМ | W91: =U64 -> Н | Z91: 0 | AE91: =(AE104/5)+(AH104/5)/2 -> 0 | AF91: =(AG104/5)+(AF104/5)/2 -> 0 | AG91: =(AE102/5)+(AH102/5)/2 -> 1.3 | AH91: =(AH102/5)+(AE102/5)/2 -> 1.1 | AS91: % | CW91: 0 | CX91: 7 | CZ91: =(((POWER($CZ$53,CW91))*POWER(2.718,-$CZ$53))/FACT(CW91)) -> 0.5621760185 | DA91: =(((POWER($CZ$54,CX91))*POWER(2.718,-$CZ$54))/FACT(CX91)) -> 0.0001620952398 | DB91: =CZ91*DA91 -> 9.112605653e-05 | DC91: =IF(DB91=MAX($DB$91:$DB$118),"<-- PRONO","") ->  | DO91: Команда1 | DP91: Команда2 | DQ91: Голы1 | DR91: Голы2 | DS91: Где играла | DT91: Результат | DU91: Забито | DV91: Проп | DW91: В | DX91: П | DY91: Н | DZ91: =SUM(DW90:DY90) -> 3.6
H92: =IFERROR(M60/10*100,"") -> 0 | I92: =IFERROR(M71/10*100,"") -> 0 | J92: =H92+I92 -> 0 | K92: =(J92/100)*H92 -> 0 | L92: =100-K92 -> 100 | W92: =U65 -> Н | Z92: 0 | AE92: =AE102/5 -> 1 | AF92: =AG102/5 -> 1 | AP92: Punteggio squadra in casa | AR92: 2 | AS92: =(((POWER(AR57,AR92))*POWER(2.718,-AR57))/FACT(AR92)) -> 0.09325825537 | CW92: 1 | CX92: 7 | CZ92: 0.3238133867 | DA92: 0.0001620952398 | DB92: 5.248860856e-05 | DO92: =DQ78 -> Salzburg | DP92: Roma | DQ92: =VALUE(LEFT(DS78,FIND(":",DS78,1)-1)) -> 1 | DR92: =VALUE(LEFT(RIGHT(DS78,LEN(DS78)-FIND(":",DS78,1)),4)) -> 0 | DS92: =IF(DO92=$DQ$75,"Дома","В гостях") -> В гостях | DT92: =IF(DS92="Дома",IF(DQ92>DR92,"В",IF(DQ92=DR92,"Н","П")),IF(DQ92<DR92,"В",IF(DQ92=DR92,"Н","П"))) -> П | DU92: =IFERROR(IF(DS92="Дома",DQ92,DR92),"") -> 0 | DV92: =IFERROR(IF(DS92="Дома",DR92,DQ92),"") -> 1 | DW92: =IF(DT92="В",1,0) -> 0 | DX92: =IF(DT92="П",1,0) -> 1 | DY92: =IF(DT92="Н",1,0) -> 0
K93: =MAX(K92:L92) -> 100 | N93: =L51 -> 44682 | W93: =U66 -> В | Z93: 1 | AE93: =AE92+1 -> 2 | AF93: =AF92+1 -> 2 | AG93: Тотал Altadar Magic | AP93: Punteggio squadra in trasferta | AR93: 1 | AS93: =(((POWER(AR58,AR93))*POWER(2.718,-AR58))/FACT(AR93)) -> 0.3644556195 | CW93: 2 | CX93: 7 | CZ93: 0.09325825537 | DA93: 0.0001620952398 | DB93: 1.511671927e-05 | DO93: Lecce | DP93: Roma | DQ93: =VALUE(LEFT(DS79,FIND(":",DS79,1)-1)) -> 1 | DR93: =VALUE(LEFT(RIGHT(DS79,LEN(DS79)-FIND(":",DS79,1)),4)) -> 1 | DS93: =IF(DO93=$DQ$75,"Дома","В гостях") -> В гостях | DT93: =IF(DS93="Дома",IF(DQ93>DR93,"В",IF(DQ93=DR93,"Н","П")),IF(DQ93<DR93,"В",IF(DQ93=DR93,"Н","П"))) -> Н | DU93: =IFERROR(IF(DS93="Дома",DQ93,DR93),"") -> 1 | DV93: =IFERROR(IF(DS93="Дома",DR93,DQ93),"") -> 1 | DW93: =IF(DT93="В",1,0) -> 0 | DX93: =IF(DT93="П",1,0) -> 0 | DY93: 1
K94: =IF((K93/100>0.99),"99%",(K93/100)) -> 99% | W94: =U67 -> П | Z94: -1 | AE94: =(AE102+AH102)/10 -> 0.8 | AF94: =(AG102+AF102)/10 -> 1.1 | AP94: Probabilità punteggio finale | AR94: =CONCATENATE(AR92,"-",AR93) -> 2-1 | AS94: =AS92*AS93 -> 0.03398849523 | AW94: =CONCATENATE("la quota è circa ",ROUNDUP(1/AS94,0)," a 1") -> la quota è circa 30 a 1 | CW94: 3 | CX94: 7 | CZ94: 0.01790558503 | DA94: 0.0001620952398 | DB94: 2.902410099e-06 | DO94: Roma | DP94: Empoli | DQ94: =VALUE(LEFT(DS80,FIND(":",DS80,1)-1)) -> 2 | DR94: =VALUE(LEFT(RIGHT(DS80,LEN(DS80)-FIND(":",DS80,1)),4)) -> 0 | DS94: =IF(DO94=$DQ$75,"Дома","В гостях") -> Дома | DT94: =IF(DS94="Дома",IF(DQ94>DR94,"В",IF(DQ94=DR94,"Н","П")),IF(DQ94<DR94,"В",IF(DQ94=DR94,"Н","П"))) -> В | DU94: =IFERROR(IF(DS94="Дома",DQ94,DR94),"") -> 2 | DV94: =IFERROR(IF(DS94="Дома",DR94,DQ94),"") -> 0 | DW94: =IF(DT94="В",1,0) -> 1 | DX94: =IF(DT94="П",1,0) -> 0 | DY94: 0
H95: 2,5 ТБ | I95: =K92-K88 -> -52.63157895 | L95: =IF(I95<I96,N95,N96) -> Alt 44682 | N95: =O95&N93 -> Alt 44682 | O95: Alt | AE95: Г 1к | AF95: Г 1к | AG95: Г 2к | AH95: Г 2к | CW95: 4 | CX95: 7 | CZ95: 0.002578404244 | DA95: 0.0001620952398 | DB95: 4.179470543e-07 | DO95: Roma | DP95: Cremonese | DQ95: =VALUE(LEFT(DS81,FIND(":",DS81,1)-1)) -> 1 | DR95: =VALUE(LEFT(RIGHT(DS81,LEN(DS81)-FIND(":",DS81,1)),4)) -> 2 | DS95: =IF(DO95=$DQ$75,"Дома","В гостях") -> Дома | DT95: =IF(DS95="Дома",IF(DQ95>DR95,"В",IF(DQ95=DR95,"Н","П")),IF(DQ95<DR95,"В",IF(DQ95=DR95,"Н","П"))) -> П | DU95: =IFERROR(IF(DS95="Дома",DQ95,DR95),"") -> 1 | DV95: =IFERROR(IF(DS95="Дома",DR95,DQ95),"") -> 2 | DW95: =IF(DT95="В",1,0) -> 0 | DX95: =IF(DT95="П",1,0) -> 1 | DY95: 0
H96: 2,5 ТМ | I96: =L92-L88 -> 47.36842105 | N96: =O96&N93 -> Üst 44682 | O96: Üst | AE96: =V51 -> 0 | AF96: 1 | AG96: =W63 -> 0 | AH96: =V63 -> 1 | AS96: % | CW96: 5 | CX96: 7 | CZ96: 0.0002970321689 | DA96: 0.0001620952398 | DB96: 4.814750065e-08 | DO96: Napoli | DP96: Roma | DQ96: =VALUE(LEFT(DS82,FIND(":",DS82,1)-1)) -> 2 | DR96: =VALUE(LEFT(RIGHT(DS82,LEN(DS82)-FIND(":",DS82,1)),4)) -> 1 | DS96: =IF(DO96=$DQ$75,"Дома","В гостях") -> В гостях | DT96: =IF(DS96="Дома",IF(DQ96>DR96,"В",IF(DQ96=DR96,"Н","П")),IF(DQ96<DR96,"В",IF(DQ96=DR96,"Н","П"))) -> П | DU96: =IFERROR(IF(DS96="Дома",DQ96,DR96),"") -> 1 | DV96: =IFERROR(IF(DS96="Дома",DR96,DQ96),"") -> 2 | DW96: =IF(DT96="В",1,0) -> 0 | DX96: =IF(DT96="П",1,0) -> 1 | DY96: 0
AB97: =IF('Analysis (2)'!#REF!>'Analysis (2)'!#REF!,"П1",IF('Analysis (2)'!#REF!<'Analysis (2)'!#REF!,"П2","Х")) ->  | AE97: 1 | AF97: 1 | AG97: =W64 -> 1 | AH97: =V64 -> 1 | AP97: Punteggio squadra in casa | AR97: 1 | AS97: =(((POWER(AR57,AR97))*POWER(2.718,-AR57))/FACT(AR97)) -> 0.3238133867 | CW97: 6 | CX97: 7 | CZ97: 2.851508822e-05 | DA97: 0.0001620952398 | DB97: 4.622160062e-09 | DU97: =SUM(DU92:DU96) -> 5 | DV97: =SUM(DV92:DV96) -> 6 | DW97: =DW92+DW93+DW94+DW95+DW96 -> 1 | DX97: =DX92+DX93+DX94+DX95+DX96 -> 3 | DY97: 0
AE98: 2 | AF98: 0 | AG98: =W65 -> 1 | AH98: =V65 -> 1 | AP98: Punteggio squadra in trasferta | AR98: 2 | AS98: =(((POWER(AR58,AR98))*POWER(2.718,-AR58))/FACT(AR98)) -> 0.2084686143 | CW98: 0 | CX98: 6 | CZ98: 0.5621760185 | DA98: 0.0009918415022 | DB98: 0.0005575895067 | DO98: Команда1 | DP98: Команда2 | DQ98: Голы1 | DR98: Голы2 | DS98: Где играла | DT98: Результат | DU98: Забито | DV98: Проп | DW98: В | DX98: П | DY98: Н
AE99: 1 | AF99: 2 | AG99: =W66 -> 0 | AH99: =V66 -> 2 | AP99: Probabilità punteggio finale | AR99: =CONCATENATE(AR97,"-",AR98) -> 1-2 | AS99: =AS97*AS98 -> 0.06750492803 | AW99: =CONCATENATE("la quota è circa ",ROUNDUP(1/AS99,0)," a 1") -> la quota è circa 15 a 1 | CW99: 1 | CX99: 6 | CZ99: 0.3238133867 | DA99: 0.0009918415022 | DB99: 0.0003211715559 | DO99: =DY78 -> Hellas Verona | DP99: Salernitana | DQ99: =VALUE(LEFT(EA78,FIND(":",EA78,1)-1)) -> 1 | DR99: =VALUE(LEFT(RIGHT(EA78,LEN(EA78)-FIND(":",EA78,1)),4)) -> 0 | DS99: =IF(DO99=$DX$75,"Дома","В гостях") -> Дома | DT99: =IF(DS99="Дома",IF(DQ99>DR99,"В",IF(DQ99=DR99,"Н","П")),IF(DQ99<DR99,"В",IF(DQ99=DR99,"Н","П"))) -> В | DU99: =IFERROR(IF(DS99="Дома",DQ99,DR99),"") -> 1 | DV99: =IFERROR(IF(DS99="Дома",DR99,DQ99),"") -> 0 | DW99: =IF(DT99="В",1) -> 1 | DX99: =IF(DT99="П",1,0) -> 0 | DY99: =IF(DT99="Н",1,0) -> 0
AE100: 1 | AF100: 2 | AG100: =W67 -> 1 | AH100: =V67 -> 0 | CW100: 2 | CX100: 6 | CZ100: 0.09325825537 | DA100: 0.0009918415022 | DB100: 9.249740809e-05 | DO100: Hellas Verona | DP100: Lazio | DQ100: =VALUE(LEFT(EA79,FIND(":",EA79,1)-1)) -> 1 | DR100: =VALUE(LEFT(RIGHT(EA79,LEN(EA79)-FIND(":",EA79,1)),4)) -> 1 | DS100: =IF(DO100=$DX$75,"Дома","В гостях") -> Дома | DT100: =IF(DS100="Дома",IF(DQ100>DR100,"В",IF(DQ100=DR100,"Н","П")),IF(DQ100<DR100,"В",IF(DQ100=DR100,"Н","П"))) -> Н | DU100: =IFERROR(IF(DS100="Дома",DQ100,DR100),"") -> 1 | DV100: =IFERROR(IF(DS100="Дома",DR100,DQ100),"") -> 1 | DW100: =IF(DT100="В",1) -> FALSE | DX100: =IF(DT100="П",1,0) -> 0 | DY100: =IF(DT100="Н",1,0) -> 1
AB101: =IF('Analysis (2)'!#REF!>'Analysis (2)'!#REF!,"П1",IF('Analysis (2)'!#REF!<'Analysis (2)'!#REF!,"П2","Х")) ->  | AE101: З 1к | AF101: П 1к | AG101: З 2к | AH101: П 2к | AS101: % | CW101: 3 | CX101: 6 | CZ101: 0.01790558503 | DA101: 0.0009918415022 | DB101: 1.775950235e-05 | DO101: Udinese | DP101: Hellas Verona | DQ101: =VALUE(LEFT(EA80,FIND(":",EA80,1)-1)) -> 1 | DR101: =VALUE(LEFT(RIGHT(EA80,LEN(EA80)-FIND(":",EA80,1)),4)) -> 1 | DS101: =IF(DO101=$DX$75,"Дома","В гостях") -> В гостях | DT101: =IF(DS101="Дома",IF(DQ101>DR101,"В",IF(DQ101=DR101,"Н","П")),IF(DQ101<DR101,"В",IF(DQ101=DR101,"Н","П"))) -> Н | DU101: =IFERROR(IF(DS101="Дома",DQ101,DR101),"") -> 1 | DV101: =IFERROR(IF(DS101="Дома",DR101,DQ101),"") -> 1 | DW101: =IF(DT101="В",1,0) -> 0 | DX101: =IF(DT101="П",1,0) -> 0 | DY101: =IF(DT101="Н",1) -> 1
AE102: =SUM(AE96:AE100) -> 5 | AF102: =SUM(AF96:AF100) -> 6 | AG102: =SUM(AH96:AH100) -> 5 | AH102: =SUM(AG96:AG100) -> 3 | AP102: Punteggio squadra in casa | AR102: 2 | AS102: =(((POWER(AR57,AR102))*POWER(2.718,-AR57))/FACT(AR102)) -> 0.09325825537 | CW102: 4 | CX102: 6 | CZ102: 0.002578404244 | DA102: 0.0009918415022 | DB102: 2.557368339e-06 | DO102: Hellas Verona | DP102: Lecce | DQ102: =VALUE(LEFT(EA81,FIND(":",EA81,1)-1)) -> 2 | DR102: =VALUE(LEFT(RIGHT(EA81,LEN(EA81)-FIND(":",EA81,1)),4)) -> 0 | DS102: =IF(DO102=$DX$75,"Дома","В гостях") -> Дома | DT102: =IF(DS102="Дома",IF(DQ102>DR102,"В",IF(DQ102=DR102,"Н","П")),IF(DQ102<DR102,"В",IF(DQ102=DR102,"Н","П"))) -> В | DU102: =IFERROR(IF(DS102="Дома",DQ102,DR102),"") -> 2 | DV102: =IFERROR(IF(DS102="Дома",DR102,DQ102),"") -> 0 | DW102: =IF(DT102="В",1) -> 1 | DX102: =IF(DT102="П",1,0) -> 0 | DY102: =IF(DT102="Н",1) -> FALSE
AE103: З 1кд | AF103: П 1кд | AG103: З 2кг | AH103: П 2кг | AP103: Punteggio squadra in trasferta | AR103: 2 | AS103: =(((POWER(AR58,AR103))*POWER(2.718,-AR58))/FACT(AR103)) -> 0.2084686143 | CW103: 5 | CX103: 6 | CZ103: 0.0002970321689 | DA103: 0.0009918415022 | DB103: 2.946088326e-07 | DO103: Inter | DP103: Hellas Verona | DQ103: =VALUE(LEFT(EA82,FIND(":",EA82,1)-1)) -> 1 | DR103: =VALUE(LEFT(RIGHT(EA82,LEN(EA82)-FIND(":",EA82,1)),4)) -> 0 | DS103: =IF(DO103=$DX$75,"Дома","В гостях") -> В гостях | DT103: =IF(DS103="Дома",IF(DQ103>DR103,"В",IF(DQ103=DR103,"Н","П")),IF(DQ103<DR103,"В",IF(DQ103=DR103,"Н","П"))) -> П | DU103: =IFERROR(IF(DS103="Дома",DQ103,DR103),"") -> 0 | DV103: =IFERROR(IF(DS103="Дома",DR103,DQ103),"") -> 1 | DW103: =IF(DT103="В",1) -> FALSE | DX103: =IF(DT103="П",1,0) -> 1 | DY103: =IF(DT103="Н",1) -> FALSE
AE104: =Q96+Q97+Q98+Q99+Q100 -> 0 | AF104: =R96+R97+R98+R99+R100 -> 0 | AG104: =Q102+Q103+Q104+Q105+Q106 -> 0 | AH104: =R102+R103+R104+R105+R106 -> 0 | AP104: Probabilità punteggio finale | AR104: =CONCATENATE(AR102,"-",AR103) -> 2-2 | AS104: =AS102*AS103 -> 0.01944141927 | AW104: =CONCATENATE("la quota è circa ",ROUNDUP(1/AS104,0)," a 1") -> la quota è circa 52 a 1 | CW104: 0 | CX104: 5 | CZ104: 0.5621760185 | DA104: 0.005201965921 | DB104: 0.00292442049 | DU104: =SUM(DU99:DU103) -> 5 | DV104: =SUM(DV99:DV103) -> 3 | DW104: =DW99+DW100+DW101+DW102+DW103 -> 2 | DX104: =DX99+DX100+DX101+DX102+DX103 -> 1 | DY104: =DY99+DY100+DY101+DY102+DY103 -> 2 | DZ104: =SUM(DW105:DY105) -> 5.2
AE105: ИТМ1 | AF105: ИТМ2 | CW105: 1 | CX105: 5 | CZ105: 0.3238133867 | DA105: 0.005201965921 | DB105: 0.001684466202 | DW105: =DW104*1.2 -> 2.4 | DX105: =DX104*0.8 -> 0.8 | DY105: =DY104 -> 2
AE106: =AF102+AF104 -> 6 | AF106: =AH102+AH104 -> 3 | CW106: 2 | CX106: 5 | CZ106: 0.09325825537 | DA106: 0.005201965921 | DB106: 0.0004851262662
AE107: ИТМ1 | AF107: ИТМ2 | CW107: 3 | CX107: 5 | CZ107: 0.01790558503 | DA107: 0.005201965921 | DB107: 9.314424312e-05
AE108: =AF102+AF104 -> 6 | AF108: =AH102+AH104 -> 3 | CW108: 4 | CX108: 5 | CZ108: 0.002578404244 | DA108: 0.005201965921 | DB108: 1.341277101e-05
AE109: П1 | AF109: Х | AG109: П2 | CW109: 0 | CX109: 4 | CZ109: 0.5621760185 | DA109: 0.02273586504 | DB109: 0.01278155809
AE110: =AE102+AF102+AG102+AH102 -> 19 | AF110: =AE102+AF102+AG102+AH102+AE104+AF104+AG104+AH104 -> 19 | AG110: =AE104+AF104+AG104+AH104 -> 0 | CW110: 1 | CX110: 4 | CZ110: 0.3238133867 | DA110: 0.02273586504 | DB110: 0.007362177457
AE111: Для 2 исходов | CW111: 2 | CX111: 4 | CZ111: 0.09325825537 | DA111: 0.02273586504 | DB111: 0.002120307108
AE112: =AE85+AE110 -> 24 | AF112: =AG110+AG85 -> 5 | CW112: 3 | CX112: 4 | CZ112: 0.01790558503 | DA112: 0.02273586504 | DB112: 0.0004070989647
X113: =IF('Analysis (2)'!#REF!=50%,1,"0") ->  | Y113: =IF('Analysis (2)'!#REF!=50%,1,"0") ->  | AE113: =AE112/(AE112+AF112) -> 0.8275862069 | AF113: =AF112/(AF112+AE112) -> 0.1724137931 | CW113: 0 | CX113: 3 | CZ113: 0.5621760185 | DA113: 0.0794960316 | DB113: 0.04469076254
X114: =SUM(X113:Y113) ->  | CW114: 1 | CX114: 3 | CZ114: 0.3238133867 | DA114: 0.0794960316 | DB114: 0.02574187922
CW115: 2 | CX115: 3 | CZ115: 0.09325825537 | DA115: 0.0794960316 | DB115: 0.007413661215
CW116: 0 | CX116: 2 | CZ116: 0.5621760185 | DA116: 0.2084686143 | DB116: 0.1171960556
CW117: 1 | CX117: 2 | CZ117: 0.3238133867 | DA117: 0.2084686143 | DB117: 0.06750492803
CW118: 0 | CX118: 1 | CZ118: 0.5621760185 | DA118: 0.3644556195 | DB118: 0.2048882091 | DC118: <-- PRONO
CW121: PAREGGIO
CW122: Casa | CX122: Trasferta | CZ122: P(H) | DA122: P(A) | DB122: P(e)
CW123: 0 | CX123: 0 | CZ123: =(((POWER($CZ$53,CW123))*POWER(2.718,-$CZ$53))/FACT(CW123)) -> 0.5621760185 | DA123: =(((POWER($CZ$54,CX123))*POWER(2.718,-$CZ$54))/FACT(CX123)) -> 0.3185800869 | DB123: =CZ123*DA123 -> 0.1790980849 | DC123: =IF(DB123=MAX($DB$123:$DB$129),"<-- PRONO","") -> <-- PRONO
AE124: =IF(AF124>0,AG124,"") -> 0 | AF124: ='Analysis (2)'!O9 -> 0.5616000515 | AG124: 0 | AH124: 0 | AI124: ='Analysis (2)'!R9 -> -0.2759543478 | AJ124: =IF(AI124>0,AH124,"") ->  | AL124: =AVERAGE(AE124:AE131) -> 0.5 | CW124: 1 | CX124: 1 | CZ124: 0.3238133867 | DA124: 0.3644556195 | DB124: 0.1180156084
AE125: 1 | AF125: ='Analysis (2)'!O10 -> 0.01191683339 | AG125: 1 | AH125: 1 | AI125: ='Analysis (2)'!R10 -> 0.1044109681 | AJ125: 1 | AL125: =AVERAGE(AJ124:AJ131) -> 1.5 | CW125: 2 | CX125: 2 | CZ125: 0.09325825537 | DA125: 0.2084686143 | DB125: 0.01944141927
AF126: ='Analysis (2)'!O11 -> -0.611423936 | AG126: 2 | AH126: 2 | AI126: ='Analysis (2)'!R11 -> 0.04234307168 | AJ126: 2 | AL126: =SUM(AL124:AL125) -> 2 | CW126: 3 | CX126: 3 | CZ126: 0.01790558503 | DA126: 0.0794960316 | DB126: 0.001423422953
AF127: ='Analysis (2)'!O12 -> -0.9005245276 | AG127: 3 | AH127: 3 | AI127: ='Analysis (2)'!R12 -> -0.470026456 | AL127: =ROUNDDOWN(AL126,0) -> 2 | CW127: 4 | CX127: 4 | CZ127: 0.002578404244 | DA127: 0.02273586504 | DB127: 5.862225091e-05
AF128: ='Analysis (2)'!O13 -> -0.9871079788 | AG128: 4 | AH128: 4 | AI128: ='Analysis (2)'!R13 -> -0.7726413496 | AL128: =ROUNDUP(AL126,0) -> 2 | CW128: 5 | CX128: 5 | CZ128: 0.0002970321689 | DA128: 0.005201965921 | DB128: 1.54515122e-06
AB129: Takım1 ( | AC129: Üst) | AF129: ='Analysis (2)'!O14 -> -0.9970296783 | AG129: 5 | AH129: 5 | AI129: ='Analysis (2)'!R14 -> -0.9479803408 | AL129: =IF(AL126<1,"TG 0-1 Gol",IF(AL126=1,"TG 1 Gol",IF(AL126=1.5,"TG 1-2 Gol",IF(AL126=2,"TG 2 Gol",IF(AL126=2.5,"TG 2-3 Gol",IF(AL126=3,"TG 3 Gol",IF(AL126=3.5,"TG 3-4 Gol",IF(AL126=4,"TG 4 Gol",IF(AL126>4,"TG 4+"))))))))) -> TG 2 Gol | CW129: 6 | CX129: 6 | CZ129: 2.851508822e-05 | DA129: 0.0009918415022 | DB129: 2.828244793e-08
AB130: Takım2 ( | AF130: ='Analysis (2)'!O15 -> -0.9997148491 | AG130: 6 | AH130: 6 | AI130: ='Analysis (2)'!R15 -> -0.990081585
AF131: ='Analysis (2)'!O16 -> -0.9999765362 | AG131: 7 | AH131: 7 | AI131: ='Analysis (2)'!R16 -> -0.9983790476
AD133: =AVERAGE(AE124:AE131) -> 0.5 | AE133: =AVERAGE(AJ124:AJ131) -> 1.5 | AF133: =MIN(AE124:AE131) -> 0 | AG133: =MIN(AJ124:AJ131) -> 1 | AH133: =IFERROR(IF('Analysis (2)'!W8>=3.5,"ТБ 2.5",IF('Analysis (2)'!W8>=2.5,"ТБ 1.5",IF('Analysis (2)'!W8>=1.5,"ТБ 0.5",IF('Analysis (2)'!W8<=0.5,"ТМ 1.5",IF('Analysis (2)'!W8<=1.5,"ТМ 2.5",IF('Analysis (2)'!W8<2,"ТМ 3.5","-")))))),"") -> ТМ 1.5
AF134: =MAX(AE124:AE131) -> 1 | AG134: =MAX(AJ124:AJ131) -> 2 | AH134: =IFERROR(IF('Analysis (2)'!W9>=3.5,"ТБ 2.5",IF('Analysis (2)'!W9>=2.5,"ТБ 1.5",IF('Analysis (2)'!W9>=1.5,"ТБ 0.5",IF('Analysis (2)'!W9<=0.5,"ТМ 1.5",IF('Analysis (2)'!W9<=1.5,"ТМ 2.5",IF('Analysis (2)'!W9<2,"ТМ 3.5","-")))))),"") -> ТМ 1.5
AA135: =CONCATENATE(AB129,AF138,AC129) -> Takım1 ( -0,5 Üst) | AB135: =CONCATENATE(AB130,AG138,AC129) -> Takım2 ( 0,5 Üst) | AF135: =MIN(AE124:AE131) -> 0 | AG135: =MAX(AJ124:AJ131) -> 2 | AH135: =IFERROR(IF('Analysis (2)'!W10>=3.5,"ТБ 2.5",IF('Analysis (2)'!W10>=2.5,"ТБ 1.5",IF('Analysis (2)'!W10>=1.5,"ТБ 0.5",IF('Analysis (2)'!W10<=0.5,"ТМ 1.5",IF('Analysis (2)'!W10<=1.5,"ТМ 2.5",IF('Analysis (2)'!W10<2,"ТМ 3.5","-")))))),"") -> ТМ 1.5
AA136: =IF(AF133=0,"-",AA135) -> - | AB136: =IF(AG133=0,"-",AB135) -> Takım2 ( 0,5 Üst) | AF136: =MAX(AE124:AE131) -> 1 | AG136: =MIN(AJ124:AJ131) -> 1 | AH136: =IFERROR(IF('Analysis (2)'!W11>=3.5,"ТБ 2.5",IF('Analysis (2)'!W11>=2.5,"ТБ 1.5",IF('Analysis (2)'!W11>=1.5,"ТБ 0.5",IF('Analysis (2)'!W11<=0.5,"ТМ 1.5",IF('Analysis (2)'!W11<=1.5,"ТМ 2.5",IF('Analysis (2)'!W11<2,"ТМ 3.5","-")))))),"") -> ТМ 1.5
AA137: =IF(AF139="Gol Atar",AF139,AA136) -> - | AB137: =IF(AG139="Gol Atar",AG139,AB136) -> Gol Atar
AF138: =AF133-0.5 -> -0.5 | AG138: =AG133-0.5 -> 0.5
AF139: =IF(AF138=0.5,"Gol Atar","-") -> - | AG139: =IF(AG138=0.5,"Gol Atar","-") -> Gol Atar
AZ143: Всего | BG143: Дома | BN143: В гостях | BU143: Забивают дома | BY143: Забивают в гостях
AM144: Команда- | AO144: =IF(AR145=AR146,AR145,IF(AR145=AS146,AR145,AS145)) -> Roma | AR144: Команда1 | AS144: Команда2 | AT144: Голы1 | AU144: Голы2 | AV144: Где играла | AW144: Результат | AX144: Забито | AY144: Пропущено | AZ144: Игр | BA144: В | BB144: Н | BC144: П | BD144: Забито | BE144: Пропущено | BF144: Очки | BG144: Игр | BH144: В | BI144: Н | BJ144: П | BK144: Забито | BL144: Пропущено | BM144: Очки | BN144: Игр | BO144: В | BP144: Н | BQ144: П | BR144: Забито | BS144: Пропущено | BT144: Очки | BU144: 0 | BV144: 1 | BW144: 2 | BX144: 3+ | BY144: 0 | BZ144: 1 | CA144: 2 | CB144: 3+ | CC144: Забивают | CD144: Пропускают | CE144: Рейтинг | CF144: Серия | CG144: Тотал
AM145: ='Analysis (2)'!A2 -> 24.04.2021 | AN145: ='Analysis (2)'!C2 -> Salzburg | AO145: ='Analysis (2)'!D2 -> Roma | AP145: ='Analysis (2)'!E2 -> 1 : 0 | AR145: =AN145 -> Salzburg | AS145: =AO145 -> Roma | AT145: =VALUE(LEFT(AP145,FIND(":",AP145,1)-1)) -> 1 | AU145: =VALUE(LEFT(RIGHT(AP145,LEN(AP145)-FIND(":",AP145,1)),100)) -> 0 | AV145: =IF(AR145=$AO$144,"Дома","В гостях") -> В гостях | AW145: =IF(AV145="Дома",IF(AT145>AU145,"В",IF(AT145=AU145,"Н","П")),IF(AT145<AU145,"В",IF(AT145=AU145,"Н","П"))) -> П | AX145: =IF(AV145="Дома",AT145,AU145) -> 0 | AY145: =IF(AV145="Дома",AU145,AT145) -> 1 | AZ145: 1 | BA145: =IF(AW145="В",1,0) -> 0 | BB145: =IF(AW145="Н",1,0) -> 0 | BC145: =IF(AW145="П",1,0) -> 1 | BD145: =AX145 -> 0 | BE145: =AY145 -> 1 | BF145: =BA145*3+BB145 -> 0 | BG145: =IF(AV145="Дома",1,0) -> 0 | BH145: =IF(AV145="Дома",IF(AW145="В",1,0),0) -> 0 | BI145: =IF(AV145="Дома",IF(AW145="Н",1,0),0) -> 0 | BJ145: =IF(AV145="Дома",IF(AW145="П",1,0),0) -> 0 | BK145: =IF(AV145="Дома",AX145,0) -> 0 | BL145: =IF(AV145="Дома",AY145,0) -> 0 | BM145: =BH145*3+BI145 -> 0 | BN145: =IF(AV145<>"Дома",1,0) -> 1 | BO145: =IF(AV145<>"Дома",IF(AW145="В",1,0),0) -> 0 | BP145: =IF(AV145<>"Дома",IF(AW145="Н",1,0),0) -> 0 | BQ145: =IF(AV145<>"Дома",IF(AW145="П",1,0),0) -> 1 | BR145: =IF(AV145<>"Дома",AX145,0) -> 0 | BS145: =IF(AV145<>"Дома",AY145,0) -> 1 | BT145: =BO145*3+BP145 -> 0 | BU145: =IF(AV145="Дома",IF(AX145=0,1,0),0) -> 0 | BV145: =IF(AV145="Дома",IF(AX145=1,1,0),0) -> 0 | BW145: =IF(AV145="Дома",IF(AX145=2,1,0),0) -> 0 | BX145: =IF(AV145="Дома",IF(AX145>=3,1,0),0) -> 0 | BY145: =IF(AV145<>"Дома",IF(AX145=0,1,0),0) -> 1 | BZ145: =IF(AV145<>"Дома",IF(AX145=1,1,0),0) -> 0 | CA145: =IF(AV145<>"Дома",IF(AX145=2,1,0),0) -> 0 | CB145: =IF(AV145<>"Дома",IF(AX145>=3,1,0),0) -> 0 | CC145: =BD145/AZ145 -> 0 | CD145: =BE145/AZ145 -> 1 | CE145: =(BM145/IF(BG145<1,1,BG145)+BT145/IF(BN145<1,1,BN145)*1.5+BK145/IF(BG145<1,1,BG145)+BR145/IF(BN145<1,1,BN145)*1.5-BL145/IF(BG145<1,1,BG145)*1.5-BS145/IF(BN145<1,1,BN145))/15 -> -0.06666666667 | CF145: =IF(AV145="Дома",IF(AW145="В","В",IF(AW145="Н","Н","П")),"") ->  | CG145: =IF(AV145="Дома",AX145+AY145,"") -> 
AM146: ='Analysis (2)'!A3 -> 21.04.2021 | AN146: ='Analysis (2)'!C3 -> Lecce | AO146: ='Analysis (2)'!D3 -> Roma | AP146: ='Analysis (2)'!E3 -> 1 : 1 | AR146: Lecce | AS146: Roma | AT146: 1 | AU146: 1 | AV146: В гостях | AW146: Н | AX146: 1 | AY146: 1 | AZ146: =AZ145+1 -> 2 | BA146: =IF(AW146="В",BA145+1,BA145+0) -> 0 | BB146: =IF(AW146="Н",BB145+1,BB145+0) -> 1 | BC146: =IF(AW146="П",BC145+1,BC145+0) -> 1 | BD146: =AX146+BD145 -> 1 | BE146: =AY146+BE145 -> 2 | BF146: 1 | BG146: =IF(AV146="Дома",BG145+1,BG145+0) -> 0 | BH146: =IF(AV146="Дома",IF(AW146="В",BH145+1,BH145+0),BH145+0) -> 0 | BI146: =IF(AV146="Дома",IF(AW146="Н",BI145+1,BI145+0),BI145+0) -> 0 | BJ146: =IF(AV146="Дома",IF(AW146="П",BJ145+1,BJ145+0),BJ145+0) -> 0 | BK146: =IF(AV146="Дома",BK145+AX146,BK145+0) -> 0 | BL146: =IF(AV146="Дома",BL145+AY146,BL145+0) -> 0 | BM146: 0 | BN146: =IF(AV146<>"Дома",BN145+1,BN145+0) -> 2 | BO146: =IF(AV146<>"Дома",IF(AW146="В",BO145+1,BO145+0),BO145+0) -> 0 | BP146: =IF(AV146<>"Дома",IF(AW146="Н",BP145+1,BP145+0),BP145+0) -> 1 | BQ146: =IF(AV146<>"Дома",IF(AW146="П",BQ145+1,BQ145+0),BQ145+0) -> 1 | BR146: =IF(AV146<>"Дома",BR145+AX146,BR145+0) -> 1 | BS146: =IF(AV146<>"Дома",BS145+AY146,BS145+0) -> 2 | BT146: 1 | BU146: =IF(AV146="Дома",IF(AX146=0,BU145+1,BU145),BU145) -> 0 | BV146: =IF(AV146="Дома",IF(AX146=1,BV145+1,BV145),BV145) -> 0 | BW146: =IF(AV146="Дома",IF(AX146=2,BW145+1,BW145),BW145) -> 0 | BX146: =IF(AV146="Дома",IF(AX146>=3,BX145+1,BX145),BX145) -> 0 | BY146: =IF(AV146<>"Дома",IF(AX146=0,BY145+1,BY145),BY145) -> 1 | BZ146: =IF(AV146<>"Дома",IF(AX146=1,BZ145+1,BZ145),BZ145) -> 1 | CA146: =IF(AV146<>"Дома",IF(AX146=2,CA145+1,CA145),CA145) -> 0 | CB146: =IF(AV146<>"Дома",IF(AX146>=3,CB145+1,CB145),CB145) -> 0 | CC146: 0.5 | CD146: 1 | CE146: 0.03333333333
AM147: ='Analysis (2)'!A4 -> 17.04.2021 | AN147: ='Analysis (2)'!C4 -> Roma | AO147: ='Analysis (2)'!D4 -> Empoli | AP147: ='Analysis (2)'!E4 -> 2 : 0 | AR147: Roma | AS147: Empoli | AT147: 2 | AU147: 0 | AV147: Дома | AW147: В | AX147: 2 | AY147: 0 | AZ147: 3 | BA147: 1 | BB147: 1 | BC147: 1 | BD147: 3 | BE147: 2 | BF147: 4 | BG147: 1 | BH147: 1 | BI147: 0 | BJ147: 0 | BK147: 2 | BL147: 0 | BM147: 3 | BN147: 2 | BO147: 0 | BP147: 1 | BQ147: 1 | BR147: 1 | BS147: 2 | BT147: 1 | BU147: 0 | BV147: 0 | BW147: 1 | BX147: 0 | BY147: 1 | BZ147: 1 | CA147: 0 | CB147: 0 | CC147: 1 | CD147: 0.6666666667 | CE147: 0.3666666667 | CF147: В | CG147: 2
AM148: ='Analysis (2)'!A5 -> 11.04.2021 | AN148: ='Analysis (2)'!C5 -> Roma | AO148: ='Analysis (2)'!D5 -> Cremonese | AP148: ='Analysis (2)'!E5 -> 1 : 2 | AR148: Roma | AS148: Cremonese | AT148: 1 | AU148: 2 | AV148: Дома | AW148: П | AX148: 1 | AY148: 2 | AZ148: 4 | BA148: 1 | BB148: 1 | BC148: 2 | BD148: 4 | BE148: 4 | BF148: 4 | BG148: 2 | BH148: 1 | BI148: 0 | BJ148: 1 | BK148: 3 | BL148: 2 | BM148: 3 | BN148: 2 | BO148: 0 | BP148: 1 | BQ148: 1 | BR148: 1 | BS148: 2 | BT148: 1 | BU148: 0 | BV148: 1 | BW148: 1 | BX148: 0 | BY148: 1 | BZ148: 1 | CA148: 0 | CB148: 0 | CC148: 1 | CD148: 1 | CE148: 0.1333333333 | CF148: П | CG148: 3
AM149: ='Analysis (2)'!A6 -> 03.04.2021 | AN149: ='Analysis (2)'!C6 -> Napoli | AO149: ='Analysis (2)'!D6 -> Roma | AP149: ='Analysis (2)'!E6 -> 2 : 1 | AR149: Napoli | AS149: Roma | AT149: 2 | AU149: 1 | AV149: В гостях | AW149: П | AX149: 1 | AY149: 2 | AZ149: 5 | BA149: 1 | BB149: 1 | BC149: 3 | BD149: 5 | BE149: 6 | BF149: 4 | BG149: 2 | BH149: 1 | BI149: 0 | BJ149: 1 | BK149: 3 | BL149: 2 | BM149: 3 | BN149: 3 | BO149: 0 | BP149: 1 | BQ149: 2 | BR149: 2 | BS149: 4 | BT149: 1 | BU149: 0 | BV149: 1 | BW149: 1 | BX149: 0 | BY149: 1 | BZ149: 2 | CA149: 0 | CB149: 0 | CC149: 1 | CD149: 1.2 | CE149: 0.1111111111
AM150: ='Analysis (2)'!A7 -> 21.03.2021 | AN150: ='Analysis (2)'!C7 -> Spezia | AO150: ='Analysis (2)'!D7 -> Roma | AP150: ='Analysis (2)'!E7 -> 0 : 2 | AR150: Spezia | AS150: Roma | AT150: 0 | AU150: 2 | AV150: В гостях | AW150: В | AX150: 2 | AY150: 0 | AZ150: 6 | BA150: 2 | BB150: 1 | BC150: 3 | BD150: 7 | BE150: 6 | BF150: 7 | BG150: 2 | BH150: 1 | BI150: 0 | BJ150: 1 | BK150: 3 | BL150: 2 | BM150: 3 | BN150: 4 | BO150: 1 | BP150: 1 | BQ150: 2 | BR150: 4 | BS150: 4 | BT150: 4 | BU150: 0 | BV150: 1 | BW150: 1 | BX150: 0 | BY150: 1 | BZ150: 2 | CA150: 1 | CB150: 0 | CC150: 1.166666667 | CD150: 1 | CE150: 0.2333333333
AM151: ='Analysis (2)'!A8 -> 14.03.2021 | AN151: ='Analysis (2)'!C8 -> Roma | AO151: ='Analysis (2)'!D8 -> Fiorentina | AP151: ='Analysis (2)'!E8 -> 2 : 0 | AR151: Roma | AS151: Fiorentina | AT151: 2 | AU151: 0 | AV151: Дома | AW151: В | AX151: 2 | AY151: 0 | AZ151: 7 | BA151: 3 | BB151: 1 | BC151: 3 | BD151: 9 | BE151: 6 | BF151: 10 | BG151: 3 | BH151: 2 | BI151: 0 | BJ151: 1 | BK151: 5 | BL151: 2 | BM151: 6 | BN151: 4 | BO151: 1 | BP151: 1 | BQ151: 2 | BR151: 4 | BS151: 4 | BT151: 4 | BU151: 0 | BV151: 1 | BW151: 2 | BX151: 0 | BY151: 1 | BZ151: 2 | CA151: 1 | CB151: 0 | CC151: 1.285714286 | CD151: 0.8571428571 | CE151: 0.3111111111 | CF151: В | CG151: 2
AM152: ='Analysis (2)'!A9 -> 07.03.2021 | AN152: ='Analysis (2)'!C9 -> Roma | AO152: ='Analysis (2)'!D9 -> Genoa | AP152: ='Analysis (2)'!E9 -> 1 : 0 | AR152: Roma | AS152: Genoa | AT152: 1 | AU152: 0 | AV152: Дома | AW152: В | AX152: 1 | AY152: 0 | AZ152: 8 | BA152: 4 | BB152: 1 | BC152: 3 | BD152: 10 | BE152: 6 | BF152: 13 | BG152: 4 | BH152: 3 | BI152: 0 | BJ152: 1 | BK152: 6 | BL152: 2 | BM152: 9 | BN152: 4 | BO152: 1 | BP152: 1 | BQ152: 2 | BR152: 4 | BS152: 4 | BT152: 4 | BU152: 0 | BV152: 2 | BW152: 2 | BX152: 0 | BY152: 1 | BZ152: 2 | CA152: 1 | CB152: 0 | CC152: 1.25 | CD152: 0.75 | CE152: 0.3333333333 | CF152: В | CG152: 1
AM153: ='Analysis (2)'!A10 -> 03.03.2021 | AN153: ='Analysis (2)'!C10 -> Milan | AO153: ='Analysis (2)'!D10 -> Roma | AP153: ='Analysis (2)'!E10 -> 2 : 2 | AR153: Milan | AS153: Roma | AT153: 2 | AU153: 2 | AV153: В гостях | AW153: Н | AX153: 2 | AY153: 2 | AZ153: 9 | BA153: 4 | BB153: 2 | BC153: 3 | BD153: 12 | BE153: 8 | BF153: 14 | BG153: 4 | BH153: 3 | BI153: 0 | BJ153: 1 | BK153: 6 | BL153: 2 | BM153: 9 | BN153: 5 | BO153: 1 | BP153: 2 | BQ153: 2 | BR153: 6 | BS153: 6 | BT153: 5 | BU153: 0 | BV153: 2 | BW153: 2 | BX153: 0 | BY153: 1 | BZ153: 2 | CA153: 2 | CB153: 0 | CC153: 1.333333333 | CD153: 0.8888888889 | CE153: 0.34
AM154: ='Analysis (2)'!A11 -> 28.02.2021 | AN154: ='Analysis (2)'!C11 -> Roma | AO154: ='Analysis (2)'!D11 -> Bologna | AP154: ='Analysis (2)'!E11 -> 1 : 0 | AR154: Roma | AS154: Bologna | AT154: 1 | AU154: 0 | AV154: Дома | AW154: В | AX154: 1 | AY154: 0 | AZ154: 10 | BA154: 5 | BB154: 2 | BC154: 3 | BD154: 13 | BE154: 8 | BF154: 17 | BG154: 5 | BH154: 4 | BI154: 0 | BJ154: 1 | BK154: 7 | BL154: 2 | BM154: 12 | BN154: 5 | BO154: 1 | BP154: 2 | BQ154: 2 | BR154: 6 | BS154: 6 | BT154: 5 | BU154: 0 | BV154: 3 | BW154: 2 | BX154: 0 | BY154: 1 | BZ154: 2 | CA154: 2 | CB154: 0 | CC154: 1.3 | CD154: 0.8 | CE154: 0.3533333333 | CF154: В | CG154: 1
BD158: забито | BE158: пропущенно
BC159: дома | BD159: =BK154 -> 7 | BE159: =BL154 -> 2 | BG159: =BD159+BE160 -> 10 | BH159: =BG159*BG159 -> 100 | BI159: =BH159/(BH159+BH160) -> 0.8620689655 | BJ159: =100/BK159 -> 1.16 | BK159: =BI159*100 -> 86.20689655 | BL159: =100/BK159 -> 1.16
BC160: гости | BD160: =BR175 -> 2 | BE160: =BS175 -> 3 | BG160: =BD160+BE159 -> 4 | BH160: =BG160*BG160 -> 16 | BI160: =BH160/(BH160+BH159) -> 0.1379310345 | BJ160: =100/BK160 -> 7.25 | BK160: =BI160*100 -> 13.79310345 | BL160: =100/BK160 -> 7.25
AZ164: Всего | BG164: Дома | BN164: В гостях | BU164: Забивают дома | BY164: Забивают в гостях
AM165: Команда- | AO165: =IF(AR166=AR169,AR166,IF(AR166=AS169,AR166,AS166)) -> Hellas Verona | AR165: Команда1 | AS165: Команда2 | AT165: Голы1 | AU165: Голы2 | AV165: Где играла | AW165: Результат | AX165: Забито | AY165: Пропущено | AZ165: Игр | BA165: В | BB165: Н | BC165: П | BD165: Забито | BE165: Пропущено | BF165: Очки | BG165: Игр | BH165: В | BI165: Н | BJ165: П | BK165: Забито | BL165: Пропущено | BM165: Очки | BN165: Игр | BO165: В | BP165: Н | BQ165: П | BR165: Забито | BS165: Пропущено | BT165: Очки | BU165: 0 | BV165: 1 | BW165: 2 | BX165: 3+ | BY165: 0 | BZ165: 1 | CA165: 2 | CB165: 3+ | CC165: Забивают | CD165: Пропускают | CE165: Рейтинг | CF165: Серия | CG165: Забив
AM166: ='Analysis (2)'!A14 -> 29.04.2021 | AN166: ='Analysis (2)'!C14 -> Hellas Verona | AO166: ='Analysis (2)'!D14 -> Salernitana | AP166: ='Analysis (2)'!E14 -> 1 : 0 | AR166: =AN166 -> Hellas Verona | AS166: =AO166 -> Salernitana | AT166: =VALUE(LEFT(AP166,FIND(":",AP166,1)-1)) -> 1 | AU166: =VALUE(LEFT(RIGHT(AP166,LEN(AP166)-FIND(":",AP166,1)),100)) -> 0 | AV166: =IF(AR166=$AO$165,"Дома","В гостях") -> Дома | AW166: =IF(AV166="Дома",IF(AT166>AU166,"В",IF(AT166=AU166,"Н","П")),IF(AT166<AU166,"В",IF(AT166=AU166,"Н","П"))) -> В | AX166: =IF(AV166="Дома",AT166,AU166) -> 1 | AY166: =IF(AV166="Дома",AU166,AT166) -> 0 | AZ166: 1 | BA166: =IF(AW166="В",1,0) -> 1 | BB166: =IF(AW166="Н",1,0) -> 0 | BC166: =IF(AW166="П",1,0) -> 0 | BD166: =AX166 -> 1 | BE166: =AY166 -> 0 | BF166: =BA166*3+BB166 -> 3 | BG166: =IF(AV166="Дома",1,0) -> 1 | BH166: =IF(AV166="Дома",IF(AW166="В",1,0),0) -> 1 | BI166: =IF(AV166="Дома",IF(AW166="Н",1,0),0) -> 0 | BJ166: =IF(AV166="Дома",IF(AW166="П",1,0),0) -> 0 | BK166: =IF(AV166="Дома",AX166,0) -> 1 | BL166: =IF(AV166="Дома",AY166,0) -> 0 | BM166: =BH166*3+BI166 -> 3 | BN166: =IF(AV166<>"Дома",1,0) -> 0 | BO166: =IF(AV166<>"Дома",IF(AW166="В",1,0),0) -> 0 | BP166: =IF(AV166<>"Дома",IF(AW166="Н",1,0),0) -> 0 | BQ166: =IF(AV166<>"Дома",IF(AW166="П",1,0),0) -> 0 | BR166: =IF(AV166<>"Дома",AX166,0) -> 0 | BS166: =IF(AV166<>"Дома",AY166,0) -> 0 | BT166: =BO166*3+BP166 -> 0 | BU166: =IF(AV166="Дома",IF(AX166=0,1,0),0) -> 0 | BV166: =IF(AV166="Дома",IF(AX166=1,1,0),0) -> 1 | BW166: =IF(AV166="Дома",IF(AX166=2,1,0),0) -> 0 | BX166: =IF(AV166="Дома",IF(AX166>=3,1,0),0) -> 0 | BY166: =IF(AV166<>"Дома",IF(AX166=0,1,0),0) -> 0 | BZ166: =IF(AV166<>"Дома",IF(AX166=1,1,0),0) -> 0 | CA166: =IF(AV166<>"Дома",IF(AX166=2,1,0),0) -> 0 | CB166: =IF(AV166<>"Дома",IF(AX166>=3,1,0),0) -> 0 | CC166: =BD166/AZ166 -> 1 | CD166: =BE166/AZ166 -> 0 | CE166: =(BM166/IF(BG166<1,1,BG166)+BT166/IF(BN166<1,1,BN166)*1.5+BK166/IF(BG166<1,1,BG166)+BR166/IF(BN166<1,1,BN166)*1.5-BL166/IF(BG166<1,1,BG166)*1.5-BS166/IF(BN166<1,1,BN166))/15 -> 0.2666666667 | CF166: =IF(AV166="В гостях",IF(AW166="В","В",IF(AW166="Н","Н","П")),"") ->  | CG166: =IF(AV166<>"Дома",AX166+AY166,"") -> 
AM167: ='Analysis (2)'!A15 -> 25.04.2021 | AN167: ='Analysis (2)'!C15 -> Hellas Verona | AO167: ='Analysis (2)'!D15 -> Lazio | AP167: ='Analysis (2)'!E15 -> 1 : 1 | AR167: Hellas Verona | AS167: Lazio | AT167: 1 | AU167: 1 | AV167: Дома | AW167: Н | AX167: 1 | AY167: 1 | AZ167: =AZ166+1 -> 2 | BA167: =IF(AW167="В",BA166+1,BA166+0) -> 1 | BB167: =IF(AW167="Н",BB166+1,BB166+0) -> 1 | BC167: =IF(AW167="П",BC166+1,BC166+0) -> 0 | BD167: =AX167+BD166 -> 2 | BE167: =AY167+BE166 -> 1 | BF167: 4 | BG167: =IF(AV167="Дома",BG166+1,BG166+0) -> 2 | BH167: =IF(AV167="Дома",IF(AW167="В",BH166+1,BH166+0),BH166+0) -> 1 | BI167: =IF(AV167="Дома",IF(AW167="Н",BI166+1,BI166+0),BI166+0) -> 1 | BJ167: =IF(AV167="Дома",IF(AW167="П",BJ166+1,BJ166+0),BJ166+0) -> 0 | BK167: =IF(AV167="Дома",BK166+AX167,BK166+0) -> 2 | BL167: =IF(AV167="Дома",BL166+AY167,BL166+0) -> 1 | BM167: 4 | BN167: =IF(AV167<>"Дома",BN166+1,BN166+0) -> 0 | BO167: =IF(AV167<>"Дома",IF(AW167="В",BO166+1,BO166+0),BO166+0) -> 0 | BP167: =IF(AV167<>"Дома",IF(AW167="Н",BP166+1,BP166+0),BP166+0) -> 0 | BQ167: =IF(AV167<>"Дома",IF(AW167="П",BQ166+1,BQ166+0),BQ166+0) -> 0 | BR167: =IF(AV167<>"Дома",BR166+AX167,BR166+0) -> 0 | BS167: =IF(AV167<>"Дома",BS166+AY167,BS166+0) -> 0 | BT167: 0 | BU167: =IF(AV167="Дома",IF(AX167=0,BU166+1,BU166),BU166) -> 0 | BV167: =IF(AV167="Дома",IF(AX167=1,BV166+1,BV166),BV166) -> 2 | BW167: =IF(AV167="Дома",IF(AX167=2,BW166+1,BW166),BW166) -> 0 | BX167: =IF(AV167="Дома",IF(AX167>=3,BX166+1,BX166),BX166) -> 0 | BY167: =IF(AV167<>"Дома",IF(AX167=0,BY166+1,BY166),BY166) -> 0 | BZ167: =IF(AV167<>"Дома",IF(AX167=1,BZ166+1,BZ166),BZ166) -> 0 | CA167: =IF(AV167<>"Дома",IF(AX167=2,CA166+1,CA166),CA166) -> 0 | CB167: =IF(AV167<>"Дома",IF(AX167>=3,CB166+1,CB166),CB166) -> 0 | CC167: 1 | CD167: 0.5 | CE167: 0.15
AM168: ='Analysis (2)'!A16 -> 22.04.2021 | AN168: ='Analysis (2)'!C16 -> Udinese | AO168: ='Analysis (2)'!D16 -> Hellas Verona | AP168: ='Analysis (2)'!E16 -> 1 : 1 | AR168: Udinese | AS168: Hellas Verona | AT168: 1 | AU168: 1 | AV168: В гостях | AW168: Н | AX168: 1 | AY168: 1 | AZ168: 3 | BA168: 1 | BB168: 2 | BC168: 0 | BD168: 3 | BE168: 2 | BF168: 5 | BG168: 2 | BH168: 1 | BI168: 1 | BJ168: 0 | BK168: 2 | BL168: 1 | BM168: 4 | BN168: 1 | BO168: 0 | BP168: 1 | BQ168: 0 | BR168: 1 | BS168: 1 | BT168: 1 | BU168: 0 | BV168: 2 | BW168: 0 | BX168: 0 | BY168: 0 | BZ168: 1 | CA168: 0 | CB168: 0 | CC168: 1 | CD168: 0.6666666667 | CE168: 0.2833333333 | CF168: Н | CG168: 2
AM169: ='Analysis (2)'!A17 -> 18.04.2021 | AN169: ='Analysis (2)'!C17 -> Hellas Verona | AO169: ='Analysis (2)'!D17 -> Lecce | AP169: ='Analysis (2)'!E17 -> 2 : 0 | AR169: Hellas Verona | AS169: Lecce | AT169: 2 | AU169: 0 | AV169: Дома | AW169: В | AX169: 2 | AY169: 0 | AZ169: 4 | BA169: 2 | BB169: 2 | BC169: 0 | BD169: 5 | BE169: 2 | BF169: 8 | BG169: 3 | BH169: 2 | BI169: 1 | BJ169: 0 | BK169: 4 | BL169: 1 | BM169: 7 | BN169: 1 | BO169: 0 | BP169: 1 | BQ169: 0 | BR169: 1 | BS169: 1 | BT169: 1 | BU169: 0 | BV169: 2 | BW169: 1 | BX169: 0 | BY169: 0 | BZ169: 1 | CA169: 0 | CB169: 0 | CC169: 1.25 | CD169: 0.5 | CE169: 0.3444444444
AM170: ='Analysis (2)'!A18 -> 15.04.2021 | AN170: ='Analysis (2)'!C18 -> Inter | AO170: ='Analysis (2)'!D18 -> Hellas Verona | AP170: ='Analysis (2)'!E18 -> 1 : 0 | AR170: Inter | AS170: Hellas Verona | AT170: 1 | AU170: 0 | AV170: В гостях | AW170: П | AX170: 0 | AY170: 1 | AZ170: 5 | BA170: 2 | BB170: 2 | BC170: 1 | BD170: 5 | BE170: 3 | BF170: 8 | BG170: 3 | BH170: 2 | BI170: 1 | BJ170: 0 | BK170: 4 | BL170: 1 | BM170: 7 | BN170: 2 | BO170: 0 | BP170: 1 | BQ170: 1 | BR170: 1 | BS170: 2 | BT170: 1 | BU170: 0 | BV170: 2 | BW170: 1 | BX170: 0 | BY170: 1 | BZ170: 1 | CA170: 0 | CB170: 0 | CC170: 1 | CD170: 0.6 | CE170: 0.2444444444 | CF170: П | CG170: 1
AM171: ='Analysis (2)'!A19 -> 11.04.2021 | AN171: ='Analysis (2)'!C19 -> Hellas Verona | AO171: ='Analysis (2)'!D19 -> Cremonese | AP171: ='Analysis (2)'!E19 -> 2 : 0 | AR171: Hellas Verona | AS171: Cremonese | AT171: 2 | AU171: 0 | AV171: Дома | AW171: В | AX171: 2 | AY171: 0 | AZ171: 6 | BA171: 3 | BB171: 2 | BC171: 1 | BD171: 7 | BE171: 3 | BF171: 11 | BG171: 4 | BH171: 3 | BI171: 1 | BJ171: 0 | BK171: 6 | BL171: 1 | BM171: 10 | BN171: 2 | BO171: 0 | BP171: 1 | BQ171: 1 | BR171: 1 | BS171: 2 | BT171: 1 | BU171: 0 | BV171: 2 | BW171: 2 | BX171: 0 | BY171: 1 | BZ171: 1 | CA171: 0 | CB171: 0 | CC171: 1.166666667 | CD171: 0.5 | CE171: 0.275
AM172: ='Analysis (2)'!A20 -> 08.04.2021 | AN172: ='Analysis (2)'!C20 -> Torino | AO172: ='Analysis (2)'!D20 -> Hellas Verona | AP172: ='Analysis (2)'!E20 -> 1 : 1 | AR172: Torino | AS172: Hellas Verona | AT172: 1 | AU172: 1 | AV172: В гостях | AW172: Н | AX172: 1 | AY172: 1 | AZ172: 7 | BA172: 3 | BB172: 3 | BC172: 1 | BD172: 8 | BE172: 4 | BF172: 12 | BG172: 4 | BH172: 3 | BI172: 1 | BJ172: 0 | BK172: 6 | BL172: 1 | BM172: 10 | BN172: 3 | BO172: 0 | BP172: 2 | BQ172: 1 | BR172: 2 | BS172: 3 | BT172: 2 | BU172: 0 | BV172: 2 | BW172: 2 | BX172: 0 | BY172: 1 | BZ172: 2 | CA172: 0 | CB172: 0 | CC172: 1.142857143 | CD172: 0.5714285714 | CE172: 0.3083333333 | CF172: Н | CG172: 2
AM173: ='Analysis (2)'!A21 -> 03.04.2021 | AN173: ='Analysis (2)'!C21 -> Hellas Verona | AO173: ='Analysis (2)'!D21 -> Bologna | AP173: ='Analysis (2)'!E21 -> 0 : 1 | AR173: Hellas Verona | AS173: Bologna | AT173: 0 | AU173: 1 | AV173: Дома | AW173: П | AX173: 0 | AY173: 1 | AZ173: 8 | BA173: 3 | BB173: 3 | BC173: 2 | BD173: 8 | BE173: 5 | BF173: 12 | BG173: 5 | BH173: 3 | BI173: 1 | BJ173: 1 | BK173: 6 | BL173: 2 | BM173: 10 | BN173: 3 | BO173: 0 | BP173: 2 | BQ173: 1 | BR173: 2 | BS173: 3 | BT173: 2 | BU173: 1 | BV173: 2 | BW173: 2 | BX173: 0 | BY173: 1 | BZ173: 2 | CA173: 0 | CB173: 0 | CC173: 1 | CD173: 0.625 | CE173: 0.24
AM174: ='Analysis (2)'!A22 -> 21.03.2021 | AN174: ='Analysis (2)'!C22 -> Hellas Verona | AO174: ='Analysis (2)'!D22 -> Istra 1961 | AP174: ='Analysis (2)'!E22 -> 0 : 0 | AR174: Hellas Verona | AS174: Istra 1961 | AT174: 0 | AU174: 0 | AV174: Дома | AW174: Н | AX174: 0 | AY174: 0 | AZ174: 9 | BA174: 3 | BB174: 4 | BC174: 2 | BD174: 8 | BE174: 5 | BF174: 13 | BG174: 6 | BH174: 3 | BI174: 2 | BJ174: 1 | BK174: 6 | BL174: 2 | BM174: 11 | BN174: 3 | BO174: 0 | BP174: 2 | BQ174: 1 | BR174: 2 | BS174: 3 | BT174: 2 | BU174: 2 | BV174: 2 | BW174: 2 | BX174: 0 | BY174: 1 | BZ174: 2 | CA174: 0 | CB174: 0 | CC174: 0.8888888889 | CD174: 0.5555555556 | CE174: 0.2222222222
AM175: ='Analysis (2)'!A23 -> 18.03.2021 | AN175: ='Analysis (2)'!C23 -> Hellas Verona | AO175: ='Analysis (2)'!D23 -> Spezia | AP175: ='Analysis (2)'!E23 -> 1 : 2 | AR175: Hellas Verona | AS175: Spezia | AT175: 1 | AU175: 2 | AV175: Дома | AW175: П | AX175: 1 | AY175: 2 | AZ175: 10 | BA175: 3 | BB175: 4 | BC175: 3 | BD175: 9 | BE175: 7 | BF175: 13 | BG175: 7 | BH175: 3 | BI175: 2 | BJ175: 2 | BK175: 7 | BL175: 4 | BM175: 11 | BN175: 3 | BO175: 0 | BP175: 2 | BQ175: 1 | BR175: 2 | BS175: 3 | BT175: 2 | BU175: 2 | BV175: 3 | BW175: 2 | BX175: 0 | BY175: 1 | BZ175: 2 | CA175: 0 | CB175: 0 | CC175: 0.9 | CD175: 0.7 | CE175: 0.180952381
BK429: СЧЕТ
B430: =IF(COUNTIF(E431:F445,E431)>COUNTIF(E431:F445,F431),E431,F431) -> Roma | U430: хозяева | AZ430: =AN445 -> 1.488888889 | BF430: =AQ445 -> 0.8083333333 | BK430: =BB434 -> 0.1496895056 | BL430: 1 - 0 | BO430: =SUM(BB434,BB435,BE434,BE435,BH434,BH435) -> 0.596775583 | BP430: =1/BO430 -> 1.675671774 | BQ430: 1 | BR430: x | BS430: 2
B431: 1 | C431: 04.08.18 | D431: 2DIV | E431: ='Analysis (2)'!C2 -> Salzburg | F431: ='Analysis (2)'!D2 -> Roma | G431: ='Analysis (2)'!E2 -> 1 : 0 | I431: =SEARCH(":",G431) -> 3 | J431: =LEFT(G431,I431-1)*1 -> 1 | K431: =MID(G431,I431+1,4)*1 -> 0 | L431: =IF(OR(J431="",K431=""),"",IF(E431=$B$430,J431,K431)) -> 0 | M431: =IF(OR(J431="",K431=""),"",IF(E431=$B$430,K431,J431)) -> 1 | N431: =IF(OR(L431="",M431=""),"",IF(L431>M431,3,IF(L431<M431,0,1))) -> 0 | O431: =IF(N431="","",IF(N431=3,1,IF(N431=1,0.5,IF(N431=0,0)))) -> 0 | P431: =IF(N431="","",IF(N431=1,"D",IF(N431=0,"L",IF(N431=3,"W")))) -> L | Q431: =IF(S431>2.5,"over 2.5 goals","under 2.5 goals") -> under 2.5 goals | R431: =IF(OR(L431="",M431=""),"",L431-M431) -> -1 | S431: =IF(OR(J431="",K431=""),"",J431+K431) -> 1 | U431: =B430 -> Roma | AN431: =COUNT(AB432:AB441) -> 5 | AO431: =COUNT(J431:J440) -> 10 | AQ431: =COUNT(J448:J462) -> 10 | AR431: =COUNT(AB450:AB464) -> 3 | BK431: 0.1114355209 | BL431: 2 - 0 | BO431: =SUM(BB436:BB461,BE436:BE441,BH436:BH461) -> 0.4030608758 | BP431: 2.481014805
B432: =1+B431 -> 2 | C432: 09.06.18 | D432: 2DIV | E432: ='Analysis (2)'!C3 -> Lecce | F432: ='Analysis (2)'!D3 -> Roma | G432: ='Analysis (2)'!E3 -> 1 : 1 | I432: 3 | J432: 1 | K432: 1 | L432: 1 | M432: 1 | N432: 1 | O432: 0.5 | P432: D | Q432: under 2.5 goals | R432: 0 | S432: 2 | U432: 1 | V432: =IF(E431=$B$430,E431,"-") -> - | W432: =IF(E431=$B$430,F431,"-") -> - | X432: =IF(AND(V432=E431,W432=F431),G431,"-") -> - | Y432: =SEARCH(":",X432) ->  | Z432: =LEFT(X432,Y432-1)*1 ->  | AA432: =MID(X432,Y432+1,4)*1 ->  | AB432: =IFERROR(Z432,"") ->  | AC432: =IFERROR(AA432,"") ->  | AD432: =IF(OR(AB432="",AC432=""),"",AB432) ->  | AE432: =IF(OR(AB432="",AC432=""),"",AC432) ->  | AF432: =IF(OR(AD432="",AE432=""),"",IF(AD432>AE432,3,IF(AD432<AE432,0,1))) ->  | AG432: =IF(AF432="","",IF(AF432=3,1,IF(AF432=1,0.5,IF(AF432=0,0)))) ->  | AH432: =IF(AF432="","",IF(AF432=1,"D",IF(AF432=0,"L",IF(AF432=3,"W")))) ->  | AI432: =IF(OR(AD432="",AE432=""),"",AD432-AE432) ->  | AJ432: =SUM(AD432:AE432) -> 0 | AN432: =SUM(AD432:AD446) -> 7 | AO432: =SUM(L431:L445) -> 13 | AQ432: =SUM(L448:L457) -> 9 | AR432: =SUM(AD450:AD464) -> 2 | AZ432: 1 | BC432: X | BF432: 2 | BK432: 0.05530503628 | BL432: 3 - 0 | BO432: =SUM(BB441:BB461,BE435:BE441,BH441:BH461) -> 0.4292232509 | BP432: 2.329789912
B433: 3 | C433: 02.06.18 | D433: 2DIV | E433: ='Analysis (2)'!C4 -> Roma | F433: ='Analysis (2)'!D4 -> Empoli | G433: ='Analysis (2)'!E4 -> 2 : 0 | I433: 3 | J433: 2 | K433: 0 | L433: 2 | M433: 0 | N433: 3 | O433: 1 | P433: W | Q433: under 2.5 goals | R433: 2 | S433: 2 | U433: =1+U432 -> 2 | V433: - | W433: - | X433: - | AJ433: 0 | AN433: =SUM(AE432:AE441) -> 2 | AO433: =SUM(M431:M445) -> 8 | AQ433: =SUM(M448:M457) -> 7 | AR433: =SUM(AE450:AE464) -> 3 | BK433: 0.02058576351 | BL433: 4 - 0 | BO433: =SUM(BB434:BB440,BE434,BH434:BH440) -> 0.5706132079 | BP433: 1.752500619
B434: 4 | C434: 26.05.18 | D434: 2DIV | E434: ='Analysis (2)'!C5 -> Roma | F434: ='Analysis (2)'!D5 -> Cremonese | G434: ='Analysis (2)'!E5 -> 1 : 2 | I434: 3 | J434: 1 | K434: 2 | L434: 1 | M434: 2 | N434: 0 | O434: 0 | P434: L | Q434: over 2.5 goals | R434: -1 | S434: 3 | U434: 3 | V434: Roma | W434: Empoli | X434: 2 : 0 | Y434: 3 | Z434: 2 | AA434: 0 | AB434: 2 | AC434: 0 | AD434: 2 | AE434: 0 | AF434: 3 | AG434: 1 | AH434: W | AI434: 2 | AJ434: 2 | AN434: =AN432/AN431 -> 1.4 | AO434: =AO432/AO431 -> 1.3 | AQ434: =AQ432/AQ431 -> 0.9 | AR434: =AR432/AR431 -> 0.6666666667 | AZ434: 1 | BA434: 0 | BB434: =((POISSON(AZ434,AZ430,FALSE)*POISSON(BA434,BF430,FALSE)))*100% -> 0.1496895056 | BC434: 0 | BD434: 0 | BE434: =((POISSON(BC434,$AZ$430,FALSE)*POISSON(BD434,$BF$430,FALSE)))*100% -> 0.1005377277 | BF434: 0 | BG434: 1 | BH434: =((POISSON(BF434,$AZ$430,FALSE)*POISSON(BG434,$BF$430,FALSE)))*100% -> 0.08126799653 | BK434: 0.00612998291 | BL434: 5 - 0 | BO434: =SUM(BB434:BB461,BE435:BE441,BH434:BH461) -> 0.8992987311 | BP434: 1.11197755
B435: 5 | C435: 19.05.18 | D435: 2DIV | E435: ='Analysis (2)'!C6 -> Napoli | F435: ='Analysis (2)'!D6 -> Roma | G435: ='Analysis (2)'!E6 -> 2 : 1 | I435: 3 | J435: 2 | K435: 1 | L435: 1 | M435: 2 | N435: 0 | O435: 0 | P435: L | Q435: over 2.5 goals | R435: -1 | S435: 3 | U435: 4 | V435: Roma | W435: Cremonese | X435: 1 : 2 | Y435: 3 | Z435: 1 | AA435: 2 | AB435: 1 | AC435: 2 | AD435: 1 | AE435: 2 | AF435: 0 | AG435: 0 | AH435: L | AI435: -1 | AJ435: 3 | AN435: =AN433/AN431 -> 0.4 | AO435: =AO433/AO431 -> 0.8 | AQ435: =AQ433/AQ431 -> 0.7 | AR435: =AR433/AR431 -> 1 | AZ435: 2 | BA435: 0 | BB435: =((POISSON(AZ435,AZ430,FALSE)*POISSON(BA435,BF430,FALSE)))*100% -> 0.1114355209 | BC435: 1 | BD435: 1 | BE435: 0.1209990171 | BF435: 0 | BG435: 2 | BH435: 0.03284581527 | BK435: 0.001521143907 | BL435: 6 - 0 | BO435: =BE434 -> 0.1005377277 | BP435: 9.946514837
B436: 6 | C436: 16.05.18 | D436: 2DIV | E436: ='Analysis (2)'!C7 -> Spezia | F436: ='Analysis (2)'!D7 -> Roma | G436: ='Analysis (2)'!E7 -> 0 : 2 | I436: 3 | J436: 0 | K436: 2 | L436: 2 | M436: 0 | N436: 3 | O436: 1 | P436: W | Q436: under 2.5 goals | R436: 2 | S436: 2 | U436: 5 | V436: - | W436: - | X436: - | AJ436: 0 | AN436: =COUNTIF(AH432:AH441,"W")/AN431 -> 0.8 | AO436: =COUNTIF(P431:P440,"W")/AO431 -> 0.5 | AQ436: =COUNTIF(P448:P457,"W")/AQ431 -> 0.3 | AR436: =COUNTIF(AH450:AH459,"W")/AR431 -> 0 | AZ436: 3 | BA436: 0 | BB436: =((POISSON(AZ436,AZ430,FALSE)*POISSON(BA436,BF430,FALSE)))*100% -> 0.05530503628 | BC436: 2 | BD436: 2 | BE436: 0.03640613944 | BF436: 0 | BG436: 3 | BH436: 0.008850122447 | BK436: 0.0003235448946 | BL436: 7 - 0 | BO436: =SUM(BB435:BB461,BE435:BE441,BH435:BH461) -> 0.668341229 | BP436: 1.496241675
B437: 7 | C437: 13.05.18 | D437: 2DIV | E437: ='Analysis (2)'!C8 -> Roma | F437: ='Analysis (2)'!D8 -> Fiorentina | G437: ='Analysis (2)'!E8 -> 2 : 0 | I437: 3 | J437: 2 | K437: 0 | L437: 2 | M437: 0 | N437: 3 | O437: 1 | P437: W | Q437: under 2.5 goals | R437: 2 | S437: 2 | U437: 6 | V437: - | W437: - | X437: - | AJ437: 0 | AL437: =AVERAGE(AM437:AM438) -> 2.833333333 | AM437: =IF(OR(AO436=0,AO438=0),0,(AO436/AO438)) -> 1.666666667 | AN437: =COUNTIF(AH432:AH441,"D")/AN431 -> 0 | AO437: =COUNTIF(P431:P440,"D")/AO431 -> 0.2 | AQ437: =COUNTIF(P448:P457,"D")/AQ431 -> 0.4 | AR437: =COUNTIF(AH450:AH459,"D")/AR431 -> 0.6666666667 | AS437: =IF(OR(AQ436=0,AQ438=0),0,(AQ436/AQ438)) -> 1 | AT437: =AVERAGE(AS437:AS438) -> 0.5 | AZ437: 4 | BA437: 0 | BB437: =((POISSON(AZ437,AZ430,FALSE)*POISSON(BA437,BF430,FALSE)))*100% -> 0.02058576351 | BC437: 3 | BD437: 3 | BE437: 0.004868384778 | BF437: 0 | BG437: 4 | BH437: 0.001788462244 | BK437: 0.09007704603 | BL437: 2 - 1 | BO437: =SUM(BB434,BE434,BH434) -> 0.3314952298 | BP437: 3.01663466
B438: 8 | C438: 10.05.18 | D438: 2DIV | E438: ='Analysis (2)'!C9 -> Roma | F438: ='Analysis (2)'!D9 -> Genoa | G438: ='Analysis (2)'!E9 -> 1 : 0 | I438: 3 | J438: 1 | K438: 0 | L438: 1 | M438: 0 | N438: 3 | O438: 1 | P438: W | Q438: under 2.5 goals | R438: 1 | S438: 1 | U438: 7 | V438: Roma | W438: Fiorentina | X438: 2 : 0 | Y438: 3 | Z438: 2 | AA438: 0 | AB438: 2 | AC438: 0 | AD438: 2 | AE438: 0 | AF438: 3 | AG438: 1 | AH438: W | AI438: 2 | AJ438: 2 | AM438: =IF(OR(AN436=0,AN438=0),0,(AN436/AN438)) -> 4 | AN438: =COUNTIF(AH432:AH441,"L")/AN431 -> 0.2 | AO438: =COUNTIF(P431:P440,"L")/AO431 -> 0.3 | AQ438: =COUNTIF(P448:P457,"L")/AQ431 -> 0.3 | AR438: =COUNTIF(AH450:AH459,"L")/AR431 -> 0.3333333333 | AS438: =IF(OR(AR436=0,AR438=0),0,(AR436/AR438)) -> 0 | AZ438: 5 | BA438: 0 | BB438: =((POISSON(AZ438,AZ430,FALSE)*POISSON(BA438,BF430,FALSE)))*100% -> 0.00612998291 | BC438: 4 | BD438: 4 | BE438: 0.0003661994522 | BF438: 0 | BG438: 5 | BH438: 0.0002891347295 | BK438: 0.04470490433 | BL438: 3 - 1 | BO438: =SUM(BB437:BB440,BB442:BB461,BE436:BE441,BH437:BH440,BH442:BH461) -> 0.1999249016 | BP438: 5.001878165
B439: 9 | C439: 05.05.18 | D439: 2DIV | E439: ='Analysis (2)'!C10 -> Milan | F439: ='Analysis (2)'!D10 -> Roma | G439: ='Analysis (2)'!E10 -> 2 : 2 | I439: 3 | J439: 2 | K439: 2 | L439: 2 | M439: 2 | N439: 1 | O439: 0.5 | P439: D | Q439: over 2.5 goals | R439: 0 | S439: 4 | U439: 8 | V439: Roma | W439: Genoa | X439: 1 : 0 | Y439: 3 | Z439: 1 | AA439: 0 | AB439: 1 | AC439: 0 | AD439: 1 | AE439: 0 | AF439: 3 | AG439: 1 | AH439: W | AI439: 1 | AJ439: 1 | AZ439: 6 | BA439: 0 | BB439: =((POISSON(AZ439,AZ430,FALSE)*POISSON(BA439,BF430,FALSE)))*100% -> 0.001521143907 | BC439: 5 | BD439: 5 | BE439: 1.762911289e-05 | BF439: 0 | BG439: 6 | BH439: 3.895287328e-05 | BK439: 0.01664015883 | BL439: 4 - 1 | BO439: =SUM(BB434:BB436,BB441,BE434:BE435,BH434:BH436,BH441) -> 0.7999115572 | BP439: 1.250138207
B440: 10 | C440: 28.04.18 | D440: 2DIV | E440: ='Analysis (2)'!C11 -> Roma | F440: ='Analysis (2)'!D11 -> Bologna | G440: ='Analysis (2)'!E11 -> 1 : 0 | I440: 3 | J440: 1 | K440: 0 | L440: 1 | M440: 0 | N440: 3 | O440: 1 | P440: W | Q440: under 2.5 goals | R440: 1 | S440: 1 | U440: 9 | V440: - | W440: - | X440: - | AJ440: 0 | AM440: =(AO434+AQ435)/2 -> 1 | AN440: =AM440 -> 1 | AQ440: =(AQ434+AO435)/2 -> 0.85 | AZ440: 7 | BA440: 0 | BB440: =((POISSON(AZ440,AZ430,FALSE)*POISSON(BA440,BF430,FALSE)))*100% -> 0.0003235448946 | BC440: 6 | BD440: 6 | BE440: 5.893601063e-07 | BF440: 0 | BG440: 7 | BH440: 4.498129415e-06 | BK440: 0.004955069519 | BL440: 5 - 1 | BO440: =SUM(BB434:BB461,BE435:BE441,BH441:BH461) -> 0.7742137489 | BP440: 1.291632965 | BR440: =1-BO440 -> 0.2257862511 | BS440: =1/BR440 -> 4.428967642
B441: BORDBET | U441: 10 | V441: Roma | W441: Bologna | X441: 1 : 0 | Y441: 3 | Z441: 1 | AA441: 0 | AB441: 1 | AC441: 0 | AD441: 1 | AE441: 0 | AF441: 3 | AG441: 1 | AH441: W | AI441: 1 | AJ441: 1 | AM441: =(AN434+AR435)/2 -> 1.2 | AN441: =AM441 -> 1.2 | AQ441: =(AR434+AN435)/2 -> 0.5333333333 | AZ441: 2 | BA441: 1 | BB441: =((POISSON(AZ441,$AZ$430,FALSE)*POISSON(BA441,$BF$430,FALSE)))*100% -> 0.09007704603 | BC441: 7 | BD441: 7 | BE441: 1.447562861e-08 | BF441: 1 | BG441: 2 | BH441: 0.0489037694 | BK441: 0.001229591325 | BL441: 6 - 1 | BO441: =SUM(BB435:BB461,BE436:BE441,BH447:BH461) -> 0.4382866031 | BP441: 2.281612062 | BR441: 0.5617133969 | BS441: 1.780267313
AM442: =AVERAGE(AM440:AO441) -> 1.1 | AN442: =AM442 -> 1.1 | AQ442: =AVERAGE(AQ440:AS441) -> 0.6916666667 | AZ442: 3 | BA442: 1 | BB442: 0.04470490433 | BC442: =SUM(BE434:BE441) -> 0.2631957013 | BF442: 1 | BG442: 3 | BH442: 0.01317684898 | BK442: 0.0002615321231 | BL442: 7 - 1 | BO442: =SUM(BB436:BB440,BB442:BB461,BE437:BE441,BH452:BH461) -> 0.1882075056 | BP442: 5.313284381 | BR442: 0.8117924944 | BS442: 1.231841889
AM443: =(AL437+AM442)/2 -> 1.966666667 | AN443: =AM443 -> 1.966666667 | AQ443: =(AQ442+AT437)/2 -> 0.5958333333 | AZ443: 4 | BA443: 1 | BB443: 0.01664015883 | BF443: 1 | BG443: 4 | BH443: 0.002662821564 | BK443: 0.01806823217 | BL443: 3 - 2 | BO443: =SUM(BB441:BB461,BE435:BE441,BH434:BH461) -> 0.5543082331 | BP443: 1.804050419 | BR443: 0.4456917669 | BS443: 2.243703102
AN444: =тс!K431 -> 0 | AQ444: =тс!L431 -> 0 | AZ444: 5 | BA444: 1 | BB444: 0.004955069519 | BC444: =1-BC442 -> 0.7368042987 | BF444: 1 | BG444: 5 | BH444: 0.0004304894862 | BK444: 0.006725397528 | BL444: 4 - 2 | BO444: =SUM(BB447:BB461,BE436:BE441,BH435:BH461) -> 0.1941729174 | BP444: 5.150048799 | BR444: 0.8058270826 | BS444: 1.240961022
AN445: =(AN442+тс!K16+AL437)/3 -> 1.488888889 | AQ445: =(AQ442+тс!L16+AT437)/3 -> 0.8083333333 | AZ445: 6 | BA445: 1 | BB445: 0.001229591325 | BF445: 1 | BG445: 6 | BH445: 5.799650022e-05 | BK445: 0.002002673931 | BL445: 5 - 2 | BO445: =SUM(BB452:BB461,BE437:BE441,BH436:BH440,BH442:BH461) -> 0.04861822726 | BP445: 20.56841757 | BR445: 0.9513817727 | BS445: 1.051102752
B446: Football Analytics | AP446: =B430 -> Roma | AZ446: 7 | BA446: 1 | BB446: 0.0002615321231 | BF446: 1 | BG446: 7 | BH446: 6.697214906e-06 | BK446: 0.0004969598272 | BL446: 6 - 2 | BO446: =SUM(BB435,BB437,BB439,BB442,BB444,BB446,BB448,BB450,BB453,BB455,BB457,BB460,BE434:BE441,BH435,BH437,BH439,BH442,BH444,BH446,BH448,BH450,BH453,BH455,BH457,BH460) -> 0.5049606126 | BP446: 1.980352477 | BR446: 0.4950393874 | BS446: 2.020041285
B447: =IF(COUNTIF(E448:F462,E448)>COUNTIF(E448:F462,F448),E448,F448) -> Hellas Verona | AN447: =SUM(BB434:BB461)+SUM(BE435:BE441)+SUM(BH434:BH461) -> 0.8992987311 | AO447: =1/AN447 -> 1.11197755 | AP447: 0.5 | AQ447: =IF(AN447=0,0,(1-AN447)) -> 0.1007012689 | AR447: =IF(OR(AN447=0,AQ447=0),0,(AN447-AQ447)) -> 0.7985974623 | AS447: =1-AR447 -> 0.2014025377 | AZ447: 3 | BA447: 2 | BB447: 0.01806823217 | BF447: 2 | BG447: 3 | BH447: 0.009809432015 | BK447: 0.0001057025664 | BL447: 7 - 2 | BO447: =SUM(BB435:BB461) -> 0.3832296666 | BP447: 2.609401326 | BR447: =BB434 -> 0.1496895056 | BS447: 6.68049504
B448: 1 | C448: 04.08.18 | D448: 2DIV | E448: ='Analysis (2)'!C14 -> Hellas Verona | F448: ='Analysis (2)'!D14 -> Salernitana | G448: ='Analysis (2)'!E14 -> 1 : 0 | I448: =SEARCH(":",G448) -> 3 | J448: =LEFT(G448,I448-1)*1 -> 1 | K448: =MID(G448,I448+1,4)*1 -> 0 | L448: =IF(OR(J448="",K448=""),"",IF(E448=$B$447,J448,K448)) -> 1 | M448: =IF(OR(J448="",K448=""),"",IF(E448=$B$447,K448,J448)) -> 0 | N448: =IF(OR(L448="",M448=""),"",IF(L448>M448,3,IF(L448<M448,0,1))) -> 3 | O448: =IF(N448="","",IF(N448=3,1,IF(N448=1,0.5,IF(N448=0,0)))) -> 1 | P448: =IF(N448="","",IF(N448=1,"D",IF(N448=0,"L",IF(N448=3,"W")))) -> W | Q448: =IF(S448>2.5,"over 2.5 goals","under 2.5 goals") -> under 2.5 goals | R448: =IF(OR(L448="",M448=""),"",L448-M448) -> 1 | S448: =IF(OR(J448="",K448=""),"",J448+K448) -> 1 | U448: гости | AN448: =SUM(BB435:BB461)+SUM(BE435:BE441)+SUM(BH435:BH461) -> 0.668341229 | AO448: =1/AN448 -> 1.496241675 | AP448: 1.5 | AQ448: =IF(AN448=0,0,(1-AN448)) -> 0.331658771 | AR448: =IF(OR(AN448=0,AQ448=0),0,(AN448-AQ448)) -> 0.3366824579 | AS448: =1-AR448 -> 0.6633175421 | AZ448: 4 | BA448: 2 | BB448: 0.006725397528 | BF448: 2 | BG448: 4 | BH448: 0.00198232272 | BK448: 0.001812121001 | BL448: 4 - 3 | BO448: =SUM(BE435:BE441) -> 0.1626579737 | BP448: 6.147869529 | BR448: =BE434 -> 0.1005377277 | BS448: 9.946514837
B449: =1+B448 -> 2 | C449: 09.06.18 | D449: 2DIV | E449: ='Analysis (2)'!C15 -> Hellas Verona | F449: ='Analysis (2)'!D15 -> Lazio | G449: ='Analysis (2)'!E15 -> 1 : 1 | I449: 3 | J449: 1 | K449: 1 | L449: 1 | M449: 1 | N449: 1 | O449: 0.5 | P449: D | Q449: under 2.5 goals | R449: 0 | S449: 2 | U449: =B447 -> Hellas Verona | AN449: =SUM(BB436:BB461)+SUM(BE436:BE441)+SUM(BH436:BH461) -> 0.4030608758 | AO449: =1/AN449 -> 2.481014805 | AP449: 2.5 | AQ449: =IF(AN449=0,0,(1-AN449)) -> 0.5969391242 | AR449: =IF(OR(AN449=0,AQ449=0),0,(AN449-AQ449)) -> -0.1938782484 | AS449: =1-AR449 -> 1.193878248 | AZ449: 5 | BA449: 2 | BB449: 0.002002673931 | BF449: 2 | BG449: 5 | BH449: 0.0003204755064 | BK449: 0.0005396093647 | BL449: 5 - 3 | BO449: =SUM(BH435:BH461) -> 0.1224535887 | BP449: 8.166359275 | BR449: =BH434 -> 0.08126799653 | BS449: 12.30496681
B450: 3 | C450: 02.06.18 | D450: 2DIV | E450: ='Analysis (2)'!C16 -> Udinese | F450: ='Analysis (2)'!D16 -> Hellas Verona | G450: ='Analysis (2)'!E16 -> 1 : 1 | I450: 3 | J450: 1 | K450: 1 | L450: 1 | M450: 1 | N450: 1 | O450: 0.5 | P450: D | Q450: under 2.5 goals | R450: 0 | S450: 2 | U450: 1 | V450: =IF(F448=B447,E448,"-") -> - | W450: =IF(F448=$B$447,F448,"-") -> - | X450: =IF(AND(V450=E448,W450=F448),G448,"-") -> - | Y450: =SEARCH(":",X450) ->  | Z450: =LEFT(X450,Y450-1)*1 ->  | AA450: =MID(X450,Y450+1,4)*1 ->  | AB450: =IFERROR(Z450,"") ->  | AC450: =IFERROR(AA450,"") ->  | AD450: =IF(OR(AB450="",AC450=""),"",AC450) ->  | AE450: =IF(OR(AB450="",AC450=""),"",AB450) ->  | AF450: =IF(OR(AD450="",AE450=""),"",IF(AD450>AE450,3,IF(AD450<AE450,0,1))) ->  | AG450: =IF(AF450="","",IF(AF450=3,1,IF(AF450=1,0.5,IF(AF450=0,0)))) ->  | AH450: =IF(AF450="","",IF(AF450=1,"D",IF(AF450=0,"L",IF(AF450=3,"W")))) ->  | AI450: =IF(OR(AD450="",AE450=""),"",AD450-AE450) ->  | AJ450: =SUM(AD450:AE450) -> 0 | AN450: =BB437+BB438+BB439+BB440+BH437+BH438+BH439+BH440+SUM(BE436:BE441)+SUM(BB442:BB461)+SUM(BH442:BH461) -> 0.1999249016 | AO450: =1/AN450 -> 5.001878165 | AP450: 3.5 | AQ450: =IF(AN450=0,0,(1-AN450)) -> 0.8000750984 | AR450: =IF(OR(AN450=0,AQ450=0),0,(AN450-AQ450)) -> -0.6001501968 | AS450: =1-AR450 -> 1.600150197 | AZ450: 6 | BA450: 2 | BB450: 0.0004969598272 | BF450: 2 | BG450: 6 | BH450: 4.317517239e-05 | BK450: 0.0001339030646 | BL450: 6 - 3 | BO450: =SUM(BB436:BB440,BB442:BB461,BB441) -> 0.2717941457 | BP450: 3.679255112 | BR450: =SUM(BB434:BB435) -> 0.2611250265 | BS450: 3.829583144
B451: 4 | C451: 27.05.18 | D451: 2DIV | E451: ='Analysis (2)'!C17 -> Hellas Verona | F451: ='Analysis (2)'!D17 -> Lecce | G451: ='Analysis (2)'!E17 -> 2 : 0 | I451: 3 | J451: 2 | K451: 0 | L451: 2 | M451: 0 | N451: 3 | O451: 1 | P451: W | Q451: under 2.5 goals | R451: 2 | S451: 2 | U451: =1+U450 -> 2 | V451: =IF(F449=B447,E449,"-") -> - | W451: - | X451: - | AJ451: 0 | AZ451: 7 | BA451: 2 | BB451: 0.0001057025664 | BF451: 2 | BG451: 7 | BH451: 4.98570443e-06 | BK451: 2.848096929e-05 | BL451: 7 - 3 | BO451: =SUM(BE436:BE441) -> 0.04165895662 | BP451: 24.00444181 | BR451: =SUM(BE434:BE435) -> 0.2215367447 | BS451: 4.513923869
B452: 5 | C452: 19.05.18 | D452: 2DIV | E452: ='Analysis (2)'!C18 -> Inter | F452: ='Analysis (2)'!D18 -> Hellas Verona | G452: ='Analysis (2)'!E18 -> 1 : 0 | I452: 3 | J452: 1 | K452: 0 | L452: 0 | M452: 1 | N452: 0 | O452: 0 | P452: L | Q452: under 2.5 goals | R452: -1 | S452: 1 | U452: 3 | V452: =IF(F450=B447,E450,"-") -> Udinese | W452: Hellas Verona | X452: 1 : 1 | Y452: 3 | Z452: 1 | AA452: 1 | AB452: 1 | AC452: 1 | AD452: 1 | AE452: 1 | AF452: 1 | AG452: 0.5 | AH452: D | AI452: 0 | AJ452: 2 | AZ452: 4 | BA452: 3 | BB452: 0.001812121001 | BF452: 3 | BG452: 4 | BH452: 0.0009838194239 | BK452: 0.0001090460591 | BL452: 5 - 4 | BO452: =SUM(BH436:BH440,BH442:BH461,BH441) -> 0.08960777345 | BP452: 11.1597461 | BR452: =SUM(BH434:BH435) -> 0.1141138118 | BS452: 8.76318111
B453: 6 | C453: 16.05.18 | D453: 2DIV | E453: ='Analysis (2)'!C19 -> Hellas Verona | F453: ='Analysis (2)'!D19 -> Cremonese | G453: ='Analysis (2)'!E19 -> 2 : 0 | I453: 3 | J453: 2 | K453: 0 | L453: 2 | M453: 0 | N453: 3 | O453: 1 | P453: W | Q453: under 2.5 goals | R453: 2 | S453: 2 | U453: 4 | V453: =IF(F451=B447,E451,"-") -> - | W453: - | X453: - | AJ453: 0 | AZ453: 5 | BA453: 3 | BB453: 0.0005396093647 | BF453: 3 | BG453: 5 | BH453: 0.0001590508069 | BK453: 2.705957763e-05 | BL453: 6 - 4
B454: 7 | C454: 13.05.18 | D454: 2DIV | E454: ='Analysis (2)'!C20 -> Torino | F454: ='Analysis (2)'!D20 -> Hellas Verona | G454: ='Analysis (2)'!E20 -> 1 : 1 | I454: 3 | J454: 1 | K454: 1 | L454: 1 | M454: 1 | N454: 1 | O454: 0.5 | P454: D | Q454: under 2.5 goals | R454: 0 | S454: 2 | U454: 5 | V454: =IF(F452=$B$447,E452,"-") -> Inter | W454: Hellas Verona | X454: 1 : 0 | Y454: 3 | Z454: 1 | AA454: 0 | AB454: 1 | AC454: 0 | AD454: 0 | AE454: 1 | AF454: 0 | AG454: 0 | AH454: L | AI454: -1 | AJ454: 1 | AZ454: 6 | BA454: 3 | BB454: 0.0001339030646 | BF454: 3 | BG454: 6 | BH454: 2.142767815e-05 | BK454: 5.75552921e-06 | BL454: 7 - 4
B455: 8 | C455: 10.05.18 | D455: 2DIV | E455: ='Analysis (2)'!C21 -> Hellas Verona | F455: ='Analysis (2)'!D21 -> Bologna | G455: ='Analysis (2)'!E21 -> 0 : 1 | I455: 3 | J455: 0 | K455: 1 | L455: 0 | M455: 1 | N455: 0 | O455: 0 | P455: L | Q455: under 2.5 goals | R455: -1 | S455: 1 | U455: 6 | V455: =IF(F453=B447,E453,"-") -> - | W455: - | X455: - | AJ455: 0 | AZ455: 7 | BA455: 3 | BB455: 2.848096929e-05 | BF455: 3 | BG455: 7 | BH455: 2.474386643e-06 | BK455: 4.374631717e-06 | BL455: 6 - 5
B456: 9 | C456: 05.05.18 | D456: 2DIV | E456: ='Analysis (2)'!C22 -> Hellas Verona | F456: ='Analysis (2)'!D22 -> Istra 1961 | G456: ='Analysis (2)'!E22 -> 0 : 0 | I456: 3 | J456: 0 | K456: 0 | L456: 0 | M456: 0 | N456: 1 | O456: 0.5 | P456: D | Q456: under 2.5 goals | R456: 0 | S456: 0 | U456: 7 | V456: =IF(F454=B447,E454,"-") -> Torino | W456: Hellas Verona | X456: 1 : 1 | Y456: 3 | Z456: 1 | AA456: 1 | AB456: 1 | AC456: 1 | AD456: 1 | AE456: 1 | AF456: 1 | AG456: 0.5 | AH456: D | AI456: 0 | AJ456: 2 | AZ456: 5 | BA456: 4 | BB456: 0.0001090460591 | BF456: 4 | BG456: 5 | BH456: 5.920224478e-05 | BK456: 9.304772223e-07 | BL456: 7 - 5
B457: 10 | C457: 28.04.18 | D457: 2DIV | E457: ='Analysis (2)'!C23 -> Hellas Verona | F457: ='Analysis (2)'!D23 -> Spezia | G457: ='Analysis (2)'!E23 -> 1 : 2 | I457: 3 | J457: 1 | K457: 2 | L457: 1 | M457: 2 | N457: 0 | O457: 0 | P457: L | Q457: over 2.5 goals | R457: -1 | S457: 3 | U457: 8 | V457: =IF(F455=B447,E455,"-") -> - | W457: - | X457: - | AJ457: 0 | AZ457: 6 | BA457: 4 | BB457: 2.705957763e-05 | BF457: 4 | BG457: 6 | BH457: 7.975857977e-06 | BK457: 1.253559591e-07 | BL457: 7 - 6
U458: 9 | V458: =IF(F456=B447,E456,"-") -> - | W458: - | X458: - | AJ458: 0 | AZ458: 7 | BA458: 4 | BB458: 5.75552921e-06 | BF458: 4 | BG458: 7 | BH458: 9.21021695e-07 | BK458: =BE434 -> 0.1005377277 | BL458: 0 - 0
U459: 10 | V459: =IF(F457=B447,E457,"-") -> - | W459: - | X459: - | AJ459: 0 | AZ459: 6 | BA459: 5 | BB459: 4.374631717e-06 | BF459: 5 | BG459: 6 | BH459: 2.375033264e-06 | BK459: 0.1209990171 | BL459: 1 - 1
AZ460: 7 | BA460: 5 | BB460: 9.304772223e-07 | BF460: 5 | BG460: 7 | BH460: 2.742597936e-07 | BK460: 0.03640613944 | BL460: 2 - 2
AZ461: 7 | BA461: 6 | BB461: 1.253559591e-07 | BF461: 6 | BG461: 7 | BH461: 6.80570599e-08 | BK461: 0.004868384778 | BL461: 3 - 3
AZ462: =SUM(BB434:BB461) -> 0.5329191722 | BC462: =1-AZ462 -> 0.4670808278 | BF462: =SUM(BH434:BH461) -> 0.2037215852 | BI462: =1-BF462 -> 0.7962784148 | BK462: 0.0003661994522 | BL462: 4 - 4
BK463: 1.762911289e-05 | BL463: 5 - 5
AY464: A.U.Q - HOME | BB464: =SUM(BB434:BB440) -> 0.344990498 | BF464: =SUM(BH434:BH440) -> 0.1250849822 | BH464: A.U.Q - AWAY | BK464: 5.893601063e-07 | BL464: 6 - 6
BK465: 1.447562861e-08 | BL465: 7 - 7
BK466: =BH434 -> 0.08126799653 | BL466: 0 - 1
AY467: " Score - 1 " | BC467: =LARGE(BK430:BK493,1) -> 0.1496895056 | BE467: =VLOOKUP(BC467,BK430:BL493,2,FALSE) -> 1 - 0 | BF467: =IFERROR(VALUE(LEFT(BE467,FIND("-",BE467,1)-1)),"") -> 1 | BG467: =IFERROR(VALUE(RIGHT(BE467,FIND("-",BE467,1)-1)),"") -> 0 | BH467: =BF467+BG467 -> 1 | BK467: 0.03284581527 | BL467: 0 - 2
AY468: " Score - 2 " | BC468: =LARGE(BK430:BK493,2) -> 0.1209990171 | BE468: =VLOOKUP(BC468,BK430:BL493,2,FALSE) -> 1 - 1 | BF468: =IFERROR(VALUE(LEFT(BE468,FIND("-",BE468,1)-1)),"") -> 1 | BG468: =IFERROR(VALUE(RIGHT(BE468,FIND("-",BE468,1)-1)),"") -> 1 | BH468: =BF468+BG468 -> 2 | BK468: 0.008850122447 | BL468: 0 - 3
AY469: " Score - 3 " | BC469: =LARGE(BK430:BK493,3) -> 0.1114355209 | BE469: =VLOOKUP(BC469,BK430:BL493,2,FALSE) -> 2 - 0 | BF469: =IFERROR(VALUE(LEFT(BE469,FIND("-",BE469,1)-1)),"") -> 2 | BG469: =IFERROR(VALUE(RIGHT(BE469,FIND("-",BE469,1)-1)),"") -> 0 | BH469: =BF469+BG469 -> 2 | BK469: 0.001788462244 | BL469: 0 - 4
AY470: " Score - 3 " | BC470: =LARGE(BK430:BK493,4) -> 0.1005377277 | BE470: =VLOOKUP(BC470,BK430:BL493,2,FALSE) -> 0 - 0 | BK470: 0.0002891347295 | BL470: 0 - 5
AY471: 1X | BC471: =AZ462+BC442 -> 0.7961148736 | BE471: =LARGE(BC471:BD473,1) -> 0.7961148736 | BF471: =IF(BE471=BC471,"1X",IF(BE471=BC472,"X2",IF(BE471=BC473,"12"))) -> 1X | BK471: 3.895287328e-05 | BL471: 0 - 6
AY472: X2 | BC472: =BC442+BF462 -> 0.4669172866 | BK472: 4.498129415e-06 | BL472: 0 - 7
AY473: 12 | BC473: =AZ462+BF462 -> 0.7366407575 | BK473: 0.0489037694 | BL473: 1 - 2
BK474: 0.01317684898 | BL474: 1 - 3
AY475: DG1 | BE475: DG2 | BK475: 0.002662821564 | BL475: 1 - 4
AY476: YES | BA476: NO | BE476: YES | BG476: NO | BK476: 0.0004304894862 | BL476: 1 - 5
AY477: =SUM(BB434:BB461)+SUM(BE435:BE441)+SUM(BH441:BH461) -> 0.7742137489 | BA477: =SUM(BH434:BH440)+BE434 -> 0.2256227099 | BE477: =SUM(BH434:BH461)+SUM(BE435:BE441)+SUM(BB441:BB461) -> 0.5543082331 | BG477: =SUM(BB434:BB440)+BE434 -> 0.4455282257 | BK477: 5.799650022e-05 | BL477: 1 - 6
AY478: =AY477-BA477 -> 0.548591039 | BE478: =BE477-BG477 -> 0.1087800075 | BK478: 6.697214906e-06 | BL478: 1 - 7
BK479: 0.009809432015 | BL479: 2 - 3
BK480: 0.00198232272 | BL480: 2 - 4
BK481: 0.0003204755064 | BL481: 2 - 5
BK482: 4.317517239e-05 | BL482: 2 - 6
BK483: 4.98570443e-06 | BL483: 2 - 7
BK484: 0.0009838194239 | BL484: 3 - 4
BK485: 0.0001590508069 | BL485: 3 - 5
BK486: 2.142767815e-05 | BL486: 3 - 6
BK487: 2.474386643e-06 | BL487: 3 - 7
BK488: 5.920224478e-05 | BL488: 4 - 5
BK489: 7.975857977e-06 | BL489: 4 - 6
BK490: 9.21021695e-07 | BL490: 4 - 7
BK491: 2.375033264e-06 | BL491: 5 - 6
BK492: 2.742597936e-07 | BL492: 5 - 7
BK493: 6.80570599e-08 | BL493: 6 - 7
AM532: OVER 0.5 | AQ532: UNDER 1.5
AM533: =AN447 -> 0.8992987311 | AN533: =AN463 -> 0 | AO533: =SUM(AM533:AN533) -> 0.8992987311 | AP533: =IF(AO533>AQ533,"OVER 0.5","-") -> OVER 0.5 | AQ533: =SUM(AR533:AS533) -> 0.331658771 | AR533: =AQ448 -> 0.331658771 | AS533: =AQ464 -> 0
AM534: OVER 1.5 | AQ534: UNDER 2.5
... 9 more rows

Sheet Date (hidden)
T1: =F77 -> 0
P2: версия v10.2.02.S | T2: =CONCATENATE(H77,"*",I77) -> *
V3: дата | W3: лига | X3: команда_1 | Y3: команда_2 | Z3: счет
W4: =C7 -> 0
B6: дата | C6: лига | F6: счет
V7: дата | W7: лига | X7: команда_1 | Y7: команда_2 | Z7: счет

Sheet DATI (hidden)
A1: HOME | J1: =IF(COUNTIF(C4:E13,C4)>COUNTIF(C4:E13,E4),C4,E4) -> Roma | T1: ='N FT'!I3 -> 1 | U1: ='N FT'!J3 -> 0 | W1: =T1&":"&U1 -> 1:0
T2: ='N FT'!I4 -> 1 | U2: ='N FT'!J4 -> 1 | W2: =T2&":"&U2 -> 1:1
A3: League | B3: Time | C3: Home | D3: FT | E3: Away | F3: HT | G3: 1x2 | H3: AH | I3: O/U | T3: ='N FT'!I5 -> 2 | U3: ='N FT'!J5 -> 0 | W3: 2:0
A4: ICE PR | B4: 44338 | C4: =PAST!C33 -> Salzburg | D4: =PAST!D33 -> 1 - 0 | E4: =PAST!E33 -> Roma | F4: =PAST!F33 -> 0-0 | G4: L | H4: L0/0.5 | I4: O3 | J4: =MID(D4,1,SEARCH("-",D4)-1) -> 1 | K4: =MID(D4,FIND("-",D4,1)+1,LEN(D4)) -> 0 | L4: =J4&" : "&K4 -> 1 : 0 | M4: =J4&":"&K4 -> 1 : 0 | N4: =J4+J5+J6+J7+J8 -> 7 | O4: =K4+K5+K6+K7+K8 -> 4 | T4: ='N FT'!I6 -> 1 | U4: ='N FT'!J6 -> 2 | W4: 1:2
A5: ICE PR | B5: 44334 | C5: =PAST!C34 -> Lecce | D5: =PAST!D34 -> 1 - 1 | E5: =PAST!E34 -> Roma | F5: =PAST!F34 -> 1-1 | G5: L | H5: L0/-0.5 | I5: O3 | J5: 1 | K5: 1 | L5: 1 : 1 | M5: =J5&":"&K5 -> 1 : 1 | N5: =N4/5 -> 1.4 | O5: =O4/5 -> 0.8 | T5: ='N FT'!I7 -> 2 | U5: ='N FT'!J7 -> 1 | W5: 2:1
A6: ICE PR | B6: 44330 | C6: =PAST!C35 -> Roma | D6: =PAST!D35 -> 2 - 0 | E6: =PAST!E35 -> Empoli | F6: =PAST!F35 -> 2-0 | G6: L | H6: L1/1.5 | I6: O3/3.5 | J6: 2 | K6: 0 | L6: 2 : 0 | M6: 2 : 0 | N6: =N5+O5 -> 2.2 | T6: ='N FT'!I8 -> 0 | U6: ='N FT'!J8 -> 2 | W6: 0:2
A7: ICE PR | B7: 44326 | C7: =PAST!C36 -> Roma | D7: =PAST!D36 -> 1 - 2 | E7: =PAST!E36 -> Cremonese | F7: =PAST!F36 -> 0-1 | G7: W | H7: W0/-0.5 | I7: U2.5/3 | J7: 1 | K7: 2 | L7: 1 : 2 | M7: 1 : 2 | T7: ='N FT'!I9 -> 2 | U7: ='N FT'!J9 -> 0 | W7: 2:0
A8: ICE PR | B8: 44319 | C8: =PAST!C37 -> Napoli | D8: =PAST!D37 -> 2 - 1 | E8: =PAST!E37 -> Roma | F8: =PAST!F37 -> 1-0 | G8: L | H8: L0.5/1 | I8: U3/3.5 | J8: 2 | K8: 1 | L8: 2 : 1 | M8: 2 : 1 | T8: ='N FT'!I10 -> 1 | U8: ='N FT'!J10 -> 0 | W8: 1:0
A9: ICE LC | B9: 44275 | C9: =PAST!C38 -> Spezia | D9: =PAST!D38 -> 0 - 2 | E9: =PAST!E38 -> Roma | F9: =PAST!F38 -> 0-1 | G9: D | H9: W1 | I9: O3.5 | J9: 0 | K9: 2 | L9: 0 : 2 | M9: 0 : 2 | T9: ='N FT'!I11 -> 2 | U9: ='N FT'!J11 -> 2 | W9: 2:2
A10: ICE LC | B10: 44268 | C10: =PAST!C39 -> Roma | D10: =PAST!D39 -> 2 - 0 | E10: =PAST!E39 -> Fiorentina | F10: =PAST!F39 -> 1-0 | G10: W | H10: W0.5 | I10: O3.5/4 | J10: 2 | K10: 0 | L10: 2 : 0 | M10: 2 : 0 | T10: ='N FT'!I12 -> 1 | U10: ='N FT'!J12 -> 0 | W10: 1:0
A11: ICE LC | B11: 44261 | C11: =PAST!C40 -> Roma | D11: =PAST!D40 -> 1 - 0 | E11: =PAST!E40 -> Genoa | F11: =PAST!F40 -> 0-0 | G11: L | H11: L0.5/1 | I11: U3.5 | J11: 1 | K11: 0 | L11: 1 : 0 | M11: 1 : 0 | T11: ='N FT'!I13 -> 3 | U11: ='N FT'!J13 -> 0 | W11: 3:0
A12: ICE LC | B12: 44256 | C12: =PAST!C41 -> Milan | D12: =PAST!D41 -> 2 - 2 | E12: =PAST!E41 -> Roma | F12: =PAST!F41 -> 1-0 | G12: W | H12: L2/2.5 | I12: U4/4.5 | J12: 2 | K12: 2 | L12: 2 : 2 | M12: 2 : 2 | T12: ='N FT'!I14 -> 1 | U12: ='N FT'!J14 -> 0 | W12: 1:0
A13: ICE LC | B13: 44247 | C13: =PAST!C42 -> Roma | D13: =PAST!D42 -> 1 - 0 | E13: =PAST!E42 -> Bologna | F13: =PAST!F42 -> 1-0 | G13: W | H13: W1.5/2 | I13: O4 | J13: 1 | K13: 0 | L13: 1 : 0 | M13: 1 : 0 | T13: ='N FT'!I15 -> 0 | U13: ='N FT'!J15 -> 3 | W13: 0:3
M14: : | T14: ='N FT'!I16 -> 3 | U14: ='N FT'!J16 -> 3 | W14: 3:3
A15: AWAY | J15: =IF(COUNTIF(C18:E27,C18)>COUNTIF(C18:E27,E18),C18,E18) -> Hellas Verona | M15: Hellas Verona: | T15: ='N FT'!I17 -> 0 | U15: ='N FT'!J17 -> 0 | W15: 0:0
M16: :
A17: League | B17: Time | C17: Home | D17: FT | E17: Away | F17: HT | G17: 1x2 | H17: AH | I17: O/U | M17: :
A18: ICE PR | B18: 44338 | C18: =PAST!J33 -> Hellas Verona | D18: =PAST!K33 -> 1 - 0 | E18: =PAST!L33 -> Salernitana | F18: =PAST!M33 -> 1-0 | G18: W | H18: L1.5 | I18: U3/3.5 | J18: =MID(D18,1,SEARCH("-",D18)-1) -> 1 | K18: =MID(D18,FIND("-",D18,1)+1,LEN(D18)) -> 0 | L18: =J18&" : "&K18 -> 1 : 0 | M18: 1 : 0 | N18: =J18+J19+J20+J21+J22 -> 6 | O18: =K18+K19+K20+K21+K22 -> 2
A19: ICE PR | B19: 44334 | C19: =PAST!J34 -> Hellas Verona | D19: =PAST!K34 -> 1 - 1 | E19: =PAST!L34 -> Lazio | F19: =PAST!M34 -> 0-1 | G19: W | H19: W0 | I19: O2.5/3 | J19: 1 | K19: 1 | L19: 1 : 1 | M19: 1 : 1 | N19: =N18/5 -> 1.2 | O19: =O18/5 -> 0.4 | T19: ='N FT'!I21 -> 1 | U19: ='N FT'!J21 -> 0 | W19: 1:0
A20: ICE PR | B20: 44330 | C20: =PAST!J35 -> Udinese | D20: =PAST!K35 -> 1 - 1 | E20: =PAST!L35 -> Hellas Verona | F20: =PAST!M35 -> 1-1 | G20: W | H20: L1/1.5 | I20: O3/3.5 | J20: 1 | K20: 1 | L20: 1 : 1 | M20: 1 : 1 | N20: =N19+O19 -> 1.6 | T20: ='N FT'!I22 -> 1 | U20: ='N FT'!J22 -> 1 | W20: 1:1
A21: ICE PR | B21: 44326 | C21: =PAST!J36 -> Hellas Verona | D21: =PAST!K36 -> 2 - 0 | E21: =PAST!L36 -> Lecce | F21: =PAST!M36 -> 1-0 | G21: D | H21: D0/-0.5 | I21: U3 | J21: 2 | K21: 0 | L21: 2 : 0 | M21: 2 : 0 | T21: ='N FT'!I23 -> 1 | U21: ='N FT'!J23 -> 1 | W21: 1:1
A22: ICE PR | B22: 44317 | C22: =PAST!J37 -> Inter | D22: =PAST!K37 -> 1 - 0 | E22: =PAST!L37 -> Hellas Verona | F22: =PAST!M37 -> 1-0 | G22: W | H22: D2 | I22: U3.5/4 | J22: 1 | K22: 0 | L22: 1 : 0 | M22: 1 : 0 | T22: ='N FT'!I24 -> 2 | U22: ='N FT'!J24 -> 0 | W22: 2:0
A23: ICE LC | B23: 44275 | C23: =PAST!J38 -> Hellas Verona | D23: =PAST!K38 -> 2 - 0 | E23: =PAST!L38 -> Cremonese | F23: =PAST!M38 -> 2-0 | G23: D | H23: L0.5/1 | I23: O3.5 | J23: 2 | K23: 0 | L23: 2 : 0 | M23: 2 : 0 | T23: ='N FT'!I25 -> 1 | U23: ='N FT'!J25 -> 0 | W23: 1:0
A24: ICE LC | B24: 44268 | C24: =PAST!J39 -> Torino | D24: =PAST!K39 -> 1 - 1 | E24: =PAST!L39 -> Hellas Verona | F24: =PAST!M39 -> 0-1 | G24: W | H24: L4.5/5 | I24: U5.5/6 | J24: 1 | K24: 1 | L24: 1 : 1 | M24: 1 : 1 | T24: ='N FT'!I26 -> 2 | U24: ='N FT'!J26 -> 0 | W24: 2:0
A25: ICE LC | B25: 44261 | C25: =PAST!J40 -> Hellas Verona | D25: =PAST!K40 -> 0 - 1 | E25: =PAST!L40 -> Bologna | F25: =PAST!M40 -> 0-1 | G25: D | H25: L1.5/2 | I25: O3.5 | J25: 0 | K25: 1 | L25: 0 : 1 | M25: 0 : 1 | T25: ='N FT'!I27 -> 1 | U25: ='N FT'!J27 -> 1 | W25: 1:1
A26: ICE LC | B26: 44247 | C26: =PAST!J41 -> Hellas Verona | D26: =PAST!K41 -> 0 - 0 | E26: =PAST!L41 -> Istra 1961 | F26: =PAST!M41 -> 0-0 | G26: W | H26: W2.5 | I26: O3.5 | J26: 0 | K26: 0 | L26: 0 : 0 | M26: 0 : 0 | T26: ='N FT'!I28 -> 0 | U26: ='N FT'!J28 -> 1 | W26: 0:1
A27: REYT | B27: 44233 | C27: =PAST!J42 -> Hellas Verona | D27: =PAST!K42 -> 1 - 2 | E27: =PAST!L42 -> Spezia | F27: =PAST!M42 -> 1-0 | G27: D | H27: D-1/1.5 | I27: U3.5 | J27: 1 | K27: 2 | L27: 1 : 2 | M27: 1 : 2 | T27: ='N FT'!I29 -> 0 | U27: ='N FT'!J29 -> 0 | W27: 0:0
M28: : | T28: ='N FT'!I30 -> 1 | U28: ='N FT'!J30 -> 2 | W28: 1:2
A29: HOME | J29: =IF(COUNTIF(C32:E41,C32)>COUNTIF(C32:E41,E32),C32,E32) -> Roma | M29: Roma: | N29: =MID(I32,1,SEARCH("-",I32)-1) ->  | O29: =MID(I32,FIND("-",I32,1)+1,LEN(I32)) ->  | T29: ='N FT'!I31 -> 0 | U29: ='N FT'!J31 -> 1 | W29: 0:1
M30: : | T30: ='N FT'!I32 -> 2 | U30: ='N FT'!J32 -> 0 | W30: 2:0
A31: League | B31: Time | C31: Home | D31: FT | E31: Away | F31: HT | G31: 1x2 | H31: AH | I31: O/U | M31: : | T31: ='N FT'!I33 -> 1 | U31: ='N FT'!J33 -> 3 | W31: 1:3
A32: ICE PR | B32: 44338 | C32: =PAST!C53 -> Roma | D32: =PAST!D53 -> 2 - 0 | E32: =PAST!E53 -> Empoli | F32: =PAST!F53 -> 2-0 | G32: L | H32: L0/0.5 | I32: O3 | J32: =MID(D32,1,SEARCH("-",D32)-1) -> 2 | K32: =MID(D32,FIND("-",D32,1)+1,LEN(D32)) -> 0 | L32: =J32&" : "&K32 -> 2 : 0 | M32: 2 : 0 | N32: =IncoData!AU3 -> 1-1 | T32: ='N FT'!I34 -> 2 | U32: ='N FT'!J34 -> 1 | W32: 2:1
A33: ICE PR | B33: 44334 | C33: =PAST!C54 -> Roma | D33: =PAST!D54 -> 1 - 2 | E33: =PAST!E54 -> Cremonese | F33: =PAST!F54 -> 0-1 | G33: L | H33: L0/-0.5 | I33: O3 | J33: 1 | K33: 2 | L33: 1 : 2 | M33: 1 : 2 | N33: =IncoData!AU4 -> 1-0 | T33: ='N FT'!I35 -> 1 | U33: ='N FT'!J35 -> 2 | W33: 1:2
A34: ICE PR | B34: 44330 | C34: =PAST!C55 -> Roma | D34: =PAST!D55 -> 2 - 0 | E34: =PAST!E55 -> Fiorentina | F34: =PAST!F55 -> 1-0 | G34: L | H34: L1/1.5 | I34: O3/3.5 | J34: 2 | K34: 0 | L34: 2 : 0 | M34: 2 : 0 | N34: =IncoData!AU5 -> 1-2
A35: ICE PR | B35: 44326 | C35: =PAST!C56 -> Roma | D35: =PAST!D56 -> 1 - 0 | E35: =PAST!E56 -> Genoa | F35: =PAST!F56 -> 0-0 | G35: W | H35: W0/-0.5 | I35: U2.5/3 | J35: 1 | K35: 0 | L35: 1 : 0 | M35: 1 : 0 | N35: =IncoData!AU6 -> 0-1
A36: ICE PR | B36: 44319 | C36: =PAST!C57 -> Roma | D36: =PAST!D57 -> 1 - 0 | E36: =PAST!E57 -> Bologna | F36: =PAST!F57 -> 1-0 | G36: L | H36: L0.5/1 | I36: U3/3.5 | J36: 1 | K36: 0 | L36: 1 : 0 | M36: 1 : 0 | N36: =AVERAGE(N32:N35) -> 
A37: ICE LC | B37: 44275 | C37: =PAST!C58 -> Roma | D37: =PAST!D58 -> 3 - 0 | E37: =PAST!E58 -> RKC Waalwijk | F37: =PAST!F58 -> 2-0 | G37: D | H37: W1 | I37: O3.5 | J37: 3 | K37: 0 | L37: 3 : 0 | M37: 3 : 0
A38: ICE LC | B38: 44268 | C38: =PAST!C59 -> Roma | D38: =PAST!D59 -> 1 - 0 | E38: =PAST!E59 -> Casa Pia | F38: =PAST!F59 -> 1-0 | G38: W | H38: W0.5 | I38: O3.5/4 | J38: 1 | K38: 0 | L38: 1 : 0 | M38: 1 : 0
A39: ICE LC | B39: 44261 | C39: =PAST!C60 -> Roma | D39: =PAST!D60 -> 0 - 3 | E39: =PAST!E60 -> Cadiz | F39: =PAST!F60 -> 0-1 | G39: L | H39: L0.5/1 | I39: U3.5 | J39: 0 | K39: 3 | L39: 0 : 3 | M39: 0 : 3
A40: ICE LC | B40: 44256 | C40: =PAST!C61 -> Roma | D40: =PAST!D61 -> 3 - 3 | E40: =PAST!E61 -> Yokohama F. Marino | F40: =PAST!F61 -> 0-2 | G40: W | H40: L2/2.5 | I40: U4/4.5 | J40: 3 | K40: 3 | L40: 3 : 3 | M40: 3 : 3
A41: ICE LC | B41: 44247 | C41: =PAST!C62 -> Roma | D41: =PAST!D62 -> 1 - 1 | E41: =PAST!E62 -> Torino | F41: =PAST!F62 -> 0-0 | G41: W | H41: W1.5/2 | I41: O4 | J41: 1 | K41: 1 | L41: 1 : 1 | M41: 1 : 1 | T41: ='N FT'!I43 -> 2 | U41: ='N FT'!J43 -> 1 | W41: 2:1
M42: : | T42: ='N FT'!I44 -> 0 | U42: ='N FT'!J44 -> 0 | W42: 0:0
A43: AWAY | J43: =IF(COUNTIF(C46:E55,C46)>COUNTIF(C46:E55,E46),C46,E46) -> Hellas Verona | M43: Hellas Verona: | T43: ='N FT'!I45 -> Statistiken | U43: ='N FT'!J45 -> 0 | W43: Statistiken:0
M44: : | T44: ='N FT'!I46 -> Ergebnis | U44: ='N FT'!J46 -> 0 | W44: Ergebnis:0
A45: League | B45: Time | C45: Home | D45: FT | E45: Away | F45: HT | G45: 1x2 | H45: AH | I45: O/U | M45: : | T45: ='N FT'!I47 -> 1 | U45: ='N FT'!J47 -> 0 | W45: 1:0
A46: ICE PR | B46: 44338 | C46: =PAST!J53 -> Udinese | D46: =PAST!K53 -> 1 - 1 | E46: =PAST!L53 -> Hellas Verona | F46: =PAST!M53 -> 1-1 | G46: W | H46: L1.5 | I46: U3/3.5 | J46: =MID(D46,1,SEARCH("-",D46)-1) -> 1 | K46: =MID(D46,FIND("-",D46,1)+1,LEN(D46)) -> 1 | L46: =J46&" : "&K46 -> 1 : 1 | M46: 1 : 1 | T46: ='N FT'!I48 -> 1 | U46: ='N FT'!J48 -> 1 | W46: 1:1
A47: ICE PR | B47: 44334 | C47: =PAST!J54 -> Inter | D47: =PAST!K54 -> 1 - 0 | E47: =PAST!L54 -> Hellas Verona | F47: =PAST!M54 -> 1-0 | G47: W | H47: W0 | I47: O2.5/3 | J47: 1 | K47: 0 | L47: 1 : 0 | M47: 1 : 0
A48: ICE PR | B48: 44330 | C48: =PAST!J55 -> Torino | D48: =PAST!K55 -> 1 - 1 | E48: =PAST!L55 -> Hellas Verona | F48: =PAST!M55 -> 0-1 | G48: W | H48: L1/1.5 | I48: O3/3.5 | J48: 1 | K48: 1 | L48: 1 : 1 | M48: 1 : 1
A49: ICE PR | B49: 44326 | C49: =PAST!J56 -> Monza | D49: =PAST!K56 -> 2 - 0 | E49: =PAST!L56 -> Hellas Verona | F49: =PAST!M56 -> 0-0 | G49: D | H49: D0/-0.5 | I49: U3 | J49: 2 | K49: 0 | L49: 2 : 0 | M49: 2 : 0
A50: ICE PR | B50: 44317 | C50: =PAST!J57 -> Sassuolo | D50: =PAST!K57 -> 2 - 1 | E50: =PAST!L57 -> Hellas Verona | F50: =PAST!M57 -> 1-1 | G50: W | H50: D2 | I50: U3.5/4 | J50: 2 | K50: 1 | L50: 2 : 1 | M50: 2 : 1
A51: ICE LC | B51: 44275 | C51: =PAST!J58 -> Salernitana | D51: =PAST!K58 -> 2 - 1 | E51: =PAST!L58 -> Hellas Verona | F51: =PAST!M58 -> 1-0 | G51: D | H51: L0.5/1 | I51: O3.5 | J51: 2 | K51: 1 | L51: 2 : 1 | M51: 2 : 1
A52: ICE LC | B52: 44268 | C52: =PAST!J59 -> Fiorentina | D52: =PAST!K59 -> 2 - 0 | E52: =PAST!L59 -> Hellas Verona | F52: =PAST!M59 -> 1-0 | G52: W | H52: L4.5/5 | I52: U5.5/6 | J52: 2 | K52: 0 | L52: 2 : 0 | M52: 2 : 0
A53: ICE LC | B53: 44261 | C53: =PAST!J60 -> Lazio | D53: =PAST!K60 -> 2 - 0 | E53: =PAST!L60 -> Hellas Verona | F53: =PAST!M60 -> 0-0 | G53: D | H53: L1.5/2 | I53: O3.5 | J53: 2 | K53: 0 | L53: 2 : 0 | M53: 2 : 0
A54: ICE LC | B54: 44247 | C54: =PAST!J61 -> Empoli | D54: =PAST!K61 -> 1 - 1 | E54: =PAST!L61 -> Hellas Verona | F54: =PAST!M61 -> 1-0 | G54: W | H54: W2.5 | I54: O3.5 | J54: 1 | K54: 1 | L54: 1 : 1 | M54: 1 : 1
A55: REYT | B55: 44233 | C55: =PAST!J62 -> Bologna | D55: =PAST!K62 -> 1 - 1 | E55: =PAST!L62 -> Hellas Verona | F55: =PAST!M62 -> 1-1 | G55: D | H55: D-1/1.5 | I55: U3.5 | J55: 1 | K55: 1 | L55: 1 : 1 | M55: 1 : 1
D58: =N32 -> 1-1 | E58: =PAST!L65 -> Hellas Verona | F58: =PAST!M65 -> 0-2 | G58: D | H58: D-1/1.5 | I58: U3.5 | J58: =MID(D58,1,SEARCH("-",D58)-1) -> 1 | K58: =MID(D58,FIND("-",D58,1)+1,LEN(D58)) -> 1 | L58: =J58&" : "&K58 -> 1 : 1 | M58: =J58&":"&K58 -> 1:1
D59: =N33 -> 1-0 | E59: =PAST!L66 -> Hellas Verona | F59: =PAST!M66 -> 0-1 | G59: D | H59: D-1/1.6 | I59: U3.6 | J59: =MID(D59,1,SEARCH("-",D59)-1) -> 1 | K59: =MID(D59,FIND("-",D59,1)+1,LEN(D59)) -> 0 | L59: =J59&" : "&K59 -> 1 : 0 | M59: =J59&":"&K59 -> 1:0
D60: 1-2 | E60: =PAST!L67 -> Hellas Verona | F60: =PAST!M67 -> 2-0 | G60: D | H60: D-1/1.7 | I60: U3.7 | J60: 1 | K60: 2 | L60: 1 : 2 | M60: 1:2
D61: 0-1 | E61: =PAST!L68 -> Hellas Verona | F61: =PAST!M68 -> 1-0 | G61: D | H61: D-1/1.8 | I61: U3.8 | J61: 0 | K61: 1 | L61: 0 : 1 | M61: 0:1
E62: =PAST!L69 -> Hellas Verona | F62: =PAST!M69 -> 1-1 | G62: D | H62: D-1/1.9 | I62: U3.9 | J62: =(J58+J59+J60+J61)/4 -> 0.75 | K62: =(K58+K59+K60+K61)/4 -> 1 | L62: 0,75 : 1 | M62: 0,75:1
J63: =IF(J62-TRUNC(J62)>=0.6,TRUNC(J62)+1,TRUNC(J62)) -> 1 | K63: =IF(K62-TRUNC(K62)>=0.6,TRUNC(K62)+1,TRUNC(K62)) -> 1

Sheet Veriler (hidden)
A1: =PAST!A1 -> 0 | B1: VS | C1: =PAST!M3 -> Hellas Verona
A3: CAYB Club Athletic Youssoufia
A4: H-A Same MAR D1 MOLE Cup
A5: League | B5: Date | C5: Home | D5: Score | E5: H T | F5: Corner | G5: Away | N5: W/L | O5: AH | P5: O/U
H6: HW | I6: D | J6: AW | K6: H | L6: AH | M6: A
A7: MAR D1 | C7: =PAST!C33 -> Salzburg | D7: =PAST!D33 -> 1 - 0 | E7: =PAST!F33 -> 0-0 | F7: 5-4 | G7: =PAST!E33 -> Roma | N7: L
A8: MAR D1 | C8: =PAST!C34 -> Lecce | D8: =PAST!D34 -> 1 - 1 | E8: =PAST!F34 -> 1-1 | F8: 5-5 | G8: =PAST!E34 -> Roma | N8: D
A9: MAR D1 | C9: =PAST!C35 -> Roma | D9: =PAST!D35 -> 2 - 0 | E9: =PAST!F35 -> 2-0 | F9: 5-6 | G9: =PAST!E35 -> Empoli | N9: D
A10: MAR D1 | C10: =PAST!C36 -> Roma | D10: =PAST!D36 -> 1 - 2 | E10: =PAST!F36 -> 0-1 | F10: 5-7 | G10: =PAST!E36 -> Cremonese | N10: L
A11: MAR D1 | C11: =PAST!C37 -> Napoli | D11: =PAST!D37 -> 2 - 1 | E11: =PAST!F37 -> 1-0 | F11: 5-8 | G11: =PAST!E37 -> Roma | N11: L
A12: MAR D1 | C12: =PAST!C38 -> Spezia | D12: =PAST!D38 -> 0 - 2 | E12: =PAST!F38 -> 0-1 | F12: 5-9 | G12: =PAST!E38 -> Roma | N12: L
A13: MAR D1 | C13: =PAST!C39 -> Roma | D13: =PAST!D39 -> 2 - 0 | E13: =PAST!F39 -> 1-0 | F13: 5-10 | G13: =PAST!E39 -> Fiorentina | N13: W
A14: MAR D1 | C14: =PAST!C40 -> Roma | D14: =PAST!D40 -> 1 - 0 | E14: =PAST!F40 -> 0-0 | F14: 5-11 | G14: =PAST!E40 -> Genoa | N14: D
A15: MAR D1 | C15: =PAST!C41 -> Milan | D15: =PAST!D41 -> 2 - 2 | E15: =PAST!F41 -> 1-0 | F15: 5-12 | G15: =PAST!E41 -> Roma | N15: D
A16: MAR D1 | C16: =PAST!C42 -> Roma | D16: =PAST!D42 -> 1 - 0 | E16: =PAST!F42 -> 1-0 | F16: 5-13 | G16: =PAST!E42 -> Bologna | N16: L
A17: MAR D1 | C17: =PAST!C43 -> Roma | D17: =PAST!D43 -> 3 - 0 | E17: =PAST!F43 -> 2-0 | F17: 5-14 | G17: =PAST!E43 -> RKC Waalwijk | N17: D
A18: MAR D1 | C18: =PAST!C44 -> Roma | D18: =PAST!D44 -> 1 - 0 | E18: =PAST!F44 -> 1-0 | F18: 5-15 | G18: =PAST!E44 -> Casa Pia | N18: D
A19: MAR D1 | C19: =PAST!C45 -> Roma | D19: =PAST!D45 -> 0 - 3 | E19: =PAST!F45 -> 0-1 | F19: 5-16 | G19: =PAST!E45 -> Cadiz | N19: W
A20: MAR D1 | C20: =PAST!C46 -> Roma | D20: =PAST!D46 -> 3 - 3 | E20: =PAST!F46 -> 0-2 | F20: 5-17 | G20: =PAST!E46 -> Yokohama F. Marino | N20: W
A21: MOLE Cup | C21: =PAST!C47 -> Nagoya Grampus | D21: =PAST!D47 -> 0 - 0 | E21: =PAST!F47 -> 0-0 | F21: 5-18 | G21: =PAST!E47 -> Roma | N21: L
A22: MAR D1 | N22: D
A23: MAR D1 | N23: D
A24: MAR D1 | N24: D
A25: MAR D1 | N25: D
A26: MAR D1 | N26: L
A27: Last 20 matches, Win rate：15.0% AH win rate：0.0% Over 2.5 rate：0.0% Odd rate：35.0%
A29: Wydad Casablanca
A30: H-A Same MAR D1 CAF CL MOLE Cup
A31: League | B31: Date | C31: Home | D31: Score | E31: H T | F31: Corner | G31: Away | N31: W/L | O31: AH | P31: O/U
H32: HW | I32: D | J32: AW | K32: H | L32: AH | M32: A
A33: MAR D1 | C33: =PAST!J33 -> Hellas Verona | D33: =PAST!K33 -> 1 - 0 | E33: =PAST!M33 -> 1-0 | F33: 4-3 | G33: =PAST!L33 -> Salernitana | N33: D
A34: MAR D1 | C34: =PAST!J34 -> Hellas Verona | D34: =PAST!K34 -> 1 - 1 | E34: =PAST!M34 -> 0-1 | F34: 4-4 | G34: =PAST!L34 -> Lazio | N34: W
A35: CAF CL | C35: =PAST!J35 -> Udinese | D35: =PAST!K35 -> 1 - 1 | E35: =PAST!M35 -> 1-1 | F35: 4-5 | G35: =PAST!L35 -> Hellas Verona | N35: W
A36: MAR D1 | C36: =PAST!J36 -> Hellas Verona | D36: =PAST!K36 -> 2 - 0 | E36: =PAST!M36 -> 1-0 | F36: 4-6 | G36: =PAST!L36 -> Lecce | N36: W
A37: CAF CL | C37: =PAST!J37 -> Inter | D37: =PAST!K37 -> 1 - 0 | E37: =PAST!M37 -> 1-0 | F37: 4-7 | G37: =PAST!L37 -> Hellas Verona | N37: D
A38: MAR D1 | C38: =PAST!J38 -> Hellas Verona | D38: =PAST!K38 -> 2 - 0 | E38: =PAST!M38 -> 2-0 | F38: 4-8 | G38: =PAST!L38 -> Cremonese | N38: D
A39: MOLE Cup | C39: =PAST!J39 -> Torino | D39: =PAST!K39 -> 1 - 1 | E39: =PAST!M39 -> 0-1 | F39: 4-9 | G39: =PAST!L39 -> Hellas Verona | N39: W
A40: MAR D1 | C40: =PAST!J40 -> Hellas Verona | D40: =PAST!K40 -> 0 - 1 | E40: =PAST!M40 -> 0-1 | F40: 4-10 | G40: =PAST!L40 -> Bologna | N40: W
A41: MAR D1 | C41: =PAST!J41 -> Hellas Verona | D41: =PAST!K41 -> 0 - 0 | E41: =PAST!M41 -> 0-0 | F41: 4-11 | G41: =PAST!L41 -> Istra 1961 | N41: D
A42: MAR D1 | C42: =PAST!J42 -> Hellas Verona | D42: =PAST!K42 -> 1 - 2 | E42: =PAST!M42 -> 1-0 | F42: 4-12 | G42: =PAST!L42 -> Spezia | N42: L
A43: MOLE Cup | C43: =PAST!J43 -> Hellas Verona | D43: =PAST!K43 -> 0 - 1 | E43: =PAST!M43 -> 0-0 | F43: 4-13 | G43: =PAST!L43 -> Juventus | N43: W
A44: MAR D1 | C44: =PAST!J44 -> Monza | D44: =PAST!K44 -> 2 - 0 | E44: =PAST!M44 -> 0-0 | F44: 4-14 | G44: =PAST!L44 -> Hellas Verona | N44: D
A45: CAF CL | C45: =PAST!J45 -> Hellas Verona | D45: =PAST!K45 -> 1 - 3 | E45: =PAST!M45 -> 1-1 | F45: 4-15 | G45: =PAST!L45 -> Roma | N45: W
A46: MAR D1 | C46: =PAST!J46 -> Sassuolo | D46: =PAST!K46 -> 2 - 1 | E46: =PAST!M46 -> 1-1 | F46: 4-16 | G46: =PAST!L46 -> Hellas Verona | N46: W
A47: CAF CL | C47: =PAST!J47 -> Hellas Verona | D47: =PAST!K47 -> 1 - 2 | E47: =PAST!M47 -> 1-1 | F47: 4-17 | G47: =PAST!L47 -> Milan | N47: L
A48: MAR D1 | C48: =PAST!J48 -> G | D48: =PAST!K48 -> B | E48: =PAST!M48 -> AG | F48: 4-18 | G48: =PAST!L48 -> M | N48: W
A49: CAF CL | C49: =PAST!J49 -> 5 | D49: =PAST!K49 -> 7 | E49: =PAST!M49 -> 10 | F49: 4-19 | G49: =PAST!L49 -> 3 | N49: D
A50: MAR D1 | C50: =PAST!J50 -> 3 | D50: =PAST!K50 -> 4 | E50: =PAST!M50 -> 12 | F50: 4-20 | G50: =PAST!L50 -> 8 | N50: D
A51: CAF CL | C51: =PAST!J51 -> 0 | D51: =PAST!K51 -> 0 | E51: =PAST!M51 -> 0 | F51: 4-21 | G51: =PAST!L51 -> 0 | N51: W
A52: CAF CL | C52: =PAST!J52 -> EvSahibi | D52: =PAST!K52 -> MS | E52: =PAST!M52 -> İY | F52: 4-22 | G52: =PAST!L52 -> Deplasman | N52: W
A53: Last 20 matches, Win rate：55.0% AH win rate：0.0% Over 2.5 rate：0.0% Odd rate：25.0%

Sheet H1 (hidden)
A1: D | B1: 26.04.2021 | C1: =PAST!C53 -> Roma | D1: =PAST!D53 -> 2 - 0 | E1: =PAST!E53 -> Empoli | F1: =PAST!F53 -> 2-0 | G1: HOME | L1: =IFERROR(VALUE(LEFT(F1,SEARCH("-",F1,1)-1)),"") -> 2 | M1: =IFERROR(VALUE(RIGHT(F1,LEN(F1)-SEARCH("-",F1,SEARCH("-",F1,1)-1))),"") -> 0
A2: D | B2: 26.04.2022 | C2: =PAST!C54 -> Roma | D2: =PAST!D54 -> 1 - 2 | E2: =PAST!E54 -> Cremonese | F2: =PAST!F54 -> 0-1 | L2: =IFERROR(VALUE(LEFT(F2,SEARCH("-",F2,1)-1)),"") -> 0 | M2: 1
A3: D | B3: 26.04.2023 | C3: =PAST!C55 -> Roma | D3: =PAST!D55 -> 2 - 0 | E3: =PAST!E55 -> Fiorentina | F3: =PAST!F55 -> 1-0 | L3: =IFERROR(VALUE(LEFT(F3,SEARCH("-",F3,1)-1)),"") -> 1 | M3: 0
A4: D | B4: 26.04.2024 | C4: =PAST!C56 -> Roma | D4: =PAST!D56 -> 1 - 0 | E4: =PAST!E56 -> Genoa | F4: =PAST!F56 -> 0-0 | L4: =IFERROR(VALUE(LEFT(F4,SEARCH("-",F4,1)-1)),"") -> 0 | M4: 0
A5: D | B5: 26.04.2025 | C5: =PAST!C57 -> Roma | D5: =PAST!D57 -> 1 - 0 | E5: =PAST!E57 -> Bologna | F5: =PAST!F57 -> 1-0 | L5: =IFERROR(VALUE(LEFT(F5,SEARCH("-",F5,1)-1)),"") -> 1 | M5: 0
A6: D | B6: 04.04.2021 | C6: =PAST!J53 -> Udinese | D6: =PAST!K53 -> 1 - 1 | E6: =PAST!L53 -> Hellas Verona | F6: =PAST!M53 -> 1-1 | G6: AWAY | L6: =IFERROR(VALUE(LEFT(F6,SEARCH("-",F1,1)-1)),"") -> 1 | M6: 1
A7: D | B7: 04.04.2022 | C7: =PAST!J54 -> Inter | D7: =PAST!K54 -> 1 - 0 | E7: =PAST!L54 -> Hellas Verona | F7: =PAST!M54 -> 1-0 | L7: =IFERROR(VALUE(LEFT(F7,SEARCH("-",F2,1)-1)),"") -> 1 | M7: 0
A8: D | B8: 04.04.2023 | C8: =PAST!J55 -> Torino | D8: =PAST!K55 -> 1 - 1 | E8: =PAST!L55 -> Hellas Verona | F8: =PAST!M55 -> 0-1 | L8: =IFERROR(VALUE(LEFT(F8,SEARCH("-",F3,1)-1)),"") -> 0 | M8: 1
A9: D | B9: 04.04.2024 | C9: =PAST!J56 -> Monza | D9: =PAST!K56 -> 2 - 0 | E9: =PAST!L56 -> Hellas Verona | F9: =PAST!M56 -> 0-0 | L9: =IFERROR(VALUE(LEFT(F9,SEARCH("-",F4,1)-1)),"") -> 0 | M9: 0
A10: D | B10: 04.04.2025 | C10: =PAST!J57 -> Sassuolo | D10: =PAST!K57 -> 2 - 1 | E10: =PAST!L57 -> Hellas Verona | F10: =PAST!M57 -> 1-1 | L10: =IFERROR(VALUE(LEFT(F10,SEARCH("-",F5,1)-1)),"") -> 1 | M10: 1
A11: EXCEL ANALIZ TAHMIN

Sheet VERİLER (hidden)
A1: PSS | B1: HTH | D1: H-A Same | E1: ITA C1 | G1: Last 5 | H1: Last 10 | I1: Last 15 | J1: Last 20
A2: Team | B2: Last | C2: 1x2 | F2: Handicap | I2: over/under
C3: W | D3: D | E3: L | F3: W | G3: V | H3: L | I3: O | J3: V | K3: U
A4: Triestina | B4: 10 | C4: 50% | D4: 10% | E4: 40% | F4: 40% | G4: 10% | H4: 50% | I4: 40% | J4: 0% | K4: 60%
A5: Modena | B5: 10 | C5: 40% | D5: 10% | E5: 50% | F5: 40% | G5: 20% | H5: 40% | I5: 10% | J5: 30% | K5: 60%
A6: League | B6: Time | C6: Home | D6: FT | E6: Away | F6: HT | G6: 1x2 | H6: Handicap | I6: O/U
A7: ITA C1 | B7: 20-09-27 | C7: =PAST!C53 -> Roma | D7: =PAST!D53 -> 2 - 0 | E7: =PAST!E53 -> Empoli | F7: =PAST!F53 -> 2-0 | G7: L | H7: L0.5/1 | I7: U2.5
A8: ITA C1 | B8: 20-02-16 | C8: =PAST!C54 -> Roma | D8: =PAST!D54 -> 1 - 2 | E8: =PAST!E54 -> Cremonese | F8: =PAST!F54 -> 0-1 | G8: W | H8: W0.5 | I8: O2/2.5
A9: ITA C1 | B9: 20-02-02 | C9: =PAST!C55 -> Roma | D9: =PAST!D55 -> 2 - 0 | E9: =PAST!E55 -> Fiorentina | F9: =PAST!F55 -> 1-0 | G9: D | H9: L0.5 | I9: U2/2.5
A10: ITA C1 | B10: 20-01-26 | C10: =PAST!C56 -> Roma | D10: =PAST!D56 -> 1 - 0 | E10: =PAST!E56 -> Genoa | F10: =PAST!F56 -> 0-0 | G10: W | H10: W0/0.5 | I10: O2/2.5
A11: ITA C1 | B11: 20-01-12 | C11: =PAST!C57 -> Roma | D11: =PAST!D57 -> 1 - 0 | E11: =PAST!E57 -> Bologna | F11: =PAST!F57 -> 1-0 | G11: L | H11: L0/0.5 | I11: O2/2.5
A12: ITA C1 | B12: 19-12-09 | C12: =PAST!C58 -> Roma | D12: =PAST!D58 -> 3 - 0 | E12: =PAST!E58 -> RKC Waalwijk | F12: =PAST!F58 -> 2-0 | G12: L | H12: L0.5 | I12: U2/2.5
A13: ITA C1 | B13: 19-11-25 | C13: =PAST!C59 -> Roma | D13: =PAST!D59 -> 1 - 0 | E13: =PAST!E59 -> Casa Pia | F13: =PAST!F59 -> 1-0 | G13: W | H13: W0/0.5 | I13: U2/2.5
A14: ITA C1 | B14: 19-11-10 | C14: =PAST!C60 -> Roma | D14: =PAST!D60 -> 0 - 3 | E14: =PAST!E60 -> Cadiz | F14: =PAST!F60 -> 0-1 | G14: L | H14: L0 | I14: O2/2.5
A15: ITA C1 | B15: 19-10-29 | C15: =PAST!C61 -> Roma | D15: =PAST!D61 -> 3 - 3 | E15: =PAST!E61 -> Yokohama F. Marino | F15: =PAST!F61 -> 0-2 | G15: W | H15: V1 | I15: U2.5
A16: ITA C1 | B16: 19-10-20 | C16: =PAST!C62 -> Roma | D16: =PAST!D62 -> 1 - 1 | E16: =PAST!E62 -> Torino | F16: =PAST!F62 -> 0-0 | G16: W | H16: W0 | I16: U2/2.5
A17: League | B17: Time | C17: Home | D17: FT | E17: Away | F17: HT | G17: 1x2 | H17: Handicap | I17: O/U
A18: ITA C1 | B18: 20-09-27 | C18: =PAST!J53 -> Udinese | D18: =PAST!K53 -> 1 - 1 | E18: =PAST!L53 -> Hellas Verona | F18: =PAST!M53 -> 1-1 | G18: W | H18: W0 | I18: V2
A19: ITA C1 | B19: 20-09-28 | C19: =PAST!J54 -> Inter | D19: =PAST!K54 -> 1 - 0 | E19: =PAST!L54 -> Hellas Verona | F19: =PAST!M54 -> 1-0 | G19: L | H19: L0/-0.5 | I19: V2
A20: ITA C1 | B20: 20-09-29 | C20: =PAST!J55 -> Torino | D20: =PAST!K55 -> 1 - 1 | E20: =PAST!L55 -> Hellas Verona | F20: =PAST!M55 -> 0-1 | G20: L | H20: V0 | I20: O2/2.5
A21: ITA C1 | B21: 20-09-30 | C21: =PAST!J56 -> Monza | D21: =PAST!K56 -> 2 - 0 | E21: =PAST!L56 -> Hellas Verona | F21: =PAST!M56 -> 0-0 | G21: L | H21: L0.5/1 | I21: U2
A22: ITA C1 | B22: 20-09-31 | C22: =PAST!J57 -> Sassuolo | D22: =PAST!K57 -> 2 - 1 | E22: =PAST!L57 -> Hellas Verona | F22: =PAST!M57 -> 1-1 | G22: W | H22: W0.5 | I22: U2
A23: ITA C1 | B23: 20-09-32 | C23: =PAST!J58 -> Salernitana | D23: =PAST!K58 -> 2 - 1 | E23: =PAST!L58 -> Hellas Verona | F23: =PAST!M58 -> 1-0 | G23: W | H23: W0.5 | I23: U2/2.5
A24: ITA C1 | B24: 20-09-33 | C24: =PAST!J59 -> Fiorentina | D24: =PAST!K59 -> 2 - 0 | E24: =PAST!L59 -> Hellas Verona | F24: =PAST!M59 -> 1-0 | G24: L | H24: L0.5 | I24: U2/2.5
A25: ITA C1 | B25: 20-09-34 | C25: =PAST!J60 -> Lazio | D25: =PAST!K60 -> 2 - 0 | E25: =PAST!L60 -> Hellas Verona | F25: =PAST!M60 -> 0-0 | G25: L | H25: L0 | I25: U2
A26: ITA C1 | B26: 20-09-35 | C26: =PAST!J61 -> Empoli | D26: =PAST!K61 -> 1 - 1 | E26: =PAST!L61 -> Hellas Verona | F26: =PAST!M61 -> 1-0 | G26: W | H26: W0.5 | I26: U2/2.5
A27: ITA C1 | B27: 20-09-36 | C27: =PAST!J62 -> Bologna | D27: =PAST!K62 -> 1 - 1 | E27: =PAST!L62 -> Hellas Verona | F27: =PAST!M62 -> 1-1 | G27: D | H27: V0/-0.5 | I27: V2
A28: Nowgoal © 2002-2019 www.nowgoal1.com

Sheet H11 (hidden)
A1: DATA | B1: CO | C1: TEAM 1 | D1: TEAM 2 | E1: SCORE | H1: DATA | I1: CO | J1: TEAM 1 | K1: TEAM 2 | L1: SCORE | N1: FT | S1: =IF(AND(AA18>AC18),"1",IF(AND(AA18>AC18),"1",IF(AND(AA18>AC18),"1",IF(AND(AA18=AC18),"X",IF(AND(AA18=AC18),"X",IF(AND(AA18=AC18),"X",IF(AND(AA18<AC18),"2",IF(AND(AA18<AC18),"2",IF(AND(AA18<AC18),"2"))))))))) -> 1
A2: ='H1'!B1 -> 26.04.2021 | B2: BUN | C2: ='H1'!C1 -> Roma | D2: ='H1'!E1 -> Empoli | E2: ='H1'!D1 -> 2 - 0 | F2: W | H2: ='H1'!B6 -> 04.04.2021 | I2: L1 | J2: ='H1'!C6 -> Udinese | K2: ='H1'!E6 -> Hellas Verona | L2: ='H1'!D6 -> 1 - 1 | M2: W | X2: OVR/UNDR
A3: ='H1'!B2 -> 26.04.2022 | B3: BUN | C3: ='H1'!C2 -> Roma | D3: ='H1'!E2 -> Cremonese | E3: ='H1'!D2 -> 1 - 2 | F3: W | H3: ='H1'!B7 -> 04.04.2022 | I3: L2 | J3: ='H1'!C7 -> Inter | K3: ='H1'!E7 -> Hellas Verona | L3: ='H1'!D7 -> 1 - 0 | M3: W
A4: ='H1'!B3 -> 26.04.2023 | B4: BUN | C4: ='H1'!C3 -> Roma | D4: ='H1'!E3 -> Fiorentina | E4: ='H1'!D3 -> 2 - 0 | F4: W | H4: ='H1'!B8 -> 04.04.2023 | I4: L3 | J4: ='H1'!C8 -> Torino | K4: ='H1'!E8 -> Hellas Verona | L4: ='H1'!D8 -> 1 - 1 | M4: W | N4: BTTS | S4: HT 0.5 | AC4: =AA17 | AD4: =AC17 -> 0 | AE4: Ortalama
A5: ='H1'!B4 -> 26.04.2024 | B5: BUN | C5: ='H1'!C4 -> Roma | D5: ='H1'!E4 -> Genoa | E5: ='H1'!D4 -> 1 - 0 | F5: W | H5: ='H1'!B9 -> 04.04.2024 | I5: L4 | J5: ='H1'!C9 -> Monza | K5: ='H1'!E9 -> Hellas Verona | L5: ='H1'!D9 -> 2 - 0 | M5: W | N5: =IF(AND(AF22>=1,AG22>=1),"YES","NO") -> NO | S5: =IF(AND(SUM(P22,Q22)>=3,SUM(P22,Q22)<4),"0.5OVER",IF(AND(SUM(P22,Q22)>=4,SUM(P22,Q22)<5),"0.5OVER",IF(AND(SUM(P22,Q22)>=5,SUM(P22,Q22)<6),"0.5OVER",IF(AND(SUM(P22,Q22)>=6,SUM(P22,Q22)<7),"0.5OVER",IF(AND(SUM(P22,Q22)>=7,SUM(P22,Q22)<8),"0.5OVER",IF(SUM(P22,Q22)>=8,"7+","NO BET")))))) -> NO BET | X5: =IF(AND(SUM(AF22,AG22)>0,SUM(AF22,AG22)<2),"0,5 OVER",IF(AND(SUM(AF22,AG22)>=2,SUM(AF22,AG22)<3),"1,5 OVER",IF(AND(SUM(AF22,AG22)>=3,SUM(AF22,AG22)<4),"2,5 OVER",IF(AND(SUM(AF22,AG22)>=4,SUM(AF22,AG22)<5),"3,5 OVER",IF(AND(SUM(AF22,AG22)>=5,SUM(AF22,AG22)<6),"4,5 OVER",IF(AND(SUM(AF22,AG22)>=6,SUM(AF22,AG22)<7),"5,5 OVER",IF(AND(SUM(AF22,AG22)>=7,SUM(AF22,AG22)<8),"6,5 OVER",IF(SUM(AF22,AG22)>=8,"7+","NO BET")))))))) -> 1,5 OVER | AC5: =C41 -> 1.4 | AD5: =J41 -> 0.6 | AE5: gPS | AF5: Number of Positions Entered
A6: ='H1'!B5 -> 26.04.2025 | B6: BUN | C6: ='H1'!C5 -> Roma | D6: ='H1'!E5 -> Bologna | E6: ='H1'!D5 -> 1 - 0 | H6: ='H1'!B10 -> 04.04.2025 | I6: L5 | J6: ='H1'!C10 -> Sassuolo | K6: ='H1'!E10 -> Hellas Verona | L6: ='H1'!D10 -> 2 - 1 | AC6: =D41 -> 0.4 | AD6: =K41 -> 1.4 | AE6: vPS | AF6: Number of Positions Given
A7: ='H1'!C1 -> Roma | H7: ='H1'!E6 -> Hellas Verona | Q7: HT FT | Y7: FT | AC7: =(AC5+1)/(AC6+1) -> 1.714285714 | AD7: =(AD5+1)/(AD6+1) -> 0.6666666667 | AE7: pBAS | AF7: Number Per Position
A8: =+'H1'!B1 -> 26.04.2021 | B8: BUN | C8: =+'H1'!C1 -> Roma | D8: =+'H1'!E1 -> Empoli | E8: =+'H1'!F1 -> 2-0 | H8: =+'H1'!B6 -> 04.04.2021 | I8: BUN | J8: =+'H1'!C6 -> Udinese | K8: =+'H1'!E6 -> Hellas Verona | L8: =+'H1'!F6 -> 1-1 | S8: =IF(AND(Q25>U25),"1",IF(AND(Q25>U25),"1",IF(AND(Q25>U25),"1",IF(AND(Q25=U25),"X",IF(AND(Q25=U25),"X",IF(AND(Q25=U25),"X",IF(AND(Q25<U25),"2",IF(AND(Q25<U25),"2",IF(AND(Q25<U25),"2"))))))))) -> 2 | T8: / | U8: =IF(AND(AK9>AL9),"1",IF(AND(AK9>AL9),"1",IF(AND(AK9>AL9),"1",IF(AND(AK9=AL9),"X",IF(AND(AK9=AL9),"X",IF(AND(AK9=AL9),"X",IF(AND(AK9<AL9),"2",IF(AND(AK9<AL9),"2",IF(AND(AK9<AL9),"2"))))))))) -> 1 | Y8: =IF(AND(AA18>AC18),"1",IF(AND(AA18>AC18),"1",IF(AND(AA18>AC18),"1",IF(AND(AA18=AC18),"X",IF(AND(AA18=AC18),"X",IF(AND(AA18=AC18),"X",IF(AND(AA18<AC18),"2",IF(AND(AA18<AC18),"2",IF(AND(AA18<AC18),"2"))))))))) -> 1 | AC8: =(AC6+1)/(AC5+1) -> 0.5833333333 | AD8: =(AD6+1)/(AD5+1) -> 1.5 | AE8: pBYS | AF8: Number Eats Per Position
A9: =+'H1'!B2 -> 26.04.2022 | B9: BUN | C9: =+'H1'!C2 -> Roma | D9: =+'H1'!E2 -> Cremonese | E9: =+'H1'!F2 -> 0-1 | H9: =+'H1'!B7 -> 04.04.2022 | I9: BUN | J9: =+'H1'!C7 -> Inter | K9: =+'H1'!E7 -> Hellas Verona | L9: =+'H1'!F7 -> 1-0 | X9: SAFE TIPS | AK9: =AF22 -> 2 | AL9: =AG22 -> 0
A10: =+'H1'!B3 -> 26.04.2023 | B10: BUN | C10: =+'H1'!C3 -> Roma | D10: =+'H1'!E3 -> Fiorentina | E10: =+'H1'!F3 -> 1-0 | H10: =+'H1'!B8 -> 04.04.2023 | I10: BUN | J10: =+'H1'!C8 -> Torino | K10: =+'H1'!E8 -> Hellas Verona | L10: =+'H1'!F8 -> 0-1 | Q10: CORRECT SCORE | AB10: Mean A | AC10: Mean B | AE10: Max A | AF10: Max B | AG10: Min A | AH10: Min B
A11: =+'H1'!B4 -> 26.04.2024 | B11: BUN | C11: =+'H1'!C4 -> Roma | D11: =+'H1'!E4 -> Genoa | E11: =+'H1'!F4 -> 0-0 | H11: =+'H1'!B9 -> 04.04.2024 | I11: BUN | J11: =+'H1'!C9 -> Monza | K11: =+'H1'!E9 -> Hellas Verona | L11: =+'H1'!F9 -> 0-0 | AB11: =AC7+0.02 -> 1.734285714 | AC11: =AD7+0.02 -> 0.6866666667 | AD11: S | AE11: =MAX(AD6,AC5) -> 1.4 | AF11: =MAX(AD5,AC6) -> 0.6 | AG11: =MIN(AD6,AC5) -> 1.4 | AH11: =MIN(AD5,AC6) -> 0.4
A12: =+'H1'!B5 -> 26.04.2025 | B12: BUN | C12: =+'H1'!C5 -> Roma | D12: =+'H1'!E5 -> Bologna | E12: =+'H1'!F5 -> 1-0 | H12: =+'H1'!B10 -> 04.04.2025 | I12: BUN | J12: =+'H1'!C10 -> Sassuolo | K12: =+'H1'!E10 -> Hellas Verona | L12: =+'H1'!F10 -> 1-1 | AB12: =AC7-0.02 -> 1.694285714 | AC12: =AD7-0.02 -> 0.6466666667 | AD12: P | AE12: =MAX(AC7,AD8) -> 1.714285714 | AF12: =MAX(AD7,AC8) -> 0.6666666667 | AG12: =MIN(AC7,AD8) -> 1.5 | AH12: =MIN(AD7,AC8) -> 0.5833333333
A13: GROUP | C13: https://www.facebook.com/groups/726352478100423 | J13: FIRST GOL | Q13: =ROUND(AVERAGE(AF18:AF21),0) -> 2 | U13: =ROUND(AVERAGE(AG18:AG21),0) -> 0 | X13: =IF(AND(AA18>AC18),"1X",IF(AND(AA18>AC18),"1X",IF(AND(AA18>AC18),"1X",IF(AND(AA18=AC18),"1X",IF(AND(AA18=AC18),"NOBET",IF(AND(AA18=AC18),"X2",IF(AND(AA18<AC18),"X2",IF(AND(AA18<AC18),"X2",IF(AND(AA18<AC18),"2"))))))))) -> 1X | AB13: =AC8+0.02 -> 0.6033333333 | AC13: =AD8+0.02 -> 1.52 | AD13: AT | AE13: =AE11*AE12 -> 2.4 | AF13: =AF11*AF12 -> 0.4 | AG13: =AG11*AG12 -> 2.1 | AH13: =AH11*AH12 -> 0.2333333333
AB14: =AC8-0.02 -> 0.5633333333 | AC14: =AD8-0.02 -> 1.48 | AE14: =AE13 -> 2.4 | AF14: =AF13 -> 0.4 | AG14: =AG13 -> 2.1 | AH14: =AH13 -> 0.2333333333
AD15: ORT | AE15: =AA17 -> 0 | AF15: =AVERAGE(AE14,AG14) -> 2.25 | AG15: =AC17 -> 0 | AH15: =AVERAGE(AF14,AH14) -> 0.3166666667
A16: YOUTUBE | C16: https://www.youtube.com/watch?v=LHce3VVzU7E&t=0s&ab_channel=ExcelAnalizTahmin
J17: =AF26 -> Roma | AC17: =X17 -> 0 | AF17: A | AG17: B
AA18: =AF22 -> 2 | AC18: =AG22 -> 0 | AF18: =AC5*AC7 -> 2.4 | AG18: =AD5*AD7 -> 0.4
A19: PAGE FACBOK | C19: https://www.facebook.com/ExcelAnalizTahmin/ | Q19: EXCEL ANALIZ TAHMIN | AF19: =AC5*AD8 -> 2.1 | AG19: =AD5*AC8 -> 0.35
AF20: =AD6*AC7 -> 2.4 | AG20: =AC6*AD7 -> 0.2666666667
AF21: =AD6*AD8 -> 2.1 | AG21: =AC6*AC8 -> 0.2333333333
A22: INSTAGRAM | C22: https://www.instagram.com/excel_analys_tahmin/ | P22: =Q13 -> 2 | Q22: SCORE HT | AF22: =ROUND(AVERAGE(AF18:AF21),0) -> 2 | AG22: =ROUND(AVERAGE(AG18:AG21),0) -> 0 | AH22: ORT
AF24: =AF18+AF19+AF20+AF21 -> 9 | AG24: =AG18+AG19+AG20+AG21 -> 1.25
A25: TELEGRAM CHAT | C25: https://t.me/ONLY_GREENN | Q25: =AF44 -> 0 | U25: =AG44 -> 1
AF26: =IF(AF24>AG24,C2,K2) -> Roma
AC27: =C50 -> 0.6 | AD27: =J50 -> 0.8 | AE27: gPS | AF27: Number of Positions Entered
A28: FACEBOOK | C28: https://www.facebook.com/turc200 | AC28: =D50 -> 0.6 | AD28: =K50 -> 0.2 | AE28: vPS | AF28: Number of Positions Given
AC29: =(AC27+1)/(AC28+1) -> 1 | AD29: =(AD27+1)/(AD28+1) -> 1.5 | AE29: pBAS | AF29: Number Per Position
AC30: =(AC28+1)/(AC27+1) -> 1 | AD30: =(AD28+1)/(AD27+1) -> 0.6666666667 | AE30: pBYS | AF30: Number Eats Per Position
AB32: Mean A | AC32: Mean B | AE32: Max A | AF32: Max B | AG32: Min A | AH32: Min B
AB33: =AC29+0.02 -> 1.02 | AC33: =AD29+0.02 -> 1.52 | AD33: S | AE33: =MAX(AD28,AC27) -> 0.6 | AF33: =MAX(AD27,AC28) -> 0.8 | AG33: =MIN(AD28,AC27) -> 0.2 | AH33: =MIN(AD27,AC28) -> 0.6
AB34: =AC29-0.02 -> 0.98 | AC34: =AD29-0.02 -> 1.48 | AD34: P | AE34: =MAX(AC29,AD30) -> 1 | AF34: =MAX(AD29,AC30) -> 1.5 | AG34: =MIN(AC29,AD30) -> 0.6666666667 | AH34: =MIN(AD29,AC30) -> 1
AB35: =AC30+0.02 -> 1.02 | AC35: =AD30+0.02 -> 0.6866666667 | AD35: AT | AE35: =AE33*AE34 -> 0.6 | AF35: =AF33*AF34 -> 1.2 | AG35: =AG33*AG34 -> 0.1333333333 | AH35: =AH33*AH34 -> 0.6
C36: =MID(E2,1,2) -> 2 | D36: =MID(E2,4,2) -> 0 | F36: =MID(H2,3,1) -> . | J36: =MID(L2,4,2) -> 1 | K36: =MID(L2,1,2) -> 1 | AB36: =AC30-0.02 -> 0.98 | AC36: =AD30-0.02 -> 0.6466666667 | AE36: =AE35 -> 0.6 | AF36: =AF35 -> 1.2 | AG36: =AG35 -> 0.1333333333 | AH36: =AH35 -> 0.6
C37: =MID(E3,1,2) -> 1 | D37: =MID(E3,4,2) -> 2 | F37: =MID(H3,3,1) -> . | J37: =MID(L3,4,2) -> 0 | K37: =MID(L3,1,2) -> 1 | AD37: ORT | AE37: =AA39 -> 0 | AF37: =AVERAGE(AE36,AG36) -> 0.3666666667 | AG37: =AC39 -> 0 | AH37: =AVERAGE(AF36,AH36) -> 0.9
C38: =MID(E4,1,2) -> 2 | D38: =MID(E4,4,2) -> 0 | F38: =MID(H4,3,1) -> . | J38: =MID(L4,4,2) -> 1 | K38: =MID(L4,1,2) -> 1
C39: =MID(E5,1,2) -> 1 | D39: =MID(E5,4,2) -> 0 | F39: =MID(H5,3,1) -> . | J39: =MID(L5,4,2) -> 0 | K39: =MID(L5,1,2) -> 2 | AC39: =X39 -> 0 | AF39: A | AG39: B
C40: =MID(E6,1,2) -> 1 | D40: =MID(E6,4,2) -> 0 | F40: =MID(H6,3,1) -> . | J40: =MID(L6,4,2) -> 1 | K40: =MID(L6,1,2) -> 2 | AC40: =AG44 -> 1 | AF40: =AC27*AC29 -> 0.6 | AG40: =AD27*AD29 -> 1.2
C41: =(C36+C37+C38+C39+C40)/5 -> 1.4 | D41: =(D36+D37+D38+D39+D40)/5 -> 0.4 | F41: =(F36+F37+F38+F39+F40)/5 ->  | J41: =(J36+J37+J38+J39+J40)/5 -> 0.6 | K41: =(K36+K37+K38+K39+K40)/5 -> 1.4 | AF41: =AC27*AD30 -> 0.4 | AG41: =AD27*AC30 -> 0.8
AF42: =AD28*AC29 -> 0.2 | AG42: =AC28*AD29 -> 0.9
AF43: =AD28*AD30 -> 0.1333333333 | AG43: =AC28*AC30 -> 0.6
AF44: =ROUND(AVERAGE(AF40:AF43),0) -> 0 | AG44: =ROUND(AVERAGE(AG40:AG43),0) -> 1 | AH44: ORT
C45: ='H1'!L6 -> 1 | D45: ='H1'!M6 -> 1 | F45: =MID(L8,3,1) -> 1 | J45: ='H1'!L1 -> 2 | K45: ='H1'!M1 -> 0
C46: ='H1'!L7 -> 1 | D46: ='H1'!M7 -> 0 | F46: =MID(H12,3,1) -> . | J46: ='H1'!L2 -> 0 | K46: ='H1'!M2 -> 1 | AF46: =AF40+AF41+AF42+AF43 -> 1.333333333 | AG46: =AG40+AG41+AG42+AG43 -> 3.5
C47: ='H1'!L8 -> 0 | D47: ='H1'!M8 -> 1 | F47: =MID(H13,3,1) ->  | J47: ='H1'!L3 -> 1 | K47: ='H1'!M3 -> 0
C48: ='H1'!L9 -> 0 | D48: ='H1'!M9 -> 0 | F48: =MID(H14,3,1) ->  | J48: ='H1'!L4 -> 0 | K48: ='H1'!M4 -> 0 | AF48: =IF(AF46>AG46,C24,K24) -> 0
C49: ='H1'!L10 -> 1 | D49: ='H1'!M10 -> 1 | F49: =MID(H15,3,1) ->  | J49: ='H1'!L5 -> 1 | K49: ='H1'!M5 -> 0
C50: =(C45+C46+C47+C48+C49)/5 -> 0.6 | D50: =(D45+D46+D47+D48+D49)/5 -> 0.6 | F50: =(F45+F46+F47+F48+F49)/5 ->  | J50: =(J45+J46+J47+J48+J49)/5 -> 0.8 | K50: =(K45+K46+K47+K48+K49)/5 -> 0.2

Sheet DATA (hidden)
B6: Previous Scores Statistics
B7: Borussia Dortmund
B8: H-A Same GER D1 UEFA CL GERC INT CF
B9: League | C9: Date | D9: Home | E9: Score | F9: H T | G9: Corner | H9: Away | O9: W/L | P9: Odds | Q9: O/U
I10: HW | J10: D | K10: AW | L10: H | M10: Odds | N10: A
B11: GER D1 | C11: 4/6/2019 | D11: =Veriler!C7 -> Salzburg | E11: =Veriler!D7 -> 1 - 0 | F11: =Veriler!E7 -> 0-0 | G11: 11-1 | H11: =Veriler!G7 -> Roma | I11: 1.52 | J11: 4.48 | K11: 5.38 | L11: 0.82 | M11: 1 | N11: 1.06 | O11: L | P11: L | Q11: O
B12: GER D1 | C12: 3/30/2019 | D12: =Veriler!C8 -> Lecce | E12: =Veriler!D8 -> 1 - 1 | F12: =Veriler!E8 -> 1-1 | G12: 5-4 | H12: =Veriler!G8 -> Roma | I12: 1.49 | J12: 4.39 | K12: 6.02 | L12: 0.98 | M12: 1/1.5 | N12: 0.90 | O12: W | P12: W | Q12: U
B13: GER D1 | C13: 3/16/2019 | D13: =Veriler!C9 -> Roma | E13: =Veriler!D9 -> 2 - 0 | F13: =Veriler!E9 -> 2-0 | G13: 4-10 | H13: =Veriler!G9 -> Empoli | I13: 3.83 | J13: 3.70 | K13: 1.87 | L13: 1.00 | M13: -0.5 | N13: 0.88 | O13: W | P13: W | Q13: O
B14: GER D1 | C14: 3/9/2019 | D14: =Veriler!C10 -> Roma | E14: =Veriler!D10 -> 1 - 2 | F14: =Veriler!E10 -> 0-1 | G14: 7-1 | H14: =Veriler!G10 -> Cremonese | I14: 1.32 | J14: 5.32 | K14: 8.34 | L14: 0.89 | M14: 1.5 | N14: 0.99 | O14: W | P14: W | Q14: O
B15: UEFA CL | C15: 3/5/2019 | D15: =Veriler!C11 -> Napoli | E15: =Veriler!D11 -> 2 - 1 | F15: =Veriler!E11 -> 1-0 | G15: 10-5 | H15: =Veriler!G11 -> Roma | I15: 1.97 | J15: 3.65 | K15: 3.59 | L15: 1.04 | M15: 0.5 | N15: 0.84 | O15: L | P15: L | Q15: U
B16: GER D1 | C16: 3/1/2019 | D16: =Veriler!C12 -> Spezia | E16: =Veriler!D12 -> 0 - 2 | F16: =Veriler!E12 -> 0-1 | G16: 1-4 | H16: =Veriler!G12 -> Roma | I16: 4.94 | J16: 4.06 | K16: 1.62 | L16: 1.07 | M16: -0.5/-1 | N16: 0.81 | O16: L | P16: L | Q16: D
B17: GER D1 | C17: 2/24/2019 | D17: =Veriler!C13 -> Roma | E17: =Veriler!D13 -> 2 - 0 | F17: =Veriler!E13 -> 1-0 | G17: 3-8 | H17: =Veriler!G13 -> Fiorentina | I17: 1.77 | J17: 3.92 | K17: 4.07 | L17: 0.90 | M17: 0.5/1 | N17: 0.98 | O17: W | P17: W | Q17: O
B18: GER D1 | C18: 2/18/2019 | D18: =Veriler!C14 -> Roma | E18: =Veriler!D14 -> 1 - 0 | F18: =Veriler!E14 -> 0-0 | G18: 3-11 | H18: =Veriler!G14 -> Genoa | I18: 7.40 | J18: 5.03 | K18: 1.37 | L18: 0.87 | M18: -1.5 | N18: 1.01 | O18: D | P18: L | Q18: U
B19: UEFA CL | C19: 2/13/2019 | D19: =Veriler!C15 -> Milan | E19: =Veriler!D15 -> 2 - 2 | F19: =Veriler!E15 -> 1-0 | G19: 6-1 | H19: =Veriler!G15 -> Roma | I19: 2.22 | J19: 3.52 | K19: 3.12 | L19: 1.05 | M19: 0.5 | N19: 0.83 | O19: L | P19: L | Q19: O
B20: GER D1 | C20: 2/9/2019 | D20: =Veriler!C16 -> Roma | E20: =Veriler!D16 -> 1 - 0 | F20: =Veriler!E16 -> 1-0 | G20: 7-8 | H20: =Veriler!G16 -> Bologna | I20: 1.56 | J20: 4.37 | K20: 5.16 | L20: 0.93 | M20: 1 | N20: 0.95 | O20: D | P20: L | Q20: O
B21: Last 10 matches, 4 win, 2 draw, 4 loss, Win rate：40% Odds win rate：40.00% Over rate：60.00% Odd rate：60%
B22: FSV Mainz 05
B23: H-A Same GER D1 INT CF
B24: League | C24: Date | D24: Home | E24: Score | F24: H T | G24: Corner | H24: Away | O24: W/L | P24: Odds | Q24: O/U
I25: HW | J25: D | K25: AW | L25: H | M25: Odds | N25: A
B26: GER D1 | C26: 4/5/2019 | D26: =Veriler!C33 -> Hellas Verona | E26: =Veriler!D33 -> 1 - 0 | F26: =Veriler!E33 -> 1-0 | G26: 2-7 | H26: =Veriler!G33 -> Salernitana | I26: 2.14 | J26: 3.39 | K26: 3.27 | L26: 0.87 | M26: 0/0.5 | N26: 1.01 | O26: W | P26: W | Q26: O
B27: GER D1 | C27: 3/30/2019 | D27: =Veriler!C34 -> Hellas Verona | E27: =Veriler!D34 -> 1 - 1 | F27: =Veriler!E34 -> 0-1 | G27: 2-8 | H27: =Veriler!G34 -> Lazio | I27: 1.68 | J27: 3.91 | K27: 4.72 | L27: 0.92 | M27: 0.5/1 | N27: 0.96 | O27: L | P27: L | Q27: O
B28: GER D1 | C28: 3/17/2019 | D28: =Veriler!C35 -> Udinese | E28: =Veriler!D35 -> 1 - 1 | F28: =Veriler!E35 -> 1-1 | G28: 2-9 | H28: =Veriler!G35 -> Hellas Verona | I28: 1.12 | J28: 8.29 | K28: 18.69 | L28: 0.88 | M28: 2/2.5 | N28: 1.00 | O28: L | P28: L | Q28: O
B29: GER D1 | C29: 3/9/2019 | D29: =Veriler!C36 -> Hellas Verona | E29: =Veriler!D36 -> 2 - 0 | F29: =Veriler!E36 -> 1-0 | G29: 2-10 | H29: =Veriler!G36 -> Lecce | I29: 3.13 | J29: 3.48 | K29: 2.18 | L29: 0.93 | M29: 0/-0.5 | N29: 0.95 | O29: L | P29: L | Q29: U
B30: GER D1 | C30: 3/2/2019 | D30: =Veriler!C37 -> Inter | E30: =Veriler!D37 -> 1 - 0 | F30: =Veriler!E37 -> 1-0 | G30: 2-11 | H30: =Veriler!G37 -> Hellas Verona | I30: 1.82 | J30: 3.62 | K30: 4.19 | L30: 1.03 | M30: 0.5/1 | N30: 0.85 | O30: L | P30: L | Q30: O
B31: GER D1 | C31: 2/23/2019 | D31: =Veriler!C38 -> Hellas Verona | E31: =Veriler!D38 -> 2 - 0 | F31: =Veriler!E38 -> 2-0 | G31: 2-12 | H31: =Veriler!G38 -> Cremonese | I31: 2.85 | J31: 3.32 | K31: 2.42 | L31: 0.82 | M31: 0/-0.5 | N31: 1.06 | O31: W | P31: W | Q31: O
B32: GER D1 | C32: 2/16/2019 | D32: =Veriler!C39 -> Torino | E32: =Veriler!D39 -> 1 - 1 | F32: =Veriler!E39 -> 0-1 | G32: 2-13 | H32: =Veriler!G39 -> Hellas Verona | I32: 1.86 | J32: 3.66 | K32: 4.05 | L32: 0.84 | M32: 0.5 | N32: 1.04 | O32: L | P32: L | Q32: O
B33: GER D1 | C33: 2/8/2019 | D33: =Veriler!C40 -> Hellas Verona | E33: =Veriler!D40 -> 0 - 1 | F33: =Veriler!E40 -> 0-1 | G33: 2-14 | H33: =Veriler!G40 -> Bologna | I33: 3.30 | J33: 3.62 | K33: 2.10 | L33: 1.03 | M33: 0/-0.5 | N33: 0.85 | O33: L | P33: L | Q33: O
B34: GER D1 | C34: 2/3/2019 | D34: =Veriler!C41 -> Hellas Verona | E34: =Veriler!D41 -> 0 - 0 | F34: =Veriler!E41 -> 0-0 | G34: 2-15 | H34: =Veriler!G41 -> Istra 1961 | I34: 2.16 | J34: 3.42 | K34: 3.23 | L34: 0.86 | M34: 0/0.5 | N34: 1.02 | O34: L | P34: L | Q34: O
B35: GER D1 | C35: 1/26/2019 | D35: =Veriler!C42 -> Hellas Verona | E35: =Veriler!D42 -> 1 - 2 | F35: =Veriler!E42 -> 1-0 | G35: 2-16 | H35: =Veriler!G42 -> Spezia | I35: 1.75 | J35: 3.61 | K35: 4.57 | L35: 1.03 | M35: 0.5/1 | N35: 0.85 | O35: W | P35: W | Q35: O
B36: Last 10 matches, 3 win, 0 draw, 7 loss, Win rate：30% Odds win rate：30.00% Over rate：90.00% Odd rate：70%

Sheet BH1 (hidden)
F2: =CONCATENATE(B4," - ",B17) -> Roma - Hellas Verona
B4: =IF(B5=C5,B5,IF(B5=C6,B5,IF(B5=B6,B5,C5))) -> Roma | J4: ON | M4: BH
B5: =Stat!L3 -> Salzburg | C5: =Stat!M3 -> Roma | D5: =Stat!P3 -> 1 | E5: =Stat!Q3 -> 0 | F5: =Stat!U3 -> 0 | G5: =Stat!V3 -> 0 | I5: =IF(B5=$B$4,"Ev","Sefer") -> Sefer | J5: =IF(I5="ev",D5,E5) -> 0 | K5: =IF(I5="ev",E5,D5) -> 1 | L5: =IF(B5=$B$4,"Ev","Sefer") -> Sefer | M5: =IF(L5="ev",F5,G5) -> 0 | N5: =IF(L5="ev",G5,F5) -> 0
B6: =Stat!L4 -> Lecce | C6: =Stat!M4 -> Roma | D6: =Stat!P4 -> 1 | E6: =Stat!Q4 -> 1 | F6: =Stat!U4 -> 1 | G6: =Stat!V4 -> 1 | I6: Sefer | J6: 1 | K6: 1 | L6: Sefer | M6: 1 | N6: 1
B7: =Stat!L5 -> Roma | C7: =Stat!M5 -> Empoli | D7: =Stat!P5 -> 2 | E7: =Stat!Q5 -> 0 | F7: =Stat!U5 -> 2 | G7: =Stat!V5 -> 0 | I7: Ev | J7: 2 | K7: 0 | L7: Ev | M7: 2 | N7: 0
B8: =Stat!L6 -> Roma | C8: =Stat!M6 -> Cremonese | D8: =Stat!P6 -> 1 | E8: =Stat!Q6 -> 2 | F8: =Stat!U6 -> 0 | G8: =Stat!V6 -> 1 | I8: Ev | J8: 1 | K8: 2 | L8: Ev | M8: 0 | N8: 1
B9: =Stat!L7 -> Napoli | C9: =Stat!M7 -> Roma | D9: =Stat!P7 -> 2 | E9: =Stat!Q7 -> 1 | F9: =Stat!U7 -> 1 | G9: =Stat!V7 -> 0 | I9: Sefer | J9: 1 | K9: 2 | L9: Sefer | M9: 0 | N9: 1
B10: =Stat!L8 -> Spezia | C10: =Stat!M8 -> Roma | D10: =Stat!P8 -> 0 | E10: =Stat!Q8 -> 2 | F10: =Stat!U8 -> 0 | G10: =Stat!V8 -> 1 | I10: Sefer | J10: 2 | K10: 0 | L10: Sefer | M10: 1 | N10: 0
B11: =Stat!L9 -> Roma | C11: =Stat!M9 -> Fiorentina | D11: =Stat!P9 -> 2 | E11: =Stat!Q9 -> 0 | F11: =Stat!U9 -> 1 | G11: =Stat!V9 -> 0 | I11: Ev | J11: 2 | K11: 0 | L11: Ev | M11: 1 | N11: 0
B12: =Stat!L10 -> Roma | C12: =Stat!M10 -> Genoa | D12: =Stat!P10 -> 1 | E12: =Stat!Q10 -> 0 | F12: =Stat!U10 -> 0 | G12: =Stat!V10 -> 0 | I12: Ev | J12: 1 | K12: 0 | L12: Ev | M12: 0 | N12: 0
B13: =Stat!L11 -> Milan | C13: =Stat!M11 -> Roma | D13: =Stat!P11 -> 2 | E13: =Stat!Q11 -> 2 | F13: =Stat!U11 -> 1 | G13: =Stat!V11 -> 0 | I13: Sefer | J13: 2 | K13: 2 | L13: Sefer | M13: 0 | N13: 1
B14: =Stat!L12 -> Roma | C14: =Stat!M12 -> Bologna | D14: =Stat!P12 -> 1 | E14: =Stat!Q12 -> 0 | F14: =Stat!U12 -> 1 | G14: =Stat!V12 -> 0 | I14: Ev | J14: 1 | K14: 0 | L14: Ev | M14: 1 | N14: 0
J15: =SUM(J5:J14) -> 13 | K15: =SUM(K5:K14) -> 8 | M15: =SUM(M5:M14) -> 6 | N15: =SUM(N5:N14) -> 4 | P15: =M15/10 -> 0.6 | Q15: =N15/10 -> 0.4
P16: =M28/10 -> 0.7 | Q16: =N28/10 -> 0.4
B17: =IF(B18=C18,B18,IF(B18=C19,B18,IF(B18=B19,B18,C18))) -> Hellas Verona | J17: ON | M17: BH | P17: =AVERAGE(P15:Q16) -> 0.525
B18: =Stat!L15 -> Hellas Verona | C18: =Stat!M15 -> Salernitana | D18: =Stat!P15 -> 1 | E18: =Stat!Q15 -> 0 | F18: =Stat!U15 -> 1 | G18: =Stat!V15 -> 0 | I18: =IF(B18=$B$17,"Ev","Sefer") -> Ev | J18: =IF(I18="ev",D18,E18) -> 1 | K18: =IF(I18="ev",E18,D18) -> 0 | L18: =IF(B18=$B$17,"Ev","Sefer") -> Ev | M18: =IF(L18="ev",F18,G18) -> 1 | N18: =IF(L18="ev",G18,F18) -> 0
B19: =Stat!L16 -> Hellas Verona | C19: =Stat!M16 -> Lazio | D19: =Stat!P16 -> 1 | E19: =Stat!Q16 -> 1 | F19: =Stat!U16 -> 0 | G19: =Stat!V16 -> 1 | I19: Ev | J19: 1 | K19: 1 | L19: Ev | M19: 0 | N19: 1 | P19: =IF(P17>0.5,"0.5 Üst","0.5 Alt") -> 0.5 Üst
B20: =Stat!L17 -> Udinese | C20: =Stat!M17 -> Hellas Verona | D20: =Stat!P17 -> 1 | E20: =Stat!Q17 -> 1 | F20: =Stat!U17 -> 1 | G20: =Stat!V17 -> 1 | I20: Sefer | J20: 1 | K20: 1 | L20: Sefer | M20: 1 | N20: 1
B21: =Stat!L18 -> Hellas Verona | C21: =Stat!M18 -> Lecce | D21: =Stat!P18 -> 2 | E21: =Stat!Q18 -> 0 | F21: =Stat!U18 -> 1 | G21: =Stat!V18 -> 0 | I21: Ev | J21: 2 | K21: 0 | L21: Ev | M21: 1 | N21: 0
B22: =Stat!L19 -> Inter | C22: =Stat!M19 -> Hellas Verona | D22: =Stat!P19 -> 1 | E22: =Stat!Q19 -> 0 | F22: =Stat!U19 -> 1 | G22: =Stat!V19 -> 0 | I22: Sefer | J22: 0 | K22: 1 | L22: Sefer | M22: 0 | N22: 1
B23: =Stat!L20 -> Hellas Verona | C23: =Stat!M20 -> Cremonese | D23: =Stat!P20 -> 2 | E23: =Stat!Q20 -> 0 | F23: =Stat!U20 -> 2 | G23: =Stat!V20 -> 0 | I23: Ev | J23: 2 | K23: 0 | L23: Ev | M23: 2 | N23: 0
B24: =Stat!L21 -> Torino | C24: =Stat!M21 -> Hellas Verona | D24: =Stat!P21 -> 1 | E24: =Stat!Q21 -> 1 | F24: =Stat!U21 -> 0 | G24: =Stat!V21 -> 1 | I24: Sefer | J24: 1 | K24: 1 | L24: Sefer | M24: 1 | N24: 0
B25: =Stat!L22 -> Hellas Verona | C25: =Stat!M22 -> Bologna | D25: =Stat!P22 -> 0 | E25: =Stat!Q22 -> 1 | F25: =Stat!U22 -> 0 | G25: =Stat!V22 -> 1 | I25: Ev | J25: 0 | K25: 1 | L25: Ev | M25: 0 | N25: 1
B26: =Stat!L23 -> Hellas Verona | C26: =Stat!M23 -> Istra 196 | D26: =Stat!P23 -> 0 | E26: =Stat!Q23 -> 0 | F26: =Stat!U23 -> 0 | G26: =Stat!V23 -> 0 | I26: Ev | J26: 0 | K26: 0 | L26: Ev | M26: 0 | N26: 0 | P26: =J15/10 -> 1.3 | Q26: =K15/10 -> 0.8
B27: =Stat!L24 -> Hellas Verona | C27: =Stat!M24 -> Spezia | D27: =Stat!P24 -> 1 | E27: =Stat!Q24 -> 2 | F27: =Stat!U24 -> 1 | G27: =Stat!V24 -> 0 | I27: Ev | J27: 1 | K27: 2 | L27: Ev | M27: 1 | N27: 0 | P27: =J28/10 -> 0.9 | Q27: =K28/10 -> 0.7
J28: =SUM(J18:J27) -> 9 | K28: =SUM(K18:K27) -> 7 | M28: =SUM(M18:M27) -> 7 | N28: =SUM(N18:N27) -> 4 | P28: =AVERAGE(P26:Q27) -> 0.925
E30: =CONCATENATE('BH2'!O18," / ",'BH3'!V14) -> X / 1 | P30: =IF(P28>2.5,"2.5 Üst","2.5 Alt") -> 2.5 Alt

Sheet BH2 (hidden)
A1: 01.07.18 | B1: PL | C1: FK Akzhayik | D1: Tobol | E1: =PAST!D33 -> 1 - 0 | H1: =IF(COUNTIF(A1:E5,C1)>COUNTIF(A1:E5,D1),C1,D1) -> Tobol | J1: =IF(X1>H11,"1","0") -> 0 | K1: =LEFT(E1,1) -> 1 | L1: =RIGHT(E1,1) -> 0 | N1: =IF(H1=C1,"ev","dep") -> dep | P1: =IF(N1="ev",K1,IF(N1="dep",L1,"0")) -> 0 | Q1: =IF(N1="ev",L1,IF(N1="dep",K1,"0")) -> 1 | X1: =VALUE(P1) -> 0 | Y1: 1
A2: 23.06.18 | B2: PL | C2: Tobol | D2: Aktobe | E2: =PAST!D34 -> 1 - 1 | H2: Vurd,Qol Ort | J2: =IF(X2>H11,"1","0") -> 1 | K2: =LEFT(E2,1) -> 1 | L2: =RIGHT(E2,1) -> 1 | N2: =IF(H1=C2,"ev","dep") -> ev | P2: =IF(N2="ev",K2,IF(N2="dep",L2,"0")) -> 1 | Q2: =IF(N2="ev",L2,IF(N2="dep",K2,"0")) -> 1 | S2: =P6 -> 6 | U2: =S2/10 -> 0.6 | X2: 1 | Y2: 1
A3: 17.06.18 | B3: PL | C3: Atyrau | D3: Tobol | E3: =PAST!D35 -> 2 - 0 | H3: =P6/10 -> 0.6 | J3: =IF(X3>H11,"1","0") -> 0 | K3: =LEFT(E3,1) -> 2 | L3: =RIGHT(E3,1) -> 0 | N3: =IF(H1=C3,"ev","dep") -> dep | P3: =IF(N3="ev",K3,IF(N3="dep",L3,"0")) -> 0 | Q3: =IF(N3="ev",L3,IF(N3="dep",K3,"0")) -> 2 | S3: =Q6 -> 4 | U3: =S3/10 -> 0.4 | X3: 0 | Y3: 2
A4: 31.05.18 | B4: PL | C4: Tobol | D4: Kyzylzhar | E4: =PAST!D36 -> 1 - 2 | H4: Bur,Qol ort | J4: =IF(X4>H11,"1","0") -> 1 | K4: =LEFT(E4,1) -> 1 | L4: =RIGHT(E4,1) -> 2 | N4: =IF(H1=C4,"ev","dep") -> ev | P4: =IF(N4="ev",K4,IF(N4="dep",L4,"0")) -> 1 | Q4: =IF(N4="ev",L4,IF(N4="dep",K4,"0")) -> 2 | X4: 1 | Y4: 2
A5: 27.05.18 | B5: PL | C5: Shakhtar Karagandy | D5: Tobol | E5: =PAST!D37 -> 2 - 1 | H5: =Q6/10 -> 0.4 | J5: =IF(X5>H11,"1","0") -> 1 | K5: =LEFT(E5,1) -> 2 | L5: =RIGHT(E5,1) -> 1 | N5: =IF(H1=C5,"ev","dep") -> dep | P5: =IF(N5="ev",K5,IF(N5="dep",L5,"0")) -> 1 | Q5: =IF(N5="ev",L5,IF(N5="dep",K5,"0")) -> 2 | V5: =U2+U3 -> 1 | X5: 1 | Y5: 2 | AA5: EV | AB5: DEP
P6: ='BH1'!M15 -> 6 | Q6: ='BH1'!N15 -> 4 | V6: =U8 -> 0.7 | W6: =D13 -> 0 | AA6: =W6-R16 -> -0.3428571429 | AB6: =W6-T16 -> -0.4666666667
A7: 30.06.18 | B7: PL | C7: FC Astana | D7: Ordabasy | E7: =PAST!K33 -> 1 - 0 | H7: =IF(COUNTIF(A7:E11,C7)>COUNTIF(A7:E11,D7),C7,D7) -> FC Astana | J7: =IF(X7>H5,"1","0") -> 1 | K7: =LEFT(E7,1) -> 1 | L7: =RIGHT(E7,1) -> 0 | N7: =IF(H7=C7,"ev","dep") -> ev | P7: =IF(N7="ev",K7,IF(N7="dep",L7,"0")) -> 1 | Q7: =IF(N7="ev",L7,IF(N7="dep",K7,"0")) -> 0 | X7: =VALUE(P7) -> 1 | Y7: 0 | AF7: =IF(D32=2,"VAR","YOK") -> YOK
A8: 24.06.18 | B8: PL | C8: K. Almaty | D8: FC Astana | E8: =PAST!K34 -> 1 - 1 | H8: Vurd,Qol Ort | J8: =IF(X8>H5,"1","0") -> 1 | K8: =LEFT(E8,1) -> 1 | L8: =RIGHT(E8,1) -> 1 | N8: =IF(H7=C8,"ev","dep") -> dep | P8: =IF(N8="ev",K8,IF(N8="dep",L8,"0")) -> 1 | Q8: =IF(N8="ev",L8,IF(N8="dep",K8,"0")) -> 1 | S8: =P12 -> 7 | U8: =S8/10 -> 0.7 | X8: 1 | Y8: 1 | AA8: =AB6+AA6 -> -0.8095238095 | AC8: ÜST
A9: 17.06.18 | B9: PL | C9: FC Astana | D9: I. Pavlodar | E9: =PAST!K35 -> 1 - 1 | H9: =P12/10 -> 0.7 | J9: =IF(X9>H5,"1","0") -> 1 | K9: =LEFT(E9,1) -> 1 | L9: =RIGHT(E9,1) -> 1 | N9: =IF(H7=C9,"ev","dep") -> ev | P9: =IF(N9="ev",K9,IF(N9="dep",L9,"0")) -> 1 | Q9: =IF(N9="ev",L9,IF(N9="dep",K9,"0")) -> 1 | S9: =Q12 -> 4 | U9: =S9/10 -> 0.4 | X9: 1 | Y9: 1 | AF9: =IF(H19>=2.5,"2.5 üst","2.5 alt") -> 2.5 alt | AL9: =D17+D21 -> 0.9904761905
A10: 31.05.18 | B10: PL | C10: Kaisar Kyzylorda | D10: FC Astana | E10: =PAST!K36 -> 2 - 0 | H10: Bur,Qol ort | J10: =IF(X10>H5,"1","0") -> 0 | K10: =LEFT(E10,1) -> 2 | L10: =RIGHT(E10,1) -> 0 | N10: =IF(H7=C10,"ev","dep") -> dep | P10: =IF(N10="ev",K10,IF(N10="dep",L10,"0")) -> 0 | Q10: =IF(N10="ev",L10,IF(N10="dep",K10,"0")) -> 2 | X10: 0 | Y10: 2
A11: 27.05.18 | B11: PL | C11: FC Astana | D11: Zhetysu Taldykorgan | E11: =PAST!K37 -> 1 - 0 | H11: =Q12/10 -> 0.4 | J11: =IF(X11>H5,"1","0") -> 1 | K11: =LEFT(E11,1) -> 1 | L11: =RIGHT(E11,1) -> 0 | N11: =IF(H7=C11,"ev","dep") -> ev | P11: =IF(N11="ev",K11,IF(N11="dep",L11,"0")) -> 1 | Q11: =IF(N11="ev",L11,IF(N11="dep",K11,"0")) -> 0 | V11: =U8+U9 -> 1.1 | X11: 1 | Y11: 0
P12: ='BH1'!M28 -> 7 | Q12: ='BH1'!N28 -> 4 | V12: =U2 -> 0.6
S13: =AVERAGE(R15,R16) -> 0.3214285714 | T13: =AVERAGE(T15,T16) -> 0.4833333333
K14: =AVERAGE(H3,H11) -> 0.5 | S14: =IF(S13-TRUNC(S13)>=0.5,TRUNC(S13)+1,TRUNC(S13)) -> 0 | T14: =IF(T13-TRUNC(T13)>=0.5,TRUNC(T13)+1,TRUNC(T13)) -> 0 | U14: =CONCATENATE(S14," - ",T14) -> 0 - 0 | V14: =IF(S14>T14,1,IF(T14>S14,2,"X")) -> X
R15: =V5-V6 -> 0.3 | T15: =V11-V12 -> 0.5
L16: =S13 -> 0.3214285714 | M16: =T13 -> 0.4833333333 | R16: =U2*U9/V6 -> 0.3428571429 | T16: =U3*U8/V12 -> 0.4666666667
A17: =H1 -> Tobol | D17: =H3*H11/H19 -> 0.4571428571 | L17: =FLOOR(L16,1) -> 0 | M17: =FLOOR(M16,1) -> 0
E18: =D17 -> 0.4571428571 | K18: =AVERAGE(H9,H5) -> 0.55 | L18: =IF(L17-TRUNC(L17)>=0.5,TRUNC(L17)+1,TRUNC(L17)) -> 0 | M18: =IF(M17-TRUNC(M17)>=0.5,TRUNC(M17)+1,TRUNC(M17)) -> 0 | N18: =CONCATENATE(L18," - ",M18) -> 0 - 0 | O18: =IF(L18>M18,1,IF(M18>L18,2,"X")) -> X | S18: =AVERAGE(T13,S13) -> 0.4023809524
H19: =AVERAGE(H11,H9,H5,H3) -> 0.525
E20: TAM SKOR | R20: =S13+S18 -> 0.7238095238 | T20: =T13+S18 -> 0.8857142857
A21: =H7 -> FC Astana | D21: =H9*H5/H19 -> 0.5333333333
E22: =D21 -> 0.5333333333 | S22: =AVERAGE(T20,R20) -> 0.8047619048
S24: =S22+S18 -> 1.207142857
D28: =IF(D17>1,"1","0") -> 0
D29: =IF(D21>1,"1","0") -> 0
AF30: =D17+D21 -> 0.9904761905
AF31: =AF30-9.4 -> -8.40952381 | AG31: ÜST
D32: =D29+D28 -> 0 | G32: =CONCATENATE(H1," - ",H7) -> Tobol - FC Astana
AH34: =H3-AF35 -> 0.075 | AI34: =H9-AF35 -> 0.175 | AK34: =AH34-AI34 -> -0.1
AF35: =AVERAGE(H3,H5,H9,H11) -> 0.525
AE36: =IF(H5<AF35,"1","0") -> 1 | AG36: =IF(H11<AF35,"1","0") -> 1 | AI36: =AG36+AE36 -> 2

Sheet HOME (hidden)
B3: HOME | D3: =#REF! ->  | F3: SCORE
B5: 19.10.20 | C5: SA | D5: =DATI!C4 -> Salzburg | E5: =DATI!E4 -> Roma | F5: =DATI!M4 -> 1 : 0 | G5: D
B6: 27.09.20 | C6: SA | D6: =DATI!C5 -> Lecce | E6: =DATI!E5 -> Roma | F6: =DATI!M5 -> 1 : 1 | G6: L
B7: 20.09.20 | C7: SA | D7: =DATI!C6 -> Roma | E7: =DATI!E6 -> Empoli | F7: =DATI!M6 -> 2 : 0 | G7: W
B8: 10.09.20 | C8: CF | D8: =DATI!C7 -> Roma | E8: =DATI!E7 -> Cremonese | F8: =DATI!M7 -> 1 : 2 | G8: W
B9: 09.09.20 | C9: CF | D9: =DATI!C8 -> Napoli | E9: =DATI!E8 -> Roma | F9: =DATI!M8 -> 2 : 1 | G9: W
B10: 02.08.20 | C10: SA | D10: =DATI!C9 -> Spezia | E10: =DATI!E9 -> Roma | F10: =DATI!M9 -> 0 : 2 | G10: W
B11: 29.07.20 | C11: SA | D11: =DATI!C10 -> Roma | E11: =DATI!E10 -> Fiorentina | F11: =DATI!M10 -> 2 : 0 | G11: L
B12: 25.07.20 | C12: SA | D12: =DATI!C11 -> Roma | E12: =DATI!E11 -> Genoa | F12: =DATI!M11 -> 1 : 0 | G12: L
B13: 22.07.20 | C13: SA | D13: =DATI!C12 -> Milan | E13: =DATI!E12 -> Roma | F13: =DATI!M12 -> 2 : 2 | G13: W
B14: 19.07.20 | C14: SA | D14: =DATI!C13 -> Roma | E14: =DATI!E13 -> Bologna | F14: =DATI!M13 -> 1 : 0 | G14: W

Sheet AWAY (hidden)
B3: AWAY | D3: =#REF! ->  | F3: SCORE
B5: 21.10.20 | C5: CL | D5: =DATI!C18 -> Hellas Verona | E5: =DATI!E18 -> Salernitana | F5: =DATI!M18 -> 1 : 0 | G5: D
B6: 17.10.20 | C6: SA | D6: =DATI!C19 -> Hellas Verona | E6: =DATI!E19 -> Lazio | F6: =DATI!M19 -> 1 : 1 | G6: L
B7: 04.10.20 | C7: SA | D7: =DATI!C20 -> Udinese | E7: =DATI!E20 -> Hellas Verona | F7: =DATI!M20 -> 1 : 1 | G7: D
B8: 30.09.20 | C8: SA | D8: =DATI!C21 -> Hellas Verona | E8: =DATI!E21 -> Lecce | F8: =DATI!M21 -> 2 : 0 | G8: W
B9: 26.09.20 | C9: SA | D9: =DATI!C22 -> Inter | E9: =DATI!E22 -> Hellas Verona | F9: =DATI!M22 -> 1 : 0 | G9: W
B10: 19.09.20 | C10: CF | D10: =DATI!C23 -> Hellas Verona | E10: =DATI!E23 -> Cremonese | F10: =DATI!M23 -> 2 : 0 | G10: W
B11: 15.09.20 | C11: CF | D11: =DATI!C24 -> Torino | E11: =DATI!E24 -> Hellas Verona | F11: =DATI!M24 -> 1 : 1 | G11: W
B12: 21.08.20 | C12: EL | D12: =DATI!C25 -> Hellas Verona | E12: =DATI!E25 -> Bologna | F12: =DATI!M25 -> 0 : 1 | G12: L
B13: 17.08.20 | C13: EL | D13: =DATI!C26 -> Hellas Verona | E13: =DATI!E26 -> Istra 1961 | F13: =DATI!M26 -> 0 : 0 | G13: W
B14: 10.08.20 | C14: EL | D14: =DATI!C27 -> Hellas Verona | E14: =DATI!E27 -> Spezia | F14: =DATI!M27 -> 1 : 2 | G14: W

Sheet ANALISI (hidden)
C2: NEW CORRECT SCORE MOD NOWGOAL 2021
C3: =V!B2 -> Roma | I3: =V!B9 -> Hellas Verona
C4: Correct Score 1 | G4: Correct Score 2 | K4: Correct Score 3
C6: =V!AD13 -> 1 | E6: =V!AF13 -> 1 | G6: =V!AD13 -> 1 | I6: =V!AF13 -> 1 | K6: =V!AD13 -> 1 | M6: =V!AF13 -> 1
C8: FT | G8: =IF(AND(V!D20>V!D21),"1",IF(AND(V!D20=V!D21),"X",IF(AND(V!D20<V!D21),"2"))) -> X | K8: =IF(AND(V!AD13>=V!AF13),"1X","X2") -> 1X

Sheet V (hidden)
B2: =IF(T3=T5,T3,IF(T3=U5,T3,U3)) -> Roma | T2: к1 | U2: к2 | V2: г1 | W2: г2 | AC2: Home | AG2: Away
B3: ='DATA (4)'!A3 -> 23-05-21 | C3: ='DATA (4)'!B3 -> FIN D2 | D3: ='DATA (4)'!C3 -> Roma | E3: ='DATA (4)'!D3 -> Empoli | F3: ='DATA (4)'!E3 -> 2 : 0 | T3: =D3 -> Roma | U3: Empoli | V3: =VALUE(LEFT(F3,FIND(":",F3,1)-2)) -> 2 | W3: =VALUE(LEFT(RIGHT(F3,LEN(F3)-FIND(":",F3,2)),4)) -> 0 | Y3: =IF(T3=B2,"Дома","В гостях") -> Дома | Z3: =IF(Y3="Дома",V3,W3) -> 2 | AA3: =IF(Y3="Дома",W3,V3) -> 0 | AC3: 1 | AD3: =Z7 -> 1 | AE3: =AA7 -> 0 | AG3: 1 | AH3: =Z14 -> 1 | AI3: =AA14 -> 2
B4: ='DATA (4)'!A4 -> 13-05-21 | C4: ='DATA (4)'!B4 -> FIN D2 | D4: ='DATA (4)'!C4 -> Roma | E4: ='DATA (4)'!D4 -> Cremonese | F4: ='DATA (4)'!E4 -> 1 : 2 | T4: Roma | U4: Cremonese | V4: =VALUE(LEFT(F4,FIND(":",F4,1)-2)) -> 1 | W4: =VALUE(LEFT(RIGHT(F4,LEN(F4)-FIND(":",F4,2)),4)) -> 2 | Y4: =IF(T4=B2,"Дома","В гостях") -> Дома | Z4: =IF(Y4="Дома",V4,W4) -> 1 | AA4: =IF(Y4="Дома",W4,V4) -> 2 | AC4: 2 | AD4: =Z6 -> 1 | AE4: =AA6 -> 0 | AG4: 2 | AH4: =Z13 -> 0 | AI4: =AA13 -> 2
B5: ='DATA (4)'!A5 -> 10-04-21 | C5: ='DATA (4)'!B5 -> INT CF | D5: ='DATA (4)'!C5 -> Roma | E5: ='DATA (4)'!D5 -> Fiorentina | F5: ='DATA (4)'!E5 -> 2 : 0 | T5: Roma | U5: Fiorentina | V5: =VALUE(LEFT(F5,FIND(":",F5,1)-2)) -> 2 | W5: =VALUE(LEFT(RIGHT(F5,LEN(F5)-FIND(":",F5,2)),4)) -> 0 | Y5: =IF(T5=B2,"Дома","В гостях") -> Дома | Z5: =IF(Y5="Дома",V5,W5) -> 2 | AA5: =IF(Y5="Дома",W5,V5) -> 0 | AC5: 3 | AD5: =Z5 -> 2 | AE5: =AA5 -> 0 | AG5: 3 | AH5: =Z12 -> 1 | AI5: =AA12 -> 1
B6: ='DATA (4)'!A6 -> 27-03-21 | C6: ='DATA (4)'!B6 -> INT CF | D6: ='DATA (4)'!C6 -> Roma | E6: ='DATA (4)'!D6 -> Genoa | F6: ='DATA (4)'!E6 -> 1 : 0 | T6: Roma | U6: Genoa | V6: =VALUE(LEFT(F6,FIND(":",F6,1)-2)) -> 1 | W6: =VALUE(LEFT(RIGHT(F6,LEN(F6)-FIND(":",F6,2)),4)) -> 0 | Y6: =IF(T6=B2,"Дома","В гостях") -> Дома | Z6: =IF(Y6="Дома",V6,W6) -> 1 | AA6: =IF(Y6="Дома",W6,V6) -> 0 | AC6: 4 | AD6: =Z4 -> 1 | AE6: =AA4 -> 2 | AG6: 4 | AH6: =Z11 -> 0 | AI6: =AA11 -> 1
B7: ='DATA (4)'!A7 -> 13-02-21 | C7: ='DATA (4)'!B7 -> FIN CUP | D7: ='DATA (4)'!C7 -> Roma | E7: ='DATA (4)'!D7 -> Bologna | F7: ='DATA (4)'!E7 -> 1 : 0 | T7: Roma | U7: Bologna | V7: =VALUE(LEFT(F7,FIND(":",F7,1)-2)) -> 1 | W7: =VALUE(LEFT(RIGHT(F7,LEN(F7)-FIND(":",F7,2)),4)) -> 0 | Y7: =IF(T7=B2,"Дома","В гостях") -> Дома | Z7: =IF(Y7="Дома",V7,W7) -> 1 | AA7: =IF(Y7="Дома",W7,V7) -> 0 | AC7: 5 | AD7: =Z3 -> 2 | AE7: =AA3 -> 0 | AG7: 5 | AH7: =Z10 -> 1 | AI7: =AA10 -> 1
AC8: 6 | AD8: =TREND(AD3:AD7,AC3:AC7,AC8) -> 2 | AE8: =TREND(AE3:AE7,AC3:AC7,AC8) -> 1 | AG8: 6 | AH8: =TREND(AH3:AH7,AG3:AG7,AG8) -> 0.6 | AI8: =TREND(AI3:AI7,AG3:AG7,AG8) -> 0.5
B9: =IF(T10=T12,T10,IF(T10=U12,T10,U10)) -> Hellas Verona | AC9: =B2 -> Roma | AG9: =B9 -> Hellas Verona
B10: ='DATA (4)'!A9 -> 30-05-21 | C10: ='DATA (4)'!B9 -> FIN D2 | D10: ='DATA (4)'!C9 -> Udinese | E10: ='DATA (4)'!D9 -> Hellas Verona | F10: ='DATA (4)'!E9 -> 1 : 1 | T10: =D10 -> Udinese | U10: Hellas Verona | V10: =VALUE(LEFT(F10,FIND(":",F10,1)-2)) -> 1 | W10: =VALUE(LEFT(RIGHT(F10,LEN(F10)-FIND(":",F10,2)),4)) -> 1 | Y10: =IF(T10=B9,"Дома","В гостях") -> В гостях | Z10: =IF(Y10="Дома",V10,W10) -> 1 | AA10: =IF(Y10="Дома",W10,V10) -> 1
B11: ='DATA (4)'!A10 -> 12-05-21 | C11: ='DATA (4)'!B10 -> FIN D2 | D11: ='DATA (4)'!C10 -> Inter | E11: ='DATA (4)'!D10 -> Hellas Verona | F11: ='DATA (4)'!E10 -> 1 : 0 | T11: Inter | U11: Hellas Verona | V11: =VALUE(LEFT(F11,FIND(":",F11,1)-2)) -> 1 | W11: =VALUE(LEFT(RIGHT(F11,LEN(F11)-FIND(":",F11,2)),4)) -> 0 | Y11: =IF(T11=B9,"Дома","В гостях") -> В гостях | Z11: =IF(Y11="Дома",V11,W11) -> 0 | AA11: =IF(Y11="Дома",W11,V11) -> 1
B12: ='DATA (4)'!A11 -> 24-04-21 | C12: ='DATA (4)'!B11 -> INT CF | D12: ='DATA (4)'!C11 -> Torino | E12: ='DATA (4)'!D11 -> Hellas Verona | F12: ='DATA (4)'!E11 -> 1 : 1 | T12: Torino | U12: Hellas Verona | V12: =VALUE(LEFT(F12,FIND(":",F12,1)-2)) -> 1 | W12: =VALUE(LEFT(RIGHT(F12,LEN(F12)-FIND(":",F12,2)),4)) -> 1 | Y12: =IF(T12=B9,"Дома","В гостях") -> В гостях | Z12: =IF(Y12="Дома",V12,W12) -> 1 | AA12: =IF(Y12="Дома",W12,V12) -> 1 | AC12: Тотал | AF12: Пред.тот
B13: ='DATA (4)'!A12 -> 27-03-21 | C13: ='DATA (4)'!B12 -> INT CF | D13: ='DATA (4)'!C12 -> Monza | E13: ='DATA (4)'!D12 -> Hellas Verona | F13: ='DATA (4)'!E12 -> 2 : 0 | T13: Monza | U13: Hellas Verona | V13: =VALUE(LEFT(F13,FIND(":",F13,1)-2)) -> 2 | W13: =VALUE(LEFT(RIGHT(F13,LEN(F13)-FIND(":",F13,2)),4)) -> 0 | Y13: =IF(T13=B9,"Дома","В гостях") -> В гостях | Z13: =IF(Y13="Дома",V13,W13) -> 0 | AA13: =IF(Y13="Дома",W13,V13) -> 2 | AD13: =ROUND(AVERAGE(AD8,AI8),0) -> 1 | AF13: =ROUND(AVERAGE(AE8,AH8),0) -> 1
B14: ='DATA (4)'!A13 -> 20-03-21 | C14: ='DATA (4)'!B13 -> FIN CUP | D14: ='DATA (4)'!C13 -> Sassuolo | E14: ='DATA (4)'!D13 -> Hellas Verona | F14: ='DATA (4)'!E13 -> 2 : 1 | T14: Sassuolo | U14: Hellas Verona | V14: =VALUE(LEFT(F14,FIND(":",F14,1)-2)) -> 2 | W14: =VALUE(LEFT(RIGHT(F14,LEN(F14)-FIND(":",F14,2)),4)) -> 1 | Y14: =IF(T14=B9,"Дома","В гостях") -> В гостях | Z14: =IF(Y14="Дома",V14,W14) -> 1 | AA14: =IF(Y14="Дома",W14,V14) -> 2 | AH14: =AD8+AE8 -> 3 | AI14: =AH8+AI8 -> 1.1
AC15: =SUM(Z3:AA7)/10 -> 0.9 | AD15: =SUM(V3:W7)/5 -> 1.8 | AF15: =SUM($Z$10:$AA$14)/5 -> 2
AC17: =(Z3+AA3)/100 -> 0.02 | AE17: =(Z10+AA10)/100 -> 0.02
AC18: =(Z4+AA4)/100 -> 0.03 | AE18: =(Z11+AA11)/100 -> 0.01
AC19: =(Z5+AA5)/100 -> 0.02 | AE19: =(Z12+AA12)/100 -> 0.02
AC20: =(Z6+AA6)/100 -> 0.01 | AE20: =(Z13+AA13)/100 -> 0.02
AC21: =(Z7+AA7)/100 -> 0.01 | AE21: =(Z14+AA14)/100 -> 0.03
AC22: =SUM(AC17:AC21) -> 0.09 | AE22: =SUM(AE17:AE21) -> 0.1
AC23: =AVERAGE(AC17:AC21)*100 -> 1.8 | AD23: =AVERAGE(AC23,AE23)/1 -> 1.9 | AE23: =AVERAGE(AE17:AE21)*100 -> 2
AD24: тб
AD25: =ROUNDDOWN(AD23,0) -> 1

Sheet DATA (4) (hidden)
A2: Last matches: | B2: =P2 -> Jaro | G2: HOME | P2: =IF(COUNTIF(I5:K9,I5)>COUNTIF(I5:K9,K5),I5,K5) -> Jaro
A3: =MID(H5,1,20) -> 23-05-21 | B3: =MID(G5,1,20) -> FIN D2 | C3: =DATI!C32 -> Roma | D3: =DATI!E32 -> Empoli | E3: =DATI!L32 -> 2 : 0
A4: =MID(H6,1,20) -> 13-05-21 | B4: =MID(G6,1,20) -> FIN D2 | C4: =DATI!C33 -> Roma | D4: =DATI!E33 -> Cremonese | E4: =DATI!L33 -> 1 : 2 | G4: League | H4: Time | I4: Home | J4: FT | K4: Away | L4: HT | M4: 1x2 | N4: AH | O4: O/U
A5: =MID(H7,1,20) -> 10-04-21 | B5: =MID(G7,1,20) -> INT CF | C5: =DATI!C34 -> Roma | D5: =DATI!E34 -> Fiorentina | E5: =DATI!L34 -> 2 : 0 | G5: FIN D2 | H5: 23-05-21 | I5: Jaro | J5: 1-1 | K5: Vaasa VPS | L5: 1-1 | M5: D | N5: L0/0.5 | O5: U2.5/3 | P5: =VALUE(LEFT(J5)) -> 1 | Q5: =VALUE(RIGHT(J5)) -> 1 | R5: =P5&" : "&Q5 -> 1 : 1
A6: =MID(H8,1,20) -> 27-03-21 | B6: =MID(G8,1,20) -> INT CF | C6: =DATI!C35 -> Roma | D6: =DATI!E35 -> Genoa | E6: =DATI!L35 -> 1 : 0 | G6: FIN D2 | H6: 13-05-21 | I6: Jaro | J6: 4-1 | K6: Klubi 04 Helsinki | L6: 1-0 | M6: W | N6: W1 | O6: O2.5/3 | P6: =VALUE(LEFT(J6)) -> 4 | Q6: =VALUE(RIGHT(J6)) -> 1 | R6: =P6&" : "&Q6 -> 4 : 1
A7: =MID(H9,1,20) -> 13-02-21 | B7: =MID(G9,1,20) -> FIN CUP | C7: =DATI!C36 -> Roma | D7: =DATI!E36 -> Bologna | E7: =DATI!L36 -> 1 : 0 | G7: INT CF | H7: 10-04-21 | I7: Jaro | J7: 1-0 | K7: TPV Tampere | L7: 0-0 | M7: W | N7: L3/3.5 | O7: U4/4.5 | P7: =VALUE(LEFT(J7)) -> 1 | Q7: =VALUE(RIGHT(J7)) -> 0 | R7: =P7&" : "&Q7 -> 1 : 0
A8: Last matches: | B8: =P11 -> Gnistan Helsinki | G8: INT CF | H8: 27-03-21 | I8: Jaro | J8: 2-0 | K8: Jakobstads Bollklubb | L8: 1-0 | M8: W | N8: L3.5/4 | O8: U4.5/5 | P8: =VALUE(LEFT(J8)) -> 2 | Q8: =VALUE(RIGHT(J8)) -> 0 | R8: =P8&" : "&Q8 -> 2 : 0
A9: =MID(H14,1,20) -> 30-05-21 | B9: =MID(G14,1,20) -> FIN D2 | C9: =DATI!C46 -> Udinese | D9: =DATI!E46 -> Hellas Verona | E9: =DATI!L46 -> 1 : 1 | G9: FIN CUP | H9: 13-02-21 | I9: Jaro | J9: 2-1 | K9: KPV | L9: 2-1 | M9: W | N9: W-0.5 | O9: O2.5/3 | P9: =VALUE(LEFT(J9)) -> 2 | Q9: =VALUE(RIGHT(J9)) -> 1 | R9: =P9&" : "&Q9 -> 2 : 1
A10: =MID(H15,1,20) -> 12-05-21 | B10: =MID(G15,1,20) -> FIN D2 | C10: =DATI!C47 -> Inter | D10: =DATI!E47 -> Hellas Verona | E10: =DATI!L47 -> 1 : 0
A11: =MID(H16,1,20) -> 24-04-21 | B11: =MID(G16,1,20) -> INT CF | C11: =DATI!C48 -> Torino | D11: =DATI!E48 -> Hellas Verona | E11: =DATI!L48 -> 1 : 1 | G11: AWAY | P11: =IF(COUNTIF(I14:K18,I14)>COUNTIF(I14:K18,K14),I14,K14) -> Gnistan Helsinki
A12: =MID(H17,1,20) -> 27-03-21 | B12: =MID(G17,1,20) -> INT CF | C12: =DATI!C49 -> Monza | D12: =DATI!E49 -> Hellas Verona | E12: =DATI!L49 -> 2 : 0
A13: =MID(H18,1,20) -> 20-03-21 | B13: =MID(G18,1,20) -> FIN CUP | C13: =DATI!C50 -> Sassuolo | D13: =DATI!E50 -> Hellas Verona | E13: =DATI!L50 -> 2 : 1 | G13: League | H13: Time | I13: Home | J13: FT | K13: Away | L13: HT | M13: 1x2 | N13: AH | O13: O/U
G14: FIN D2 | H14: 30-05-21 | I14: RoPS Rovaniemi | J14: 1-2 | K14: Gnistan Helsinki | L14: 0-1 | M14: W | N14: W0.5 | O14: O2.5 | P14: =VALUE(LEFT(J14)) -> 1 | Q14: =VALUE(RIGHT(J14)) -> 2 | R14: =P14&" : "&Q14 -> 1 : 2
G15: FIN D2 | H15: 12-05-21 | I15: Vaasa VPS | J15: 2-0 | K15: Gnistan Helsinki | L15: 0-0 | M15: L | N15: L0/0.5 | O15: U2.5/3 | P15: =VALUE(LEFT(J15)) -> 2 | Q15: =VALUE(RIGHT(J15)) -> 0 | R15: =P15&" : "&Q15 -> 2 : 0
G16: INT CF | H16: 24-04-21 | I16: Lahti | J16: 4-2 | K16: Gnistan Helsinki | L16: 2-1 | M16: L | N16: L1.5/2 | O16: O3 | P16: =VALUE(LEFT(J16)) -> 4 | Q16: =VALUE(RIGHT(J16)) -> 2 | R16: =P16&" : "&Q16 -> 4 : 2
G17: INT CF | H17: 27-03-21 | I17: EPS Espoo | J17: 1-5 | K17: Gnistan Helsinki | L17: 0-2 | M17: W | N17: W-0.5/1 | O17: O4 | P17: =VALUE(LEFT(J17)) -> 1 | Q17: =VALUE(RIGHT(J17)) -> 5 | R17: =P17&" : "&Q17 -> 1 : 5
G18: FIN CUP | H18: 20-03-21 | I18: KuPs | J18: 5-0 | K18: Gnistan Helsinki | L18: 3-0 | M18: L | N18: L2/2.5 | O18: O3/3.5 | P18: =VALUE(LEFT(J18)) -> 5 | Q18: =VALUE(RIGHT(J18)) -> 0 | R18: =P18&" : "&Q18 -> 5 : 0

Sheet Pois555son (hidden)
G1: 1X2 | O1: SKORLARRR | AF1: 0 | AJ1: 0
A2: Goal Rate Home Team | C2: =AH6 -> 1.466666667 | D2: =IF(A4=1,B11,B17) -> 1.440024006 | G2: Home Win | I2: =SUM(Y8:Y27) -> 0.6029609185 | J2: =1/I2 -> 1.658482282 | L2: =IF(AND(I2>I4,I3>=30%),"1X",IF(AND(I2>I4,I3<=30%),"1",IF(AND(I2<I4,I3>=30%),"X2",IF(AND(I2<I4,I3<=30%),"2",IF(AND(I3>I2,I3>I4),"X",IF(AND(I2=I4),"X")))))) -> 1 | O2: =LARGE(AB15:AB63,1) -> 0.2055522758 | P2: =VLOOKUP(O2,AB15:AC63,2,FALSE) -> 1-0 | U2: =IF(I2>I4,1,IF(I2<I4,2,"X")) -> 1 | W2: =IF(U2=1," 1","0") -> 1 | X2: =IF(U2=2," 1","0") -> 0 | Y2: =IF(W2+X2=2," 1","0") -> 0 | AF2: ATTIĞI | AH2: =PAST!E85 -> 49 | AJ2: ATTIĞI | AL2: =PAST!L85 -> 13
A3: Goal Rate Away Team | C3: =AL6 -> 0.5333333333 | D3: =IF(A6=1,B12,B18) -> 0.5066906723 | G3: Draw | I3: =1-I2-I4 -> 0.2675046832 | J3: =1/I3 -> 3.73825231 | O3: =LARGE(AB15:AB63,2) -> 0.1480001058 | P3: =VLOOKUP(O3,AB15:AC63,2,FALSE) -> 2-0 | AF3: YEDİĞİ | AH3: =PAST!F85 -> 19 | AJ3: YEDİĞİ | AL3: =PAST!M85 -> 39
G4: Away Win | I4: =SUM(D30:W30) -> 0.1295343983 | J4: =1/I4 -> 7.719957119 | O4: =LARGE(AB15:AB63,3) -> 0.1427422564 | P4: =VLOOKUP(O4,AB15:AC63,2,FALSE) -> 0-0 | AF4: HÜCUM GÜCÜ | AH4: =AH2/30 -> 1.633333333 | AJ4: HÜCUM GÜCÜ | AL4: =AL2/30 -> 0.4333333333
A5: 2 | AF5: DEFANS GÜCÜ | AH5: =AH3/30 -> 0.6333333333 | AJ5: DEFANS GÜCÜ | AL5: =AL3/30 -> 1.3
D6: Home Team Goals | AF6: BU MAÇTAKİ GÜCÜ | AH6: =(AH4+AL5)/2 -> 1.466666667 | AJ6: BU MAÇTAKİ GÜCÜ | AL6: =(AL4+AH5)/2 -> 0.5333333333
D7: 0 | E7: 1 | F7: 2 | G7: 3 | H7: 4 | I7: 5 | J7: 6 | K7: 7 | L7: 8 | M7: 9 | N7: 10 | O7: 11 | P7: 12 | Q7: 13 | R7: 14 | S7: 15 | T7: 16 | U7: 17 | V7: 18 | W7: 19 | X7: 20 | Z7: =LARGE(Z8:Z28,1) -> 0.2055522758 | AA7: =VLOOKUP(Z7,Z8:AA28,2,FALSE) -> 1-0 | AB7: =LARGE(AB8:AB28,1) -> 0.2055522758 | AC7: =VLOOKUP(AB7,AB8:AC28,2,FALSE) -> 1-0 | AD7: =LARGE(AD8:AD28,1) -> 0.07232616985 | AE7: =VLOOKUP(AD7,AD8:AE28,2,FALSE) -> 0-1
B8: Away Team Goals | C8: 0 | D8: =POISSON(D$7,$D$2,FALSE)*POISSON($C8,$D$3,FALSE) -> 0.1427422564 | E8: 0.2055522758 | F8: 0.1480001058 | G8: 0.07104123506 | H8: 0.02557527097 | I8: 0.007365800828 | J8: 0.001767821669 | K8: 0.0003636722344 | L8: 6.546209346e-05 | M8: 1.047410956e-05 | N8: =POISSON(N$7,$D$2,FALSE)*POISSON($C8,$D$3,FALSE) -> 1.50829692e-06 | O8: 1.974530703e-07 | P8: 2.369476343e-08 | Q8: 2.624694473e-09 | R8: 2.699730749e-10 | S8: 2.591784724e-11 | T8: 2.332645138e-12 | U8: 1.975920585e-13 | V8: 1.58076282e-14 | W8: 1.198071794e-15 | X8: 8.626260716e-17 | Y8: =SUM(E8:X8) -> 0.4597438509 | Z8: =E8 -> 0.2055522758 | AA8: 1-0 | AB8: =D8 -> 0.1427422564 | AC8: 0-0 | AD8: =D9 -> 0.07232616985 | AE8: 0-1
C9: 1 | D9: 0.07232616985 | E9: 0.1041514208 | F9: 0.0749902731 | G9: 0.03599593115 | H9: 0.01295875124 | I9: 0.003732182573 | J9: 0.0008957387498 | K9: 0.0001842693289 | L9: 3.316903214e-05 | M9: 5.307133614e-06 | N9: 7.642399805e-07 | O9: 1.000476289e-07 | P9: 1.200591561e-08 | Q9: 1.329908207e-09 | R9: 1.367928388e-10 | S9: 1.313233144e-11 | T9: 1.181929533e-12 | U9: 1.00118053e-13 | V9: 8.009577759e-15 | W9: 6.070518025e-16 | X9: 4.370845841e-17 | Y9: =SUM(F9:X9) -> 0.1287965001 | Z9: =F8 -> 0.1480001058 | AA9: 2-0 | AB9: =E9 -> 0.1041514208 | AC9: 1-1 | AD9: =D10 -> 0.01832349781 | AE9: 0-2
C10: 2 | D10: 0.01832349781 | E10: 0.02638627672 | F10: 0.01899843594 | G10: 0.009119401276 | H10: 0.003283039188 | I10: 0.0009455310485 | J10: 0.0002269312347 | K10: 4.668377507e-05 | L10: 8.403219597e-06 | M10: 1.344537549e-06 | N10: 1.936166348e-07 | O10: 2.534660017e-08 | P10: 3.041642726e-09 | Q10: 3.369260417e-10 | R10: 3.465582772e-11 | S10: 3.327014924e-12 | T10: 2.994363348e-13 | U10: 2.536444178e-14 | V10: 2.02918917e-15 | W10: 1.53793743e-16 | X10: 1.107333409e-17 | Y10: =SUM(G10:X10) -> 0.01363155666 | Z10: =F9 -> 0.0749902731 | AA10: 2-1 | AB10: =F10 -> 0.01899843594 | AC10: 2-2 | AD10: =E10 -> 0.02638627672 | AE10: 1-2
A11: Lambda1 | B11: =C2 -> 1.466666667 | C11: 3 | D11: 0.003094781808 | E11: 0.004456560096 | F11: 0.00320877676 | G11: 0.001540238521 | H11: 0.0005544951112 | I11: 0.0001596972542 | J11: 3.832797995e-05 | K11: 7.884744459e-06 | L11: 1.419277662e-06 | M11: 2.270882116e-07 | N11: 3.270124761e-08 | O11: 4.280961961e-09 | P11: 5.137239992e-10 | Q11: 5.690576085e-11 | R11: 5.853261549e-12 | S11: 5.619224761e-13 | T11: 5.057386593e-14 | U11: 4.283975352e-15 | V11: 3.427237415e-16 | W11: 2.5975285e-17 | X11: 1.870251698e-18 | Y11: =SUM(H11:X11) -> 0.0007620890149 | Z11: =G8 -> 0.07104123506 | AA11: 3-0 | AB11: =G11 -> 0.001540238521 | AC11: 3-3 | AD11: =D11 -> 0.003094781808 | AE11: 0-3
A12: Lambda2 | B12: =C3 -> 0.5333333333 | C12: 4 | D12: 0.0003920242687 | E12: 0.0005645243577 | F12: 0.0004064643134 | G12: 0.0001951061229 | H12: 7.023937516e-05 | I12: 2.022927727e-05 | J12: 4.855107481e-06 | K12: 9.987816176e-07 | L12: 1.797836882e-07 | M12: 2.876586965e-08 | N12: 4.142354283e-09 | O12: 5.422808734e-10 | P12: 6.507478963e-11 | Q12: 7.208404555e-12 | R12: 7.414482573e-13 | S12: 7.118021929e-14 | T12: 6.406326531e-15 | U12: 5.426625878e-16 | V12: 4.341373074e-17 | W12: 3.290358655e-18 | X12: 2.369097725e-19 | Y12: =SUM(I12:X12) -> 2.629647367e-05 | Z12: =G9 -> 0.03599593115 | AA12: 3-1 | AB12: =H12 -> 7.023937516e-05 | AC12: 4-4 | AD12: =E11 -> 0.004456560096 | AE12: 1-3
A13: n | B13: 0.0403 | C13: 5 | D13: 3.972700805e-05 | E13: 5.720784526e-05 | F13: 4.119033524e-05 | G13: 1.977169052e-05 | H13: 7.117927243e-06 | I13: 2.04999722e-06 | J13: 4.920075347e-07 | K13: 1.012146658e-07 | L13: 1.821894357e-08 | M13: 2.915079566e-09 | N13: 4.197784553e-10 | O13: 5.495373206e-11 | P13: 6.59455778e-12 | Q13: 7.3048627e-13 | R13: 7.513698318e-14 | S13: 7.213270633e-15 | T13: 6.492051794e-16 | U13: 5.499241428e-17 | V13: 4.399466483e-18 | W13: 3.334388078e-19 | X13: 2.400799438e-20 | Y13: =SUM(J13:X13) -> 6.14838364e-07 | Z13: =G10 -> 0.009119401276 | AA13: 3-2 | AB13: =I13 -> 2.04999722e-06 | AC13: 5-5 | AD13: =F11 -> 0.00320877676 | AE13: 2-3
A14: Lambda3 | B14: =B13*SQRT(B11*B12)+B20 -> 0.02664266108 | C14: 6 | D14: 3.354884069e-06 | E14: 4.831113596e-06 | F14: 3.478459776e-06 | G14: 1.669688527e-06 | H14: 6.0109789e-07 | I14: 1.731190783e-07 | J14: 4.154927142e-08 | K14: 8.54742118e-09 | L14: 1.538561461e-09 | M14: 2.461739375e-10 | N14: 3.544963795e-11 | O14: 4.64075724e-12 | P14: 5.569001525e-13 | Q14: 6.168842987e-14 | R14: 6.34520142e-15 | S14: 6.09149491e-16 | T14: 5.482436813e-17 | U14: 4.644023894e-18 | V14: 3.71528105e-19 | W14: 2.815838894e-20 | X14: 2.027437802e-21 | Y14: =SUM(K14:X14) -> 1.037287258e-08 | Z14: =H8 -> 0.02557527097 | AA14: 4-0 | AB14: =J14 -> 4.154927142e-08 | AC14: 6-6 | AD14: =D12 -> 0.0003920242687 | AE14: 0-4
A15: -L1-L2+L3 | B15: =-B11-B12+B14 -> -1.973357339 | C15: 7 | D15: 2.428412092e-07 | E15: 3.496971708e-07 | F15: 2.517861603e-07 | G15: 1.208593717e-07 | H15: 4.351009914e-08 | I15: 1.253111745e-08 | J15: 3.007518324e-09 | K15: 6.186997977e-10 | L15: 1.113678201e-10 | M15: 1.781914827e-11 | N15: 2.566000127e-12 | O15: 3.359183437e-13 | P15: 4.031087324e-14 | Q15: 4.465278857e-15 | R15: 4.592934819e-16 | S15: 4.40929093e-17 | T15: 3.968427992e-18 | U15: 3.361547984e-19 | V15: 2.689283218e-20 | W15: 2.038227575e-21 | X15: 1.467548318e-22 | Y15: =SUM(L15:X15) -> 1.321341707e-10 | Z15: =H9 -> 0.01295875124 | AA15: 4-1 | AB15: =Z8 -> 0.2055522758 | AC15: 1-0 | AD15: =E12 -> 0.0005645243577 | AE15: 1-4
A16: EXP() | B16: =EXP(B15) -> 0.1389894374 | C16: 8 | D16: 1.538067194e-08 | E16: 2.214853682e-08 | F16: 1.594721235e-08 | G16: 7.654789537e-09 | H16: 2.755770173e-09 | I16: 7.936750406e-10 | J16: 1.904851852e-10 | K16: 3.918617705e-11 | L16: 7.053629455e-12 | M16: 1.128599527e-12 | N16: 1.625210411e-13 | O16: 2.127583642e-14 | P16: 2.553142932e-15 | Q16: 2.828143932e-16 | R16: 2.908996539e-17 | S16: 2.792683232e-18 | T16: 2.513456809e-19 | U16: 2.12908126e-20 | V16: 1.703293402e-21 | W16: 1.290938625e-22 | X16: 9.294913049e-24 | Y16: =SUM(M16:X16) -> 1.315264519e-12 | Z16: =H10 -> 0.003283039188 | AA16: 4-2 | AB16: 0.1480001058 | AC16: 2-0 | AD16: =F12 -> 0.0004064643134 | AE16: 2-4
A17: Lambda1-3 | B17: =B11-B14 -> 1.440024006 | C17: 9 | D17: 8.659158896e-10 | E17: 1.246939668e-09 | F17: 8.978115276e-10 | G17: 4.309567174e-10 | H17: 1.551470046e-10 | I17: 4.468308221e-11 | J17: 1.07241185e-11 | K17: 2.206141155e-12 | L17: 3.971120278e-13 | M17: 6.353898366e-14 | N17: 9.149766177e-15 | O17: 1.19780754e-15 | P17: 1.43739301e-16 | Q17: 1.592215723e-17 | R17: 1.637734902e-18 | S17: 1.572251716e-19 | T17: 1.415050133e-20 | U17: 1.198650683e-21 | V17: 9.589365322e-23 | W17: 7.267850664e-24 | X17: 5.232939713e-25 | Y17: =SUM(M17:X17) -> 7.404802925e-14 | Z17: =H11 -> 0.0005544951112 | AA17: 4-3 | AB17: 0.0749902731 | AC17: 2-1 | AD17: =G12 -> 0.0001951061229 | AE17: 3-4
A18: Lambda2-3 | B18: =B12-B14 -> 0.5066906723 | C18: 10 | D18: =POISSON(D$7,$D$2,FALSE)*POISSON($C18,$D$3,FALSE) -> 4.387515042e-11 | E18: 6.318126985e-11 | F18: 4.549127265e-11 | G18: 2.183617489e-11 | H18: 7.861154006e-12 | I18: 2.264050096e-12 | J18: 5.433810814e-13 | K18: 1.117831145e-13 | L18: 2.012129603e-14 | M18: 3.219461035e-15 | N18: =POISSON(N$7,$D$2,FALSE)*POISSON($C18,$D$3,FALSE) -> 4.636101175e-16 | O18: 6.069179077e-17 | P18: 7.283136304e-18 | Q18: 8.067608549e-19 | R18: 8.298249984e-20 | S18: 7.966452788e-21 | T18: 7.169927034e-22 | U18: 6.073451204e-23 | V18: 4.858841961e-24 | W18: 3.682552139e-25 | X18: 2.651481741e-26 | Y18: =SUM(N17:X17) -> 1.050904559e-14 | Z18: =I8 -> 0.007365800828 | AA18: 5-0 | AB18: 0.07104123506 | AC18: 3-0 | AD18: =D13 -> 3.972700805e-05 | AE18: 0-5
C19: 11 | D19: 2.021011769e-12 | E19: 2.910305463e-12 | F19: 2.095454865e-12 | G19: 1.005835103e-12 | H19: 3.621066735e-13 | I19: 1.042884605e-13 | J19: 2.502964776e-14 | K19: 5.149041947e-15 | L19: 9.268430013e-16 | M19: 1.482973524e-16 | N19: 2.135517474e-17 | O19: 2.795633115e-18 | P19: 3.354815664e-19 | Q19: 3.716165454e-20 | R19: 3.82240533e-21 | S19: 3.66957029e-22 | T19: 3.302668317e-23 | U19: 2.797600976e-24 | V19: 2.238118091e-25 | W19: 1.696286199e-26 | X19: 1.221346423e-27 | Y19: =SUM(P18:X18) -> 8.181629092e-18 | Z19: =I9 -> 0.003732182573 | AA19: 5-1 | AB19: 0.03599593115 | AC19: 3-1 | AD19: =E13 -> 5.720784526e-05 | AE19: 1-5
A20: 41 | B20: =B21/1000 -> -0.009 | C20: 12 | D20: 8.5335651e-14 | E20: 1.22885386e-13 | F20: 8.847895287e-14 | G20: 4.247060537e-14 | H20: 1.528967282e-14 | I20: 4.403499179e-15 | J20: 1.056857421e-15 | K20: 2.174142938e-16 | L20: 3.913522528e-17 | M20: 6.26174043e-18 | N20: 9.017056536e-19 | O20: 1.180434352e-19 | P20: 1.416544837e-20 | Q20: 1.569121977e-21 | R20: 1.613980939e-22 | S20: 1.549447531e-23 | T20: 1.394526025e-24 | U20: 1.181265266e-25 | V20: 9.450279666e-27 | W20: 7.162436621e-28 | X20: 5.157040336e-29 | Y20: =SUM(Q19:X19) -> 4.138708318e-20 | Z20: =I10 -> 0.0009455310485 | AA20: 5-2 | AB20: 0.009119401276 | AC20: 3-2 | AD20: =F13 -> 4.119033524e-05 | AE20: 2-5
A21: =50-A20 -> 9 | B21: =A21*-1 -> -9 | C21: 13 | D21: 3.326059875e-15 | E21: 4.789606064e-15 | F21: 3.448573854e-15 | G21: 1.655343045e-15 | H21: 5.959334306e-16 | I21: 1.716316892e-16 | J21: 4.119229209e-17 | K21: 8.473984207e-18 | L21: 1.525342585e-18 | M21: 2.440588822e-19 | N21: 3.514506491e-20 | O21: 4.600885195e-21 | P21: 5.521154273e-22 | Q21: 6.115842071e-23 | R21: 6.290685283e-24 | S21: 6.039158546e-25 | T21: 5.4353333e-26 | U21: 4.604123782e-27 | V21: 3.683360429e-28 | W21: 2.79164602e-29 | X21: 2.010018642e-30 | Y21: =SUM(R20:X20) -> 1.784154398e-22 | Z21: =I11 -> 0.0001596972542 | AA21: 5-3 | AB21: 0.02557527097 | AC21: 4-0 | AD21: =G13 -> 1.977169052e-05 | AE21: 3-5
C22: 14 | D22: 1.203773938e-16 | E22: 1.733463369e-16 | F22: 1.248114432e-16 | G22: 5.991049145e-17 | H22: 2.156813647e-17 | I22: 6.211726855e-18 | J22: 1.490839298e-18 | K22: 3.066920539e-19 | L22: 5.520548999e-20 | M22: 8.833025648e-21 | N22: 1.271976897e-21 | O22: 1.665161152e-22 | P22: 1.998226693e-23 | Q22: 2.213457236e-24 | R22: 2.276736825e-25 | S22: 2.185703788e-26 | T22: 1.967166203e-27 | U22: 1.666333267e-28 | V22: 1.333088837e-29 | W22: 1.010357856e-30 | X22: 7.274697836e-32 | Y22: =SUM(S21:X21) -> 6.632715739e-25 | Z22: =I12 -> 2.022927727e-05 | AA22: 5-4 | AB22: 0.01295875124 | AC22: 4-1 | AD22: =H13 -> 7.117927243e-06 | AE22: 4-5
C23: 15 | D23: 4.066273508e-18 | E23: 5.855531464e-18 | F23: 4.216052937e-18 | G23: 2.023739146e-18 | H23: 7.285582378e-19 | I23: 2.098282704e-19 | J23: 5.03596244e-20 | K23: 1.035986686e-20 | L23: 1.864807122e-21 | M23: 2.983741136e-22 | N23: 4.296658862e-23 | O23: 5.624810822e-24 | P23: 6.749885509e-25 | Q23: 7.476920899e-26 | R23: 7.690675416e-27 | S23: 7.383171479e-28 | T23: 6.644965104e-29 | U23: 5.628770157e-30 | V23: 4.503091193e-31 | W23: 3.412926009e-32 | X23: 2.457347691e-33 | Y23: =SUM(T22:X22) -> 2.148213523e-27 | Z23: =J8 -> 0.001767821669 | AA23: 6-0 | AB23: 0.003283039188 | AC23: 4-2 | AD23: =D14 -> 3.354884069e-06 | AE23: 0-6
A24: +/- | B24: =B20 -> -0.009 | C24: 16 | D24: 1.287714286e-19 | E24: 1.854339484e-19 | F24: 1.335146686e-19 | G24: 6.408810927e-20 | H24: 2.307210396e-20 | I24: 6.644876711e-21 | J24: 1.594796996e-21 | K24: 3.280779941e-22 | L24: 5.90550234e-23 | M24: 9.448961261e-24 | N24: 1.360673104e-24 | O24: 1.781274486e-25 | P24: 2.137565016e-26 | Q24: 2.367803798e-27 | R24: 2.435495935e-28 | S24: 2.338115075e-29 | T24: 2.104338647e-30 | U24: 1.782528334e-31 | V24: 1.42604644e-32 | W24: 1.080811109e-33 | X24: 7.78196971e-35 | Y24: =SUM(U23:X23) -> 6.115665884e-30 | Z24: 0.0008957387498 | AA24: 6-1 | AB24: 0.0005544951112 | AC24: 4-3 | AD24: =E14 -> 4.831113596e-06 | AE24: 1-6
C25: 17 | D25: 3.838075395e-21 | E25: 5.526920704e-21 | F25: 3.979449245e-21 | G25: 1.910167481e-21 | H25: 6.876717567e-22 | I25: 1.980527675e-22 | J25: 4.75334566e-23 | K25: 9.778474082e-24 | L25: 1.760154677e-24 | M25: 2.816294432e-25 | N25: 4.055531588e-26 | O25: 5.309148039e-27 | P25: 6.371083854e-28 | Q25: 7.057318224e-29 | R25: 7.259076898e-30 | S25: 6.968829995e-31 | T25: 6.272051552e-32 | U25: 5.312885176e-33 | V25: 4.250378996e-34 | W25: 3.221393572e-35 | X25: 2.319442038e-36 | Y25: =SUM(V24:X24) -> 1.54190952e-32 | Z25: 0.0002269312347 | AA25: 6-2 | AB25: 0.007365800828 | AC25: 5-0 | AD25: =F14 -> 3.478459776e-06 | AE25: 2-6
A26: VAR | B26: =SUM(E9:X28) -> 0.3033340779 | C26: 18 | D26: 1.080398334e-22 | E26: 1.555799537e-22 | F26: 1.120194341e-22 | G26: 5.377022471e-23 | H26: 1.935760359e-23 | I26: 5.575082773e-24 | J26: 1.338042171e-24 | K26: 2.752589781e-25 | L26: 4.954744203e-26 | M26: 7.927722882e-27 | N26: 1.141611126e-27 | O26: 1.49449766e-28 | P26: 1.793427089e-29 | Q26: 1.986598509e-30 | R26: 2.04339253e-31 | S26: 1.96168953e-32 | T26: 1.76555001e-33 | U26: 1.495549645e-34 | V26: 1.196459662e-35 | W26: 9.06805597e-37 | X26: 6.52910914e-38 | Y26: =SUM(W25:X25) -> 3.453337776e-35 | Z26: 3.832797995e-05 | AA26: 6-3 | AB26: 0.003732182573 | AC26: 5-1 | AD26: =G14 -> 1.669688527e-06 | AE26: 3-6
A27: YOK | B27: =1-B26 -> 0.6966659221 | C27: 19 | D27: 2.881198728e-24 | E27: 4.148995333e-24 | F27: 2.98732644e-24 | G27: 1.433940595e-24 | H27: 5.162272199e-25 | I27: 1.486759178e-25 | J27: 3.568281511e-26 | K27: 7.340587193e-27 | L27: 1.321327722e-27 | M27: 2.114159598e-28 | N27: 3.044440573e-29 | O27: 3.985515917e-30 | P27: 4.782698829e-31 | Q27: 5.29784702e-32 | R27: 5.449304919e-33 | S27: 5.231419931e-34 | T27: 4.708356428e-35 | U27: 3.988321343e-36 | V27: 3.190710264e-37 | W27: 2.418262829e-38 | X27: 1.741178263e-39 | Y27: =SUM(X26:X26) -> 6.52910914e-38 | Z27: 4.855107481e-06 | AA27: 6-4 | AB27: 0.0009455310485 | AC27: 5-2 | AD27: =H14 -> 6.0109789e-07 | AE27: 4-6
C28: 20 | D28: 7.299382602e-26 | E28: 1.051128617e-25 | F28: 7.568252209e-26 | G28: 3.632821621e-26 | H28: 1.307837585e-26 | I28: 3.766635037e-27 | J28: 9.040074789e-28 | K28: 1.85970353e-28 | L28: 3.347522158e-29 | M28: 5.35612474e-30 | N28: 7.712948203e-31 | O28: 1.00971187e-31 | P28: 1.211674443e-32 | Q28: 1.342184834e-33 | R28: 1.380555986e-34 | S28: 1.325355841e-35 | T28: 1.192840142e-36 | U28: 1.010422611e-37 | V28: 8.083515644e-39 | W28: 6.126556093e-40 | X28: 4.411193923e-41 | Z28: 4.920075347e-07 | AA28: 6-5 | AB28: 0.0001596972542 | AC28: 5-3 | AD28: =I14 -> 1.731190783e-07 | AE28: 5-6
AB29: 2.022927727e-05 | AC29: 5-4
D30: =SUM(D9:D28) -> 0.09417981477 | E30: =SUM(E10:E28) -> 0.03146977329 | F30: =SUM(F11:F28) -> 0.003660178547 | G30: =SUM(G12:G28) -> 0.00021667647 | H30: =SUM(H13:H28) -> 7.765454389e-06 | I30: =SUM(I14:I28) -> 1.864909268e-07 | J30: =SUM(J15:J28) -> 3.209297138e-09 | K30: =SUM(K16:K28) -> 4.150947657e-11 | L30: =SUM(L17:L28) -> 4.182008846e-13 | M30: =SUM(M18:M28) -> 3.374273327e-15 | N30: =SUM(N19:N28) -> 2.22933418e-17 | O30: =SUM(O20:O28) -> 1.228166449e-19 | P30: =SUM(P21:P28) -> 5.72794714e-22 | Q30: =SUM(Q22:Q28) -> 2.290666863e-24 | R30: =SUM(R23:R28) -> 7.941694013e-27 | S30: =SUM(S24:S28) -> 2.409818704e-29 | T30: =SUM(T25:T28) -> 6.453434193e-32 | U30: =SUM(U26:U28) -> 1.536443281e-34 | V30: =SUM(V27:V28) -> 3.271545421e-37 | W30: =SUM(W28:W28) -> 6.126556093e-40 | AB30: 0.001767821669 | AC30: 6-0
AB31: 0.0008957387498 | AC31: 6-1
B32: Supremacies | I32: Asians - all relative to home team | O32: Under | S32: Over | AA32: 0 | AB32: 0.0002269312347 | AC32: 6-2
B33: =SUM(D11:D28)+SUM(E12:E28)+SUM(F13:F28)+SUM(G14:G28)+SUM(H15:H28)+SUM(I16:I28)+SUM(J17:J28)+SUM(K18:K28)+SUM(L19:L28) -> 0.00420386699 | C33: =1/B33 -> 237.8762226 | D33: Win Away Team by 3 goals or more | I33: -2 | J33: =B33/(1+B33-B34) -> 0.00430374357 | K33: =1/J33 -> 232.3558511 | O33: 1 | P33: =D8 -> 0.1427422564 | Q33: =1/P33 -> 7.005633968 | S33: 1 | T33: =1-P33 -> 0.8572577436 | U33: =1/T33 -> 1.166510314 | V33: =IF(T33>70%,"Ov 0.5","Un 0.5") -> Ov 0.5 | AA33: 0 | AB33: 3.832797995e-05 | AC33: 6-3
B34: =B33+D10+E11+F12+G13+H14+I15+J16+K17+L18+M19+N20+O21+P22 -> 0.02741077472 | C34: 36.48200425 | D34: Win Away Team by 2 goals or more | I34: -1.5 | J34: =B34 -> 0.02741077472 | K34: 36.48200425 | O34: 2 | P34: =P33+D9+E8 -> 0.4206207021 | Q34: =1/P34 -> 2.377438854 | S34: 2 | T34: =1-P34 -> 0.5793792979 | U34: =1/T34 -> 1.725985039 | V34: =IF(T34>50%,"Ov 1.5","Un 1.5") -> Ov 1.5 | AA34: 0 | AB34: 4.855107481e-06 | AC34: 6-4
B35: =I4 -> 0.1295343983 | C35: 7.719957119 | D35: Win Away Team by 1 goals or more | I35: -1 | J35: =B34/(1+B34-B35) -> 0.03052845073 | K35: 32.75632978 | O35: 3 | P35: =P34+E9+D10+F8 -> 0.6910957265 | Q35: =1/P35 -> 1.446977548 | S35: 3 | T35: =1-P35 -> 0.3089042735 | U35: =1/T35 -> 3.237248836 | V35: =IF(T35>50%,"Ov 2.5","Un 2.5") -> Un 2.5 | AA35: 0 | AB35: 4.920075347e-07 | AC35: 6-5
B36: =I2 -> 0.6029609185 | C36: 1.658482282 | D36: Win Home Team by 1 goals or more | I36: -0.75 | J36: =(J35+J37)/2 -> 0.0800314245 | K36: 12.49509185 | O36: 4 | P36: =P35+D11+E10+F9+G8 -> 0.8666082932 | Q36: =1/P36 -> 1.153923875 | S36: 4 | T36: =1-P36 -> 0.1333917068 | U36: =1/T36 -> 7.496717927 | V36: =IF(T36>40%,"Ov 3.5","Un 3.5") -> Un 3.5 | AA36: 0 | AB36: =AB8 -> 0.1427422564 | AC36: 0-0
B37: =B38+F8+G9+H10+I11+J12+K13+L14+M15+N16+O17+P18 -> 0.3127237433 | C37: 3.197710508 | D37: Win Home Team by 2 goals or more | I37: -0.5 | J37: =B35 -> 0.1295343983 | K37: 7.719957119 | O37: 5 | P37: =P35+D11+E10+F9+G8+D12+E11+F10+G9+H8 -> 0.9520265156 | Q37: =1/P37 -> 1.050390912 | S37: 5 | T37: =1-P37 -> 0.04797348441 | U37: =1/T37 -> 20.8448482 | V37: =IF(T37>40%,"Ov 4.5","Un 4.5") -> Un 4.5 | AA37: 0 | AB37: 0.1041514208 | AC37: 1-1
B38: =SUM(G8:X8)+SUM(H9:X9)+SUM(I10:X10)+SUM(J11:X11)+SUM(K12:X12)+SUM(L13:X13)+SUM(M14:X14)+SUM(N15:X15) -> 0.125280012 | C38: 7.982119287 | D38: Win Home Team by 3 goals or more | I38: -0.25 | J38: =(J37+J39)/2 -> 0.4763472493 | K38: 2.099308858 | X38: Ov 0.5 | Y38: u | AB38: 0.01899843594 | AC38: 2-2
I39: 0 | J39: =I2/(1-I3) -> 0.8231601004 | K39: 1.214830504 | X39: 1 | Y39: 2 | AB39: 0.001540238521 | AC39: 3-3
I40: 0.25 | J40: =(J39+J41)/2 -> 0.7130605095 | K40: 1.402405528 | U40: Over | AB40: 7.023937516e-05 | AC40: 4-4
I41: 0.5 | J41: =B36 -> 0.6029609185 | K41: 1.658482282 | U41: 1 | V41: =T33 -> 0.8572577436 | W41: =1/V41 -> 1.166510314 | X41: =IF(V41>70%,"Ov 0.5") -> Ov 0.5 | AB41: 2.04999722e-06 | AC41: 5-5
I42: 0.75 | J42: =(J41+J43)/2 -> 0.5217820391 | K42: 1.91650905 | U42: 2 | V42: =T34 -> 0.5793792979 | W42: =1/V42 -> 1.725985039 | X42: =IF(V42>50%," 1","2") -> 1 | Y42: =IF(X42+AA32=1," 1","0") -> 1 | Z42: =IF(X42+AA32=2," 1","0") -> 0 | AB42: 4.154927142e-08 | AC42: 6-6
I43: 1 | J43: =B37/(1+B37-B36) -> 0.4406031598 | K43: 2.269616043 | U43: 3 | V43: =T35 -> 0.3089042735 | W43: =1/V43 -> 3.237248836 | X43: =IF(V43>50%," 1","2") -> 2 | Y43: =IF(X43+AA33=1," 1","0") -> 0 | Z43: =IF(X43+AA33=2," 1","0") -> 1 | AB43: =AD8 -> 0.07232616985 | AC43: 0-1
I44: 1.5 | J44: =B37 -> 0.3127237433 | K44: 3.197710508 | U44: 4 | V44: =T36 -> 0.1333917068 | W44: =1/V44 -> 7.496717927 | X44: =IF(V44>40%,"1","2") -> 2 | Y44: =IF(X44+Z43=1," 1","0") -> 0 | Z44: =IF(X44+AA34=2," 1","0") -> 1 | AB44: 0.01832349781 | AC44: 0-2
I45: 2 | J45: =B38 -> 0.125280012 | K45: 7.982119287 | U45: 5 | V45: =T37 -> 0.04797348441 | W45: =1/V45 -> 20.8448482 | X45: =IF(V45>40%,"1","2") -> 2 | Y45: =IF(X45+Z44=1," 1","0") -> 0 | Z45: =IF(X45+AA35=2," 1","0") -> 1 | AB45: 0.02638627672 | AC45: 1-2
V46: =B26 -> 0.3033340779 | W46: =B27 -> 0.6966659221 | X46: =IF(V46>W46,"1","2") -> 2 | Y46: =IF(X46+AA37=1," 1","0") -> 0 | Z46: =IF(X46+AA37=2," 1","0") -> 1 | AB46: 0.003094781808 | AC46: 0-3
AB47: 0.004456560096 | AC47: 1-3
AB48: 0.00320877676 | AC48: 2-3
AB49: 0.0003920242687 | AC49: 0-4
AB50: 0.0005645243577 | AC50: 1-4
AB51: 0.0004064643134 | AC51: 2-4
AB52: 0.0001951061229 | AC52: 3-4
AB53: 3.972700805e-05 | AC53: 0-5
AB54: 5.720784526e-05 | AC54: 1-5
AB55: 4.119033524e-05 | AC55: 2-5
AB56: 1.977169052e-05 | AC56: 3-5
AB57: 7.117927243e-06 | AC57: 4-5
AB58: 3.354884069e-06 | AC58: 0-6
AB59: 4.831113596e-06 | AC59: 1-6
AB60: 3.478459776e-06 | AC60: 2-6
AB61: 1.669688527e-06 | AC61: 3-6
AB62: 6.0109789e-07 | AC62: 4-6
AB63: 1.731190783e-07 | AC63: 5-6

Sheet APRIII (hidden)
M1: =IF(COUNTIF(D2:D6,D2)>COUNTIF(D2:D6,F2),D2,F2) -> Roma | N1: MAÇ SONUCU
B2: POR D1 | C2: 10-01-21 | D2: =PAST!C53 -> Roma | E2: =PAST!D53 -> 2 - 0 | F2: =PAST!E53 -> Empoli | G2: 2-1 | H2: W | I2: W0 | J2: O-2 | N2: =M1 -> Roma | O2: =IF(D2=N2,F2,D2) -> Empoli | P2: =IF(N2=D2,S2,T2) -> 2 | Q2: =IF(O2=F2,T2,S2) -> 0 | R2: =SEARCH("-",E2) -> 3 | S2: =LEFT(E2,R2-1)*1 -> 2 | T2: =MID(E2,R2+1,4)*1 -> 0 | Y2: =SEARCH("-",G2) -> 2 | Z2: =LEFT(G2,Y2-1)*1 -> 2 | AA2: =MID(G2,Y2+1,4)*1 -> 1 | AD2: NOWGOAL EV SAHİBİ VERİLERİ
B3: POR D1 | C3: 28-12-20 | D3: =PAST!C54 -> Roma | E3: =PAST!D54 -> 1 - 2 | F3: =PAST!E54 -> Cremonese | G3: 0-0 | H3: D | I3: W0/+0.5 | J3: D-2 | N3: =N2 -> Roma | O3: Cremonese | P3: 1 | Q3: 2 | R3: 3 | S3: 1 | T3: 2 | Y3: 2 | Z3: 0 | AA3: 0
B4: POR D1 | C4: 08-12-20 | D4: =PAST!C55 -> Roma | E4: =PAST!D55 -> 2 - 0 | F4: =PAST!E55 -> Fiorentina | G4: 1-0 | H4: W | I4: W0/-0.5 | J4: O-2/2.5 | N4: Roma | O4: Fiorentina | P4: 2 | Q4: 0 | R4: 3 | S4: 2 | T4: 0 | Y4: 2 | Z4: 1 | AA4: 0
B5: POR D1 | C5: 08-11-20 | D5: =PAST!C56 -> Roma | E5: =PAST!D56 -> 1 - 0 | F5: =PAST!E56 -> Genoa | G5: 1-1 | H5: W | I5: W0 | J5: O-2.5 | N5: Roma | O5: Genoa | P5: 1 | Q5: 0 | R5: 3 | S5: 1 | T5: 0 | Y5: 2 | Z5: 1 | AA5: 1
B6: POR D1 | C6: 25-10-20 | D6: =PAST!C57 -> Roma | E6: =PAST!D57 -> 1 - 0 | F6: =PAST!E57 -> Bologna | G6: 0-1 | H6: L | I6: L0 | J6: U-2/2.5 | N6: Roma | O6: Bologna | P6: 1 | Q6: 0 | R6: 3 | S6: 1 | T6: 0 | Y6: 2 | Z6: 0 | AA6: 1
B7: POR D1 | C7: 19-10-20 | D7: =PAST!C58 -> Roma | E7: =PAST!D58 -> 3 - 0 | F7: =PAST!E58 -> RKC Waalwijk | G7: 2-0 | H7: D | I7: L0/-0.5 | J7: O-2/2.5 | N7: Roma | O7: RKC Waalwijk | P7: 3 | Q7: 0 | R7: 3 | S7: 3 | T7: 0 | Y7: 2 | Z7: 2 | AA7: 0
B8: POR D1 | C8: 27-09-20 | D8: =PAST!C59 -> Roma | E8: =PAST!D59 -> 1 - 0 | F8: =PAST!E59 -> Casa Pia | G8: 0-0 | H8: L | I8: L0/-0.5 | J8: U-2/2.5 | N8: Roma | O8: Casa Pia | P8: 1 | Q8: 0 | R8: 3 | S8: 1 | T8: 0 | Y8: 2 | Z8: 0 | AA8: 0
B9: POR D2 | C9: 29-02-20 | D9: =PAST!C60 -> Roma | E9: =PAST!D60 -> 0 - 3 | F9: =PAST!E60 -> Cadiz | G9: 0-0 | H9: W | I9: W-0.5/1 | J9: O-2/2.5 | N9: Roma | O9: Cadiz | P9: 0 | Q9: 3 | R9: 3 | S9: 0 | T9: 3 | Y9: 2 | Z9: 0 | AA9: 0
B10: POR D2 | C10: 17-02-20 | D10: =PAST!C61 -> Roma | E10: =PAST!D61 -> 3 - 3 | F10: =PAST!E61 -> Yokohama F. Marino | G10: 1-1 | H10: W | I10: W-0.5/1 | J10: O-2/2.5 | N10: Roma | O10: Yokohama F. Marino | P10: 3 | Q10: 3 | R10: 3 | S10: 3 | T10: 3 | Y10: 2 | Z10: 1 | AA10: 1
B11: INT CF | C11: 12-02-20 | D11: =PAST!C62 -> Roma | E11: =PAST!D62 -> 1 - 1 | F11: =PAST!E62 -> Torino | G11: 1-1 | H11: W | I11: W+0.5 | J11: O-2.5/3 | N11: Roma | O11: Torino | P11: 1 | Q11: 1 | R11: 3 | S11: 1 | T11: 1 | Y11: 2 | Z11: 1 | AA11: 1
B12: INT CF | C12: 02-02-20 | D12: =PAST!C63 -> Roma | E12: =PAST!D63 -> 0 - 1 | F12: =PAST!E63 -> Lazio | G12: 0-1 | H12: L | I12: L0 | J12: O-2.5/3 | N12: Roma | O12: Lazio | P12: 0 | Q12: 1 | R12: 3 | S12: 0 | T12: 1 | Y12: 2 | Z12: 0 | AA12: 1
B13: POR D2 | C13: 01-02-20 | D13: =PAST!C64 -> Roma | E13: =PAST!D64 -> 3 - 1 | F13: =PAST!E64 -> Ludogorets Razgrad | G13: 0-1 | H13: L | I13: L-0.5 | J13: U-2/2.5 | N13: Roma | O13: Ludogorets Razgrad | P13: 3 | Q13: 1 | R13: 3 | S13: 3 | T13: 1 | Y13: 2 | Z13: 0 | AA13: 1
B14: POR D2 | C14: 19-01-20 | D14: =PAST!C65 -> Roma | E14: =PAST!D65 -> 0 - 1 | F14: =PAST!E65 -> Napoli | G14: 0-0 | H14: D | I14: L-0.5 | J14: U-2/2.5 | N14: Roma | O14: Napoli | P14: 0 | Q14: 1 | R14: 3 | S14: 0 | T14: 1 | Y14: 2 | Z14: 0 | AA14: 0
B15: POR D2 | C15: 05-01-20 | D15: =PAST!C66 -> Roma | E15: =PAST!D66 -> 2 - 1 | F15: =PAST!E66 -> Lecce | G15: 0-2 | H15: L | I15: L-1 | J15: O-2.5 | N15: Roma | O15: Lecce | P15: 2 | Q15: 1 | R15: 3 | S15: 2 | T15: 1 | Y15: 2 | Z15: 0 | AA15: 2
B16: POR D2 | C16: 15-12-19 | D16: =PAST!C67 -> Roma | E16: =PAST!D67 -> 1 - 2 | F16: =PAST!E67 -> Real Betis | G16: 1-0 | H16: W | I16: W0/-0.5 | J16: U-2/2.5 | N16: Roma | O16: Real Betis | P16: 1 | Q16: 2 | R16: 3 | S16: 1 | T16: 2 | Y16: 2 | Z16: 1 | AA16: 0
P18: =SUM(S2:S6) -> 7 | Q18: =P18/5 -> 1.4 | S18: =SUM(T2:T6) -> 2 | T18: =S18/5 -> 0.4 | Z18: =SUM(AA2:AA6) -> 3 | AA18: =Z18/5 -> 0.6
P19: =SUM(S2:S11) -> 15 | Q19: =P19/10 -> 1.5 | S19: =SUM(T2:T11) -> 9 | T19: =S19/10 -> 0.9 | Z19: =SUM(AA2:AA11) -> 5 | AA19: =Z19/10 -> 0.5
P20: =SUM(S2:S16) -> 21 | Q20: =P20/15 -> 1.4 | S20: =SUM(T2:T16) -> 15 | T20: =S20/15 -> 1 | Z20: =SUM(AA2:AA16) -> 9 | AA20: =Z20/15 -> 0.6
Q22: =AVERAGE(Q18:Q20) -> 1.433333333 | T22: =AVERAGE(T18:T20) -> 0.7666666667 | AA22: =AVERAGE(AA18:AA20) -> 0.5666666667
M24: =IF(COUNTIF(D25:D29,D25)>COUNTIF(D25:D29,F25),D25,F25) -> Udinese | N24: MAÇ SONUCU
B25: POR D1 | C25: 10-01-21 | D25: =PAST!J53 -> Udinese | E25: =PAST!K53 -> 1 - 1 | F25: =PAST!L53 -> Hellas Verona | G25: 2-1 | H25: W | I25: W0 | J25: O-2 | N25: =M24 -> Udinese | O25: =IF(D25=N25,F25,D25) -> Hellas Verona | P25: =IF(N25=D25,S25,T25) -> 1 | Q25: =IF(O25=F25,T25,S25) -> 1 | R25: =SEARCH("-",E25) -> 3 | S25: =LEFT(E25,R25-1)*1 -> 1 | T25: =MID(E25,R25+1,4)*1 -> 1 | Y25: =SEARCH("-",G25) -> 2 | Z25: =LEFT(G25,Y25-1)*1 -> 2 | AA25: =MID(G25,Y25+1,4)*1 -> 1 | AD25: NOWGOAL DEPLASMAN VERİLERİ
B26: POR D1 | C26: 28-12-20 | D26: =PAST!J54 -> Inter | E26: =PAST!K54 -> 1 - 0 | F26: =PAST!L54 -> Hellas Verona | G26: 0-0 | H26: D | I26: W0/+0.5 | J26: D-2 | N26: =N25 -> Udinese | O26: Inter | P26: 0 | Q26: 1 | R26: 3 | S26: 1 | T26: 0 | Y26: 2 | Z26: 0 | AA26: 0
B27: POR D1 | C27: 08-12-20 | D27: =PAST!J55 -> Torino | E27: =PAST!K55 -> 1 - 1 | F27: =PAST!L55 -> Hellas Verona | G27: 1-0 | H27: W | I27: W0/-0.5 | J27: O-2/2.5 | N27: Udinese | O27: Torino | P27: 1 | Q27: 1 | R27: 3 | S27: 1 | T27: 1 | Y27: 2 | Z27: 1 | AA27: 0
B28: POR D1 | C28: 08-11-20 | D28: =PAST!J56 -> Monza | E28: =PAST!K56 -> 2 - 0 | F28: =PAST!L56 -> Hellas Verona | G28: 1-1 | H28: W | I28: W0 | J28: O-2.5 | N28: Udinese | O28: Monza | P28: 0 | Q28: 2 | R28: 3 | S28: 2 | T28: 0 | Y28: 2 | Z28: 1 | AA28: 1
B29: POR D1 | C29: 25-10-20 | D29: =PAST!J57 -> Sassuolo | E29: =PAST!K57 -> 2 - 1 | F29: =PAST!L57 -> Hellas Verona | G29: 0-1 | H29: L | I29: L0 | J29: U-2/2.5 | N29: Udinese | O29: Sassuolo | P29: 1 | Q29: 2 | R29: 3 | S29: 2 | T29: 1 | Y29: 2 | Z29: 0 | AA29: 1
B30: POR D1 | C30: 19-10-20 | D30: =PAST!J58 -> Salernitana | E30: =PAST!K58 -> 2 - 1 | F30: =PAST!L58 -> Hellas Verona | G30: 2-0 | H30: D | I30: L0/-0.5 | J30: O-2/2.5 | N30: Udinese | O30: Salernitana | P30: 1 | Q30: 2 | R30: 3 | S30: 2 | T30: 1 | Y30: 2 | Z30: 2 | AA30: 0
B31: POR D1 | C31: 27-09-20 | D31: =PAST!J59 -> Fiorentina | E31: =PAST!K59 -> 2 - 0 | F31: =PAST!L59 -> Hellas Verona | G31: 0-0 | H31: L | I31: L0/-0.5 | J31: U-2/2.5 | N31: Udinese | O31: Fiorentina | P31: 0 | Q31: 2 | R31: 3 | S31: 2 | T31: 0 | Y31: 2 | Z31: 0 | AA31: 0
B32: POR D2 | C32: 29-02-20 | D32: =PAST!J60 -> Lazio | E32: =PAST!K60 -> 2 - 0 | F32: =PAST!L60 -> Hellas Verona | G32: 0-0 | H32: W | I32: W-0.5/1 | J32: O-2/2.5 | N32: Udinese | O32: Lazio | P32: 0 | Q32: 2 | R32: 3 | S32: 2 | T32: 0 | Y32: 2 | Z32: 0 | AA32: 0
B33: POR D2 | C33: 17-02-20 | D33: =PAST!J61 -> Empoli | E33: =PAST!K61 -> 1 - 1 | F33: =PAST!L61 -> Hellas Verona | G33: 1-1 | H33: W | I33: W-0.5/1 | J33: O-2/2.5 | N33: Udinese | O33: Empoli | P33: 1 | Q33: 1 | R33: 3 | S33: 1 | T33: 1 | Y33: 2 | Z33: 1 | AA33: 1
B34: INT CF | C34: 12-02-20 | D34: =PAST!J62 -> Bologna | E34: =PAST!K62 -> 1 - 1 | F34: =PAST!L62 -> Hellas Verona | G34: 1-1 | H34: W | I34: W+0.5 | J34: O-2.5/3 | N34: Udinese | O34: Bologna | P34: 1 | Q34: 1 | R34: 3 | S34: 1 | T34: 1 | Y34: 2 | Z34: 1 | AA34: 1
B35: INT CF | C35: 02-02-20 | D35: =PAST!J63 -> Hoffenheim | E35: =PAST!K63 -> 3 - 2 | F35: =PAST!L63 -> Hellas Verona | G35: 0-1 | H35: L | I35: L0 | J35: O-2.5/3 | N35: Udinese | O35: Hoffenheim | P35: 2 | Q35: 3 | R35: 3 | S35: 3 | T35: 2 | Y35: 2 | Z35: 0 | AA35: 1
B36: POR D2 | C36: 01-02-20 | D36: =PAST!J64 -> Lazio | E36: =PAST!K64 -> 3 - 3 | F36: =PAST!L64 -> Hellas Verona | G36: 0-1 | H36: L | I36: L-0.5 | J36: U-2/2.5 | N36: Udinese | O36: Lazio | P36: 3 | Q36: 3 | R36: 3 | S36: 3 | T36: 3 | Y36: 2 | Z36: 0 | AA36: 1
B37: POR D2 | C37: 19-01-20 | D37: =PAST!J65 -> Cagliari | E37: =PAST!K65 -> 1 - 2 | F37: =PAST!L65 -> Hellas Verona | G37: 0-0 | H37: D | I37: L-0.5 | J37: U-2/2.5 | N37: Udinese | O37: Cagliari | P37: 2 | Q37: 1 | R37: 3 | S37: 1 | T37: 2 | Y37: 2 | Z37: 0 | AA37: 0
B38: POR D2 | C38: 05-01-20 | D38: =PAST!J66 -> Atalanta | E38: =PAST!K66 -> 1 - 2 | F38: =PAST!L66 -> Hellas Verona | G38: 0-2 | H38: L | I38: L-1 | J38: O-2.5 | N38: Udinese | O38: Atalanta | P38: 2 | Q38: 1 | R38: 3 | S38: 1 | T38: 2 | Y38: 2 | Z38: 0 | AA38: 2
B39: POR D2 | C39: 15-12-19 | D39: =PAST!J67 -> Inter | E39: =PAST!K67 -> 2 - 0 | F39: =PAST!L67 -> Hellas Verona | G39: 1-0 | H39: W | I39: W0/-0.5 | J39: U-2/2.5 | N39: Udinese | O39: Inter | P39: 0 | Q39: 2 | R39: 3 | S39: 2 | T39: 0 | Y39: 2 | Z39: 1 | AA39: 0
P41: =SUM(T25:T29) -> 3 | Q41: =P41/5 -> 0.6 | S41: =SUM(S25:S29) -> 7 | T41: =S41/5 -> 1.4 | Z41: =SUM(AA25:AA29) -> 3 | AA41: =Z41/5 -> 0.6
P42: =SUM(T25:T34) -> 6 | Q42: =P42/10 -> 0.6 | S42: =SUM(S25:S34) -> 15 | T42: =S42/10 -> 1.5 | Z42: =SUM(AA25:AA34) -> 5 | AA42: =Z42/10 -> 0.5
P43: =SUM(T25:T39) -> 15 | Q43: =P43/15 -> 1 | S43: =SUM(S25:S39) -> 25 | T43: =S43/15 -> 1.666666667 | Z43: =SUM(AA25:AA39) -> 9 | AA43: =Z43/15 -> 0.6
Q45: =AVERAGE(Q41:Q43) -> 0.7333333333 | T45: =AVERAGE(T41:T43) -> 1.522222222 | AA45: =AVERAGE(AA41:AA43) -> 0.5666666667
G51: DAKİKA | I51: 90 | J51: 90
B52: EV / DEP ( GOL ORTALAMA ) | F52: Probabilitate | N52: =(F54+H54)/2*100 -> 22.36538301 | O52: =(J54+F54)/2*100 -> 37.04697085 | P52: =(H54+J54)/2*100 -> 40.58452912
F53: 1 | H53: X | J53: 2
B54: =T22 -> 0.7666666667 | D54: =T45 -> 1.522222222 | F54: =SUM(D57:E92) -> 0.1882782474 | H54: =SUM(J57:K65) -> 0.2590294128 | J54: =SUM(P57:Q92) -> 0.5526611696
B56: SKOR | D56: YÜZDESEL | H56: SKOR | J56: YÜZDESEL | N56: Rezultat | P56: Probabilitate
B57: 01:00:00 | D57: =POISSON(HOUR(B57),B54*I51/90,FALSE)*POISSON(MINUTE(B57),D54*I51/90,FALSE) -> 0.07772393272 | H57: 00:00:00 | J57: =POISSON(HOUR(H57),B54*I51/90,FALSE)*POISSON(MINUTE(H57),D54*I51/90,FALSE) -> 0.1013790427 | N57: 00:01:00 | P57: =POISSON(HOUR(N57),B54*I51/90,FALSE)*POISSON(MINUTE(N57),D54*I51/90,FALSE) -> 0.1543214316
B58: 02:00:00 | D58: =POISSON(HOUR(B58),B54*I51/90,FALSE)*POISSON(MINUTE(B58),D54*I51/90,FALSE) -> 0.02979417421 | H58: 01:01:00 | J58: =POISSON(HOUR(H58),B54*I51/90,FALSE)*POISSON(MINUTE(H58),D54*I51/90,FALSE) -> 0.1183130976 | N58: 00:02:00 | P58: =POISSON(HOUR(N58),B54*I51/90,FALSE)*POISSON(MINUTE(N58),D54*I51/90,FALSE) -> 0.1174557563
B59: 02:01:00 | D59: =POISSON(HOUR(B59),B54*I51/90,FALSE)*POISSON(MINUTE(B59),D54*I51/90,FALSE) -> 0.04535335407 | H59: 02:02:00 | J59: =POISSON(HOUR(H59),B54*I51/90,FALSE)*POISSON(MINUTE(H59),D54*I51/90,FALSE) -> 0.03451894171 | N59: 01:02:00 | P59: =POISSON(HOUR(N59),B54*I51/90,FALSE)*POISSON(MINUTE(N59),D54*I51/90,FALSE) -> 0.09004941316
B60: 03:00:00 | D60: =POISSON(HOUR(B60),B54*I51/90,FALSE)*POISSON(MINUTE(B60),D54*I51/90,FALSE) -> 0.007614066742 | H60: 03:03:00 | J60: =POISSON(HOUR(H60),B54*I51/90,FALSE)*POISSON(MINUTE(H60),D54*I51/90,FALSE) -> 0.004476098162 | N60: 00:03:00 | P60: =POISSON(HOUR(N60),B54*I51/90,FALSE)*POISSON(MINUTE(N60),D54*I51/90,FALSE) -> 0.05959792079
B61: 03:01:00 | D61: =POISSON(HOUR(B61),B54*I51/90,FALSE)*POISSON(MINUTE(B61),D54*I51/90,FALSE) -> 0.0115903016 | H61: 04:04:00 | J61: =POISSON(HOUR(H61),B54*I51/90,FALSE)*POISSON(MINUTE(H61),D54*I51/90,FALSE) -> 0.000326485771 | N61: 01:03:00 | P61: =POISSON(HOUR(N61),B54*I51/90,FALSE)*POISSON(MINUTE(N61),D54*I51/90,FALSE) -> 0.04569173927
B62: 03:02:00 | D62: =POISSON(HOUR(B62),B54*I51/90,FALSE)*POISSON(MINUTE(B62),D54*I51/90,FALSE) -> 0.008821507326 | H62: 05:05:00 | J62: =POISSON(HOUR(H62),B54*I51/90,FALSE)*POISSON(MINUTE(H62),D54*I51/90,FALSE) -> 1.524083947e-05 | N62: 02:03:00 | P62: =POISSON(HOUR(N62),B54*I51/90,FALSE)*POISSON(MINUTE(N62),D54*I51/90,FALSE) -> 0.01751516672
B63: 04:00:00 | D63: =POISSON(HOUR(B63),B54*I51/90,FALSE)*POISSON(MINUTE(B63),D54*I51/90,FALSE) -> 0.001459362792 | H63: 06:06:00 | J63: =POISSON(HOUR(H63),B54*I51/90,FALSE)*POISSON(MINUTE(H63),D54*I51/90,FALSE) -> 4.940728928e-07 | N63: 00:04:00 | P63: =POISSON(HOUR(N63),B54*I51/90,FALSE)*POISSON(MINUTE(N63),D54*I51/90,FALSE) -> 0.02268031986
B64: 04:01:00 | D64: =POISSON(HOUR(B64),B54*I51/90,FALSE)*POISSON(MINUTE(B64),D54*I51/90,FALSE) -> 0.002221474473 | H64: 07:07:00 | J64: =POISSON(HOUR(H64),B54*I51/90,FALSE)*POISSON(MINUTE(H64),D54*I51/90,FALSE) -> 1.176737479e-08 | N64: 01:04:00 | P64: =POISSON(HOUR(N64),B54*I51/90,FALSE)*POISSON(MINUTE(N64),D54*I51/90,FALSE) -> 0.01738824522
B65: 04:02:00 | D65: =POISSON(HOUR(B65),B54*I51/90,FALSE)*POISSON(MINUTE(B65),D54*I51/90,FALSE) -> 0.001690788904 | H65: 08:08:00 | J65: =POISSON(HOUR(H65),B54*I51/90,FALSE)*POISSON(MINUTE(H65),D54*I51/90,FALSE) -> 2.145775346e-10 | N65: 02:04:00 | P65: =POISSON(HOUR(N65),B54*I51/90,FALSE)*POISSON(MINUTE(N65),D54*I51/90,FALSE) -> 0.006665494002
B66: 04:03:00 | D66: =POISSON(HOUR(B66),B54*I51/90,FALSE)*POISSON(MINUTE(B66),D54*I51/90,FALSE) -> 0.0008579188144 | N66: 03:04:00 | P66: =POISSON(HOUR(N66),B54*I51/90,FALSE)*POISSON(MINUTE(N66),D54*I51/90,FALSE) -> 0.001703404023
B67: 05:00:00 | D67: =POISSON(HOUR(B67),B54*I51/90,FALSE)*POISSON(MINUTE(B67),D54*I51/90,FALSE) -> 0.0002237689615 | F67: 1,5 A - Ü | N67: 00:05:00 | P67: =POISSON(HOUR(N67),B54*I51/90,FALSE)*POISSON(MINUTE(N67),D54*I51/90,FALSE) -> 0.006904897378
B68: 05:01:00 | D68: =POISSON(HOUR(B68),B54*I51/90,FALSE)*POISSON(MINUTE(B68),D54*I51/90,FALSE) -> 0.0003406260858 | H68: 2,5 A - Ü | J68: 3,5 A - Ü | L68: KG V/Y | N68: 01:05:00 | P68: =POISSON(HOUR(N68),B54*I51/90,FALSE)*POISSON(MINUTE(N68),D54*I51/90,FALSE) -> 0.005293754657
B69: 05:02:00 | D69: =POISSON(HOUR(B69),B54*I51/90,FALSE)*POISSON(MINUTE(B69),D54*I51/90,FALSE) -> 0.0002592542986 | F69: =D57+J57+P57 -> 0.333424407 | G69: =1-F69 -> 0.666575593 | H69: =D57+D58+J57+J58+P57+P58 -> 0.5989874351 | I69: =1-H69 -> 0.4010125649 | J69: =D57+D58+D60+J57+J58+P57+P58+P60+P59+D59 -> 0.8016021899 | K69: =1-J69 -> 0.1983978101 | L69: =SUM(D59,D61,D62,D64,D65,D66,D68,D69,D70,D71,D73:E77,D79:E84,D86:E92,J58:K65,P59,P61:Q62,P64:Q66,P68:Q71,P73:Q77,P79:Q84,P86:Q92) -> 0.4185769011 | M69: =1-L69 -> 0.5814230989 | N69: 02:05:00 | P69: =POISSON(HOUR(N69),B54*I51/90,FALSE)*POISSON(MINUTE(N69),D54*I51/90,FALSE) -> 0.002029272618
B70: 05:03:00 | D70: =POISSON(HOUR(B70),B54*I51/90,FALSE)*POISSON(MINUTE(B70),D54*I51/90,FALSE) -> 0.0001315475515 | N70: 03:05:00 | P70: =POISSON(HOUR(N70),B54*I51/90,FALSE)*POISSON(MINUTE(N70),D54*I51/90,FALSE) -> 0.0005185918914
B71: 05:04:00 | D71: =POISSON(HOUR(B71),B54*I51/90,FALSE)*POISSON(MINUTE(B71),D54*I51/90,FALSE) -> 5.006115156e-05 | N71: 04:05:00 | P71: =POISSON(HOUR(N71),B54*I51/90,FALSE)*POISSON(MINUTE(N71),D54*I51/90,FALSE) -> 9.939677918e-05
B72: 06:00:00 | D72: =POISSON(HOUR(B72),B54*I51/90,FALSE)*POISSON(MINUTE(B72),D54*I51/90,FALSE) -> 2.859270063e-05 | N72: 00:06:00 | P72: =POISSON(HOUR(N72),B54*I51/90,FALSE)*POISSON(MINUTE(N72),D54*I51/90,FALSE) -> 0.001751798039
B73: 06:01:00 | D73: =POISSON(HOUR(B73),B54*I51/90,FALSE)*POISSON(MINUTE(B73),D54*I51/90,FALSE) -> 4.35244443e-05 | N73: 01:06:00 | P73: =POISSON(HOUR(N73),B54*I51/90,FALSE)*POISSON(MINUTE(N73),D54*I51/90,FALSE) -> 0.001343045163
B74: 06:02:00 | D74: =POISSON(HOUR(B74),B54*I51/90,FALSE)*POISSON(MINUTE(B74),D54*I51/90,FALSE) -> 3.312693816e-05 | N74: 02:06:00 | P74: =POISSON(HOUR(N74),B54*I51/90,FALSE)*POISSON(MINUTE(N74),D54*I51/90,FALSE) -> 0.0005148339791
B75: 06:03:00 | D75: =POISSON(HOUR(B75),B54*I51/90,FALSE)*POISSON(MINUTE(B75),D54*I51/90,FALSE) -> 1.680885381e-05 | N75: 03:06:00 | P75: =POISSON(HOUR(N75),B54*I51/90,FALSE)*POISSON(MINUTE(N75),D54*I51/90,FALSE) -> 0.0001315686835
B76: 06:04:00 | D76: =POISSON(HOUR(B76),B54*I51/90,FALSE)*POISSON(MINUTE(B76),D54*I51/90,FALSE) -> 6.396702699e-06 | N76: 04:06:00 | P76: =POISSON(HOUR(N76),B54*I51/90,FALSE)*POISSON(MINUTE(N76),D54*I51/90,FALSE) -> 2.521733101e-05
B77: 06:05:00 | D77: =POISSON(HOUR(B77),B54*I51/90,FALSE)*POISSON(MINUTE(B77),D54*I51/90,FALSE) -> 1.947440599e-06 | G77: 0-1 GOL - 2-3 GOL - 4-6 GOL - 7+ GOL | N77: 05:06:00 | P77: =POISSON(HOUR(N77),B54*I51/90,FALSE)*POISSON(MINUTE(N77),D54*I51/90,FALSE) -> 3.866657422e-06
B78: 07:00:00 | D78: =POISSON(HOUR(B78),B54*I51/90,FALSE)*POISSON(MINUTE(B78),D54*I51/90,FALSE) -> 3.131581498e-06 | G78: =D57+J57+P57 -> 0.333424407 | H78: =D58+D59+D60+J58+P58+P59+P60 -> 0.4681777829 | I78: =D61+D62+D63+D64+D65+D67+D68+D72+J58+J59+J60+P61+P62+P63+P64+P65+P67+P68+P72 -> 0.3075759754 | J78: =(I78+H78+G78)-1 -> 0.1091781653 | N78: 00:07:00 | P78: =POISSON(HOUR(N78),B54*I51/90,FALSE)*POISSON(MINUTE(N78),D54*I51/90,FALSE) -> 0.0003809465576
B79: 07:01:00 | D79: =POISSON(HOUR(B79),B54*I51/90,FALSE)*POISSON(MINUTE(B79),D54*I51/90,FALSE) -> 4.766962947e-06 | N79: 01:07:00 | P79: =POISSON(HOUR(N79),B54*I51/90,FALSE)*POISSON(MINUTE(N79),D54*I51/90,FALSE) -> 0.0002920590275
B80: 07:02:00 | D80: =POISSON(HOUR(B80),B54*I51/90,FALSE)*POISSON(MINUTE(B80),D54*I51/90,FALSE) -> 3.628188465e-06 | N80: 02:07:00 | P80: =POISSON(HOUR(N80),B54*I51/90,FALSE)*POISSON(MINUTE(N80),D54*I51/90,FALSE) -> 0.0001119559605
B81: 07:03:00 | D81: =POISSON(HOUR(B81),B54*I51/90,FALSE)*POISSON(MINUTE(B81),D54*I51/90,FALSE) -> 1.840969703e-06 | N81: 03:07:00 | P81: =POISSON(HOUR(N81),B54*I51/90,FALSE)*POISSON(MINUTE(N81),D54*I51/90,FALSE) -> 2.861096769e-05
B82: 07:04:00 | D82: =POISSON(HOUR(B82),B54*I51/90,FALSE)*POISSON(MINUTE(B82),D54*I51/90,FALSE) -> 7.00591248e-07 | N82: 04:07:00 | P82: =POISSON(HOUR(N82),B54*I51/90,FALSE)*POISSON(MINUTE(N82),D54*I51/90,FALSE) -> 5.483768808e-06
B83: 07:05:00 | D83: =POISSON(HOUR(B83),B54*I51/90,FALSE)*POISSON(MINUTE(B83),D54*I51/90,FALSE) -> 2.132911133e-07 | N83: 05:07:00 | P83: =POISSON(HOUR(N83),B54*I51/90,FALSE)*POISSON(MINUTE(N83),D54*I51/90,FALSE) -> 8.408445505e-07
B84: 07:06:00 | D84: =POISSON(HOUR(B84),B54*I51/90,FALSE)*POISSON(MINUTE(B84),D54*I51/90,FALSE) -> 5.41127454e-08 | N84: 06:07:00 | P84: =POISSON(HOUR(N84),B54*I51/90,FALSE)*POISSON(MINUTE(N84),D54*I51/90,FALSE) -> 1.074412481e-07
B85: 08:00:00 | D85: =POISSON(HOUR(B85),B54*I51/90,FALSE)*POISSON(MINUTE(B85),D54*I51/90,FALSE) -> 3.001098936e-07 | G85: 27 | H85: 32 | I85: 34 | N85: 00:08:00 | P85: =POISSON(HOUR(N85),B54*I51/90,FALSE)*POISSON(MINUTE(N85),D54*I51/90,FALSE) -> 7.248566443e-05
B86: 08:01:00 | D86: =POISSON(HOUR(B86),B54*I51/90,FALSE)*POISSON(MINUTE(B86),D54*I51/90,FALSE) -> 4.568339491e-07 | G86: 26 | H86: 26 | I86: 35 | N86: 01:08:00 | P86: =POISSON(HOUR(N86),B54*I51/90,FALSE)*POISSON(MINUTE(N86),D54*I51/90,FALSE) -> 5.557234273e-05
B87: 08:02:00 | D87: =POISSON(HOUR(B87),B54*I51/90,FALSE)*POISSON(MINUTE(B87),D54*I51/90,FALSE) -> 3.477013946e-07 | N87: 02:08:00 | P87: =POISSON(HOUR(N87),B54*I51/90,FALSE)*POISSON(MINUTE(N87),D54*I51/90,FALSE) -> 2.130273138e-05
B88: 08:03:00 | D88: =POISSON(HOUR(B88),B54*I51/90,FALSE)*POISSON(MINUTE(B88),D54*I51/90,FALSE) -> 1.764262632e-07 | N88: 03:08:00 | P88: =POISSON(HOUR(N88),B54*I51/90,FALSE)*POISSON(MINUTE(N88),D54*I51/90,FALSE) -> 5.444031353e-06
B89: 08:04:00 | D89: =POISSON(HOUR(B89),B54*I51/90,FALSE)*POISSON(MINUTE(B89),D54*I51/90,FALSE) -> 6.71399946e-08 | H89: =H85/I85 -> 0.9411764706 | I89: =H86/I86 -> 0.7428571429 | K89: 1.4 | L89: 2.2 | N89: 04:08:00 | P89: =POISSON(HOUR(N89),B54*I51/90,FALSE)*POISSON(MINUTE(N89),D54*I51/90,FALSE) -> 1.043439343e-06
B90: 08:05:00 | D90: =POISSON(HOUR(B90),B54*I51/90,FALSE)*POISSON(MINUTE(B90),D54*I51/90,FALSE) -> 2.044039836e-08 | H90: =I85/H85 -> 1.0625 | I90: =I86/H86 -> 1.346153846 | K90: 1.4 | L90: 0.8 | N90: 05:08:00 | P90: =POISSON(HOUR(N90),B54*I51/90,FALSE)*POISSON(MINUTE(N90),D54*I51/90,FALSE) -> 1.599940325e-07
B91: 08:06:00 | D91: =POISSON(HOUR(B91),B54*I51/90,FALSE)*POISSON(MINUTE(B91),D54*I51/90,FALSE) -> 5.185804768e-09 | N91: 06:08:00 | P91: =POISSON(HOUR(N91),B54*I51/90,FALSE)*POISSON(MINUTE(N91),D54*I51/90,FALSE) -> 2.044368193e-08
B92: 08:07:00 | D92: =POISSON(HOUR(B92),B54*I51/90,FALSE)*POISSON(MINUTE(B92),D54*I51/90,FALSE) -> 1.127706751e-09 | H92: =H85/G85 -> 1.185185185 | I92: =I85/G85 -> 1.259259259 | K92: =(K89+L90)/2 -> 1.1 | L92: =(K90+L89)/2 -> 1.8 | N92: 07:08:00 | P92: =POISSON(HOUR(N92),B54*I51/90,FALSE)*POISSON(MINUTE(N92),D54*I51/90,FALSE) -> 2.239069926e-09
H93: =H86/G86 -> 1 | I93: =I86/G86 -> 1.346153846
C96: =D57 -> 0.07772393272 | D96: 1-0
C97: 0.02979417421 | D97: 2-0
C98: 0.04535335407 | D98: 2-1 | N98: 20.53 | O98: 21.95 | P98: 57.5 | R98: 42.43 | S98: 57.57
C99: 0.007614066742 | D99: 3-0 | F99: =" SKOR 1 ----- "&"[ "&VLOOKUP(MAX(C96:C250),C96:D250,2,0)&" ] " -> SKOR 1 ----- [ 1-0 ] | N99: 27.37 | O99: 23.49 | P99: 49.14 | R99: 42.32 | S99: 57.68
C100: 0.0115903016 | D100: 3-1 | N100: 23.1 | O100: 23.14 | P100: 53.75 | R100: 44.6 | S100: 55.4
C101: 0.008821507326 | D101: 3-2
C102: 0.001459362792 | D102: 4-0 | N102: =(N98+N99+N100)/3 -> 23.66666667 | O102: =(O98+O99+O100)/3 -> 22.86 | P102: =(P98+P99+P100)/3 -> 53.46333333 | R102: =(R98+R99+R100)/3 -> 43.11666667 | S102: =(S98+S99+S100)/3 -> 56.88333333
C103: 0.002221474473 | D103: 4-1
C104: 0.001690788904 | D104: 4-2
C105: 0.0008579188144 | D105: 4-3
C106: 0.0002237689615 | D106: 5-0
C107: 0.0003406260858 | D107: 5-1 | F107: =" SKOR 2 ----- "&"[ "&VLOOKUP(LARGE(C96:C250,2),C96:D250,2,0)&" ] " -> SKOR 2 ----- [ 2-1 ] | R107: 56 | S107: 44
C108: 0.0002592542986 | D108: 5-2 | R108: 58.94 | S108: 41.06
C109: 0.0001315475515 | D109: 5-3 | R109: 55.68 | S109: 44.32
C110: 5.006115156e-05 | D110: 5-4
C111: 2.859270063e-05 | D111: 6-0 | R111: =(R107+R108+R109)/3 -> 56.87333333 | S111: =(S107+S108+S109)/3 -> 43.12666667
C112: 4.35244443e-05 | D112: 6-1
C113: 3.312693816e-05 | D113: 6-2
C114: 1.680885381e-05 | D114: 6-3
C115: 6.396702699e-06 | D115: 6-4
C116: 1.947440599e-06 | D116: 6-5
C117: 3.131581498e-06 | D117: 7-0
C118: 4.766962947e-06 | D118: 7-1
C119: 3.628188465e-06 | D119: 7-2
C120: 1.840969703e-06 | D120: 7-3
C121: 7.00591248e-07 | D121: 7-4
C122: 2.132911133e-07 | D122: 7-5
C123: 5.41127454e-08 | D123: 7-6
C124: 3.001098936e-07 | D124: 8-0

Sheet strengths (hidden)
E1: Attack strength: home and away | N1: Defence weakness: home and away
J2: home | K2: away | L2: weighted | M2: weighted | S2: home | T2: away | U2: home | V2: away
B3: home | C3: away | E3: Home | F3: Away | G3: average | H3: average | I3: attack | J3: attack | K3: attack | L3: home attack | M3: away attack | N3: Home | O3: Away | P3: average | Q3: average | R3: defence | S3: defence | T3: defence | U3: defence | V3: defence
B4: meciuri | C4: meciuri | E4: goluri date | F4: for | G4: home-for | H4: away-for | I4: Home-ad | J4: strength | K4: strength | L4: strength | M4: strength | N4: against | O4: against | P4: home-aga | Q4: away-aga | R4: Home-ad | S4: weakness | T4: weakness | U4: weakness | V4: weakness
A5: Arnett Gardens | B5: =Sheet6!D6 -> 5 | C5: =Sheet6!D7 -> 5 | E5: =Sheet6!H6 -> 7 | F5: =Sheet6!H7 -> 0 | G5: =E5/B5 -> 1.4 | H5: 0 | I5: =G5/H5 ->  | J5: =G5/$G$7 -> 1.2 | K5: =H5/$H$7 -> 0 | L5: =(G5+H5)/((G$7+$H$7)) -> 0.9882352941 | M5: =(H5 + G5)/($H$7 + $G$7) -> 0.9882352941 | N5: =Sheet6!I6 -> 2 | O5: =Sheet6!I7 -> 1 | P5: =N5/B5 -> 0.4 | Q5: 0.2 | R5: =Q5/P5 -> 0.5 | S5: =P5/$P$7 -> 0.8 | T5: =Q5/$Q$7 -> 0.4 | U5: =(P5 + Q5)/($P$7 +$Q$7) -> 0.6 | V5: =(Q5 + P5)/($Q$7 + $P$7) -> 0.6
A6: Mount Pleasant FA | B6: =Sheet6!M6 -> 7 | C6: =Sheet6!M7 -> 3 | E6: =Sheet6!Q6 -> 7 | F6: =Sheet6!Q7 -> 2 | G6: 1 | H6: 0.6666666667 | I6: =G6/H6 -> 1.5 | J6: =G6/$G$7 -> 0.8571428571 | K6: =H6/$H$7 -> 2.666666667 | L6: =(G6 + H6)/(G$7 + $H$7) -> 1.176470588 | M6: =(H6 +G6)/($H$7 + $G$7) -> 1.176470588 | N6: =Sheet6!R6 -> 4 | O6: =Sheet6!R7 -> 3 | P6: 0.5714285714 | Q6: 1 | R6: =Q6/P6 -> 1.75 | S6: =P6/$P$7 -> 1.142857143 | T6: =Q6/$Q$7 -> 2 | U6: =(P6+Q6)/($P$7+$Q$7) -> 1.571428571 | V6: =(Q6 + P6)/($Q$7 + $P$7) -> 1.571428571
B7: =SUM(B5:B6) -> 12 | C7: =SUM(C5:C6) -> 8 | E7: =SUM(E5:E6) -> 14 | F7: =SUM(F5:F6) -> 2 | G7: 1.166666667 | H7: 0.25 | I7: =G7/H7 -> 4.666666667 | J7: =G7/$G$7 -> 1 | K7: =H7/$H$7 -> 1 | L7: =G7/$G$7 -> 1 | M7: =H7/$H$7 -> 1 | N7: =SUM(N5:N6) -> 6 | O7: =SUM(O5:O6) -> 4 | P7: 0.5 | Q7: 0.5 | R7: =Q7/P7 -> 1 | S7: =P7/$P$7 -> 1 | T7: =Q7/$Q$7 -> 1 | U7: =(P7 +Q7)/($P$7 +$Q$7) -> 1 | V7: =(Q7 +P7)/($Q$7 + $P$7) -> 1
E9: Attack strength: home and away | N9: Defence weakness: home and away
J10: home | K10: away | L10: weighted | M10: weighted | S10: home | T10: away | U10: home | V10: away
B11: home | C11: away | E11: Home | F11: Away | G11: average | H11: average | I11: attack | J11: attack | K11: attack | L11: home attack | M11: away attack | N11: Home | O11: Away | P11: average | Q11: average | R11: defence | S11: defence | T11: defence | U11: defence | V11: defence
